Workbook

Sheet Cash Invoices
A1: RGV Cycle Stuff, dba -
T2: SALES RECEIPT
AC5: DATE: | AD5: =TODAY() -> 2015-01-03
AC6: INVOICE: | AD6: 15378
B13: Bill To: | X13: Ship To: | AL13: Note:
C14: Name: | AA14: =+E14 -> 0
C15: Phone: | AA15: =+E15 -> 0
C16: Address: | AA16: =+E16 -> 
C17: Email: | AA17: =+E17 -> 
K19: Custom LED Lighting
A20: Type | E20: Sales Rep. Name | M20: VIN | T20: Miles | Y20: Terms | AD20: Due Date
A23: Product ID | E23: Description | T23: Quantity | Y23: Unit Price | AD23: Line Total
AD24: =ROUND(+T24*Y24+0.000001,2) -> 0
AD25: 0
AD26: 0
AD27: 0
AD28: 0
AD29: 0
AD30: 0
AD31: 0
AD32: 0
AD33: 0
AD34: 0
AD35: 0
AB36: SUBTOTAL | AD36: =SUM(AD24:AH35) -> 0
F37: RGV Cycle Center | AB37: TAX (8.25%) | AD37: =ROUND(+AD36*0.0825,2) -> 0
F38: 2716 N.10th Street | AB38: SHIPPING & HANDLING
F39: McAllen, TX 78501 | AB39: TOTAL | AD39: =SUM(AD36:AH38) -> 0
A40: NOTES: | AB40: PAID
A41: Use caution with new tires, "slippery" for the first 100 miles. | AB41: TOTAL DUE | AD41: =+AD39-AD40 -> 0
A42: Check all fastening nuts and bolts after 100 miles.
A43: No refunds on self installed electrical items or Helmets.
A44: 20% restocking fee after 7 days & all Special Orders.
A45: 956-688-8086
A47: THANK YOU FOR YOUR BUSINESS !

Sheet Ctrl_R
A1: RGV Cycle Stuff, dba -
T2: SALES RECEIPT
AC5: DATE: | AD5: 2014-12-04
AC6: INVOICE: | AD6: 15167
Z7: Total Invoice | AF7: 160
Z8: Total Paid | AF8: 160
Z9: Balance | AF9: 0
B13: Bill To: | X13: Ship To: | AL13: Note:
C14: Name: | E14: Eduardo | AA14: =+E14 -> Eduardo
C15: Phone: | E15: 956-638-4798 | AA15: =+E15 -> 956-638-4798
C16: Address: | E16: Texas | AA16: =+E16 -> Texas
C17: Email: | AA17: =+E17 -> 
K19: Custom LED Lighting
A20: Type | E20: Sales Rep. Name | M20: VIN | T20: Miles | Y20: Terms | AD20: Due Date | AS20: How
A21: P | E21: Robert | Y21: Due | AS21: Paid | AU21: Balance
A23: Product ID | E23: Description | T23: Quantity | Y23: Unit Price | AD23: Line Total | AM23: 2014-12-04 | AO23: Deposit | AQ23: 0 | AS23: Due | AU23: 160
A24: 781315 | E24: BTX5L-BS BIKEMSTR BATTERY | T24: 1 | Y24: 36.72 | AD24: =ROUND(+T24*Y24+0.000001,2) -> 36.72 | AM24: 2014-12-08 | AO24: Payment | AQ24: 80 | AS24: Visa | AU24: 80
A25: 781328 | E25: BTX15L-BS BIKEMSTR BATTERY | T25: 1 | Y25: 63.05 | AD25: 63.05 | AM25: 2015-01-03 | AO25: Payment | AQ25: 0 | AS25: 80.00 Visa | AU25: 80
A26: 781318 | E26: BTX7L-BS BIKEMSTR BATTERY | T26: 1 | Y26: 48.04 | AD26: 48.04 | AM26: 2015-01-03 | AO26: Payment | AQ26: 80 | AS26: Visa | AU26: 0
AD27: 0
E28: ETA Wed 10th @ noon | AD28: 0
E29: Pls only PU Thu am to allow us to charge. | AD29: 0
AD30: 0
E31: Thanks | AD31: 0
AD32: 0
AD33: 0
AD34: 0
AD35: 0
AB36: SUBTOTAL | AD36: =SUM(AD24:AH35) -> 147.81
F37: RGV Cycle Center | AB37: TAX (8.25%) | AD37: 12.19
F38: 2716 N.10th Street | AB38: SHIPPING & HANDLING
F39: McAllen, TX 78501 | AB39: TOTAL | AD39: =SUM(AD36:AH38) -> 160
A40: NOTES: | AB40: PAID | AD40: 160
A41: Use caution with new tires, "slippery" for the first 100 miles. | AB41: TOTAL DUE | AD41: 0
A42: Check all fastening nuts and bolts after 100 miles.
A43: No refunds on self installed electrical items or Helmets.
A44: 20% restocking fee after 7 days & all Special Orders.
A45: 956-688-8086
A47: THANK YOU FOR YOUR BUSINESS !

Sheet Estimate
A1: RGV Cycle Stuff, dba -
U2: ESTIMATE
AC5: DATE: | AD5: =NOW() -> 2015-01-03T16:33:53.500
B13: Bill To: | X13: Ship To: | AL13: Note:
E14: Cash Customers | AA14: =+E14 -> Cash Customers
AA15: =+E15 -> 0
E16: Texas | AA16: =+E16 -> Texas
E17: USA | L17: ESTIMATE | AA17: =+E17 -> USA
A20: Type | E20: Sales Rep. Name | M20: VIN | T20: Miles | Y20: Terms | AD20: Due Date
Y21: Cash
A23: Product ID | E23: Description | T23: Quantity | Y23: Unit Price | AD23: Line Total
AD24: =+T24*Y24 -> 0
AD25: 0
AD26: 0
AD27: 0
AD28: 0
AD29: 0
AD30: 0
AD31: 0
AD32: 0
AD33: 0
AD34: 0
E35: Estimates valid for 10 days | AD35: 0
AB36: SUBTOTAL | AD36: =SUM(AD24:AH35) -> 0
F37: RGV Cycle Center | AB37: TAX (8.25%) | AD37: =+AD36*0.0825 -> 0
F38: 2716 N.10th Street | AB38: SHIPPING & HANDLING
F39: McAllen, TX 78501 | AB39: TOTAL | AD39: =SUM(AD36:AH38) -> 0
A40: NOTES: | AB40: PAID
A41: Use caution with new tires, "slippery" for the first 100 miles. Check all fastening nuts and bolts after 100 miles. No refunds on self installed electrical items. 20% restocking fee after 7 days & Special Orders. | AB41: TOTAL EST. | AD41: =+AD39-AD40 -> 0
A45: 956-688-8086
A47: THANK YOU FOR YOUR BUSINESS !

Sheet CTRL_G
A1: RGV Cycle Stuff, dba -
U2: ESTIMATE
AC5: DATE: | AD5: 2014-12-18T13:10:41
B13: Bill To: | X13: Ship To: | AL13: Note:
E14: Elvin | AA14: =+E14 -> Elvin
E15: 956-683-9347 | AA15: =+E15 -> 956-683-9347
E16: 2002 600R Yamaha | AA16: =+E16 -> 2002 600R Yamaha
E17: USA | L17: ESTIMATE | AA17: =+E17 -> USA
A20: Type | E20: Sales Rep. Name | M20: VIN | T20: Miles | Y20: Terms | AD20: Due Date
E21: Robert | Y21: Cash
A23: Product ID | E23: Description | T23: Quantity | Y23: Unit Price | AD23: Line Total
A24: 249451 | E24: Sprocket JTR245/3.43T | T24: 1 | Y24: 30 | AD24: =+T24*Y24 -> 30
A25: 500020 | E25: Labor - RR Sprocket R&R | T25: 1 | Y25: 20 | AD25: 20
AD26: 0
A27: 87-4016 | E27: Shinko *180/55-17 R005 RR | T27: 1 | Y27: 115 | AD27: 115
A28: 87-4015 | E28: Shinko *170/60ZR17 R005 RR | Y28: 115 | AD28: 0
A29: 500020 | E29: Labor - Mount & Balance RR, on bike w/sprocket | T29: 1 | Y29: 20 | AD29: 20
AD30: 0
E31: Deposit required - $70.00 | AD31: 0
AD32: 0
AD33: 0
AD34: 0
E35: Estimates valid for 10 days | AD35: 0
AB36: SUBTOTAL | AD36: =SUM(AD24:AH35) -> 185
F37: RGV Cycle Center | AB37: TAX (8.25%) | AD37: =+AD36*0.0825 -> 15.2625
F38: 2716 N.10th Street | AB38: SHIPPING & HANDLING
F39: McAllen, TX 78501 | AB39: TOTAL | AD39: =SUM(AD36:AH38) -> 200.2625
A40: NOTES: | AB40: PAID
A41: Use caution with new tires, "slippery" for the first 100 miles. Check all fastening nuts and bolts after 100 miles. No refunds on self installed electrical items. 20% restocking fee after 7 days & Special Orders. | AB41: TOTAL EST. | AD41: =+AD39-AD40 -> 200.2625
A45: 956-688-8086
A47: THANK YOU FOR YOUR BUSINESS !

Sheet Jan-15
A1: Invoice | C1: =SUM(C15:C212) -> 0 | D1: =SUM(D15:D212) -> 0 | H1: =TODAY() -> 2015-01-03
A2: Number | B2: Date | C2: Amount | D2: Tax | E2: Terms
A3: 15367 | B3: 2015-01-02 | C3: 100 | D3: 7.62
A4: 15368 | B4: 2015-01-02 | C4: 140 | D4: 10.67
A5: 15369 | B5: 2015-01-02 | C5: 11.91 | D5: 0.91 | E5: Visa
A6: 15370 | B6: 2015-01-02 | C6: 17.27 | D6: 1.32
A7: 15371 | B7: 2015-01-02 | C7: 39
A8: 15372 | B8: 2015-01-02 | C8: 172.12 | D8: 13.12 | E8: Visa | F8: =+C5+C8 -> 184.03 | G8: =+F8*0.97831 -> 180.0383893
A9: 15373 | B9: 2015-01-03 | C9: 35.72 | D9: 2.72
A10: 15374 | B10: 2015-01-03 | C10: 14.02 | D10: 1.07
A11: 15375 | B11: 2015-01-03 | C11: 6.5 | D11: 0.5
A12: 15376 | B12: 2015-01-03 | C12: 121.24 | D12: 9.24 | E12: Visa, $61.24 due
A13: 15377 | B13: 2015-01-03 | C13: 59.54 | D13: 4.54 | F13: =70.7+60+80 -> 210.7 | G13: =+F13*0.97831 -> 206.129917
I15: =H1-WEEKDAY(H1,3)-7 -> 2014-12-22 | J15: =SUMIF(INDIRECT(TEXT(I15,"'mmm-yy'")&"!B3:B400"),I15,INDIRECT(TEXT(I15,"'mmm-yy'")&"!C3:C400")) -> 1421.72 | L15: =(+J15) -> 1421.72
I16: =I15+1 -> 2014-12-23 | J16: 610.37 | L16: =(+J15+J16)/2 -> 1016.045
I17: 2014-12-24 | J17: 10.83 | L17: =(+J15+J16+J17)/3 -> 680.9733333
I18: 2014-12-25 | J18: 0 | L18: =(+J15+J16+J17+J18)/4 -> 510.73
I19: 2014-12-26 | J19: 1195.56 | L19: =(+J15+J16+J17+J18+J19)/5 -> 647.696
I20: 2014-12-27 | J20: 749.86 | L20: =(+J15+J16+J17+J18+J19+J20)/6 -> 664.7233333
I21: 2014-12-28 | J21: 0 | K21: =SUM(J15:J21) -> 3988.34 | L21: =+K21/6 -> 664.7233333
I22: 2014-12-29 | J22: 871.44 | L22: =+J22 -> 871.44
I23: 2014-12-30 | J23: 1100.72 | L23: =(+J22+J23)/2 -> 986.08
I24: 2014-12-31 | J24: 252 | L24: =(+J22+J23+J24)/3 -> 741.3866667
I25: 2015-01-01 | J25: 0 | L25: =(+J22+J23+J24+J25)/4 -> 556.04
I26: 2015-01-02 | J26: 480.3 | L26: =(+J22+J23+J24+J25+J26)/5 -> 540.892
I27: 2015-01-03 | J27: 237.02 | L27: =(+J22+J23+J24+J25+J26+J27)/6 -> 490.2466667
I28: 2015-01-04 | J28: 0 | K28: =SUM(J22:J28) -> 2941.48 | L28: =(+J22+J23+J24+J25+J26+J27+J28)/6 -> 490.2466667

Sheet Work Order
A1: RGV Cycle Stuff, dba -
U2: WORK ORDER
AC5: DATE: | AD5: =NOW() -> 2015-01-03T16:33:53.500
B13: Bill To: | X13: Ship To:
D14: Name: | AA14: =+E14 -> 0
D15: Phone:
D16: Address:
D17: Bike:
A19: Type | E19: Sales Rep. Name | M19: VIN | Y19: Miles | AD19: Terms
A20: M
A22: Product ID | E22: Description | T22: Quantity | Y22: Unit Price | AD22: Line Total
AD23: =+Y23*T23 -> 0
AD24: =+T24*Y24 -> 0 | AL24: -2
AD25: =+T25*Y25 -> 0 | AL25: n/a
AD26: 0 | AL26: 26.15
AD27: =+T27*Y27 -> 0 | AL27: -1
AD28: 0 | AL28: 23.15
AD29: =+T29*Y29 -> 0 | AL29: 23.15 | AX29: BelRay 20w50 - Quart Bulk
AD30: =+T30*Y30 -> 0 | AL30: -4
AD31: 0 | AL31: 0
AD32: =+T32*Y32 -> 0 | AL32: 0
AD33: =+T33*Y33 -> 0
AD34: =+T34*Y34 -> 0
F35: RGV Cycle Center | AB35: SUBTOTAL
F36: 2716 N.10th Street | AB36: TAX (8.25%)
F37: McAllen, TX 78501 | AB37: TOTAL
A38: I hereby authorize the above repair work be done along with necessary materials. You and your employees may operate the above vehicle for the purpose of testing, inspection or delivery at my risk. An express mechanic’s lien is acknowledged on the above vehicle to secure the amount of the repairs thereto. You will not be responsible for loss or damage to vehicle or to articles left in the vehicle in case of fire, theft, accident or any other cause beyond your control. | AB38: PAID
AB39: TOTAL EST.
A45: X _______________________________________
A46: 956-688-8086
A48: THANK YOU FOR YOUR BUSINESS !

Sheet Weekly
B1: =+#REF! ->  | C1: =+#REF! ->  | D1: =SUM(#REF!)+SUM(#REF!)+SUM(#REF!) ->  | F1: =SUM(B1:D1) ->  | G1: =SUM(F4:F75) -> 134277.5193
A2: Week ending | B2: Sales Receipts | C2: Invoices | D2: Excel Recorded | F2: Total for week | G2: 4-week running average | H2: 13-week running average | I2: YTD Wk Avg | J2: Annualized | K2: Moving Annual Sales | L2: YTD Dly Avg
A4: 2008-07-06 | F4: =SUM(B4:D4) -> 0
A5: 2008-07-13 | B5: 0.9 | F5: 0.9
A6: 2008-07-20 | B6: 67.42 | C6: 6.5 | F6: 73.92
A7: 2008-07-27 | B7: 0.75 | C7: 0 | F7: 0.75 | G7: =AVERAGE(F4:F7) -> 18.8925
A8: 2008-08-03 | B8: 20.65 | C8: 64.01 | F8: 84.66 | G8: 40.0575
A9: 2008-08-10 | B9: 62.96 | C9: 21.65 | F9: 84.61 | G9: 60.985
A10: 2008-08-17 | B10: 33.49 | C10: 396.37 | F10: 429.86 | G10: 149.97
A11: 2008-08-24 | B11: 21.65 | C11: 0 | F11: 21.65 | G11: 155.195
A12: 2008-08-31 | B12: 82.53 | C12: 0 | F12: 82.53 | G12: 154.6625
A13: 2008-09-07 | B13: 44.73 | C13: 556.38 | F13: 601.11 | G13: 283.7875
A14: 2008-09-14 | B14: 177.35 | C14: 243.56 | F14: 420.91 | G14: 281.55
A15: 2008-09-21 | B15: 0 | C15: 153.72 | F15: 153.72 | G15: 314.5675
A16: 2008-09-28 | B16: 294.76 | C16: 716.94 | F16: 1011.7 | G16: 546.86 | H16: =AVERAGE(F4:F16) -> 228.1784615
A17: 2008-10-05 | B17: 295.42 | C17: 123.4 | F17: 418.82 | G17: 501.2875 | H17: 260.3953846
A18: 2008-10-12 | B18: 955.63 | C18: 723.79 | F18: 1679.42 | G18: 815.915 | H18: 389.5123077
A19: 2008-10-19 | B19: 495.68 | C19: 217.37 | F19: 713.05 | G19: 955.7475 | H19: 438.6761538
A20: 2008-10-26 | B20: 717.28 | C20: 322.78 | F20: 1040.06 | G20: 962.8375 | H20: 518.6230769
A21: 2008-11-02 | B21: 216.51 | C21: 97.38 | F21: 313.89 | G21: 936.605 | H21: 536.2561538
A22: 2008-11-09 | B22: 290.84 | C22: 308.4 | F22: 599.24 | G22: 666.56 | H22: 575.8430769
A23: 2008-11-16 | B23: 532.52 | C23: 0 | F23: 532.52 | G23: 621.4275 | H23: 583.74
A24: 2008-11-23 | B24: 264.23 | C24: 259.69 | F24: 523.92 | G24: 492.3925 | H24: 622.3761538
A25: 2008-11-30 | B25: 684.59 | C25: 0 | F25: 684.59 | G25: 585.0675 | H25: 668.6884615
A26: 2008-12-07 | B26: 264.08 | C26: 223.81 | F26: 487.89 | G26: 557.23 | H26: 659.9792308
A27: 2008-12-14 | B27: 909.06 | C27: 0 | F27: 909.06 | G27: 651.365 | H27: 697.5292308
A28: 2008-12-21 | B28: 935.18 | C28: 20.57 | F28: 955.75 | G28: 759.3225 | H28: 759.2238462
A29: 2008-12-28 | B29: 892.2 | C29: 0 | F29: 892.2 | G29: 811.225 | H29: 750.0315385
A30: 2009-01-04 | B30: 608.31 | C30: 45.36 | F30: 653.67 | G30: 852.67 | H30: 768.0969231
A31: 2009-01-11 | B31: 1742.01 | C31: 0 | F31: 1742.01 | G31: 1060.9075 | H31: 772.9115385 | I31: =AVERAGE($F$31:F31) -> 1742.01 | J31: =+I31*52 -> 90584.52 | L31: =+I31/6 -> 290.335
A32: 2009-01-18 | B32: 1343.05 | C32: 5 | F32: 1348.05 | G32: 1158.9825 | H32: 821.7576923 | I32: =AVERAGE($F$31:F32) -> 1545.03 | J32: 80341.56 | L32: 257.505
A33: 2009-01-25 | B33: 3165.85 | C33: 0 | F33: 3165.85 | G33: 1727.395 | H33: 985.28 | I33: =AVERAGE($F$31:F33) -> 2085.303333 | J33: 108435.7733 | L33: 347.5505556
A34: 2009-02-01 | B34: 2317.92 | C34: 152.52 | F34: 2470.44 | G34: 2181.5875 | H34: 1151.168462 | I34: =AVERAGE($F$31:F34) -> 2181.5875 | J34: 113442.55 | L34: 363.5979167
A35: 2009-02-08 | B35: 1545.18 | C35: 557.11 | F35: 2102.29 | G35: 2271.6575 | H35: 1266.787692 | I35: =AVERAGE($F$31:F35) -> 2165.728 | J35: 112617.856 | L35: 360.9546667
A36: 2009-02-15 | B36: 4385.84 | C36: 0 | F36: 4385.84 | G36: 3031.105 | H36: 1563.196923 | I36: =AVERAGE($F$31:F36) -> 2535.746667 | J36: 131858.8267 | L36: 422.6244444
A37: 2009-02-22 | B37: 3144.27 | C37: 32.42 | F37: 3176.69 | G37: 3033.815 | H37: 1767.256154 | I37: =AVERAGE($F$31:F37) -> 2627.31 | J37: 136620.12 | L37: 437.885
A38: 2009-03-01 | B38: 3055.08 | C38: 0 | F38: 3055.08 | G38: 3179.975 | H38: 1949.601538 | I38: =AVERAGE($F$31:F38) -> 2680.78125 | J38: 139400.625 | L38: 446.796875
A39: 2009-03-08 | B39: 2892.36 | C39: 15 | F39: 2907.36 | G39: 3381.2425 | H39: 2135.714615 | I39: =AVERAGE($F$31:F39) -> 2705.956667 | J39: 140709.7467 | L39: 450.9927778
A40: 2009-03-15 | B40: 1992.5 | C40: 178.74 | F40: 2171.24 | G40: 2827.5925 | H40: 2232.805385 | I40: =AVERAGE($F$31:F40) -> 2652.485 | J40: 137929.22 | L40: 442.0808333
A41: 2009-03-22 | B41: 1712.91 | C41: 530.77 | F41: 2243.68 | G41: 2594.34 | H41: 2331.876923 | I41: =AVERAGE($F$31:F41) -> 2615.320909 | J41: 135996.6873 | L41: 435.8868182
A42: 2009-03-29 | B42: 1836.41 | C42: 138.56 | D42: 404.83 | F42: 2379.8 | G42: 2425.52 | H42: 2446.307692 | I42: =AVERAGE($F$31:F42) -> 2595.694167 | J42: 134976.0967 | L42: 432.6156944
A43: 2009-04-05 | B43: 1899.11 | C43: 735.05 | D43: 676.83 | F43: 3310.99 | G43: 2526.4275 | H43: 2650.716923 | I43: =AVERAGE($F$31:F43) -> 2650.716923 | J43: 137837.28 | L43: 441.7861538
A44: 2009-04-12 | B44: 1453.6 | C44: 129.37 | D44: 592.1 | F44: 2175.07 | G44: 2527.385 | H44: 2684.029231 | I44: =AVERAGE($F$31:F44) -> 2616.742143 | J44: 136070.5914 | L44: 436.1236905
A45: 2009-04-19 | B45: 1343.49 | C45: 20 | D45: 3265.93 | F45: 4629.42 | G45: 3123.82 | H45: 2936.442308 | I45: =AVERAGE($F$31:F45) -> 2750.920667 | J45: 143047.8747 | L45: 458.4867778
A46: 2009-04-26 | B46: 1193.51 | C46: 588.61 | D46: 1411.76 | F46: 3193.88 | G46: 3327.34 | H46: 2938.598462 | I46: =AVERAGE($F$31:F46) -> 2778.605625 | J46: 144487.4925 | L46: 463.1009375
A47: 2009-05-03 | B47: 47.56 | C47: 0 | D47: 2488.28 | F47: 2535.84 | G47: 3133.5525 | H47: 2943.629231 | I47: =AVERAGE($F$31:F47) -> 2764.325294 | J47: 143744.9153 | L47: 460.7208824
A48: 2009-05-10 | B48: 0 | C48: 0 | D48: 3529.876925 | F48: 3529.876925 | G48: 3472.254231 | H48: 3053.44361 | I48: =AVERAGE($F$31:F48) -> 2806.85594 | J48: 145956.5089 | L48: 467.8093234
A49: 2009-05-17 | B49: 0 | C49: 166.9 | D49: 4666.033875 | F49: 4832.933875 | G49: 3523.1327 | H49: 3087.835446 | I49: =AVERAGE($F$31:F49) -> 2913.491621 | J49: 151501.5643 | L49: 485.5819368
A50: 2009-05-24 | B50: 0 | C50: 0 | D50: 1974.7985 | F50: 1974.7985 | G50: 3218.362325 | H50: 2995.382254 | I50: =AVERAGE($F$31:F50) -> 2866.556965 | J50: 149060.9622 | L50: 477.7594942
A51: 2009-05-31 | B51: 0 | C51: 0 | D51: 2257.84 | F51: 2257.84 | G51: 3148.862325 | H51: 2934.0561 | I51: =AVERAGE($F$31:F51) -> 2837.570443 | J51: 147553.663 | L51: 472.9284071
A52: 2009-06-07 | B52: 0 | C52: 0 | D52: 2577 | F52: 2577 | G52: 2910.643094 | H52: 2908.643792 | I52: =AVERAGE($F$31:F52) -> 2825.726332 | J52: 146937.7693 | L52: 470.9543886
A53: 2009-06-14 | B53: 0 | C53: 0 | D53: 2731.97 | F53: 2731.97 | G53: 2385.402125 | H53: 2951.776869 | I53: =AVERAGE($F$31:F53) -> 2821.64997 | J53: 146725.7984 | L53: 470.2749949
A54: 2009-06-21 | B54: 0 | C54: 0 | D54: 2438.79 | F54: 2438.79 | G54: 2501.4 | H54: 2966.785331 | I54: =AVERAGE($F$31:F54) -> 2805.697471 | J54: 145896.2685 | L54: 467.6162451
A55: 2009-06-28 | B55: 0 | C55: 0 | D55: 2485.88 | F55: 2485.88 | G55: 2558.41 | H55: 2974.945331 | I55: =AVERAGE($F$31:F55) -> 2792.904772 | J55: 145231.0481 | K55: =SUM(F4:F55) -> 83193.0193 | L55: 465.4841287
A56: 2009-07-05 | B56: 0 | C56: 0 | D56: 1605.28 | F56: 1605.28 | G56: 2315.48 | H56: 2843.736869 | I56: =AVERAGE($F$31:F56) -> 2747.226896 | J56: 142855.7986 | K56: 84798.2993 | L56: 457.8711494
A57: 2009-07-12 | B57: 0 | C57: 0 | D57: 2252 | F57: 2252 | G57: 2195.4875 | H57: 2849.654562 | I57: =AVERAGE($F$31:F57) -> 2728.885159 | J57: 141902.0283 | K57: 87049.3993 | L57: 454.8141932
A58: 2009-07-19 | B58: 0 | C58: 0 | D58: 3037.96 | F58: 3037.96 | G58: 2345.28 | H58: 2727.234562 | I58: =AVERAGE($F$31:F58) -> 2739.923546 | J58: 142476.0244 | K58: 90013.4393 | L58: 456.6539244
A59: 2009-07-26 | B59: 0 | C59: 0 | D59: 1597.49 | F59: 1597.49 | G59: 2123.1825 | H59: 2604.435331 | I59: =AVERAGE($F$31:F59) -> 2700.529286 | J59: 140427.5229 | K59: 91610.1793 | L59: 450.0882144
A60: 2009-08-02 | B60: 0 | C60: 0 | D60: 3430.45 | F60: 3430.45 | G60: 2579.475 | H60: 2673.251485 | I60: =AVERAGE($F$31:F60) -> 2724.859977 | J60: 141692.7188 | K60: 94955.9693 | L60: 454.1433294 | P60: =2740*0.33 -> 904.2 | Q60: ytd wk*.3
A61: 2009-08-09 | B61: 0 | C61: 0 | D61: 2450.17 | F61: 2450.17 | G61: 2629.0175 | H61: 2590.197106 | I61: =AVERAGE($F$31:F61) -> 2715.99901 | J61: 141231.9485 | K61: 97321.5293 | L61: 452.6665016 | P61: =+P60*52 -> 47018.4 | Q61: *52
A62: 2009-08-16 | B62: 0 | C62: 0 | D62: 2164.7 | F62: 2164.7 | G62: 2410.7025 | H62: 2384.948346 | I62: =AVERAGE($F$31:F62) -> 2698.770916 | J62: 140336.0876 | K62: 99056.3693 | L62: 449.7951526 | P62: =+P61/12 -> 3918.2 | Q62: /12
A63: 2009-08-23 | B63: 0 | C63: 0 | D63: 1924.25 | F63: 1924.25 | G63: 2492.3925 | H63: 2381.06 | I63: =AVERAGE($F$31:F63) -> 2675.300585 | J63: 139115.6304 | K63: 100958.9693 | L63: 445.8834308 | P63: =+P62-O330 -> 1822.2 | Q63: less shop
A64: 2009-08-30 | B64: 0 | C64: 0 | D64: 3454.96 | F64: 3454.96 | G64: 2498.52 | H64: 2473.146154 | I64: =AVERAGE($F$31:F64) -> 2698.231744 | J64: 140308.0507 | K64: 104331.3993 | L64: 449.7052907 | P64: =+P63*0.72 -> 1311.984 | Q64: net mo after tax
A65: 2009-09-06 | B65: 0 | C65: 0 | D65: 2153.65 | F65: 2153.65 | G65: 2424.39 | H65: 2440.580769 | I65: =AVERAGE($F$31:F65) -> 2682.672266 | J65: 139498.9578 | K65: 105883.9393 | L65: 447.1120443
A66: 2009-09-13 | B66: 0 | C66: 0 | D66: 2326.52 | F66: 2326.52 | G66: 2464.845 | H66: 2409.392308 | I66: =AVERAGE($F$31:F66) -> 2672.779147 | J66: 138984.5157 | K66: 107789.5493 | L66: 445.4631912
A67: 2009-09-20 | B67: 0 | C67: 0 | D67: 2882 | F67: 2882 | G67: 2704.2825 | H67: 2443.485385 | I67: =AVERAGE($F$31:F67) -> 2678.433765 | J67: 139278.5558 | K67: 110517.8293 | L67: 446.4056275
A68: 2009-09-27 | B68: 0 | C68: 0 | D68: 1972.28 | F68: =SUM(B68:D68) -> 1972.28 | G68: 2333.6125 | H68: 2403.977692 | I68: =AVERAGE($F$31:F68) -> 2659.850771 | J68: 138312.2401 | K68: 111478.4093 | L68: 443.3084618
A69: 2009-10-04 | B69: 0 | C69: 0 | D69: 4457.94 | F69: 4457.94 | G69: 2909.685 | H69: 2623.413077 | I69: =AVERAGE($F$31:F69) -> 2705.955623 | J69: 140709.6924 | K69: 115517.5293 | L69: 450.9926038
A70: 2009-10-11 | B70: 0 | C70: 0 | D70: 3731.69 | F70: 3731.69 | G70: 3260.9775 | H70: 2737.235385 | I70: =AVERAGE($F$31:F70) -> 2731.598983 | J70: 142043.1471 | K70: 117569.7993 | L70: 455.2664971
A71: 2009-10-18 | B71: 0 | C71: 0 | D71: 2253.16 | F71: 2253.16 | G71: =AVERAGE(F68:F71) -> 3103.7675 | H71: 2676.866154 | I71: =AVERAGE($F$31:F71) -> 2719.929739 | J71: 141436.3464 | K71: 119109.9093 | L71: 453.3216232
A72: 2009-10-25 | B72: 0 | C72: 0 | D72: 1575 | F72: 1575 | G72: 3004.4475 | H72: 2675.136154 | I72: =AVERAGE($F$31:F72) -> 2692.669507 | J72: 140018.8144 | K72: 119644.8493 | L72: 448.7782512
A73: 2009-11-01 | B73: 0 | C73: 0 | D73: 1805.86 | F73: 1805.86 | G73: 2341.4275 | H73: 2550.167692 | I73: =AVERAGE($F$31:F73) -> 2672.04603 | J73: 138946.3936 | K73: 121136.8193 | L73: 445.341005
A74: 2009-11-08 | B74: 0 | C74: 0 | D74: 3299.65 | F74: 3299.65 | G74: 2233.4175 | H74: 2615.512308 | I74: =AVERAGE($F$31:F74) -> 2686.309757 | J74: 139688.1074 | K74: 123837.2293 | L74: 447.7182928
A75: 2009-11-15 | B75: 0 | C75: 0 | D75: =2806.86-97.37 -> 2709.49 | F75: 2709.49 | G75: 2347.5 | H75: 2657.419231 | I75: =AVERAGE($F$31:F75) -> 2686.824873 | J75: 139714.8934 | K75: 126014.1993 | L75: 447.8041456
A76: 2009-11-22 | B76: 0 | C76: 0 | D76: 2442.89 | F76: 2442.89 | G76: 2564.4725 | H76: 2697.314615 | I76: =AVERAGE($F$31:F76) -> 2681.521941 | J76: 139439.1409 | K76: 127933.1693 | L76: 446.9203236
A77: 2009-11-29 | B77: 0 | C77: 0 | D77: 2021.7 | F77: 2021.7 | G77: 2618.4325 | H77: 2587.063846 | I77: =AVERAGE($F$31:F77) -> 2667.483177 | J77: 138709.1252 | K77: 129270.2793 | L77: 444.5805294
A78: 2009-12-06 | B78: 0 | C78: 0 | D78: 2234.47 | F78: 2234.47 | G78: 2352.1375 | H78: 2593.280769 | I78: =AVERAGE($F$31:F78) -> 2658.462069 | J78: 138240.0276 | K78: 131016.8593 | L78: 443.0770115
A79: 2009-12-13 | B79: 0 | C79: 0 | D79: 1539.43 | F79: 1539.43 | G79: 2059.6225 | H79: 2532.735385 | I79: =AVERAGE($F$31:F79) -> 2635.62468 | J79: 137052.4833 | K79: 131647.2293 | L79: 439.2707799
A80: 2009-12-20 | B80: 0 | C80: 0 | D80: 1756.09 | F80: 1756.09 | G80: 1887.9225 | H80: =AVERAGE(F68:F80) -> 2446.126923 | I80: =AVERAGE($F$31:F80) -> 2618.033986 | J80: 136137.7673 | K80: 132447.5693 | L80: 436.3389977
A81: 2009-12-27 | B81: 0 | C81: 0 | D81: =2120.28-92.01 -> 2028.27 | F81: 2028.27 | G81: 1889.565 | H81: 2450.433846 | I81: =AVERAGE($F$31:F81) -> 2606.469986 | J81: 135536.4393 | K81: 133583.6393 | L81: 434.4116644
A82: 2010-01-03 | B82: 0 | C82: 0 | D82: 4032.98 | F82: 4032.98 | G82: 2339.1925 | H82: 2417.744615 | I82: =AVERAGE($F$31:F82) -> 2633.902871 | J82: 136962.9493 | K82: 136962.9493 | L82: 438.9838119
A83: 2010-01-10 | B83: 0 | C83: 0 | D83: 1194.68 | F83: 1194.68 | G83: 2253.005 | H83: 2222.59 | I83: =AVERAGE(F83) -> 1194.68 | J83: 62123.36 | K83: 136415.6193 | L83: 199.1133333
A84: 2010-01-17 | B84: 0 | C84: 0 | D84: 2481.43 | F84: 2481.43 | G84: 2434.34 | H84: 2240.149231 | I84: =AVERAGE($F$83:F84) -> 1838.055 | J84: 95578.86 | K84: 137548.9993 | L84: 306.3425
A85: 2010-01-24 | B85: 0 | C85: 0 | D85: 4484.8 | F85: 4484.8 | G85: 3048.4725 | H85: 2463.98 | I85: =AVERAGE($F$83:F85) -> 2720.303333 | J85: 141455.7733 | K85: 138867.9493 | L85: 453.3838889
A86: 2010-01-31 | B86: 0 | C86: 0 | D86: 3616.31 | F86: 3616.31 | G86: 2944.305 | H86: 2603.245385 | I86: =AVERAGE($F$83:F86) -> 2944.305 | J86: 153103.86 | K86: 140013.8193 | L86: 490.7175
A87: 2010-02-07 | B87: 0 | C87: 0 | D87: 3817.54 | F87: 3817.54 | G87: 3600.02 | H87: 2643.083077 | I87: =AVERAGE($F$83:F87) -> 3118.952 | J87: 162185.504 | K87: =SUM(F36:F87) -> 141729.0693 | L87: 519.8253333
A88: 2010-02-14 | B88: 0 | C88: 0 | D88: 4521.33 | F88: 4521.33 | G88: 4109.995 | H88: 2782.455385 | I88: =AVERAGE($F$83:F88) -> 3352.681667 | J88: 174339.4467 | K88: 141864.5593 | L88: 558.7802778
A89: 2010-02-21 | B89: 0 | C89: 0 | D89: 4916.37 | F89: 4916.37 | G89: 4217.8875 | H89: 2972.723077 | I89: =AVERAGE($F$83:F89) -> 3576.065714 | J89: 185955.4171 | K89: 143604.2393 | L89: 596.0109524
A90: 2010-02-28 | B90: 0 | C90: 0 | D90: 4871.05 | F90: 4871.05 | G90: 4531.5725 | H90: 3191.903846 | I90: =AVERAGE($F$83:F90) -> 3737.93875 | J90: 194372.815 | K90: 145420.2093 | L90: 622.9897917
A91: 2010-03-07 | B91: 0 | C91: 0 | D91: 5659.78 | F91: 5659.78 | G91: 4992.1325 | H91: 3455.389231 | I91: =AVERAGE($F$83:F91) -> 3951.476667 | J91: 205476.7867 | K91: 148172.6293 | L91: 658.5794444
A92: 2010-03-14 | B92: 0 | C92: 0 | D92: 5274.38 | F92: 5274.38 | G92: 5180.395 | H92: 3742.693077 | I92: =AVERAGE($F$83:F92) -> 4083.767 | J92: 212355.884 | K92: 151275.7693 | L92: 680.6278333
A93: 2010-03-21 | B93: 0 | C93: 0 | D93: 3703.66 | F93: 3703.66 | G93: 4877.2175 | H93: 3892.506154 | I93: =AVERAGE($F$83:F93) -> 4049.211818 | J93: 210559.0145 | K93: 152735.7493 | L93: 674.8686364
A94: 2010-03-28 | B94: 0 | C94: 0 | D94: 3148.66 | F94: 3148.66 | G94: 4446.62 | H94: 3978.69 | I94: =AVERAGE($F$83:F94) -> 3974.165833 | J94: 206656.6233 | K94: 153504.6093 | L94: 662.3609722
A95: 2010-04-04 | B95: 0 | C95: 0 | D95: =5525.52-51.58 -> 5473.94 | F95: 5473.94 | G95: 4400.16 | H95: 4089.533077 | I95: =AVERAGE($F$83:F95) -> 4089.533077 | J95: =+I95*52 -> 212655.72 | K95: 155667.5593 | L95: =+I95/6 -> 681.5888462
A96: 2010-04-11 | B96: 0 | C96: 0 | D96: 4345.8 | F96: 4345.8 | G96: 4168.015 | H96: 4331.926923 | I96: =AVERAGE($F$83:F96) -> 4107.837857 | J96: 213607.5686 | K96: 157838.2893 | L96: 684.6396429
A97: 2010-04-18 | B97: 0 | C97: 0 | D97: 4225.73 | F97: 4225.73 | G97: 4298.5325 | H97: 4466.103846 | I97: =AVERAGE($F$83:F97) -> 4115.697333 | J97: 214016.2613 | K97: 157434.5993 | L97: 685.9495556
A98: 2010-04-25 | B98: 0 | C98: 0 | D98: 4363.13 | F98: 4363.13 | G98: 4602.15 | H98: 4456.744615 | I98: =AVERAGE($F$83:F98) -> 4131.161875 | J98: 214820.4175 | K98: 158603.8493 | L98: 688.5269792
A99: 2010-05-02 | B99: 0 | C99: 0 | D99: 2626.9 | F99: 2626.9 | G99: 3890.39 | H99: 4380.636154 | I99: =AVERAGE($F$83:F99) -> 4042.675882 | J99: 210219.1459 | K99: 158694.9093 | L99: 673.7793137
A100: 2010-05-09 | B100: 0 | C100: 0 | D100: 3557.63 | F100: 3557.63 | G100: 3693.3475 | H100: 4360.643077 | I100: =AVERAGE($F$83:F100) -> 4015.728889 | J100: 208817.9022 | K100: 158722.6624 | L100: 669.2881481
A101: 2010-05-16 | B101: 0 | C101: 0 | D101: 3364.22 | F101: 3364.22 | G101: 3477.97 | H101: 4271.634615 | I101: =AVERAGE($F$83:F101) -> 3981.438947 | J101: 207034.8253 | K101: 157253.9485 | L101: 663.5731579
A102: 2010-05-23 | B102: 0 | C102: 0 | D102: 5279.7 | F102: 5279.7 | G102: 3707.1125 | H102: 4299.583077 | I102: =AVERAGE($F$83:F102) -> 4046.352 | J102: 210410.304 | K102: 160558.85 | L102: 674.392
A103: 2010-05-30 | B103: 0 | C103: 0 | D103: 5455.43 | F103: 5455.43 | G103: 4414.245 | H103: 4344.535385 | I103: =AVERAGE($F$83:F103) -> 4113.450952 | J103: 213899.4495 | K103: 163756.44 | L103: 685.5751587
A104: 2010-06-06 | B104: 0 | C104: 0 | D104: 3836.21 | F104: 3836.21 | G104: 4483.89 | H104: 4204.260769 | I104: =AVERAGE($F$83:F104) -> 4100.849091 | J104: 213244.1527 | K104: 165015.65 | L104: 683.4748485
A105: 2010-06-13 | B105: 0 | C105: 0 | D105: 3129.65 | F105: 3129.65 | G105: 4425.2475 | H105: 4039.281538 | I105: =AVERAGE($F$83:F105) -> 4058.623043 | J105: 211048.3983 | K105: 165413.33 | L105: 676.4371739
A106: 2010-06-20 | B106: 0 | C106: 0 | D106: 4265.62 | F106: 4265.62 | G106: 4171.7275 | H106: 4082.509231 | I106: =AVERAGE($F$83:F106) -> 4067.247917 | J106: 211496.8917 | K106: 167240.16 | L106: 677.8746528
A107: 2010-06-27 | B107: 0 | C107: 0 | D107: 2922.58 | F107: 2922.58 | G107: 3538.515 | H107: 4065.118462 | I107: =AVERAGE($F$83:F107) -> 4021.4612 | J107: 209115.9824 | K107: 167676.86 | L107: 670.2435333
A108: 2010-07-04 | B108: 0 | C108: 0 | D108: 1534.75 | E108: =+D108*0.05 -> 76.7375 | F108: 1534.75 | G108: 2963.15 | H108: 3762.103846 | I108: =AVERAGE($F$83:F108) -> 3925.818462 | J108: 204142.56 | K108: 167606.33 | L108: 654.3030769
A109: 2010-07-11 | B109: 0 | C109: 0 | D109: 2209.51 | E109: =+D109*0.05 -> 110.4755 | F109: 2209.51 | G109: 2733.115 | H109: 3597.773846 | I109: =AVERAGE($F$83:F109) -> 3862.251481 | J109: 200837.077 | K109: 167563.84 | L109: 643.7085802
A110: 2010-07-18 | B110: 0 | C110: 0 | D110: 2987.53 | E110: =+D110*0.05 -> 149.3765 | F110: 2987.53 | G110: 2413.5925 | H110: 3502.527692 | I110: =AVERAGE($F$83:F110) -> 3831.011429 | J110: 199212.5943 | K110: 167513.41 | L110: 638.5019048
A111: 2010-07-25 | B111: 0 | C111: 0 | D111: 2576.22 | E111: 130.54 | F111: 2576.22 | G111: 2327.0025 | H111: 3365.073077 | I111: =AVERAGE($F$83:F111) -> 3787.742759 | J111: 196962.6234 | K111: 168492.14 | L111: 631.2904598
A112: 2010-08-01 | B112: 0 | C112: 0 | D112: 2457.31 | E112: =+D112*0.05 -> 122.8655 | F112: 2457.31 | G112: 2557.6425 | H112: 3352.027692 | I112: =AVERAGE($F$83:F112) -> 3743.395 | J112: 194656.54 | K112: 167519 | L112: 623.8991667
A113: 2010-08-08 | B113: 0 | C113: 0 | D113: 4326.58 | E113: 216.329 | F113: 4326.58 | G113: 3086.91 | H113: 3411.177692 | I113: =AVERAGE($F$83:F113) -> 3762.207419 | J113: 195634.7858 | K113: 169395.41 | L113: 627.0345699
A114: 2010-08-15 | B114: 0 | C114: 0 | D114: 3275.2 | E114: 163.76 | F114: 3275.2 | G114: 3158.8275 | H114: 3404.33 | I114: =AVERAGE($F$83:F114) -> 3746.988437 | J114: 194843.3987 | K114: 170505.91 | L114: 624.4980729
A115: 2010-08-22 | B115: 0 | C115: 0 | D115: 3181.78 | E115: 159.089 | F115: 3181.78 | G115: 3310.2175 | H115: 3242.951538 | I115: =AVERAGE($F$83:F115) -> 3729.860909 | J115: 193952.7673 | K115: 171763.44 | L115: 621.6434848
A116: 2010-08-29 | B116: 0 | C116: 0 | D116: 4100.95 | E116: 205.0475 | F116: 4100.95 | G116: 3721.1275 | H116: 3138.760769 | I116: =AVERAGE($F$83:F116) -> 3740.775294 | J116: 194520.3153 | K116: 172409.43 | L116: 623.462549
A117: 2010-09-05 | B117: 0 | C117: 0 | D117: 3400.43 | E117: 170.0215 | F117: 3400.43 | G117: 3489.59 | H117: 3105.239231 | I117: =AVERAGE($F$83:F117) -> 3731.051143 | J117: 194014.6594 | K117: 173656.21 | L117: 621.8418571
A118: 2010-09-12 | B118: 0 | C118: 0 | D118: 3346.62 | E118: 167.331 | F118: 3346.62 | G118: 3507.445 | H118: 3121.929231 | I118: =AVERAGE($F$83:F118) -> 3720.3725 | J118: 193459.37 | K118: 174676.31 | L118: 620.0620833
A119: 2010-09-19 | B119: 0 | C119: 0 | D119: 3692.52 | E119: 184.626 | F119: 3692.52 | G119: 3635.13 | H119: 3077.844615 | I119: =AVERAGE($F$83:F119) -> 3719.61973 | J119: 193420.2259 | K119: =SUM(F68:F119) -> 175486.83 | L119: 619.9366216
A120: 2010-09-26 | B120: 0 | C120: 0 | D120: 2630.5 | E120: 131.525 | F120: 2630.5 | G120: 3267.5175 | H120: 3055.376923 | I120: =AVERAGE($F$83:F120) -> 3690.958684 | J120: 191929.8516 | K120: 176145.05 | L120: 615.1597807
A121: 2010-10-03 | B121: 0 | C121: 0 | D121: 3903.28 | E121: 195.164 | F121: 3903.28 | G121: 3393.23 | H121: 3237.571538 | I121: =AVERAGE($F$83:F121) -> 3696.402821 | J121: 192212.9467 | K121: 175590.39 | L121: 616.0671368
A122: 2010-10-10 | B122: 0 | C122: 0 | D122: 5530.74 | E122: 276.537 | F122: 5530.74 | G122: 3939.26 | H122: 3493.050769 | I122: =AVERAGE($F$83:F122) -> 3742.26125 | J122: 194597.585 | K122: 177389.44 | L122: 623.7102083
A123: 2010-10-17 | B123: 0 | C123: 0 | D123: 3259.31 | E123: 162.9655 | F123: 3259.31 | G123: 3830.9575 | H123: 3513.956923 | I123: =AVERAGE($F$83:F123) -> 3730.481951 | J123: 193985.0615 | K123: 178395.59 | L123: 621.7469919
A124: 2010-10-24 | B124: 0 | C124: 0 | D124: 2157.36 | E124: 107.868 | F124: 2157.36 | G124: 3712.6725 | H124: 3481.736923 | I124: =AVERAGE($F$83:F124) -> 3693.026667 | J124: 192037.3867 | K124: 178977.95 | L124: 615.5044444
A125: 2010-10-31 | B125: 0 | C125: 0 | D125: 3669.93 | E125: 183.4965 | F125: 3669.93 | G125: 3654.335 | H125: 3575.015385 | I125: =AVERAGE($F$83:F125) -> 3692.489535 | J125: 192009.4558 | K125: 180842.02 | L125: 615.4149225
A126: 2010-11-07 | B126: 0 | C126: 0 | D126: 2114.36 | E126: 105.718 | F126: 2114.36 | G126: 2800.24 | H126: 3404.844615 | I126: =AVERAGE($F$83:F126) -> 3656.622955 | J126: 190144.3936 | K126: 179656.73 | L126: 609.4371591
A127: 2010-11-14 | B127: 0 | C127: 0 | D127: 3646.14 | E127: 182.307 | F127: 3646.14 | G127: 2896.9475 | H127: 3433.378462 | I127: =AVERAGE($F$83:F127) -> 3656.39 | J127: 190132.28 | K127: 180593.38 | L127: 609.3983333
A128: 2010-11-21 | B128: 0 | C128: 0 | D128: 5079.34 | E128: 253.967 | F128: 5079.34 | G128: 3627.4425 | H128: 3579.344615 | I128: =AVERAGE($F$83:F128) -> 3687.323696 | J128: 191740.8322 | K128: 183229.83 | L128: 614.5539493
A129: 2010-11-28 | B129: 0 | C129: 0 | D129: 2977.4 | E129: 148.87 | F129: 2977.4 | G129: 3454.31 | H129: 3492.917692 | I129: =AVERAGE($F$83:F129) -> 3672.218936 | J129: 190955.3847 | K129: 184185.53 | L129: 612.0364894
A130: 2010-12-05 | B130: 0 | C130: 0 | D130: 2337.9 | E130: 116.895 | F130: 2337.9 | G130: 3510.195 | H130: 3411.184615 | I130: =AVERAGE($F$83:F130) -> 3644.420625 | J130: 189509.8725 | K130: 184288.96 | L130: 607.4034375
A131: 2010-12-12 | B131: 0 | C131: 0 | D131: 2549.14 | E131: 127.457 | F131: 2549.14 | G131: 3235.945 | H131: 3349.84 | I131: =AVERAGE($F$83:F131) -> 3622.067959 | J131: 188347.5339 | K131: 185298.67 | L131: 603.6779932
A132: 2010-12-19 | B132: 0 | C132: 0 | D132: 2221.3 | E132: 111.065 | F132: =SUM(B132:D132) -> 2221.3 | G132: 2521.435 | H132: 3236.669231 | I132: =AVERAGE($F$83:F132) -> 3594.0526 | J132: 186890.7352 | K132: 185763.88 | L132: 599.0087667
A133: 2010-12-26 | B133: 0 | C133: 0 | D133: 2986.06 | E133: 149.303 | F133: 2986.06 | G133: 2523.6 | H133: 3264.02 | I133: =AVERAGE($F$83:F133) -> 3582.131176 | J133: 186270.8212 | K133: 186721.67 | L133: 597.0218627
A134: 2011-01-02 | B134: 0 | C134: 0 | D134: 1797.27 | E134: 89.8635 | F134: 1797.27 | G134: 2388.4425 | H134: 3102.019231 | I134: =AVERAGE($F$83:F134) -> 3547.806923 | J134: 184485.96 | K134: 184485.96 | L134: 591.3011538
A135: 2011-01-09 | B135: 0 | C135: 0 | D135: 3639.67 | E135: 181.9835 | F135: 3639.67 | G135: =AVERAGE(F132:F135) -> 2661.075 | H135: 2956.552308 | I135: =AVERAGE($F$135:F135) -> 3639.67 | J135: 189262.84 | K135: 186930.95 | L135: 606.6116667
A136: 2011-01-16 | B136: 0 | C136: 0 | D136: 2208.22 | E136: 110.411 | F136: 2208.22 | G136: 2657.805 | H136: 2875.699231 | I136: =AVERAGE($F$135:F136) -> 2923.945 | J136: 152045.14 | K136: 186657.74 | L136: 487.3241667
A137: 2011-01-23 | B137: 0 | C137: 0 | D137: 2076.41 | E137: 103.8205 | F137: 2076.41 | G137: 2430.3925 | H137: 2869.472308 | I137: =AVERAGE($F$135:F137) -> 2641.433333 | J137: 137354.5333 | K137: 184249.35 | L137: 440.2388889
A138: 2011-01-30 | B138: 0 | C138: 0 | D138: 4529.95 | E138: 226.4975 | F138: 4529.95 | G138: 3113.5625 | H138: 2935.627692 | I138: =AVERAGE($F$135:F138) -> 3113.5625 | J138: 161905.25 | K138: 185162.99 | L138: 518.9270833
A139: 2011-02-06 | B139: 0 | C139: 0 | D139: 3106.23 | E139: =(+D139*0.05)-18.9 -> 136.4115 | F139: 3106.23 | G139: 2980.2025 | H139: 3011.925385 | I139: =AVERAGE($F$135:F139) -> 3112.096 | J139: 161828.992 | K139: 184451.68 | L139: 518.6826667
A140: 2011-02-13 | B140: 0 | C140: 0 | D140: 3798.56 | E140: =+D140*0.05 -> 189.928 | F140: 3798.56 | G140: 3377.7875 | H140: 3023.65 | I140: =AVERAGE($F$135:F140) -> 3226.506667 | J140: 167778.3467 | K140: 183728.91 | L140: 537.7511111
A141: 2011-02-20 | B141: 0 | C141: 0 | D141: 5387.82 | E141: =+D141*0.05 -> 269.391 | F141: 5387.82 | G141: 4205.64 | H141: 3047.379231 | I141: =AVERAGE($F$135:F141) -> 3535.265714 | J141: 183833.8171 | K141: 184200.36 | L141: 589.2109524
A142: 2011-02-27 | B142: 0 | C142: 0 | D142: 5108.45 | E142: =(+D142*0.05) -> 255.4225 | F142: 5108.45 | G142: 4350.265 | H142: 3211.306154 | I142: =AVERAGE($F$135:F142) -> 3731.91375 | J142: 194059.515 | K142: 184437.76 | L142: 621.985625
A143: 2011-03-06 | B143: 0 | C143: 0 | D143: 4703.1 | E143: =+D143*0.05 -> 235.155 | F143: 4703.1 | G143: 4749.4825 | H143: 3393.244615 | I143: =AVERAGE($F$135:F143) -> 3839.823333 | J143: 199670.8133 | K143: 183481.08 | L143: 639.9705556
A144: 2011-03-13 | B144: 0 | C144: 0 | D144: =5316.62 -> 5316.62 | E144: =+D144*0.05 -> 265.831 | F144: 5316.62 | G144: 5128.9975 | H144: =AVERAGE(F132:F144) -> 3606.127692 | I144: =AVERAGE($F$135:F144) -> 3987.503 | J144: 207350.156 | K144: 183523.32 | L144: 664.5838333
A145: 2011-03-20 | B145: 0 | C145: 0 | D145: =3592.87 -> 3592.87 | E145: =(+D145*0.05) -> 179.6435 | F145: 3592.87 | G145: 4680.26 | H145: 3711.633077 | I145: =AVERAGE($F$135:F145) -> 3951.627273 | J145: 205484.6182 | K145: 183412.53 | L145: 658.6045455
A146: 2011-03-27 | B146: 0 | C146: 0 | D146: 5672.72 | E146: =+D146*0.05 -> 283.636 | F146: 5672.72 | G146: 4821.3275 | H146: 3918.299231 | I146: =AVERAGE($F$135:F146) -> 4095.051667 | J146: 212942.6867 | K146: 185936.59 | L146: 682.5086111
A147: 2011-04-03 | B147: 0 | C147: 0 | D147: 5497.68 | E147: =+D147*0.05 -> 274.884 | F147: 5497.68 | G147: 5019.9725 | H147: 4202.946154 | I147: =AVERAGE($F$135:F147) -> 4202.946154 | J147: 218553.2 | K147: 185960.33 | L147: 700.4910256
A148: 2011-04-10 | B148: 0 | C148: 0 | D148: 5378.84 | E148: =(+D148*0.05) -> 268.942 | F148: 5378.84 | G148: 5035.5275 | H148: 4336.728462 | I148: =AVERAGE($F$135:F148) -> 4286.938571 | J148: 222920.8057 | K148: 186993.37 | L148: 714.4897619
A149: 2011-04-17 | B149: 0 | C149: 0 | D149: 7205.5 | E149: =+D149*0.05 -> 360.275 | F149: 7205.5 | G149: 5938.685 | H149: 4721.134615 | I149: =AVERAGE($F$135:F149) -> 4481.509333 | J149: 233038.4853 | K149: 189973.14 | L149: 746.9182222
A150: 2011-04-24 | B150: 0 | C150: 0 | D150: 5426.16 | E150: =+D150*0.05 -> 271.308 | F150: 5426.16 | G150: 5877.045 | H150: 4978.807692 | I150: =AVERAGE($F$135:F150) -> 4540.55 | J150: 236108.6 | K150: 191036.17 | L150: 756.7583333
A151: 2011-05-01 | B151: 0 | C151: 0 | D151: =5095.82+6 -> 5101.82 | E151: =(+D151*0.05) -> 255.091 | F151: 5101.82 | G151: 5778.08 | H151: 5022.797692 | I151: =AVERAGE($F$135:F151) -> 4573.565882 | J151: 237825.4259 | K151: =SUM(F100:F151) -> 193511.09 | L151: 762.2609804
A152: 2011-05-08 | B152: 0 | C152: 0 | D152: 3991.55 | E152: =+D152*0.05 -> 199.5775 | F152: 3991.55 | G152: 5431.2575 | H152: 5090.899231 | I152: =AVERAGE($F$135:F152) -> 4541.231667 | J152: 236144.0467 | K152: 193945.01 | L152: 756.8719444
A153: 2011-05-15 | B153: 0 | C153: 0 | D153: 4839.58 | E153: =+D153*0.05 -> 241.979 | F153: 4839.58 | G153: 4839.7775 | H153: 5170.977692 | I153: =AVERAGE($F$135:F153) -> 4556.934211 | J153: 236960.5789 | K153: 195420.37 | L153: 759.4890351
A154: 2011-05-22 | B154: 0 | C154: 0 | D154: 3885.5 | E154: =(+D154*0.05) -> 194.275 | F154: 3885.5 | G154: 4454.6125 | H154: 5055.414615 | I154: =AVERAGE($F$135:F154) -> 4523.3625 | J154: 235214.85 | K154: 194026.17 | L154: 753.89375
A155: 2011-05-29 | B155: 0 | C155: 0 | D155: 3401.24 | E155: =+D155*0.05 -> 170.062 | F155: 3401.24 | G155: 4029.4675 | H155: 4924.090769 | I155: =AVERAGE($F$135:F155) -> 4469.928095 | J155: 232436.261 | K155: 191971.98 | L155: 744.9880159
A156: 2011-06-05 | B156: 0 | C156: 0 | D156: 3143.07 | E156: =+D156*0.05 -> 157.1535 | F156: 3143.07 | G156: 3817.3475 | H156: 4804.088462 | I156: =AVERAGE($F$135:F156) -> 4409.616364 | J156: 229300.0509 | K156: 191278.84 | L156: 734.9360606
A157: 2011-06-12 | B157: 0 | C157: 0 | D157: 3791.32 | E157: =(+D157*0.05) -> 189.566 | F157: 3791.32 | G157: 3555.2825 | H157: 4686.757692 | I157: =AVERAGE($F$135:F157) -> 4382.733913 | J157: 227902.1635 | K157: 191940.51 | L157: 730.4556522
A158: 2011-06-19 | B158: 0 | C158: 0 | D158: 4821.84 | E158: =+D158*0.05 -> 241.092 | F158: 4821.84 | G158: 3789.3675 | H158: 4781.293846 | I158: =AVERAGE($F$135:F158) -> 4401.03 | J158: 228853.56 | K158: 192496.73 | L158: 733.505
A159: 2011-06-26 | B159: 0 | C159: 0 | D159: 4156.63 | E159: 207.8315 | F159: 4156.63 | G159: 3978.215 | H159: 4664.671538 | I159: =AVERAGE($F$135:F159) -> 4391.254 | J159: =+I159*52 -> 228345.208 | K159: 193730.78 | L159: =+I159/6 -> 731.8756667
A160: 2011-07-03 | B160: 0 | C160: 0 | D160: 3576 | E160: 178.8 | F160: 3576 | G160: 4086.4475 | H160: 4516.85 | I160: =AVERAGE($F$135:F160) -> 4359.898077 | J160: 226714.7 | K160: 195772.03 | L160: 726.6496795
A161: 2011-07-10 | B161: 0 | C161: 0 | D161: 4242.38 | E161: 212.119 | F161: 4242.38 | G161: 4199.2125 | H161: 4429.43 | I161: =AVERAGE($F$135:F161) -> 4355.545556 | J161: 226488.3689 | K161: 197804.9 | L161: 725.9242593
A162: 2011-07-17 | B162: 0 | C162: 0 | D162: 5119.13 | E162: 255.9565 | F162: 5119.13 | G162: 4273.535 | H162: 4268.94 | I162: =AVERAGE($F$135:F162) -> 4382.816429 | J162: 227906.4543 | K162: 199936.5 | L162: 730.4694048
A163: 2011-07-24 | B163: 0 | C163: 0 | D163: 2821.36 | E163: 141.068 | F163: 2821.36 | G163: 3939.7175 | H163: 4068.570769 | I163: =AVERAGE($F$135:F163) -> 4328.973103 | J163: 225106.6014 | K163: 200181.64 | L163: 721.4955172
A164: 2011-07-31 | B164: 0 | C164: 0 | D164: 3305.18 | E164: 165.259 | F164: 3305.18 | G164: 3872.0125 | H164: 3930.367692 | I164: =AVERAGE($F$135:F164) -> 4294.846667 | J164: 223332.0267 | K164: 201029.51 | L164: 715.8077778
A165: 2011-08-07 | B165: 0 | C165: 0 | D165: 3738.64 | E165: 186.932 | F165: 3738.64 | G165: 3746.0775 | H165: 3910.913077 | I165: =AVERAGE($F$135:F165) -> 4276.904516 | J165: 222399.0348 | K165: 200441.57 | L165: 712.8174194
A166: 2011-08-14 | B166: 0 | C166: 0 | D166: 3817.62 | E166: 190.881 | F166: 3817.62 | G166: 3420.7 | H166: 3832.300769 | I166: =AVERAGE($F$135:F166) -> 4262.551875 | J166: 221652.6975 | K166: 200983.99 | L166: 710.4253125
A167: 2011-08-21 | B167: 0 | C167: 0 | D167: 4201.65 | E167: 210.0825 | F167: 4201.65 | G167: 3765.7725 | H167: 3856.62 | I167: =AVERAGE($F$135:F167) -> 4260.706364 | J167: 221556.7309 | K167: 202003.86 | L167: 710.1177273
A168: 2011-08-28 | B168: 0 | C168: 0 | D168: 3130.62 | E168: 156.531 | F168: 3130.62 | G168: 3722.1325 | H168: 3835.803077 | I168: =AVERAGE($F$135:F168) -> 4227.468529 | J168: 219828.3635 | K168: 201033.53 | L168: 704.5780882
A169: 2011-09-04 | B169: 0 | C169: 0 | D169: 5092.98 | E169: 254.649 | F169: 5092.98 | G169: 4060.7175 | H169: 3985.796154 | I169: =AVERAGE($F$135:F169) -> 4252.197429 | J169: 221114.2663 | K169: 202726.08 | L169: 708.6995714
A170: 2011-09-11 | B170: 0 | C170: 0 | D170: 4728.1 | E170: 236.405 | F170: 4728.1 | G170: 4288.3375 | H170: 4057.856154 | I170: =AVERAGE($F$135:F170) -> 4265.416944 | J170: 221801.6811 | K170: 204107.56 | L170: 710.9028241
A171: 2011-09-18 | B171: 0 | C171: 0 | D171: 4054.19 | E171: 202.7095 | F171: 4054.19 | G171: 4251.4725 | H171: 3998.806154 | I171: =AVERAGE($F$135:F171) -> 4259.708108 | J171: 221504.8216 | K171: 204469.23 | L171: 709.9513514
A172: 2011-09-25 | B172: 0 | C172: 0 | D172: 4674.6 | E172: 233.73 | F172: 4674.6 | G172: 4637.4675 | H172: 4038.65 | I172: =AVERAGE($F$135:F172) -> 4270.626316 | J172: 222072.5684 | K172: 206513.33 | L172: 711.7710526
A173: 2011-10-02 | B173: 0 | C173: 0 | D173: 4497.2 | E173: 224.86 | F173: 4497.2 | G173: 4488.5225 | H173: 4109.511538 | I173: =AVERAGE($F$135:F173) -> 4276.435897 | J173: 222374.6667 | K173: 207107.25 | L173: 712.7393162
A174: 2011-10-09 | B174: 0 | C174: 0 | D174: 6016.51 | E174: 300.8255 | F174: 6016.51 | G174: 4810.625 | H174: 4245.983077 | I174: =AVERAGE($F$135:F174) -> 4319.93775 | J174: 224636.763 | K174: 207593.02 | L174: 719.989625
A175: 2011-10-16 | B175: 0 | C175: 0 | D175: 4649.14 | E175: 232.457 | F175: 4649.14 | G175: 4959.3625 | H175: 4209.83 | I175: =AVERAGE($F$135:F175) -> 4327.967073 | J175: 225054.2878 | K175: 208982.85 | L175: 721.3278455
A176: 2011-10-23 | B176: 0 | C176: 0 | D176: 4989.44 | E176: 249.472 | F176: 4989.44 | G176: 5038.0725 | H176: 4376.605385 | I176: =AVERAGE($F$135:F176) -> 4343.716429 | J176: 225873.2543 | K176: 211814.93 | L176: 723.9527381
A177: 2011-10-30 | B177: 0 | C177: 0 | D177: 2403.38 | E177: 120.169 | F177: 2403.38 | G177: 4514.6175 | H177: 4307.236154 | I177: =AVERAGE($F$135:F177) -> 4298.592326 | J177: 223526.8009 | K177: 210548.38 | L177: 716.4320543
A178: 2011-11-06 | B178: 0 | C178: 0 | D178: 3473.63 | E178: 173.6815 | F178: 3473.63 | G178: 3878.8975 | H178: 4286.850769 | I178: =AVERAGE($F$135:F178) -> 4279.843182 | J178: 222551.8455 | K178: 211907.65 | L178: 713.307197
A179: 2011-11-13 | B179: 0 | C179: 0 | D179: 3929.12 | E179: 196.456 | F179: 3929.12 | G179: 3698.8925 | H179: 4295.427692 | I179: =AVERAGE($F$135:F179) -> 4272.049333 | J179: 222146.5653 | K179: 212190.63 | L179: 712.0082222
A180: 2011-11-20 | B180: 0 | C180: 0 | D180: 3619.49 | E180: 180.9745 | F180: 3619.49 | G180: 3356.405 | H180: 4250.646154 | I180: =AVERAGE($F$135:F180) -> 4257.863261 | J180: 221408.8896 | K180: 210730.78 | L180: 709.6438768
A181: 2011-11-27 | B181: 0 | C181: 0 | D181: 2306.57 | E181: 115.3285 | F181: 2306.57 | G181: 3332.2025 | H181: 4187.257692 | I181: =AVERAGE($F$135:F181) -> 4216.346383 | J181: 219250.0119 | K181: 210059.95 | L181: 702.7243972
A182: 2011-12-04 | B182: 0 | C182: 0 | D182: 3846.33 | E182: 192.3165 | F182: 3846.33 | G182: 3425.3775 | H182: 4091.361538 | I182: =AVERAGE($F$135:F182) -> 4208.637708 | J182: 218849.1608 | K182: 211568.38 | L182: 701.4396181
A183: 2011-12-11 | B183: 0 | C183: 0 | D183: 1999.83 | E183: 99.9915 | F183: 1999.83 | G183: 2943.055 | H183: 3881.494615 | I183: =AVERAGE($F$135:F183) -> 4163.56 | J183: 216505.12 | K183: =SUM(F132:F183) -> 211019.07 | L183: 693.9266667 | O183: =+N186*0.95 -> 713.5866904 | P183: 0.95
A184: 2011-12-18 | B184: 0 | C184: 0 | D184: 1958.94 | E184: 97.947 | F184: 1958.94 | G184: 2527.9175 | H184: 3720.321538 | I184: =AVERAGE($F$135:F184) -> 4119.4676 | J184: 214212.3152 | K184: 210756.71 | L184: 686.5779333 | O184: =+N186*1 -> 751.1438846 | P184: 1
A185: 2011-12-25 | B185: 0 | C185: 0 | D185: 2466.07 | E185: 123.3035 | F185: 2466.07 | G185: 2567.7925 | H185: 3550.434615 | I185: =AVERAGE($F$135:F185) -> 4087.048039 | J185: 212526.498 | K185: 210236.72 | L185: 681.1746732 | O185: =+N186*1.05 -> 788.7010788 | P185: 1.05
A186: 2012-01-01 | B186: 0 | C186: 0 | D186: 4612.27 | E186: 230.6135 | F186: 4612.27 | G186: 2759.2775 | H186: 3559.286154 | I186: =AVERAGE($F$135:F186) -> 4097.148462 | J186: 213051.72 | K186: 213051.72 | L186: 682.8580769 | N186: =+L186*1.1 -> 751.1438846 | O186: =+N186*1.1 -> 826.2582731 | P186: 1.1
A187: 2012-01-08 | B187: 0 | C187: 0 | D187: 4625.36 | E187: 231.268 | F187: 4625.36 | G187: 3415.66 | H187: 3452.274615 | I187: =AVERAGE($F$187:F187) -> 4625.36 | J187: 240518.72 | K187: 214037.41 | L187: 770.8933333 | N187: 10% base, | O187: =+N186*1.15 -> 863.8154673 | P187: 1.15
A188: 2012-01-15 | B188: 0 | C188: 0 | D188: 3780.64 | E188: 189.032 | F188: 3780.64 | G188: 3871.085 | H188: 3385.466923 | I188: =AVERAGE($F$187:F188) -> 4203 | J188: 218556 | K188: 215609.83 | L188: 700.5 | N188: inflation | O188: =+N186*1.2 -> 901.3726615 | P188: 1.2
A189: 2012-01-22 | B189: 0 | C189: 0 | D189: 4104.02 | E189: 205.201 | F189: 4104.02 | G189: 4280.5725 | H189: 3317.357692 | I189: =AVERAGE($F$187:F189) -> 4170.006667 | J189: 216840.3467 | K189: 217637.44 | L189: 695.0011111 | O189: =+N186*1.25 -> 938.9298558 | P189: 1.25
A190: 2012-01-29 | B190: 0 | C190: 0 | D190: 5458.79 | E190: =+D190*0.05 -> 272.9395 | F190: 5458.79 | G190: 4492.2025 | H190: 3552.389231 | I190: =AVERAGE($F$187:F190) -> 4492.2025 | J190: 233594.53 | K190: 218566.28 | L190: 748.7004167
A191: 2012-02-05 | B191: 0 | C191: 0 | D191: 4507.26 | E191: 225.363 | F191: 4507.26 | G191: 4462.6775 | H191: 3631.899231 | I191: =AVERAGE($F$187:F191) -> 4495.214 | J191: 233751.128 | K191: 219967.31 | L191: 749.2023333 | N191: Final over base | O191: =+N186*1.17953 -> 885.9967462 | P191: 1.18
A192: 2012-02-12 | B192: 0 | C192: 0 | D192: 5169.7 | E192: 258.485 | F192: 5169.7 | G192: 4809.9425 | H192: 3727.328462 | I192: =AVERAGE($F$187:F192) -> 4607.628333 | J192: 239596.6733 | K192: 221338.45 | L192: 767.9380556 | N192: Final over 2011 | O192: =682.86*1.29749 -> 886.0040214 | P192: 1.3
A193: 2012-02-19 | B193: 0 | C193: 0 | D193: 4554.07 | E193: 227.7035 | F193: 4554.07 | G193: 4922.455 | H193: 3799.219231 | I193: =AVERAGE($F$187:F193) -> 4599.977143 | J193: 239198.8114 | K193: 220504.7 | L193: 766.6628571
A194: 2012-02-26 | B194: 0 | C194: 0 | D194: 6285.53 | E194: 314.2765 | F194: 6285.53 | G194: 5129.14 | H194: 4105.293077 | I194: =AVERAGE($F$187:F194) -> 4810.67125 | J194: 250154.905 | K194: 221681.78 | L194: 801.7785417
A195: 2012-03-04 | B195: 0 | C195: 0 | D195: 7084.53 | E195: 354.2265 | F195: 7084.53 | G195: 5773.4575 | H195: 4354.385385 | I195: =AVERAGE($F$187:F195) -> 5063.322222 | J195: 263292.7556 | K195: 224063.21 | L195: 843.887037
A196: 2012-03-11 | B196: 0 | C196: 0 | D196: 8473.66 | E196: 423.683 | F196: =SUM(B196:D196) -> 8473.66 | G196: 6599.4475 | H196: 4852.372308 | I196: =AVERAGE($F$187:F196) -> 5404.356 | J196: 281026.512 | K196: 227220.25 | L196: 900.726
A197: 2012-03-18 | B197: 0 | C197: 0 | D197: 8654.56 | E197: 432.728 | F197: 8654.56 | G197: 7624.57 | H197: 5367.42 | I197: =AVERAGE($F$187:F197) -> 5699.829091 | J197: 296391.1127 | K197: 232281.94 | L197: 949.9715152
A198: 2012-03-25 | B198: 0 | C198: 0 | D198: 5057.67 | E198: 252.8835 | F198: 5057.67 | G198: 7317.605 | H198: 5566.773846 | I198: =AVERAGE($F$187:F198) -> 5646.315833 | J198: 293608.4233 | K198: 231666.89 | L198: 941.0526389
A199: 2012-04-01 | B199: 0 | C199: 0 | D199: 5062.13 | E199: 253.1065 | F199: 5062.13 | G199: =AVERAGE(F196:F199) -> 6812.005 | H199: 5601.378462 | I199: =AVERAGE($F$187:F199) -> 5601.378462 | J199: 291271.68 | K199: 231231.34 | L199: 933.5630769
A200: 2012-04-08 | B200: 0 | C200: 0 | D200: 7083.35 | E200: 354.1675 | F200: 7083.35 | G200: 6464.4275 | H200: 5790.454615 | I200: =AVERAGE($F$187:F200) -> 5707.233571 | J200: 296776.1457 | K200: 232935.85 | L200: 951.2055952
A201: 2012-04-15 | B201: 0 | C201: 0 | D201: 8543.08 | E201: 427.154 | F201: 8543.08 | G201: 6436.5575 | H201: 6156.796154 | I201: =AVERAGE($F$187:F201) -> 5896.29 | J201: 306607.08 | K201: 234273.43 | L201: 982.715
... 142 more rows

Sheet Monthly (hidden)
B1: Total Sales by month | H1: Average weekly sales by month
B3: 2009 | C3: 2010 | D3: 2011 | E3: 2012 | F3: 2013 | H3: 2009 | I3: 2010 | J3: 2011 | K3: 2012 | L3: 2013
A4: January | B4: =SUM([1]Weekly!$F$30:$F$33) -> 6909.58 | C4: =SUM([1]Weekly!$F82:$F86) -> 15810.2 | D4: =SUM([1]Weekly!$F134:$F138) -> 14251.52 | E4: =SUM([1]Weekly!$F186:$F190) -> 22581.08 | F4: =SUM([1]Weekly!$F239:$F242) -> 12987.34 | H4: =AVERAGE([1]Weekly!$F$30:$F$33) -> 1727.395 | I4: =AVERAGE([1]Weekly!$F82:$F86) -> 3162.04 | J4: =AVERAGE([1]Weekly!$F134:$F138) -> 2850.304 | K4: =AVERAGE([1]Weekly!$F186:$F190) -> 4516.216 | L4: =AVERAGE([1]Weekly!$F239:$F242) -> 3246.835
A5: February | B5: =SUM([1]Weekly!$F34:$F37) -> 12135.26 | C5: =SUM([1]Weekly!$F87:$F90) -> 18126.29 | D5: =SUM([1]Weekly!$F139:$F142) -> 17401.06 | E5: =SUM([1]Weekly!$F191:$F194) -> 20516.56 | F5: =SUM([1]Weekly!$F243:$F244) -> 12296.58 | H5: =AVERAGE([1]Weekly!$F34:$F37) -> 3033.815 | I5: =AVERAGE([1]Weekly!$F87:$F90) -> 4531.5725 | J5: =AVERAGE([1]Weekly!$F139:$F142) -> 4350.265 | K5: =AVERAGE([1]Weekly!$F191:$F194) -> 5129.14 | L5: =AVERAGE([1]Weekly!$F243:$F244) -> 6148.29
A6: March | B6: =SUM([1]Weekly!$F38:$F42) -> 12757.16 | C6: =SUM([1]Weekly!$F91:$F94) -> 17786.48 | D6: =SUM([1]Weekly!$F143:$F146) -> 19285.31 | E6: =SUM([1]Weekly!$F195:$F198) -> 29270.42 | H6: =AVERAGE([1]Weekly!$F38:$F42) -> 2551.432 | I6: =AVERAGE([1]Weekly!$F91:$F94) -> 4446.62 | J6: =AVERAGE([1]Weekly!$F143:$F146) -> 4821.3275 | K6: =AVERAGE([1]Weekly!$F195:$F198) -> 7317.605
A7: April | B7: =SUM([1]Weekly!$F43:$F46) -> 13309.36 | C7: =SUM([1]Weekly!$F95:$F98) -> 18408.6 | D7: =SUM([1]Weekly!$F147:$F150) -> 23508.18 | E7: =SUM([1]Weekly!$F199:$F203) -> 33541.23 | H7: =AVERAGE([1]Weekly!$F43:$F46) -> 3327.34 | I7: =AVERAGE([1]Weekly!$F95:$F98) -> 4602.15 | J7: =AVERAGE([1]Weekly!$F147:$F150) -> 5877.045 | K7: =AVERAGE([1]Weekly!$F199:$F203) -> 6708.246
A8: May | B8: =SUM([1]Weekly!$F47:$F51) -> 15131.2893 | C8: =SUM([1]Weekly!$F99:$F103) -> 20283.88 | D8: =SUM([1]Weekly!$F151:$F155) -> 21219.69 | E8: =SUM([1]Weekly!$F204:$F207) -> 22752.51 | H8: =AVERAGE([1]Weekly!$F47:$F51) -> 3026.25786 | I8: =AVERAGE([1]Weekly!$F99:$F103) -> 4056.776 | J8: =AVERAGE([1]Weekly!$F151:$F155) -> 4243.938 | K8: =AVERAGE([1]Weekly!$F204:$F207) -> 5688.1275
A9: June | B9: =SUM([1]Weekly!$F52:$F55) -> 10233.64 | C9: =SUM([1]Weekly!$F104:$F107) -> 14154.06 | D9: =SUM([1]Weekly!$F156:$F159) -> 15912.86 | E9: =SUM([1]Weekly!$F208:$F211) -> 17589.04 | H9: =AVERAGE([1]Weekly!$F52:$F55) -> 2558.41 | I9: =AVERAGE([1]Weekly!$F104:$F107) -> 3538.515 | J9: =AVERAGE([1]Weekly!$F156:$F159) -> 3978.215 | K9: =AVERAGE([1]Weekly!$F208:$F211) -> 4397.26
A10: July | B10: =SUM([1]Weekly!$F56:$F59) -> 8492.73 | C10: =SUM([1]Weekly!$F108:$F111) -> 9308.01 | D10: =SUM([1]Weekly!$F160:$F164) -> 19064.05 | E10: =SUM([1]Weekly!$F212:$F216) -> 21913.01 | H10: =AVERAGE([1]Weekly!$F56:$F59) -> 2123.1825 | I10: =AVERAGE([1]Weekly!$F108:$F111) -> 2327.0025 | J10: =AVERAGE([1]Weekly!$F160:$F164) -> 3812.81 | K10: =AVERAGE([1]Weekly!$F212:$F216) -> 4382.602
A11: August | B11: =SUM([1]Weekly!$F60:$F64) -> 13424.53 | C11: =SUM([1]Weekly!$F112:$F116) -> 17341.82 | D11: =SUM([1]Weekly!$F165:$F168) -> 14888.53 | E11: =SUM([1]Weekly!$F217:$F220) -> 18488.87 | H11: =AVERAGE([1]Weekly!$F60:$F64) -> 2684.906 | I11: =AVERAGE([1]Weekly!$F112:$F116) -> 3468.364 | J11: =AVERAGE([1]Weekly!$F165:$F168) -> 3722.1325 | K11: =AVERAGE([1]Weekly!$F217:$F220) -> 4622.2175
A12: September | B12: =SUM([1]Weekly!$F65:$F68) -> 9334.45 | C12: =SUM([1]Weekly!$F117:$F120) -> 13070.07 | D12: =SUM([1]Weekly!$F169:$F172) -> 18549.87 | E12: =SUM([1]Weekly!$F221:$F225) -> 23463.39 | H12: =AVERAGE([1]Weekly!$F65:$F68) -> 2333.6125 | I12: =AVERAGE([1]Weekly!$F117:$F120) -> 3267.5175 | J12: =AVERAGE([1]Weekly!$F169:$F172) -> 4637.4675 | K12: =AVERAGE([1]Weekly!$F221:$F225) -> 4692.678
A13: October | B13: =SUM([1]Weekly!$F69:$F72) -> 12017.79 | C13: =SUM([1]Weekly!$F121:$F125) -> 18520.62 | D13: =SUM([1]Weekly!$F173:$F177) -> 22555.67 | E13: =SUM([1]Weekly!$F226:$F229) -> 28550.7 | H13: =AVERAGE([1]Weekly!$F69:$F72) -> 3004.4475 | I13: =AVERAGE([1]Weekly!$F121:$F125) -> 3704.124 | J13: =AVERAGE([1]Weekly!$F173:$F177) -> 4511.134 | K13: =AVERAGE([1]Weekly!$F226:$F229) -> 7137.675
A14: November | B14: =SUM([1]Weekly!$F73:$F77) -> 12279.59 | C14: =SUM([1]Weekly!$F126:$F129) -> 13817.24 | D14: =SUM([1]Weekly!$F178:$F181) -> 13328.81 | E14: =SUM([1]Weekly!$F230:$F233) -> 19604.76 | H14: =AVERAGE([1]Weekly!$F73:$F77) -> 2455.918 | I14: =AVERAGE([1]Weekly!$F126:$F129) -> 3454.31 | J14: =AVERAGE([1]Weekly!$F178:$F181) -> 3332.2025 | K14: =AVERAGE([1]Weekly!$F230:$F233) -> 4901.19
A15: December | B15: =SUM([1]Weekly!$F78:$F81) -> 7558.26 | C15: =SUM([1]Weekly!$F130:$F133) -> 10094.4 | D15: =SUM([1]Weekly!$F182:$F185) -> 10271.17 | E15: =SUM([1]Weekly!$F234:$F238) -> 22763.35 | H15: =AVERAGE([1]Weekly!$F78:$F81) -> 1889.565 | I15: =AVERAGE([1]Weekly!$F130:$F133) -> 2523.6 | J15: =AVERAGE([1]Weekly!$F182:$F185) -> 2567.7925 | K15: =AVERAGE([1]Weekly!$F234:$F238) -> 4552.67
B17: =SUM(B4:B15) -> 133583.6393 | C17: =SUM(C4:C15) -> 186721.67 | D17: =SUM(D4:D15) -> 210236.72 | E17: =SUM(E4:E15) -> 281034.92 | H17: =AVERAGE(H4:H15) -> 2559.690113 | I17: =AVERAGE(I4:I15) -> 3590.215958 | J17: =AVERAGE(J4:J15) -> 4058.719458 | K17: =AVERAGE(K4:K15) -> 5337.135583 | L17: =AVERAGE(L4:L15) -> 4697.5625
H18: =AVERAGE([1]Weekly!$F30:$F81) -> 2568.91614 | I18: =AVERAGE([1]Weekly!$F82:$F133) -> 3590.801346 | J18: =AVERAGE([1]Weekly!$F134:$F185) -> 4043.013846 | K18: =AVERAGE([1]Weekly!$F186:$F238) -> 5302.54566

Sheet Logo

Sheet LookupList
A1: ClassID | B1: ExpID | C1: Cash Opening Balance | D1: VendorID | E1: Starting Balance (Memo only, not used by system) | G1: Tire Disposal Fee prompted?
A2: Advertising | B2: Bobbi | C2: 620.64 | D2: TR | E2: 107.16 | G2: FALSE
A3: Bank | B3: BofA | D3: WPS
A4: Cash personal | B4: Cleaning supplies | D4: AET | E4: Mechanic receiving commission (needs 2 b with capital) | G4: Whitewall check prompted?
A5: Charity | B5: Coffee | D5: BikeBandit | E5: Jim | G5: FALSE
A6: Fees | B6: Compass | D6: DWG
A7: Labor | B7: Dad | D7: FHF | E7: Invoice Number when the program is loaded
A8: Office supplies | B8: Doctor | D8: Helmets | E8: 15373
A9: Rent | B9: Family | D9: Hesselbean
A10: Returns | B10: Gas | D10: Howards
A11: Shop Supplies | B11: Groceries | D11: Maxx
A12: Stock | B12: Harbor Freight | D12: PapaDuff
A13: Taxes | B13: House Pymt | D13: Supersprox
B14: Ink | D14: Van Leeuwen
B15: Meals | D15: Open
B16: Mustang Mtg
B17: Myself
B18: O'Reilly
B19: Paint/Ant Spray
B20: Peter
B21: Prescriptions
B22: Randy
B23: Sinners & Saints
B24: Sjon
B25: Stock
B26: Uniforms
B27: Water

Sheet Statement
J1: Statement
J4: Date: | K4: =NOW() -> 2015-01-03T16:33:53.500
A6: Same day Motorcycle Tire Mounting & Balancing | J6: Statement #:
A8: 2716 N.10th Street - McAllen, Texas 78501 | J8: Customer ID:
A13: Bill To: | H13: Account Summary
A14: [Name] | H14: Previous Balance | L14: 0
A15: [Company Name] | H15: Credits | L15: =SUM(J21:K41) -> 0
A16: [Street Address] | H16: New Charges | L16: =SUM(H21:I41) -> 0
A17: [City, ST ZIP Code] | H17: Total Balance Due | L17: =+L14-L15+L16 -> 0
A18: [Phone] | H18: Payment Due Date
A20: Date | B20: Invoice # | C20: Description | H20: Charges | J20: Credits | L20: Line Total
L21: =+H21-J21 -> 0
L22: =+H22-J22 -> 0
L23: 0
L24: 0
L25: 0
L26: 0
L27: 0
L28: 0
L29: 0
L30: 0
L31: 0
L32: 0
L33: 0
L34: 0
L35: 0
L36: 0
L37: 0
L38: 0
L39: 0
L40: 0
L41: 0
K42: Current Balance | L42: =SUM(L21:L41) -> 0
C44: Your account balance is | D44: =+L42 -> 0 | E44: Please make your payment to cover the balance by the due date.
A46: Make all checks payable to RGV Cycle Stuff.
A48: Thank you for your business!
A50: If you have any questions concerning this statement, contact Robert Evenbly.
A53: 2716 N.10th Street, McAllen, Texas 78501
A55: Phone: 956-688-8086 - Email: Info@RGVCycleStuff.com

Sheet Master
A1: RGV Cycle Stuff, dba -
T2: SALES RECEIPT
AC5: DATE: | AD5: =TODAY() -> 2015-01-03
AC6: INVOICE: | AD6: 1610
B13: Bill To: | X13: Ship To: | AL13: Note:
C14: Name: | AA14: =+E14 -> 0
C15: Phone: | AA15: =+E15 -> 0
C16: Address: | AA16: =+E16 -> 
C17: Email: | AA17: =+E17 -> 
K19: Custom LED Lighting
A20: Type | E20: Sales Rep. Name | M20: VIN | T20: Miles | Y20: Terms | AD20: Due Date
A23: Product ID | E23: Description | T23: Quantity | Y23: Unit Price | AD23: Line Total
AD24: =ROUND(+T24*Y24+0.000001,2) -> 0
AD25: 0
AD26: 0
AD27: 0
AD28: 0
AD29: 0
AD30: 0
AD31: 0
AD32: 0
AD33: 0
AD34: 0
AD35: 0
AB36: SUBTOTAL | AD36: =SUM(AD24:AH35) -> 0
F37: RGV Cycle Center | AB37: TAX (8.25%) | AD37: =ROUND(+AD36*0.0825,2) -> 0
F38: 2716 N.10th Street | AB38: SHIPPING & HANDLING
F39: McAllen, TX 78501 | AB39: TOTAL | AD39: =SUM(AD36:AH38) -> 0
A40: NOTES: | AB40: PAID
A41: Use caution with new tires, "slippery" for the first 100 miles. | AB41: TOTAL DUE | AD41: =+AD39-AD40 -> 0
A42: Check all fastening nuts and bolts after 100 miles.
A43: No refunds on self installed electrical items or Helmets.
A44: 20% restocking fee after 7 days & all Special Orders.
A45: 956-688-8086
A47: THANK YOU FOR YOUR BUSINESS !

Sheet E_Master
A1: RGV Cycle Stuff, dba -
U2: ESTIMATE
AC5: DATE: | AD5: =NOW() -> 2015-01-03T16:33:53.500
B13: Bill To: | X13: Ship To: | AL13: Note:
E14: Cash Customers | AA14: =+E14 -> Cash Customers
AA15: =+E15 -> 0
E16: Texas | AA16: =+E16 -> Texas
E17: USA | L17: ESTIMATE | AA17: =+E17 -> USA
A20: Type | E20: Sales Rep. Name | M20: VIN | T20: Miles | Y20: Terms | AD20: Due Date
Y21: Cash
A23: Product ID | E23: Description | T23: Quantity | Y23: Unit Price | AD23: Line Total
AD24: =+T24*Y24 -> 0
AD25: 0
AD26: 0
AD27: 0
AD28: 0
AD29: 0
AD30: 0
AD31: 0
AD32: 0
AD33: 0
AD34: 0
E35: Estimates valid for 10 days | AD35: 0
AB36: SUBTOTAL | AD36: =SUM(AD24:AH35) -> 0
F37: RGV Cycle Center | AB37: TAX (8.25%) | AD37: =+AD36*0.0825 -> 0
F38: 2716 N.10th Street | AB38: SHIPPING & HANDLING
F39: McAllen, TX 78501 | AB39: TOTAL | AD39: =SUM(AD36:AH38) -> 0
A40: NOTES: | AB40: PAID
A41: Use caution with new tires, "slippery" for the first 100 miles. Check all fastening nuts and bolts after 100 miles. No refunds on self installed electrical items. 20% restocking fee after 7 days & Special Orders. | AB41: TOTAL EST. | AD41: =+AD39-AD40 -> 0
A45: 956-688-8086
A47: THANK YOU FOR YOUR BUSINESS !

Sheet Master Register
A1: Invoice | C1: =SUM(C4:C201) -> 0 | D1: =SUM(D4:D201) -> 0 | H1: =TODAY() -> 2015-01-03
A2: Number | B2: Date | C2: Amount | D2: Tax | E2: Terms
I4: =H1-WEEKDAY(H1,3)-7 -> 2014-12-22 | J4: =SUMIF(INDIRECT(TEXT(I4,"'mmm-yy'")&"!B3:B400"),I4,INDIRECT(TEXT(I4,"'mmm-yy'")&"!C3:C400")) -> 1421.72
I5: =I4+1 -> 2014-12-23 | J5: 610.37
I6: 2014-12-24 | J6: 10.83
I7: 2014-12-25 | J7: 0
I8: 2014-12-26 | J8: 1195.56
I9: 2014-12-27 | J9: 749.86
I10: 2014-12-28 | J10: 0 | K10: =SUM(J4:J10) -> 3988.34
I11: 2014-12-29 | J11: 871.44
I12: 2014-12-30 | J12: 1100.72
I13: 2014-12-31 | J13: 252
I14: 2015-01-01 | J14: 0
I15: 2015-01-02 | J15: 480.3
I16: 2015-01-03 | J16: 237.02
I17: 2015-01-04 | J17: 0 | K17: =SUM(J11:J17) -> 2941.48

Sheet Dec-14
A1: Invoice | C1: =SUM(C162:C429) -> 6551.06 | D1: =SUM(D162:D429) -> 456.68 | H1: =TODAY() -> 2015-01-03
A2: Number | B2: Date | C2: Amount | D2: Tax | E2: Terms
A3: 15137 | B3: 2014-12-01 | C3: 500 | E3: Deposit only
A4: 15138 | B4: 2014-12-01 | C4: 10.83 | D4: 0.83
A5: 15139 | B5: 2014-12-01 | C5: 227.33 | D5: 17.33
A6: 15140 | B6: 2014-12-01 | C6: 128.82 | D6: 9.82 | E6: MC
A7: 15141 | B7: 2014-12-01 | C7: 43.3 | D7: 3.3
A8: 15142 | B8: 2014-12-01 | C8: 81
A9: 15143 | B9: 2014-12-01 | C9: 20.57 | D9: 1.57
A10: 15144 | B10: 2014-12-01 | C10: 15 | D10: 1.14
A11: 15145 | B11: 2014-12-01 | C11: 2.44 | D11: 0.19
A12: 15146 | B12: 2014-12-01 | C12: 53.96 | E12: J.Rangel - resale
A13: 15147 | B13: 2014-12-01 | C13: 2.38 | E13: J.Rangel - resale
A14: 15148 | B14: 2014-12-01 | C14: 96 | E14: MC, J.Rangel - resale
A15: 15149 | B15: 2014-12-01 | C15: 14.28 | E15: J.Rangel - resale | F15: =+C6+C14 -> 224.82 | G15: 221.88
A16: 15150 | B16: 2014-12-02 | C16: 35.72 | D16: 2.72
A17: 15151 | B17: 2014-12-02 | C17: 40 | D17: 3.05
A18: 15152 | B18: 2014-12-02 | C18: 670.93 | D18: 51.13
A19: 15153 | B19: 2014-12-02 | C19: 319.28 | D19: 24.33 | E19: MC
A20: 15154 | B20: 2014-12-02 | C20: 23.82 | D20: 1.82
A21: 15155 | B21: 2014-12-02 | C21: 188 | E21: Due, Revolution - resale
A22: 15156 | B22: 2014-12-02 | C22: 161.83 | D22: 12.33 | E22: Visa
A23: 15157 | B23: 2014-12-02 | C23: 29 | E23: Due, Fred - resale | F23: =99.48+C19 -> 418.76 | G23: 410.73
A24: 15158 | B24: 2014-12-03 | C24: 150.47 | D24: 11.47
A25: 15159 | B25: 2014-12-03 | C25: 63 | D25: 4.8
A26: 15160 | B26: 2014-12-03 | C26: 52 | D26: 3.96 | E26: MC
A27: 15161 | B27: 2014-12-03 | C27: 31.34 | D27: 2.39
A28: 15162 | B28: 2014-12-03 | C28: 107.17 | D28: 8.17 | E28: Discover
A29: 15163 | B29: 2014-12-03 | C29: 71.77 | D29: 5.47
A30: 15164 | B30: 2014-12-03 | C30: 50
A31: 15165 | B31: 2014-12-03 | C31: 702.54 | D31: 53.54 | E31: MC
A32: 15166 | B32: 2014-12-03 | C32: -24 | E32: J.Rangel - resale (return) | F32: =+C26+C28+C22+C31 -> 1023.54 | G32: 1004.71
A33: 15167 | B33: 2014-12-04 | C33: 160 | D33: 12.19 | E33: $80. Visa, Bal Due
A34: 15168 | B34: 2014-12-04 | C34: 45 | E34: MC
A35: 15169 | B35: 2014-12-04 | C35: 182.94 | D35: 13.94 | E35: Visa
A36: 15170 | B36: 2014-12-04 | C36: 200 | D36: 15.25
A37: 15171 | B37: 2014-12-04 | C37: 10.83 | D37: 0.83
A38: 15172 | B38: 2014-12-04 | C38: 79 | E38: Due, J.Rangel - resale
A39: 15173 | B39: 2014-12-04 | C39: 137.48 | D39: 10.48
A40: 15174 | B40: 2014-12-04 | C40: 18.35 | D40: 1.4 | F40: =188+C34+C35 -> 415.94 | G40: 412.58
A41: 15175 | B41: 2014-12-05 | C41: 239 | E41: Visa, Border Patrol
A42: 15176 | B42: 2014-12-05 | C42: 378.88 | D42: 28.88 | E42: $178.88 due, Silvia
A43: 15177 | B43: 2014-12-05 | C43: 256.55 | D43: 19.55
A44: 15178 | B44: 2014-12-05 | C44: 125.57 | D44: 9.57 | E44: Visa
A45: 15179 | B45: 2014-12-05 | C45: 147.76 | D45: 11.26 | E45: Visa
A46: 15180 | B46: 2014-12-05 | C46: 19 | E46: Revolution - resale
A47: 15181 | B47: 2014-12-05 | C47: 86.6 | D47: 6.6
A48: 15182 | B48: 2014-12-05 | C48: 36.98 | D48: 2.82 | E48: Visa | F48: =+C44+C45+C48+10.47 -> 320.78 | G48: 317.24
A49: 15183 | B49: 2014-12-06 | C49: 716.62 | D49: 54.62 | E49: Visa
A50: 15184 | B50: 2014-12-06 | C50: 193.77 | D50: 14.77 | E50: Due, Silvia
A51: 15185 | B51: 2014-12-06 | C51: 45.47 | D51: 3.47
A52: 15186 | B52: 2014-12-06 | C52: 70.36 | D52: 5.36 | E52: Visa | F52: =+C49+C52 -> 786.98 | G52: 783.66
A53: 15187 | B53: 2014-12-08 | C53: 21.6 | D53: 1.65
A54: 15188 | B54: 2014-12-08 | C54: 92.01 | D54: 7.01
A55: 15189 | B55: 2014-12-08 | C55: 135.31 | D55: 10.31
A56: 15190 | B56: 2014-12-08 | C56: 28.04 | D56: 2.14 | E56: MC
A57: 15191 | B57: 2014-12-08 | C57: 52.88 | D57: 4.03 | E57: Visa
A58: 15192 | B58: 2014-12-08 | C58: 601.87 | D58: 45.87 | E58: Visa
A59: 15193 | B59: 2014-12-08 | C59: 12.99 | D59: 0.99 | E59: MC
A60: 15194 | B60: 2014-12-08 | C60: 122 | E60: Due
A61: 15195 | B61: 2014-12-08 | C61: 17 | E61: Due | F61: =80+C56+C57+C59 -> 173.91 | G61: 171.81
A62: 15196 | B62: 2014-12-09 | C62: 30.8 | D62: 2.35
A63: 15197 | B63: 2014-12-09 | C63: 41.03 | D63: 3.13
A64: 15198 | B64: 2014-12-09 | C64: 9 | E64: Johnny Customs - resale
A65: 15199 | B65: 2014-12-09 | C65: 80 | D65: 6.1
A66: 15200 | B66: 2014-12-09 | C66: 169 | D66: 12.88
A67: 15201 | B67: 2014-12-09 | C67: 43.3 | D67: 3.3 | E67: Visa
A68: 15202 | B68: 2014-12-09 | C68: 134 | D68: 10.21
A69: 15203 | B69: 2014-12-09 | C69: 7.04 | D69: 0.54 | E69: M/C
A70: 15204 | B70: 2014-12-09 | C70: 199.18 | D70: 15.18 | E70: Discover
A71: 15205 | B71: 2014-12-09 | C71: 20 | E71: J.Rangel - resale
A72: 15206 | B72: 2014-12-09 | C72: 54.07 | D72: 4.12
A73: 15207 | B73: 2014-12-09 | C73: 547.75 | D73: 41.75 | E73: MC | F73: =+C67+C69+C70+C58+150+54.65 -> 1056.04 | G73: 1045.14
A74: 15208 | B74: 2014-12-10 | C74: 15 | D74: 1.14
A75: 15209 | B75: 2014-12-10 | C75: 7.52 | D75: 0.57
A76: 15210 | B76: 2014-12-10 | C76: 2 | E76: Done Rite - Resale
A77: 15211 | B77: 2014-12-10 | C77: 174 | E77: Due, Chris F - resale
A78: 15212 | B78: 2014-12-10 | C78: 227.76 | D78: 17.36 | E78: Check
A79: 15213 | B79: 2014-12-10 | C79: 80 | E79: J.Rangel - resale
A80: 15214 | B80: 2014-12-10 | C80: 216.5 | D80: 16.5 | E80: $91.50 Due
A81: 15215 | B81: 2014-12-10 | C81: 2.7 | D81: 0.21
A82: 15216 | B82: 2014-12-10 | C82: 14.98 | D82: 1.14 | F82: 0 | G82: =+F82*0.97831 -> 0
A83: 15217 | B83: 2014-12-11 | C83: 334.49 | D83: 25.49 | E83: (Deposited $400. cash)
A84: 15218 | B84: 2014-12-11 | C84: 3.79 | D84: 0.29
A85: 15219 | B85: 2014-12-11 | C85: 14.07 | D85: 1.07
A86: 15220 | B86: 2014-12-11 | C86: 36.81 | D86: 2.81 | E86: Visa
A87: 15221 | B87: 2014-12-11 | C87: 8 | D87: 0.61
A88: 15222 | B88: 2014-12-11 | C88: 11.91 | D88: 0.91
A89: 15223 | B89: 2014-12-11 | C89: 37.89 | D89: 2.89 | F89: =+C86 -> 36.81 | G89: 35.95
A90: 15224 | B90: 2014-12-12 | C90: 148.3 | D90: 11.3 | E90: $48.30 due
A91: 15225 | B91: 2014-12-12 | C91: 99.48 | D91: 7.58
A92: 15226 | B92: 2014-12-12 | C92: 439.5 | D92: 33.5 | E92: Check
A93: 15227 | B93: 2014-12-12 | C93: 408.09 | D93: 31.1 | E93: MC
A94: 15228 | B94: 2014-12-12 | C94: 16.18 | D94: 1.23 | E94: Visa
A95: 15229 | B95: 2014-12-12 | C95: 43.3 | D95: 3.3 | E95: MC | F95: =100+C94+C95+397.75 -> 557.23 | G95: 553.77
A96: 15230 | B96: 2014-12-13 | C96: 178 | E96: Done Rite - Resale
A97: 15231 | B97: 2014-12-13 | C97: 128.82 | D97: 9.82 | E97: Visa
A98: 15232 | B98: 2014-12-13 | C98: 21.65 | D98: 1.65 | E98: MC
A99: 15233 | B99: 2014-12-13 | C99: 24.18 | D99: 0.7 | E99: Visa
A100: 15234 | B100: 2014-12-13 | C100: 89.85 | D100: 6.85
A101: 15235 | B101: 2014-12-13 | C101: 398.2 | D101: 30.35
A102: 15236 | B102: 2014-12-13 | C102: 64.95 | D102: 4.95 | E102: MC
A103: 15237 | B103: 2014-12-13 | C103: 63.87 | D103: 4.87 | E103: Visa
A104: 15238 | B104: 2014-12-13 | C104: 28 | D104: 2.13 | E104: MC
A105: 15239 | B105: 2014-12-13 | C105: 24.9 | D105: 1.9
A106: 15240 | B106: 2014-12-13 | C106: 130.44 | D106: 9.94 | E106: MC
A107: 15241 | B107: 2014-12-13 | C107: 210.01 | D107: 16.01
A108: 15242 | B108: 2014-12-13 | C108: 395.11 | D108: 30.11 | E108: Visa
A109: 15243 | B109: 2014-12-13 | C109: 552.08 | D109: 42.08 | E109: Visa, $282.08 Due
A110: 15244 | B110: 2014-12-13 | C110: 7.52 | D110: 0.57 | F110: =+C97+C99+308.09+C102+C103+C104+C108+270+C106+15.15 -> 1428.61 | G110: 1410.56
A111: 15245 | B111: 2014-12-15 | C111: 197 | D111: 15.01
A112: 15246 | B112: 2014-12-15 | C112: 115 | E112: Visa, Border Patrol
A113: 15247 | B113: 2014-12-15 | C113: 8.61 | D113: 0.66 | E113: Visa
A114: 15248 | B114: 2014-12-15 | C114: 212.71 | D114: 16.21 | E114: Visa
A115: 15249 | B115: 2014-12-15 | C115: 16.24 | D115: 1.24
A116: 15250 | B116: 2014-12-15 | C116: 27.06 | D116: 2.06 | E116: Visa
A117: 15251 | B117: 2014-12-15 | C117: 483.61 | D117: 36.86 | E117: $250 cash, Bal MC
A118: 15252 | B118: 2014-12-15 | C118: 35.45 | D118: 2.7 | E118: Visa
A119: 15253 | B119: 2014-12-15 | C119: 14.02 | D119: 1.07
A120: 15254 | B120: 2014-12-15 | C120: 64.9 | D120: 4.95 | E120: Due, Gene
A121: 15255 | B121: 2014-12-15 | C121: 12.88 | D121: 0.98
A122: 15256 | B122: 2014-12-15 | C122: 300 | E122: Visa, J.Rangel - resale | F122: =21.65+C113+C114+C116+C118+C112+239+C122 -> 959.48 | G122: 943.9
A123: 15257 | B123: 2014-12-16 | C123: 29.23 | D123: 2.23
A124: 15258 | B124: 2014-12-16 | C124: 50.82 | D124: 3.87 | E124: Visa
A125: 15259 | B125: 2014-12-16 | C125: 11 | D125: 0.84
A126: 15260 | B126: 2014-12-16 | C126: 29.23 | D126: 2.23
A127: 15261 | B127: 2014-12-16 | C127: 18.4 | D127: 1.4
A128: 15262 | B128: 2014-12-16 | C128: 160 | E128: MC, J.Rangel - resale
A129: 15263 | B129: 2014-12-16 | C129: 64.95 | D129: 4.95
A130: 15264 | B130: 2014-12-16 | C130: 109 | D130: 8.31 | E130: Visa
A131: 15265 | B131: 2014-12-16 | C131: 598.93 | D131: 88.67 | E131: Due
A132: 15266 | B132: 2014-12-16 | C132: 39.59 | F132: =+C124+C128+C130 -> 319.82 | G132: 314.36
A133: 15267 | B133: 2014-12-17 | C133: 212.17 | D133: 16.17
A134: 15268 | B134: 2014-12-17 | C134: 21.65 | D134: 1.65 | E134: Visa
A135: 15269 | B135: 2014-12-17 | C135: 43.3 | D135: 3.3
A136: 15270 | B136: 2014-12-17 | C136: -45.47 | D136: -3.47
A137: 15271 | B137: 2014-12-17 | C137: 7.52 | D137: 0.57
A138: 15272 | B138: 2014-12-17 | C138: 215.42 | D138: 16.42
A139: 15273 | B139: 2014-12-17 | C139: 34.04 | D139: 2.59 | E139: Visa
A140: 15274 | B140: 2014-12-17 | C140: 404.8 | D140: 30.85 | E140: Visa | F140: =+C134+233.61+340.17+C139+C140 -> 1034.27 | G140: 1023.2
A141: 15275 | B141: 2014-12-18 | C141: 87.68 | D141: 6.68 | E141: Visa
A142: 15276 | B142: 2014-12-18 | C142: 219.55 | D142: 16.73 | E142: Visa
A143: 15277 | B143: 2014-12-18 | C143: 254.93 | D143: 19.43 | E143: MC
A144: 15278 | B144: 2014-12-18 | C144: 166.71 | D144: 12.71 | E144: Visa
A145: 15279 | B145: 2014-12-18 | C145: 21.65 | D145: 1.65 | E145: MC
A146: 15280 | B146: 2014-12-18 | C146: 32.31 | D146: 2.46 | E146: MC
A147: 15281 | B147: 2014-12-18 | C147: 75.84 | D147: 5.78 | E147: Visa
A148: 15282 | B148: 2014-12-18 | C148: 47.63 | D148: 3.63 | E148: Visa
A149: 15283 | B149: 2014-12-18 | C149: 441.06 | D149: 33.61 | E149: MC
A150: 15284 | B150: 2014-12-18 | C150: 579.14 | D150: 44.14 | E150: AmExp, HD Blk cruiser
A151: 15285 | B151: 2014-12-18 | C151: 21.65 | D151: 1.65 | E151: MC
A152: 15286 | B152: 2014-12-18 | C152: 267.27 | D152: 20.37 | E152: $201.76 due ('06 CBR1000) | F152: =+C141+C142+C144+C146+C147+C148+C145+C143+C149+C151+282.08 -> 1651.09 | G152: 1617.32
A153: 15287 | B153: 2014-12-19 | C153: 95.91 | D153: 7.31 | E153: MC
A154: 15288 | B154: 2014-12-19 | C154: 11.85 | D154: 0.9 | E154: Visa
A155: 15289 | B155: 2014-12-19 | C155: 68.94 | E155: ESG - resale
A156: 15290 | B156: 2014-12-19 | C156: 129 | E156: J.Rangel - resale
A157: 15291 | B157: 2014-12-19 | C157: 114.75 | D157: 8.75
A158: 15292 | B158: 2014-12-19 | C158: 100 | E158: J.Rangel - resale | F158: =+C153+C154 -> 107.76 | G158: 105.87
A159: 15293 | B159: 2014-12-20 | C159: 18.35 | D159: 1.4
A160: 15294 | B160: 2014-12-20 | C160: 51.31 | D160: 3.91
A161: 15295 | B161: 2014-12-20 | C161: 28.15 | D161: 2.15
A162: 15296 | B162: 2014-12-20 | C162: 18 | D162: 1.36
A163: 15297 | B163: 2014-12-20 | C163: 18 | D163: 1.36
A164: 15298 | B164: 2014-12-20 | C164: 21.65 | D164: 1.65
A165: 15299 | B165: 2014-12-20 | C165: 167.79 | D165: 12.79 | E165: $22.79 Visa, Bal Cash
A166: 15300 | B166: 2014-12-20 | C166: 8.66 | D166: 0.66 | E166: Visa
A167: 15301 | B167: 2014-12-20 | C167: 104.46 | D167: 7.96 | E167: Visa | F167: =+C159+C166+22.79+C167-18.35 -> 135.91 | G167: 134.54
A168: 15302 | B168: 2014-12-22 | C168: 220 | D168: 16.77 | E168: Due
A169: 15303 | B169: 2014-12-22 | C169: 48.66 | D169: 3.71 | E169: Visa
A170: 15304 | B170: 2014-12-22 | C170: 201.29 | D170: 15.34 | E170: $151.29 due
A171: 15305 | B171: 2014-12-22 | C171: 240 | E171: Carlos G - MX
A172: 15306 | B172: 2014-12-22 | C172: 7.5 | D172: 0.57
A173: 15307 | B173: 2014-12-22 | C173: 304.83 | D173: 23.23
A174: 15308 | B174: 2014-12-22 | C174: 399.44 | D174: 30.44 | E174: Due | F174: =+C169 -> 48.66 | G174: 48.17
A175: 15309 | B175: 2014-12-23 | C175: 262.21 | D175: 19.98
A176: 15310 | B176: 2014-12-23 | C176: 32.48 | D176: 2.48 | E176: MC
A177: 15311 | B177: 2014-12-23 | C177: 10.83 | D177: 0.83
A178: 15312 | B178: 2014-12-23 | C178: 20.57 | D178: 1.57
A179: 15313 | B179: 2014-12-23 | C179: 174.28 | D179: 13.28
A180: 15314 | B180: 2014-12-23 | C180: 110 | D180: 8.38 | F180: =+C176 -> 32.48 | G180: 31.67
A181: 15315 | B181: 2014-12-24 | C181: 10.83 | D181: 0.83 | E181: Visa | F181: =+C177 -> 10.83 | G181: 10.49
A182: 15316 | B182: 2014-12-26 | C182: 32.48 | D182: 2.48
A183: 15317 | B183: 2014-12-26 | C183: 307.48 | D183: 23.43 | E183: MC
A184: 15318 | B184: 2014-12-26 | C184: 15 | E184: J.Rangle - resale
A185: 15319 | B185: 2014-12-26 | C185: 103.03 | D185: 7.85 | E185: MC
A186: 15320 | B186: 2014-12-26 | C186: 172.12 | D186: 13.12 | E186: Visa
A187: 15321 | B187: 2014-12-26 | C187: 277.12 | D187: 21.12 | E187: Visa
A188: 15322 | B188: 2014-12-26 | C188: 32.26 | D188: 2.46
A189: 15323 | B189: 2014-12-26 | C189: 108.25 | D189: 8.25
A190: 15324 | B190: 2014-12-26 | C190: 5.95
A191: 15325 | B191: 2014-12-26 | C191: 15.05 | D191: 1.15 | E191: Visa
A192: 15326 | B192: 2014-12-26 | C192: 47.58 | D192: 3.63
A193: 15327 | B193: 2014-12-26 | C193: 79.24 | D193: 6.04 | E193: Visa | F193: =+C183+C185+C186+C187+C191+C193 -> 954.04 | G193: 940.74
A194: 15328 | B194: 2014-12-27 | C194: 10.83 | D194: 0.83
A195: 15329 | B195: 2014-12-27 | C195: 10 | D195: 0.76
A196: 15330 | B196: 2014-12-27 | C196: 120.7 | D196: 9.2 | E196: Visa, $70.70 due
A197: 15331 | B197: 2014-12-27 | C197: 74 | E197: CP - TWK resale
A198: 15332 | B198: 2014-12-27 | C198: 14.07 | D198: 1.07
A199: 15333 | B199: 2014-12-27 | C199: 32.99 | D199: 2.51
A200: 15334 | B200: 2014-12-27 | C200: 224.62 | D200: 17.12 | E200: $94.62 Visa, Bal Cash
... 32 more rows

Sheet Nov-14
A1: Invoice | C1: =SUM(C4:C320) -> 23871.5 | D1: =SUM(D4:D320) -> 1596.25 | H1: =TODAY() -> 2015-01-03
A2: Number | B2: Date | C2: Amount | D2: Tax | E2: Terms
A3: 14943 | B3: 2014-11-01 | C3: 24.84 | D3: 1.89 | E3: Visa
A4: 14944 | B4: 2014-11-01 | C4: 56.18 | D4: 4.28
A5: 14945 | B5: 2014-11-01 | C5: 310.68 | D5: 23.68 | E5: Visa
A6: 14946 | B6: 2014-11-01 | C6: 18 | D6: 1.37
A7: 14947 | B7: 2014-11-01 | C7: 45.47 | D7: 3.47 | E7: MC
A8: 14948 | B8: 2014-11-01 | C8: 14.07 | D8: 1.07
A9: 14949 | B9: 2014-11-01 | C9: 138.56 | D9: 10.56
A10: 14950 | B10: 2014-11-01 | C10: 19 | D10: 1.45
A11: 14951 | B11: 2014-11-01 | C11: 124.49 | D11: 9.49 | E11: MC
A12: 14952 | B12: 2014-11-01 | C12: 302.02 | D12: 23.02 | E12: Visa
A13: 14953 | B13: 2014-11-01 | C13: 125 | D13: 9.53 | F13: =+C3+160.68+C7+C11+C12+38.97 -> 696.47 | G13: 690.71
A14: 14954 | B14: 2014-11-03 | C14: 28.09 | D14: 2.14 | E14: MC
A15: 14955 | B15: 2014-11-03 | C15: 238.69 | D15: 18.19 | E15: MC
A16: 14956 | B16: 2014-11-03 | C16: 280.37 | D16: 21.37 | E16: Visa
A17: 14957 | B17: 2014-11-03 | C17: 185.11 | D17: 14.11 | E17: Visa
A18: 14958 | B18: 2014-11-03 | C18: 180.24 | D18: 13.74 | E18: $90.24 due
A19: 14959 | B19: 2014-11-03 | C19: -27.06 | D19: -2.06 | E19: Visa
A20: 14960 | B20: 2014-11-03 | C20: 240.32 | D20: 18.32 | E20: MC
A21: 14961 | B21: 2014-11-03 | C21: 160.21 | D21: 12.21 | E21: Due, Triumph
A22: 14962 | B22: 2014-11-03 | C22: 444.37 | D22: 33.87 | E22: Due, ZX9R - Cardenas
A23: 14963 | B23: 2014-11-03 | C23: 24.9 | D23: 1.9 | E23: Visa
A24: 14964 | B24: 2014-11-03 | C24: 213.25 | D24: 16.25 | E24: Visa
A25: 14965 | B25: 2014-11-03 | C25: 18.35 | D25: 1.4 | E25: Visa
A26: 14966 | B26: 2014-11-03 | C26: 9.69 | D26: 0.74 | E26: Visa | F26: =+C15+C16+C14+191.87+C17+C19+C23+69.61+C20+C24+C25+C26 -> 1473.19 | G26: 1449.83
A27: 14967 | B27: 2014-11-04 | C27: 138.02 | D27: 10.52 | E27: Discover
A28: 14968 | B28: 2014-11-04 | C28: 14 | E28: Due, Border Pat
A29: 14969 | B29: 2014-11-04 | C29: 13.95 | D29: 1.05 | E29: Cash
A30: 14970 | B30: 2014-11-04 | C30: -23.82 | D30: -1.82
A31: 14971 | B31: 2014-11-04 | C31: 30.26 | D31: 2.31 | E31: Visa
A32: 14972 | B32: 2014-11-04 | C32: 181.86 | D32: 13.86 | E32: MC
A33: 14973 | B33: 2014-11-04 | C33: 45 | D33: 3.43
A34: 14974 | B34: 2014-11-04 | C34: 204.27 | D34: 15.57 | E34: MC
A35: 14975 | B35: 2014-11-04 | C35: 232.52 | D35: 17.72
A36: 14976 | B36: 2014-11-04 | C36: 58.46 | D36: 4.46 | E36: Visa
A37: 14977 | B37: 2014-11-04 | C37: 32 | D37: 2.44
A38: 14978 | B38: 2014-11-04 | C38: 30.2 | D38: 2.3 | E38: Visa
A39: 14979 | B39: 2014-11-04 | C39: 296.44 | D39: 22.59 | E39: Due, Scooter
A40: 14980 | B40: 2014-11-04 | C40: 124 | D40: 9.45
A41: 14981 | B41: 2014-11-04 | C41: 34.64 | D41: 2.64 | E41: Visa | F41: =+C27+C31+C32+C34+C36+C38+C41 -> 677.71 | G41: 663.59
A42: 14982 | B42: 2014-11-05 | C42: 23.82 | D42: 1.82
A43: 14983 | B43: 2014-11-05 | C43: 77.93 | D43: 5.94 | E43: MC - Peter
A44: 14984 | B44: 2014-11-05 | C44: 358.31 | D44: 27.31 | E44: Visa
A45: 14985 | B45: 2014-11-05 | C45: 227.33 | D45: 17.33
A46: 14986 | B46: 2014-11-05 | C46: 161.29 | D46: 12.29 | E46: MC
A47: 14987 | B47: 2014-11-05 | C47: 357.23 | D47: 27.23 | E47: MC
A48: 14988 | B48: 2014-11-05 | C48: 226.78 | D48: 17.28 | E48: Visa
A49: 14989 | B49: 2014-11-05 | C49: 180 | E49: Due, Border Patrol
A50: 14990 | B50: 2014-11-05 | C50: 180 | E50: Due, Border Patrol | F50: =+C44+C46+50+C47+C48 -> 1153.61 | G50: 1143.4
A51: 14991 | B51: 2014-11-06 | C51: 64.95 | D51: 4.95 | E51: Visa
A52: 14992 | B52: 2014-11-06 | C52: 87.68 | D52: 6.68 | E52: MC
A53: 14993 | B53: 2014-11-06 | C53: 19.49 | D53: 1.49
A54: 14994 | B54: 2014-11-06 | C54: 250 | D54: 19.05
A55: 14995 | B55: 2014-11-06 | C55: 20.57 | D55: 1.57 | E55: Visa
A56: 14996 | B56: 2014-11-06 | C56: 139.64 | D56: 10.64 | E56: Visa
A57: 14997 | B57: 2014-11-06 | C57: 17.27 | D57: 1.32 | E57: Visa
A58: 14998 | B58: 2014-11-06 | C58: 37.89 | D58: 2.89 | E58: Visa
A59: 14999 | B59: 2014-11-06 | C59: 19 | D59: 1.45 | F59: =+C52+C55+C57+C51+C56+C58+14 -> 382 | G59: 374.94
A60: 15000 | B60: 2014-11-07 | C60: 195.9 | D60: 14.93 | E60: Peter
A61: 15001 | B61: 2014-11-07 | C61: 21.63 | D61: 1.65
A62: 15002 | B62: 2014-11-07 | C62: 180 | E62: Visa
A63: 15003 | B63: 2014-11-07 | C63: 180 | E63: Visa
A64: 15004 | B64: 2014-11-07 | C64: 94.18 | D64: 7.18 | E64: Due
A65: 15005 | B65: 2014-11-07 | C65: 251.14 | D65: 19.14 | E65: MC, $101.14 due
A66: 15006 | B66: 2014-11-07 | C66: 129.9 | D66: 9.9
A67: 15007 | B67: 2014-11-07 | C67: 34.07 | D67: 1.07
A68: 15008 | B68: 2014-11-07 | C68: 16.18 | D68: 1.23
A69: 15009 | B69: 2014-11-07 | C69: 87.68 | D69: 6.68 | E69: Due, Michael
A70: 15010 | B70: 2014-11-07 | C70: 99.48 | D70: 7.58 | E70: Due, Addl to Inv 14794 | F70: =+C49+C50+C62+C63+150+C60+27.93 -> 1093.83 | G70: 1066.28
A71: 15011 | B71: 2014-11-08 | C71: 32.48 | D71: 2.48 | E71: MC
A72: 15012 | B72: 2014-11-08 | C72: 17.27 | D72: 1.32 | E72: Visa
A73: 15013 | B73: 2014-11-08 | C73: 24.3 | D73: 1.85
A74: 15014 | B74: 2014-11-08 | C74: 133.15 | D74: 10.15
A75: 15015 | B75: 2014-11-08 | C75: 20 | D75: 1.52
A76: 15016 | B76: 2014-11-08 | C76: 20 | E76: George, Revolution - resale
A77: 15017 | B77: 2014-11-08 | C77: 52.93 | D77: 4.03 | E77: Visa
A78: 15018 | B78: 2014-11-08 | C78: 21.65 | D78: 1.65 | E78: Visa
A79: 15019 | B79: 2014-11-08 | C79: 28.69 | D79: 2.19
A80: 15020 | B80: 2014-11-08 | C80: 322.59 | D80: 24.59 | F80: =+C71+C72+C77+C78+446.44 -> 570.77 | G80: 561.94
A81: 15021 | B81: 2014-11-10 | C81: 11.91 | D81: 0.91 | E81: Due
A82: 15022 | B82: 2014-11-10 | C82: 262.24 | D82: 19.99 | E82: Due
A83: 15023 | B83: 2014-11-10 | C83: 105 | D83: 8.01
A84: 15024 | B84: 2014-11-10 | C84: 81.19 | D84: 6.19 | E84: Visa
A85: 15025 | B85: 2014-11-10 | C85: 70.36 | D85: 5.36 | E85: Visa
A86: 15026 | B86: 2014-11-10 | C86: 96 | D86: 8.31 | F86: =+C84+C85 -> 151.55 | G86: 149.94
A87: 15027 | B87: 2014-11-11 | C87: 80 | D87: 6.1 | E87: Due
A88: 15028 | B88: 2014-11-11 | C88: 230.03 | D88: 17.53 | E88: Visa
A89: 15029 | B89: 2014-11-11 | C89: 2.11 | D89: 0.16 | F89: =+C88 -> 230.03 | G89: 228.93
A90: 15030 | B90: 2014-11-12 | C90: 1.5 | E90: Visa
A91: 15031 | B91: 2014-11-12 | C91: 264.13 | D91: 20.13 | E91: MC
A92: 15032 | B92: 2014-11-12 | C92: 186.62 | D92: 14.22 | E92: Due, Luis
A93: 15033 | B93: 2014-11-12 | C93: 520 | E93: Due, Carlos G - resale MX | F93: =+C90+150 -> 151.5 | G93: 149.07
A94: 15034 | B94: 2014-11-13 | C94: 8 | E94: Due, Chris F - resale
A95: 15035 | B95: 2014-11-13 | C95: 101.76 | D95: 7.76 | E95: Due
A96: 15036 | B96: 2014-11-13 | C96: 150 | D96: 11.43 | E96: Visa
A97: 15037 | B97: 2014-11-13 | C97: 87.68 | D97: 6.68 | E97: Due, Peter
A98: 15038 | B98: 2014-11-09 | C98: 148 | D98: 11.26 | E98: Sunday the 9th
A99: 15039 | B99: 2014-11-13 | C99: 119 | E99: Due, Carlos G - resale MX | F99: =+C96 -> 150 | G99: 149.17
A100: 15040 | B100: 2014-11-14 | C100: 162.38 | D100: 12.38
A101: 15041 | B101: 2014-11-14 | C101: 193.33 | D101: 14.73 | E101: Visa
A102: 15042 | B102: 2014-11-14 | C102: 182.94 | D102: 13.94 | E102: Visa
A103: 15043 | B103: 2014-11-14 | C103: 7.11 | E103: ESG - resale
A104: 15044 | B104: 2014-11-14 | C104: 59.27 | D104: 4.52 | E104: Visa
A105: 15045 | B105: 2014-11-14 | C105: 138.56 | D105: 10.56 | E105: Visa
A106: 15046 | B106: 2014-11-14 | C106: 7.52 | D106: 0.57 | F106: =+C101+101.76+C102+60.01+C104+C105+186.62+182.94-57.5 -> 1047.93 | G106: 1034.81
A107: 15047 | B107: 2014-11-15 | C107: 264 | D107: 20.12 | E107: Visa
A108: 15048 | B108: 2014-11-15 | C108: 64.95 | D108: 4.95
A109: 15049 | B109: 2014-11-15 | C109: 27.01 | D109: 2.06 | E109: Visa
A110: 15050 | B110: 2014-11-15 | C110: 32.48 | D110: 2.48 | E110: Visa
A111: 15051 | B111: 2014-11-15 | C111: 19.05 | D111: 1.45 | E111: MC
A112: 15052 | B112: 2014-11-15 | C112: 389.7 | D112: 29.7 | E112: Visa
A113: 15053 | B113: 2014-11-15 | C113: 198.64 | D113: 15.14 | E113: Due
A114: 15054 | B114: 2014-11-15 | C114: 21.6 | D114: 1.65 | E114: Visa
A115: 15055 | B115: 2014-11-15 | C115: 194.85 | D115: 14.85 | E115: Visa
A116: 15056 | B116: 2014-11-15 | C116: 211.63 | D116: 16.13 | E116: MC | F116: =114.13+C107+C109+C111+C110+C112+C114+C113+C115+C116 -> 1473.09 | G116: 1456.81
A117: 15057 | B117: 2014-11-17 | C117: 12.94 | D117: 0.99 | E117: Visa
A118: 15058 | B118: 2014-11-17 | C118: 43.3 | D118: 3.3 | E118: MC
A119: 15059 | B119: 2014-11-17 | C119: 154.8 | D119: 11.8
A120: 15060 | B120: 2014-11-17 | C120: 227.33 | D120: 17.33 | E120: MC
A121: 15061 | B121: 2014-11-17 | C121: 70.36 | D121: 5.36 | E121: MC
A122: 15062 | B122: 2014-11-17 | C122: 209 | E122: Visa | F122: =+C117+C118+C120+C121+C122+140 -> 702.93 | G122: 698.41
A123: 15063 | B123: 2014-11-18 | C123: 28.04 | D123: 2.14 | E123: MC
A124: 15064 | B124: 2014-11-18 | C124: 1 | D124: 0.08
A125: 15065 | B125: 2014-11-18 | C125: 282.37 | D125: 21.52 | E125: MC | F125: =+C123 -> 28.04 | G125: 27.41
A126: 15066 | B126: 2014-11-19 | C126: 10.83 | D126: 0.83 | E126: Visa
A127: 15067 | B127: 2014-11-19 | C127: 30.2 | D127: 2.3
A128: 15068 | B128: 2014-11-19 | C128: 266.07 | D128: 20.28 | E128: Due, Randy - at cost
A129: 15069 | B129: 2014-11-19 | C129: 233.82 | D129: 17.82 | E129: Visa
A130: 15070 | B130: 2014-11-19 | C130: 58 | E130: Due, Bike Rods - resale
A131: 15071 | B131: 2014-11-19 | C131: 268 | D131: 20.43
A132: 15072 | B132: 2014-11-19 | C132: 209.95 | D132: 16 | E132: Visa | F132: =+C126+C125+C129+C132 -> 736.97 | G132: 720.67
A133: 15073 | B133: 2014-11-20 | C133: 5.36 | D133: 0.41
A134: 15074 | B134: 2014-11-20 | C134: 101.7 | D134: 7.75 | E134: Visa
A135: 15075 | B135: 2014-11-20 | C135: 48.71 | D135: 3.71
A136: 15076 | B136: 2014-11-20 | C136: 5 | D136: 0.38 | F136: =87.68+C134 -> 189.38 | G136: 188.1
A137: 15077 | B137: 2014-11-21 | C137: 208.38 | D137: 15.88
A138: 15078 | B138: 2014-11-21 | C138: 70.36 | D138: 5.36 | E138: Visa
A139: 15079 | B139: 2014-11-21 | C139: 133.15 | D139: 10.15 | E139: Visa
A140: 15080 | B140: 2014-11-21 | C140: 18 | E140: Johnny's Custom - resale
A141: 15081 | B141: 2014-11-21 | C141: 51.96 | D141: 3.96 | E141: Visa
A142: 15082 | B142: 2014-11-21 | C142: 58.4 | D142: 4.45 | F142: =+C138+C141 -> 122.32 | G142: 121.26
A143: 15083 | B143: 2014-11-22 | C143: 12.94 | D143: 0.99 | E143: Visa
A144: 15084 | B144: 2014-11-22 | C144: 12 | D144: 0.91
A145: 15085 | B145: 2014-11-22 | C145: 157.99 | D145: 12.04 | E145: Visa
A146: 15086 | B146: 2014-11-22 | C146: 22.73 | D146: 1.73
A147: 15087 | B147: 2014-11-22 | C147: 10.81 | D147: 0.82
A148: 15088 | B148: 2014-11-22 | C148: 127.74 | D148: 9.74
A149: 15089 | B149: 2014-11-22 | C149: 24
A150: 15090 | B150: 2014-11-22 | C150: 387.54 | D150: 29.54 | E150: Due
A151: 15091 | B151: 2014-11-22 | C151: -127.74 | D151: -9.74 | E151: Return Inv 15088
A152: 15092 | B152: 2014-11-22 | C152: 192.69 | D152: 14.69 | E152: Visa
A153: 15093 | B153: 2014-11-22 | C153: 252.5 | E153: MC
A154: 15094 | B154: 2014-11-22 | C154: 60 | D154: 4.57 | F154: =+C143+C145+C152+C153 -> 616.12 | G154: 612.57
A155: 15095 | B155: 2014-11-24 | C155: 88.66 | D155: 6.76 | E155: Visa
A156: 15096 | B156: 2014-11-24 | C156: 20.57 | D156: 1.57
A157: 15097 | B157: 2014-11-24 | C157: 59 | E157: Visa, Fred R - resale
A158: 15098 | B158: 2014-11-24 | C158: 439 | E158: J.Rangel - resale
A159: 15099 | B159: 2014-11-24 | C159: 40 | E159: J.Rangel - resale
A160: 15100 | B160: 2014-11-24 | C160: 23.27 | D160: 1.77 | E160: Visa
A161: 15101 | B161: 2014-11-24 | C161: 18.4 | D161: 1.4
A162: 15102 | B162: 2014-11-24 | C162: 81.19 | D162: 6.19 | E162: Visa
A163: 15103 | B163: 2014-11-24 | C163: 110 | E163: J.Rangel - resale | F163: =+C155+C157+C139+C160+C162 -> 385.27 | G163: 379.39
A164: 15104 | B164: 2014-11-25 | C164: 168.33 | D164: 12.83 | E164: $98.33 due
A165: 15105 | B165: 2014-11-25 | C165: 60.62 | D165: 4.62 | E165: Visa
A166: 15106 | B166: 2014-11-25 | C166: 258.72 | D166: 19.72 | E166: Visa
A167: 15107 | B167: 2014-11-25 | C167: 44 | D167: 3.35
A168: 15108 | B168: 2014-11-25 | C168: 14.02 | D168: 1.07 | E168: Visa | F168: =+C165+C166+C168 -> 333.36 | G168: 330.39
A169: 15109 | B169: 2014-11-26 | C169: 71.45 | D169: 5.45
A170: 15110 | B170: 2014-11-26 | C170: 30 | E170: James Ind - resale
A171: 15111 | B171: 2014-11-26 | C171: 196.47 | D171: 14.97 | E171: MC
A172: 15112 | B172: 2014-11-26 | C172: 97.26 | D172: 7.41 | E172: Due
A173: 15113 | B173: 2014-11-26 | C173: 27.06 | D173: 2.06 | E173: Visa
A174: 15114 | B174: 2014-11-26 | C174: 10.78 | D174: 0.82 | E174: Visa
A175: 15115 | B175: 2014-11-26 | C175: 11.95 | E175: J.Rangel - resale
A176: 15116 | B176: 2014-11-26 | C176: 257.64 | D176: 19.64
A177: 15117 | B177: 2014-11-26 | C177: 124.49 | D177: 9.49
A178: 15118 | B178: 2014-11-26 | C178: 14.7
A179: 15119 | B179: 2014-11-26 | C179: 30 | D179: 2.29 | E179: MC | F179: =+C173+C174+C171+C179-2.29 -> 262.02 | G179: 256.41
A180: 15120 | B180: 2014-11-28 | C180: 11 | E180: Johnny's Custom - resale
A181: 15121 | B181: 2014-11-28 | C181: 40 | E181: MC
A182: 15122 | B182: 2014-11-28 | C182: 8 | E182: Due, Chris F - resale
A183: 15123 | B183: 2014-11-28 | C183: 20 | E183: MC
A184: 15124 | B184: 2014-11-28 | C184: 30 | D184: 2.29
A185: 15125 | B185: 2014-11-28 | C185: 26 | E185: J.Rangel - resale
A186: 15126 | B186: 2014-11-28 | C186: 2315.47 | D186: 176.47 | E186: Check
A187: 15127 | B187: 2014-11-28 | C187: 732.85 | D187: 55.85 | E187: Check | F187: =97.26+C181+C183 -> 157.26 | G187: 155.77
A188: 15128 | B188: 2014-11-29 | C188: 8.96 | D188: 0.68
A189: 15129 | B189: 2014-11-29 | C189: 140 | E189: J.Rangel - resale
A190: 15130 | B190: 2014-11-29 | C190: 7.52 | D190: 0.57
A191: 15131 | B191: 2014-11-29 | C191: 167.79 | D191: 12.79 | E191: $67.79 due
A192: 15132 | B192: 2014-11-29 | C192: 24.84 | D192: 1.89
A193: 15133 | B193: 2014-11-29 | C193: 29.23 | D193: 2.23 | E193: Visa
A194: 15134 | B194: 2014-11-29 | C194: 290.11 | D194: 22.11 | E194: Visa
A195: 15135 | B195: 2014-11-29 | C195: 86.6 | D195: 6.6 | E195: MC
A196: 15136 | B196: 2014-11-29 | C196: 20.57 | D196: 1.57 | F196: =86.49+C193+C194+C195 -> 492.43 | G196: 488.55

Sheet Oct-14
A1: Invoice | C1: =SUM(C4:C234) -> 35386.10173 | D1: =SUM(D4:D234) -> 1563.651725 | H1: =TODAY() -> 2015-01-03
A2: Number | B2: Date | C2: Amount | D2: Tax | E2: Terms
A3: 14649 | B3: 2014-10-01 | C3: 18 | E3: Bike Rodz - resale
A4: 14650 | B4: 2014-10-01 | C4: 4178 | E4: Wire, Carlos G
A5: 14651 | B5: 2014-10-01 | C5: 4214 | E5: Wire, Carlos G
A6: 14652 | B6: 2014-10-01 | C6: 3011 | E6: Wire, Carlos G
A7: 14653 | B7: 2014-10-01 | C7: 1064 | E7: Wire, Carlos G
A8: 14654 | B8: 2014-10-01 | C8: 156 | D8: 11.83 | E8: Visa
A9: 14655 | B9: 2014-10-01 | C9: 15 | D9: 1.14 | E9: Visa
A10: 14656 | B10: 2014-10-01 | C10: 38.7 | D10: 2.95
A11: 14657 | B11: 2014-10-01 | C11: 32.48 | D11: 2.48
A12: 14658 | B12: 2014-10-01 | C12: 3.79 | D12: 0.29
A13: 14659 | B13: 2014-10-01 | C13: 15 | D13: 1.14
A14: 14660 | B14: 2014-10-01 | C14: 10 | D14: 0.76
A15: 14661 | B15: 2014-10-01 | C15: 74.69 | D15: 5.69
A16: 14662 | B16: 2014-10-01 | C16: 27 | D16: 2.06
A17: 14663 | B17: 2014-10-01 | C17: 19.49 | D17: 1.49
A18: 14664 | B18: 2014-10-01 | C18: 102.84 | D18: 7.84
A19: 14665 | B19: 2014-10-01 | C19: 248.98 | D19: 18.98 | E19: Visa
A20: 14666 | B20: 2014-10-01 | C20: 177.53 | D20: 13.53 | E20: $77.53 Due
A21: 14667 | B21: 2014-10-01 | C21: 164.54 | D21: 12.54 | E21: $124.54 MC
A22: 14668 | B22: 2014-10-01 | C22: 108.25 | D22: 8.25 | E22: $68.25 Due
A23: 14669 | B23: 2014-10-01 | C23: 20 | D23: 1.52
A24: 14670 | B24: 2014-10-01 | C24: 83.35 | D24: 6.35
A25: 14671 | B25: 2014-10-01 | C25: 193.01 | D25: 39.39 | F25: =+C8+C9+C19+124.54+122.33 -> 666.85 | G25: 657.73
A26: 14672 | B26: 2014-10-02 | C26: 146.14 | D26: 11.14 | E26: Discover
A27: 14673 | B27: 2014-10-02 | C27: 41.03 | D27: 3.13 | E27: Visa
A28: 14674 | B28: 2014-10-02 | C28: 17.27 | D28: 1.32 | E28: Discover
A29: 14675 | B29: 2014-10-02 | C29: 18 | D29: 1.38 | E29: Visa
A30: 14676 | B30: 2014-10-02 | C30: 56.29 | D30: 4.29 | E30: Visa
A31: 14677 | B31: 2014-10-02 | C31: 93.1 | D31: 7.1 | E31: Visa
A32: 14678 | B32: 2014-10-02 | C32: 39.78 | D32: 3.03
A33: 14679 | B33: 2014-10-02 | C33: 22.73 | D33: 1.73 | E33: M/C
A34: 14680 | B34: 2014-10-02 | C34: 8.61 | D34: 0.66
A35: 14681 | B35: 2014-10-02 | C35: 28.04 | D35: 2.14
A36: 14682 | B36: 2014-10-02 | C36: 15.1 | D36: 1.15 | E36: Visa
A37: 14683 | B37: 2014-10-02 | C37: 205.68 | D37: 15.68 | F37: =+C26+C27+C28+C29+C30+C31+C33+C36+92.15 -> 501.81 | G37: 494.21
A38: 14684 | B38: 2014-10-03 | C38: 347.48 | D38: 26.48 | E38: Visa
A39: 14685 | B39: 2014-10-03 | C39: 182.996625 | D39: 13.946625
A40: 14686 | B40: 2014-10-03 | C40: 70.36 | D40: 5.36 | E40: $30.36 due
A41: 14687 | B41: 2014-10-03 | C41: 109 | E41: Done Rite - resale
A42: 14688 | B42: 2014-10-03 | C42: 86 | E42: Done Rite - resale
A43: 14689 | B43: 2014-10-03 | C43: 15.00345 | D43: 1.14345
A44: 14690 | B44: 2014-10-03 | C44: 283.07 | D44: 21.57
A45: 14691 | B45: 2014-10-03 | C45: -15.16 | D45: -1.16 | E45: Inv 14666
A46: 14692 | B46: 2014-10-03 | C46: 29.23 | D46: 2.23
A47: 14693 | B47: 2014-10-03 | C47: 20.46 | D47: 1.56 | E47: Visa
A48: 14694 | B48: 2014-10-03 | C48: 8.66 | D48: 0.66
A49: 14695 | B49: 2014-10-03 | C49: 3 | E49: M/C, Revolution - resale | F49: =+C38+C47+C49 -> 370.94 | G49: 363.28
A50: 14696 | B50: 2014-10-04 | C50: 10.81 | D50: 0.82 | E50: Visa
A51: 14697 | B51: 2014-10-04 | C51: 216.45 | D51: 16.5 | E51: Visa
A52: 14698 | B52: 2014-10-04 | C52: 130
A53: 14699 | B53: 2014-10-04 | C53: 16.24 | D53: 1.24
A54: 14700 | B54: 2014-10-04 | C54: 212.6 | D54: 16.2 | E54: Visa
A55: 14701 | B55: 2014-10-04 | C55: 129.9 | D55: 9.9
A56: 14702 | B56: 2014-10-04 | C56: 41.14 | D56: 3.14 | F56: =+C50+C51+C54 -> 439.86 | G56: 435.87
A57: 14703 | B57: 2014-10-06 | C57: 25.98 | D57: 1.98 | E57: Due
A58: 14704 | B58: 2014-10-06 | C58: 11.83 | D58: 0.83
A59: 14705 | B59: 2014-10-06 | C59: 263.59 | D59: 20.09 | E59: Visa, $143.59 due
A60: 14706 | B60: 2014-10-06 | C60: 517.44 | D60: 39.44 | E60: Visa, $29.77 due | F60: =120+487.67 -> 607.67 | G60: 597.96
A61: 14707 | B61: 2014-10-07 | C61: 31.18 | D61: 2.38 | E61: Visa
A62: 14708 | B62: 2014-10-07 | C62: 173 | E62: Due, Carlos G - MX
A63: 14709 | B63: 2014-10-07 | C63: 86.6 | D63: 6.6
A64: 14710 | B64: 2014-10-07 | C64: 49 | E64: Due, Bike Rodz - Resale
A65: 14711 | B65: 2014-10-07 | C65: 10 | D65: 0.76
A66: 14712 | B66: 2014-10-07 | C66: 116.91 | D66: 8.91 | E66: Visa
A67: 14713 | B67: 2014-10-07 | C67: 75.78 | D67: 5.78 | E67: Visa
A68: 14714 | B68: 2014-10-07 | C68: 124 | E68: Visa, Pueblo Tires
A69: 14715 | B69: 2014-10-07 | C69: 257 | D69: 19.59
A70: 14716 | B70: 2014-10-07 | C70: 456.82 | D70: 34.82 | E70: Visa | F70: =+C61+C66+C67+C68 -> 347.87 | G70: 344.1
A71: 14717 | B71: 2014-10-08 | C71: 19.38 | D71: 1.48 | E71: Discover
A72: 14718 | B72: 2014-10-08 | C72: 23.82 | D72: 1.82 | E72: Visa
A73: 14719 | B73: 2014-10-08 | C73: 38.92 | D73: 2.97 | E73: Visa
A74: 14720 | B74: 2014-10-08 | C74: 438.41 | D74: 33.41
A75: 14721 | B75: 2014-10-08 | C75: 118.86 | D75: 9.06
A76: 14722 | B76: 2014-10-08 | C76: 48.71 | D76: 3.71 | E76: Discover
A77: 14723 | B77: 2014-10-08 | C77: 26.42 | E77: ESG - resale
A78: 14724 | B78: 2014-10-08 | C78: 2.7 | D78: 0.21
A79: 14725 | B79: 2014-10-08 | C79: 172.12 | D79: 13.12 | E79: Visa
A80: 14726 | B80: 2014-10-08 | C80: 153.72 | D80: 11.72 | E80: MC
A81: 14727 | B81: 2014-10-08 | C81: 70.36 | D81: 5.36 | E81: MC | F81: =+C70+C71+C72+C73+129.9+C76+C79+C80+25-48.71 -> 1019.68 | G81: 1007.28
A82: 14728 | B82: 2014-10-09 | C82: 36.81 | D82: 2.81 | E82: $31.81 due, Johnnys friend
A83: 14729 | B83: 2014-10-09 | C83: 20.57 | D83: 1.57
A84: 14730 | B84: 2014-10-09 | C84: 69.28 | D84: 5.28 | E84: Visa
A85: 14731 | B85: 2014-10-09 | C85: 270.63 | D85: 20.63 | E85: Visa
A86: 14732 | B86: 2014-10-09 | C86: 19.05 | D86: 1.45
A87: 14733 | B87: 2014-10-09 | C87: 215 | D87: 16.39
A88: 14734 | B88: 2014-10-09 | C88: 362.3 | D88: 27.61
A89: 14735 | B89: 2014-10-09 | C89: 81.13 | D89: 6.18
A90: 14736 | B90: 2014-10-09 | C90: 121.59 | D90: 9.4
A91: 14737 | B91: 2014-10-09 | C91: 16.24 | D91: 1.24
A92: 14738 | B92: 2014-10-09 | C92: 5 | D92: 0.38
A93: 14739 | B93: 2014-10-09 | C93: 7.11 | E93: ESG - resale
A94: 14740 | B94: 2014-10-09 | C94: -81.13 | D94: -6.18 | E94: Return
A95: 14741 | B95: 2014-10-09 | C95: 19.49 | D95: 1.49 | E95: Visa
A96: 14742 | B96: 2014-10-09 | C96: 32.48 | D96: 2.48 | E96: Trade
A97: 14743 | B97: 2014-10-09 | C97: 171.04 | D97: 13.04
A98: 14744 | B98: 2014-10-09 | C98: 368.05 | D98: 28.05 | E98: Visa
A99: 14745 | B99: 2014-10-09 | C99: 164.54 | D99: 12.54
A100: 14746 | B100: 2014-10-09 | C100: 186.19 | D100: 14.19 | E100: Visa
A101: 14747 | B101: 2014-10-09 | C101: 33.56 | D101: 2.56 | E101: Due | F101: =+C84+C85+50+29.77+C95+C100 -> 625.36 | G101: 1125.71
A102: 14748 | B102: 2014-10-10 | C102: 51.96 | D102: 3.96 | E102: Due
A103: 14749 | B103: 2014-10-10 | C103: 389.7 | D103: 29.7 | E103: Visa, $309.70 due
A104: 14750 | B104: 2014-10-10 | C104: 56.29 | D104: 4.29 | E104: Due
A105: 14751 | B105: 2014-10-10 | C105: 32.48 | D105: 2.48 | E105: MC
A106: 14752 | B106: 2014-10-10 | C106: 140.73 | D106: 10.73 | E106: Check
A107: 14753 | B107: 2014-10-10 | C107: 360.47 | D107: 27.47 | E107: Due
A108: 14754 | B108: 2014-10-10 | C108: 159.67 | D108: 12.17
A109: 14755 | B109: 2014-10-10 | C109: 6.5 | D109: 0.5 | E109: MC | F109: =+C105+C109+80+20 -> 138.98 | G109: 135.63
A110: 14756 | B110: 2014-10-11 | C110: 51.91 | D110: 3.96 | E110: MC
A111: 14757 | B111: 2014-10-11 | C111: 10.83 | D111: 0.83 | E111: MC
A112: 14758 | B112: 2014-10-11 | C112: 198.64 | D112: 15.14 | E112: Visa
A113: 14759 | B113: 2014-10-11 | C113: 182.94 | D113: 13.94 | E113: MC
A114: 14760 | B114: 2014-10-11 | C114: 87.63 | D114: 6.68 | E114: Visa
A115: 14761 | B115: 2014-10-11 | C115: 12.99 | D115: 0.99
A116: 14762 | B116: 2014-10-11 | C116: 24.9 | D116: 1.9
A117: 14763 | B117: 2014-10-11 | C117: 16.24 | D117: 1.24 | E117: MC
A118: 14764 | B118: 2014-10-11 | C118: 12.99 | D118: 0.99 | E118: MC
A119: 14765 | B119: 2014-10-11 | C119: 200.26 | D119: 15.26 | E119: MC
A120: 14766 | B120: 2014-10-11 | C120: 49 | E120: Visa
A121: 14767 | B121: 2014-10-11 | C121: 7.52 | D121: 0.57 | E121: Visa
A122: 14768 | B122: 2014-10-11 | C122: 143.97 | D122: 10.97 | E122: MC
A123: 14769 | B123: 2014-10-11 | C123: 19.49 | D123: 1.49 | E123: MC (actually chg'd on 10th) | F123: =173+C110+C111+90+C113+C114+C117+C118+C119+C120+C121 -> 882.32 | G123: 1009.5
A124: 14770 | B124: 2014-10-13 | C124: 54.13 | D124: 4.13
A125: 14771 | B125: 2014-10-13 | C125: 21.6 | D125: 1.65 | E125: Visa
A126: 14772 | B126: 2014-10-13 | C126: 74.69 | D126: 5.69 | E126: MC
A127: 14773 | B127: 2014-10-13 | C127: 54.13 | D127: 4.13 | E127: Due
A128: 14774 | B128: 2014-10-13 | C128: 365.89 | D128: 27.89 | E128: $300. due
A129: 14775 | B129: 2014-10-13 | C129: 120 | D129: 9.15 | E129: $100 trade for tank
A130: 14776 | B130: 2014-10-13 | C130: 43.3 | D130: 3.3 | E130: Visa
A131: 14777 | B131: 2014-10-13 | C131: 41 | E131: Revolution - resale | F131: =+C125+C126+45.36 -> 141.65 | G131: 139.53
A132: 14778 | B132: 2014-10-14 | C132: 23.71 | D132: 1.81
A133: 14779 | B133: 2014-10-14 | C133: 6.44 | D133: 0.49
A134: 14780 | B134: 2014-10-14 | C134: 285 | E134: Due, Carlos G - MX
A135: 14781 | B135: 2014-10-14 | C135: 145.06 | D135: 11.06 | E135: Check 1313
A136: 14782 | B136: 2014-10-14 | C136: 136.4 | D136: 10.4 | E136: Visa
A137: 14783 | B137: 2014-10-14 | C137: 29.17 | D137: 2.22 | E137: Visa
A138: 14784 | B138: 2014-10-14 | C138: 7.52 | D138: 0.57
A139: 14785 | B139: 2014-10-14 | C139: 96 | E139: J.Rangel - resale
A140: 14786 | B140: 2014-10-14 | C140: 100 | D140: 7.62 | E140: Visa | F140: =+C130+C136+C137+C140 -> 308.87 | G140: 305.01
A141: 14787 | B141: 2014-10-15 | C141: 208 | E141: Due, Border Patrol
A142: 14788 | B142: 2014-10-15 | C142: 279.36 | D142: 21.29 | E142: Due, Honda Shadow
A143: 14789 | B143: 2014-10-15 | C143: 29.83 | D143: 2.27
A144: 14790 | B144: 2014-10-15 | C144: 355 | E144: Due, Carlos G - MX
A145: 14791 | B145: 2014-10-15 | C145: 31.99 | D145: 2.44
A146: 14792 | B146: 2014-10-15 | C146: 361.56 | D146: 27.56 | E146: Check 3556
A147: 14793 | B147: 2014-10-15 | C147: 267.62 | D147: 20.4 | E147: Visa
A148: 14794 | B148: 2014-10-15 | C148: 947.13 | D148: 72.18 | E148: Visa
A149: 14795 | B149: 2014-10-15 | C149: 40.93 | D149: 3.12 | E149: Visa
A150: 14796 | B150: 2014-10-15 | C150: 43.3 | D150: 3.3
A151: 14797 | B151: 2014-10-15 | C151: 21.65 | D151: 1.65 | E151: Visa
A152: 14798 | B152: 2014-10-15 | C152: 8 | E152: Fred - resale
A153: 14799 | B153: 2014-10-15 | C153: 283.29 | D153: 21.59 | E153: $200 cash, $83.29 Visa
A154: 14800 | B154: 2014-10-15 | C154: 241.07 | D154: 18.37 | E154: Visa
A155: 14801 | B155: 2014-10-15 | C155: 261.42 | D155: 19.92 | E155: Visa
A156: 14802 | B156: 2014-10-15 | C156: 64.9 | D156: 4.95
A157: 14803 | B157: 2014-10-15 | C157: 194.85 | D157: 14.85 | E157: Due
A158: 14804 | B158: 2014-10-15 | C158: 74 | D158: 5.64
A159: 14805 | B159: 2014-10-15 | C159: 27.06 | D159: 2.06 | E159: Visa | F159: =+C147+C148+C149+83.29+C151+C154+C155+C159 -> 1890.17 | G159: 1861.59
A160: 14806 | B160: 2014-10-16 | C160: 27.06 | D160: 2.06 | E160: MC
A161: 14807 | B161: 2014-10-16 | C161: 98 | E161: Done Rite - resale
A162: 14808 | B162: 2014-10-16 | C162: 85 | E162: Revolution - resale
A163: 14809 | B163: 2014-10-16 | C163: 19 | E163: Revolution - resale
A164: 14810 | B164: 2014-10-16 | C164: 434.69 | D164: 33.13
A165: 14811 | B165: 2014-10-16 | C165: 70.36 | D165: 5.36
A166: 14812 | B166: 2014-10-16 | C166: 25.55 | D166: 1.95 | E166: Due
A167: 14813 | B167: 2014-10-16 | C167: 15 | E167: Revolution - resale
A168: 14814 | B168: 2014-10-16 | C168: 16 | D168: 1.22 | F168: =+C160 -> 27.06 | G168: 26.45
A169: 14815 | B169: 2014-10-17 | C169: 28.15 | D169: 2.15 | E169: Visa
A170: 14816 | B170: 2014-10-17 | C170: 32.48 | D170: 2.48
A171: 14817 | B171: 2014-10-17 | C171: 51.91 | D171: 3.96 | E171: MC
A172: 14818 | B172: 2014-10-17 | C172: 30.09 | D172: 2.29 | E172: MC
A173: 14819 | B173: 2014-10-17 | C173: 40 | D173: 3.05
A174: 14820 | B174: 2014-10-17 | C174: 159.13 | D174: 12.13 | E174: MC
A175: 14821 | B175: 2014-10-17 | C175: 43.25 | D175: 3.3
A176: 14822 | B176: 2014-10-17 | C176: 5.48 | E176: Due, ESG - resale
A177: 14823 | B177: 2014-10-17 | C177: 215.15 | D177: 16.4 | E177: Visa
A178: 14824 | B178: 2014-10-17 | C178: 138 | E178: J.Rangel - resale
A179: 14825 | B179: 2014-10-17 | C179: 33.06 | E179: J.Rangel - resale | F179: =+C171+C172+C174+C169+360.47+C177 -> 844.9 | G179: 835.03
A180: 14826 | B180: 2014-10-18 | C180: 21.9 | E180: Bike Rodz - resale
A181: 14827 | B181: 2014-10-18 | C181: 25 | E181: The Car Store - resale
A182: 14828 | B182: 2014-10-18 | C182: 27 | D182: 2.06 | E182: MC
A183: 14829 | B183: 2014-10-18 | C183: 75.78 | D183: 5.78 | E183: Visa
A184: 14830 | B184: 2014-10-18 | C184: 26.00165 | D184: 1.98165
A185: 14831 | B185: 2014-10-18 | C185: 23.82 | D185: 1.82 | E185: MC
A186: 14832 | B186: 2014-10-18 | C186: 2.7 | D186: 0.21
A187: 14833 | B187: 2014-10-18 | C187: 25 | D187: 1.91
A188: 14834 | B188: 2014-10-18 | C188: 184.03 | D188: 14.03 | E188: Visa
A189: 14835 | B189: 2014-10-18 | C189: 20.57 | D189: 1.57 | E189: MC
A190: 14836 | B190: 2014-10-18 | C190: 27 | E190: Due
A191: 14837 | B191: 2014-10-18 | C191: 152.09 | D191: 11.59 | F191: =+C182+C183+C185+C188+C189 -> 331.2 | G191: 327.14
A192: 14838 | B192: 2014-10-20 | C192: 81 | E192: Carlos G - Mexico
A193: 14839 | B193: 2014-10-20 | C193: 65.38 | D193: 4.98 | E193: Visa
A194: 14840 | B194: 2014-10-20 | C194: 15.16 | D194: 1.16
A195: 14841 | B195: 2014-10-20 | C195: 643.01 | D195: 49.01 | E195: Visa
A196: 14842 | B196: 2014-10-20 | C196: 86.49 | D196: 6.59 | E196: Due
A197: 14843 | B197: 2014-10-20 | C197: 29.23 | D197: 2.23 | E197: Visa
A198: 14844 | B198: 2014-10-20 | C198: 27.06 | D198: 2.06
A199: 14845 | B199: 2014-10-20 | C199: 14.56 | D199: 1.11 | E199: Visa
A200: 14846 | B200: 2014-10-20 | C200: 129.9 | D200: 9.9 | E200: Visa
... 96 more rows

Sheet Sep-14
A1: Invoice | C1: =SUM(C113:C310) -> 15630.7975 | D1: =SUM(D113:D310) -> 955.7575 | H1: =TODAY() -> 2015-01-03
A2: Number | B2: Date | C2: Amount | D2: Tax | E2: Terms
A3: 14414 | B3: 2014-09-01 | C3: 12.61 | D3: 0.96
A4: 14415 | B4: 2014-09-01 | C4: 23.82 | D4: 1.82
A5: 14416 | B5: 2014-09-01 | C5: 159 | E5: Due, Carlos G - MX
A6: 14417 | B6: 2014-09-01 | C6: 48.71 | D6: 3.71 | E6: Visa
A7: 14418 | B7: 2014-09-01 | C7: 18.35 | D7: 1.4 | E7: Visa
A8: 14419 | B8: 2014-09-01 | C8: 10.83 | D8: 0.83 | F8: =+C6+C7 -> 67.06 | G8: 65.53
A9: 14420 | B9: 2014-09-02 | C9: 148 | E9: Due, Carlos G - MX
A10: 14421 | B10: 2014-09-02 | C10: 12 | D10: 0.91
A11: 14422 | B11: 2014-09-02 | C11: 75.78 | D11: 5.78 | E11: Visa
A12: 14423 | B12: 2014-09-02 | C12: 11.85 | D12: 0.9
A13: 14424 | B13: 2014-09-02 | C13: 155.88 | D13: 11.88 | E13: $105.88 due (Est)
A14: 14425 | B14: 2014-09-02 | C14: 397.28 | D14: 30.28 | E14: Visa
A15: 14426 | B15: 2014-09-02 | C15: 32.26 | D15: 2.46 | E15: Visa
A16: 14427 | B16: 2014-09-02 | C16: 584.55 | D16: 44.55 | E16: Visa
A17: 14428 | B17: 2014-09-02 | C17: 199.83 | D17: 15.23 | E17: Visa
A18: 14429 | B18: 2014-09-02 | C18: 81 | E18: Due, Carlos G - MX | F18: =+C11+C14+C15+C16 -> 1089.87 | G18: 1078.05
A19: 14430 | B19: 2014-09-03 | C19: 354 | E19: Due, Carlos G - MX
A20: 14431 | B20: 2014-09-03 | C20: 184 | D20: 14
A21: 14432 | B21: 2014-09-03 | C21: 277.12 | D21: 21.12
A22: 14433 | B22: 2014-09-03 | C22: 5 | D22: 0.38 | F22: 0 | G22: =+F22*0.97831 -> 0
A23: 14434 | B23: 2014-09-04 | C23: 126.65 | D23: 9.65
A24: 14435 | B24: 2014-09-04 | C24: 346 | E24: Done Rite - resale
A25: 14436 | B25: 2014-09-04 | C25: 7.58 | D25: 0.58
A26: 14437 | B26: 2014-09-04 | C26: 16.24 | D26: 1.24 | E26: M/C
A27: 14438 | B27: 2014-09-04 | C27: 157.5 | D27: 12 | E27: Visa
A28: 14439 | B28: 2014-09-04 | C28: 78 | E28: Joe Rangel - resale
A29: 14440 | B29: 2014-09-04 | C29: 19.43 | D29: 1.48
A30: 14441 | B30: 2014-09-04 | C30: 22.73 | D30: 1.73 | F30: =+C26+80 -> 96.24 | G30: 95.27
A31: 14442 | B31: 2014-09-05 | C31: 35.67 | D31: 2.72 | E31: Visa
A32: 14443 | B32: 2014-09-05 | C32: 62.62 | D32: 4.77 | E32: Discover
A33: 14444 | B33: 2014-09-05 | C33: 37.89 | D33: 2.89 | E33: Due, Katanna
A34: 14445 | B34: 2014-09-05 | C34: 15.37 | D34: 1.17 | E34: MC
A35: 14446 | B35: 2014-09-05 | C35: 113
A36: 14447 | B36: 2014-09-05 | C36: 57.37 | D36: 4.37 | E36: Visa
A37: 14448 | B37: 2014-09-05 | C37: 80
A38: 14449 | B38: 2014-09-05 | C38: 8.61 | D38: 0.66
A39: 14450 | B39: 2014-09-05 | C39: 5.39 | D39: 0.41
A40: 14451 | B40: 2014-09-05 | C40: 35
A41: 14452 | B41: 2014-09-05 | C41: 227.87 | D41: 17.37
A42: 14453 | B42: 2014-09-05 | C42: 97.43 | D42: 7.43 | E42: Due, Aklarm | F42: =+C31+C32+C34+C36+C17 -> 370.86 | G42: 365.27
A43: 14454 | B43: 2014-09-06 | C43: 155.87 | D43: 11.88
A44: 14455 | B44: 2014-09-06 | C44: 356.33 | D44: 27.16 | E44: $256.33 due
A45: 14456 | B45: 2014-09-06 | C45: 23.82 | D45: 1.82
A46: 14457 | B46: 2014-09-06 | C46: 8.61 | D46: 0.66 | E46: Visa
A47: 14458 | B47: 2014-09-06 | C47: 200 | D47: 15.24
A48: 14459 | B48: 2014-09-06 | C48: 11.85 | D48: 0.9 | E48: Visa
A49: 14460 | B49: 2014-09-06 | C49: 99.59 | D49: 7.59
A50: 14461 | B50: 2014-09-06 | C50: 8.61 | D50: 0.66 | E50: Mastercard
A51: 14462 | B51: 2014-09-06 | C51: 38.7 | D51: 2.95 | E51: Discover
A52: 14463 | B52: 2014-09-06 | C52: 27.06 | D52: 2.06
A53: 14464 | B53: 2014-09-06 | C53: 274.41 | D53: 20.91 | F53: =+C46+C48+C50+C51 -> 67.77 | G53: 65.72
A54: 14465 | B54: 2014-09-08 | C54: 19.32 | D54: 1.47
A55: 14466 | B55: 2014-09-08 | C55: 218.67 | D55: 16.67
A56: 14467 | B56: 2014-09-08 | C56: 25.98 | D56: 1.98 | E56: MC
A57: 14468 | B57: 2014-09-08 | C57: 457.74 | D57: 35.23 | E57: Due
A58: 14469 | B58: 2014-09-08 | C58: 28 | E58: Due, J.Rangel - resale
A59: 14470 | B59: 2014-09-08 | C59: 302.02 | D59: 23.02 | E59: Due
A60: 14471 | B60: 2014-09-08 | C60: 10.83 | D60: 0.83 | E60: Visa
A61: 14472 | B61: 2014-09-08 | C61: 154.36 | D61: 11.76 | E61: MC | F61: =+C56+C60+C61 -> 191.17 | G61: 187.9
A62: 14473 | B62: 2014-09-09 | C62: 40.97 | D62: 3.12 | E62: Visa
A63: 14474 | B63: 2014-09-09 | C63: -8.61 | D63: -0.66 | E63: Return
A64: 14475 | B64: 2014-09-09 | C64: 21.65 | D64: 1.65
A65: 14476 | B65: 2014-09-09 | C65: 100 | E65: Carlos G - MX
A66: 14477 | B66: 2014-09-09 | C66: 49.86 | D66: 3.8
A67: 14478 | B67: 2014-09-09 | C67: 15 | D67: 1.14
A68: 14479 | B68: 2014-09-09 | C68: 67.12 | D68: 5.12 | E68: Visa
A69: 14480 | B69: 2014-09-09 | C69: 15 | D69: 1.14
A70: 14481 | B70: 2014-09-09 | C70: 155.88 | D70: 11.88
A71: 14482 | B71: 2014-09-09 | C71: 64.79 | D71: 4.94 | E71: Visa | F71: =+C62+37.89+C68+C71 -> 210.77 | G71: 208
A72: 14483 | B72: 2014-09-10 | C72: 40 | D72: 3.05
A73: 14484 | B73: 2014-09-10 | C73: 372 | E73: Carlos G - MX
A74: 14485 | B74: 2014-09-10 | C74: 4.33 | D74: 0.33 | E74: Due
A75: 14486 | B75: 2014-09-10 | C75: 38.7 | D75: 2.95
A76: 14487 | B76: 2014-09-10 | C76: 120.05 | D76: 9.15 | E76: MC
A77: 14488 | B77: 2014-09-10 | C77: 372 | E77: Due, Carlos G - MX
A78: 14489 | B78: 2014-09-10 | C78: 13 | E78: Visa
A79: 14490 | B79: 2014-09-10 | C79: 238.15 | D79: 18.15 | E79: Visa
A80: 14491 | B80: 2014-09-10 | C80: 12 | E80: James Ind - resale
A81: 14492 | B81: 2014-09-10 | C81: 133.15 | D81: 10.15 | E81: Visa
A82: 14493 | B82: 2014-09-10 | C82: 16.4 | D82: 1.25 | E82: MC | F82: =77.5+C76+C78+C79+C81+C82+24 -> 622.25 | G82: 613.12
A83: 14494 | B83: 2014-09-11 | C83: 19.37 | D83: 1.48 | E83: Due, Peter
A84: 14495 | B84: 2014-09-11 | C84: 32.48 | D84: 2.48
A85: 14496 | B85: 2014-09-11 | C85: 12 | E85: James Ind - resale
A86: 14497 | B86: 2014-09-11 | C86: 35.72 | D86: 2.72
A87: 14498 | B87: 2014-09-11 | C87: 22 | E87: James Ind - resale
A88: 14499 | B88: 2014-09-11 | E88: Inv 14468
A89: 14500 | B89: 2014-09-11 | C89: 23.82 | D89: 1.82 | E89: Visa
A90: 14501 | B90: 2014-09-11 | C90: 82.27 | D90: 6.27 | E90: Due
A91: 14502 | B91: 2014-09-11 | C91: 17.32 | D91: 1.32 | E91: MC
A92: 14503 | B92: 2014-09-11 | C92: 12.94 | D92: 0.99 | E92: Visa
A93: 14504 | B93: 2014-09-11 | C93: 98.51 | D93: 7.51 | E93: $48.51 due
A94: 14505 | B94: 2014-09-11 | C94: 384.29 | D94: 29.29 | E94: $284.29 due
A95: 14506 | B95: 2014-09-11 | C95: 20 | E95: Due, Revolution - resale
A96: 14507 | B96: 2014-09-11 | C96: 562 | E96: Due, Carlos G - MX | F96: 109.24 | G96: 106.7
A97: 14508 | B97: 2014-09-12 | C97: 58 | E97: Done Rite - resale
A98: 14509 | B98: 2014-09-12 | C98: 120 | D98: 9.15
A99: 14510 | B99: 2014-09-12 | C99: 10.83 | D99: 0.83
A100: 14511 | B100: 2014-09-12 | C100: 34.04 | D100: 2.59
A101: 14512 | B101: 2014-09-12 | C101: 83.3 | D101: 6.35
A102: 14513 | B102: 2014-09-12 | C102: 27.06 | D102: 2.06 | E102: Visa
A103: 14514 | B103: 2014-09-12 | C103: 46.22 | D103: 3.52 | E103: Visa | F103: =+C103+C102+108.24 -> 181.52 | G103: 179.94
A104: 14515 | B104: 2014-09-13 | C104: 59.54 | D104: 4.54
A105: 14516 | B105: 2014-09-13 | C105: 173.74 | D105: 13.24 | E105: Visa
A106: 14517 | B106: 2014-09-13 | C106: 1.08 | D106: 0.08
A107: 14518 | B107: 2014-09-13 | C107: 10.83 | D107: 0.83
A108: 14519 | B108: 2014-09-13 | C108: 296.61 | D108: 22.61
A109: 14520 | B109: 2014-09-13 | C109: 119.08 | D109: 9.08 | E109: Visa
A110: 14521 | B110: 2014-09-13 | C110: 167.25 | D110: 12.75
A111: 14522 | B111: 2014-09-13 | C111: 10.83 | D111: 0.83 | E111: Visa | F111: 303.65 | G111: 300.63
A112: 14523 | B112: 2014-09-15 | C112: 25.98 | D112: 1.98 | E112: Visa
A113: 14524 | B113: 2014-09-15 | C113: 182 | D113: 13.87 | E113: Visa
A114: 14525 | B114: 2014-09-15 | C114: 20 | D114: 1.52
A115: 14526 | B115: 2014-09-15 | C115: 22.29 | D115: 1.7
A116: 14527 | B116: 2014-09-15 | C116: 5.41 | D116: 0.41 | E116: Visa
A117: 14528 | B117: 2014-09-15 | C117: 31 | E117: Fred, Auto Mart - resale
A118: 14529 | B118: 2014-09-15 | C118: 17.27 | D118: 1.32 | E118: Visa
A119: 14530 | B119: 2014-09-15 | C119: 257.09 | D119: 19.59 | E119: Visa | F119: 487.75 | G119: 482.42
A120: 14531 | B120: 2014-09-16 | C120: 194.85 | D120: 14.85
A121: 14532 | B121: 2014-09-16 | C121: 395.11 | D121: 30.11
A122: 14533 | B122: 2014-09-16 | C122: 27.06 | D122: 2.06
A123: 14534 | B123: 2014-09-16 | C123: 82.27 | D123: 6.27 | E123: Visa
A124: 14535 | B124: 2014-09-16 | C124: 21.6 | D124: 1.65
A125: 14536 | B125: 2014-09-16 | C125: 68 | E125: Visa, Carlos G - MX
A126: 14537 | B126: 2014-09-16 | C126: 113.52 | E126: J.Rangel - resale
A127: 14538 | B127: 2014-09-16 | C127: 164.54 | D127: 12.54 | E127: Visa
A128: 14539 | B128: 2014-09-16 | C128: 27.28 | D128: 2.08 | E128: MC
A129: 14540 | B129: 2014-09-16 | C129: 239.23 | D129: 18.23 | E129: Due
A130: 14541 | B130: 2014-09-16 | C130: 20.72 | E130: J.Rangel - resale | F130: 937.2 | G130: 922.33
A131: 14542 | B131: 2014-09-17 | C131: 297.15 | D131: 22.65 | E131: Visa
A132: 14543 | B132: 2014-09-17 | C132: 29.95 | E132: Due, Fred Auto Mart - resale
A133: 14544 | B133: 2014-09-17 | C133: 32.48 | D133: 2.48
A134: 14545 | B134: 2014-09-17 | C134: 248.43 | D134: 18.93 | E134: Visa
A135: 14546 | B135: 2014-09-17 | C135: 22.68 | D135: 1.73
A136: 14547 | B136: 2014-09-17 | C136: 3.79 | D136: 0.29
A137: 14548 | B137: 2014-09-17 | C137: 116.91 | D137: 8.91 | E137: $36.91 due
A138: 14549 | B138: 2014-09-17 | C138: 36.81 | D138: 2.81 | F138: 398.43 | G138: 396.44
A139: 14550 | B139: 2014-09-18 | C139: 193.77 | D139: 14.77
A140: 14551 | B140: 2014-09-18 | C140: 145 | E140: Due, Border Patrol
A141: 14552 | B141: 2014-09-18 | C141: 17.27 | D141: 1.32 | E141: Visa
A142: 14553 | B142: 2014-09-18 | C142: 32.26 | D142: 2.46
A143: 14554 | B143: 2014-09-18 | C143: 64.95 | D143: 4.95 | E143: Visa
A144: 14555 | B144: 2014-09-18 | C144: 20.51 | D144: 1.56
A145: 14556 | B145: 2014-09-18 | C145: 25.5 | E145: Visa, Border Patrol
A146: 14557 | B146: 2014-09-18 | C146: 25.5 | E146: Visa, Border Patrol
A147: 14558 | B147: 2014-09-18 | C147: 25.5 | E147: Visa, Border Patrol
A148: 14559 | B148: 2014-09-18 | C148: 25.5 | E148: Visa, Border Patrol
A149: 14560 | B149: 2014-09-18 | C149: 99.54 | D149: 7.59 | E149: Due, Polaris 4-Wheeler
A150: 14561 | B150: 2014-09-18 | C150: 242.7 | D150: 18.5 | E150: 162.70 Visa, Bal cash
A151: 14562 | B151: 2014-09-18 | C151: 48.71 | D151: 3.71 | E151: Visa | F151: 395.63 | G151: 389.81
A152: 14563 | B152: 2014-09-19 | C152: 154.8 | D152: 11.8 | E152: Visa
A153: 14564 | B153: 2014-09-19 | C153: 114.75 | D153: 8.75
A154: 14565 | B154: 2014-09-19 | C154: 140.73 | D154: 10.73 | E154: Visa
A155: 14566 | B155: 2014-09-19 | C155: 160 | D155: 12.19
A156: 14567 | B156: 2014-09-19 | C156: 60.62 | D156: 4.62
A157: 14568 | B157: 2014-09-19 | C157: 503.36 | D157: 38.36 | E157: Visa
A158: 14569 | B158: 2014-09-19 | C158: 48.71 | D158: 3.71
A159: 14570 | B159: 2014-09-19 | C159: 14.56 | D159: 1.11 | E159: Visa
A160: 14571 | B160: 2014-09-19 | C160: 53.04 | D160: 4.04
A161: 14572 | B161: 2014-09-19 | C161: 29.23 | D161: 2.23
A162: 14573 | B162: 2014-09-19 | C162: 44.38 | D162: 3.38
A163: 14574 | B163: 2014-09-19 | C163: 15.37 | D163: 11.7 | E163: Visa | F163: 828.82 | G163: 819.61
A164: 14575 | B164: 2014-09-20 | C164: 70.36 | D164: 5.36 | E164: Visa
A165: 14576 | B165: 2014-09-20 | C165: 129.9 | D165: 9.9
A166: 14577 | B166: 2014-09-20 | C166: 14.07 | D166: 1.07
A167: 14578 | B167: 2014-09-20 | C167: 20.57 | D167: 1.57 | F167: 70.36 | G167: 69.8
A168: 14579 | B168: 2014-09-22 | C168: 59.43 | D168: 4.53 | E168: Visa
A169: 14580 | B169: 2014-09-22 | C169: 21.6 | D169: 1.65 | E169: Visa
A170: 14581 | B170: 2014-09-22 | C170: 433 | D170: 33 | E170: Visa, $173. due
A171: 14582 | B171: 2014-09-22 | C171: 152.58 | D171: 11.63 | E171: Visa
A172: 14583 | B172: 2014-09-22 | C172: 151.55 | D172: 11.55
A173: 14584 | B173: 2014-09-22 | C173: 129.9 | D173: 9.09
A174: 14585 | B174: 2014-09-22 | C174: 28.69 | D174: 2.19 | E174: Visa | F174: 673.85 | G174: 662.04
A175: 14586 | B175: 2014-09-23 | C175: 25.5 | E175: Visa, Border Patrol
A176: 14587 | B176: 2014-09-23 | C176: 25.5 | E176: Visa, Border Patrol
A177: 14588 | B177: 2014-09-23 | C177: 25.5 | E177: Visa, Border Patrol
A178: 14589 | B178: 2014-09-23 | C178: 13.6 | E178: Visa, Border Patrol
A179: 14590 | B179: 2014-09-23 | C179: 27.06 | D179: 2.06 | E179: Due
A180: 14591 | B180: 2014-09-23 | C180: 46.49 | D180: 3.54 | E180: Discover
A181: 14592 | B181: 2014-09-23 | C181: 193.77 | D181: 14.77 | E181: Visa
A182: 14593 | B182: 2014-09-23 | C182: 332 | D182: 25.3 | E182: Visa
A183: 14594 | B183: 2014-09-23 | C183: 15.16 | D183: 1.16 | E183: Visa
A184: 14595 | B184: 2014-09-23 | C184: 181.86 | D184: 13.86 | E184: Visa
A185: 14596 | B185: 2014-09-23 | C185: 11 | D185: 0.84
A186: 14597 | B186: 2014-09-23 | C186: 15.05 | D186: 1.15 | E186: Visa
A187: 14598 | B187: 2014-09-23 | C187: 50 | D187: 3.81 | F187: 874.43 | G187: 959.98
A188: 14599 | B188: 2014-09-24 | C188: 338.82 | D188: 25.83 | E188: Visa
A189: 14600 | B189: 2014-09-24 | C189: 130 | D189: 9.91
A190: 14601 | B190: 2014-09-24 | C190: 315.01 | D190: 24.01
A191: 14602 | B191: 2014-09-24 | C191: 392.95 | D191: 29.95 | E191: $300.80 Visa, Bal Due
A192: 14603 | B192: 2014-09-24 | C192: 182.94 | D192: 13.94 | E192: Visa
A193: 14604 | B193: 2014-09-24 | C193: 1881.5 | E193: Visa, Border Patrol
A194: 14605 | B194: 2014-09-24 | C194: 596 | E194: Visa, Border Patrol | F194: 3392.21 | G194: 3287.45
A195: 14606 | B195: 2014-09-25 | C195: 248.27 | D195: 18.92 | E195: Due
A196: 14607 | B196: 2014-09-25 | C196: 17.27 | D196: 1.32 | F196: 10.83 | G196: 10.47
A197: 14608 | B197: 2014-09-26 | C197: 30.96 | D197: 2.36 | E197: Visa
A198: 14609 | B198: 2014-09-26 | C198: 7.52 | D198: 0.57 | E198: MC
A199: 14610 | B199: 2014-09-26 | C199: 264.13 | D199: 20.13 | E199: MC
A200: 14611 | B200: 2014-09-26 | C200: 21.6 | D200: 1.65 | E200: MC
... 37 more rows

Sheet Aug-14
A1: Invoice | C1: =SUM(C257:C454) -> 0 | D1: =SUM(D257:D454) -> 0 | H1: =TODAY() -> 2015-01-03
A2: Number | B2: Date | C2: Amount | D2: Tax | E2: Terms
A3: 14162 | B3: 2014-08-01 | C3: 141
A4: 14163 | B4: 2014-08-01 | C4: 10
A5: 14164 | B5: 2014-08-01 | C5: 68
A6: 14165 | B6: 2014-08-01 | C6: 27.06 | D6: 2.06 | E6: Visa
A7: 14166 | B7: 2014-08-01 | C7: 12.94 | D7: 0.99
A8: 14167 | B8: 2014-08-01 | C8: 212.17 | D8: 16.17
A9: 14168 | B9: 2014-08-01 | C9: 87.68 | D9: 6.68 | E9: Visa
A10: 14169 | B10: 2014-08-01 | C10: 151.01 | D10: 11.51 | E10: Due
A11: 14170 | B11: 2014-08-01 | C11: 127.74 | D11: 9.74
A12: 14171 | B12: 2014-08-01 | C12: 32 | F12: =+C6+C9+70.35 -> 185.09 | G12: 183.5
A13: 14172 | B13: 2014-08-02 | C13: 27.82 | D13: 2.12
A14: 14173 | B14: 2014-08-02 | C14: 173.7 | D14: 13.24 | E14: MC, $73.70 due
A15: 14174 | B15: 2014-08-02 | C15: 24.9 | D15: 1.9
A16: 14175 | B16: 2014-08-02 | C16: 12.45 | D16: 0.95 | E16: Visa
A17: 14176 | B17: 2014-08-02 | C17: 255.47 | D17: 19.47 | E17: MC | F17: Randy's Square
A18: 14177 | B18: 2014-08-02 | C18: 5.41 | D18: 0.41
A19: 14178 | B19: 2014-08-02 | C19: 140 | D19: 10.67
A20: 14179 | B20: 2014-08-02 | C20: 27.06 | D20: 2.06 | E20: Visa
A21: 14180 | B21: 2014-08-02 | C21: 77.94 | D21: 5.94 | E21: Visa | F21: =100+C16+C17+C21+C20-255.47 -> 217.45 | G21: 213.95
A22: 14181 | B22: 2014-08-04 | C22: 74.69 | D22: 5.69
A23: 14182 | B23: 2014-08-04 | C23: 81.19 | D23: 6.19
A24: 14183 | B24: 2014-08-04 | C24: 55.21 | D24: 4.21 | E24: Visa
A25: 14184 | B25: 2014-08-04 | C25: 18 | D25: 1.37
A26: 14185 | B26: 2014-08-04 | C26: 43.3 | D26: 3.3 | E26: MC
A27: 14186 | B27: 2014-08-04 | C27: 268 | E27: Revolution - resale
A28: 14187 | B28: 2014-08-04 | C28: 164.54 | D28: 12.54 | E28: Visa
A29: 14188 | B29: 2014-08-04 | C29: 29.79 | E29: Due, J.Rangle - resale
A30: 14189 | B30: 2014-08-04 | C30: 113.66 | D30: 8.66 | E30: Visa
A31: 14190 | B31: 2014-08-04 | C31: 120.61 | D31: 9.19 | E31: Visa | F31: =56+C26+C24+144.79+C28+C30+C31+0.02 -> 698.13 | G31: 688.59
A32: 14191 | B32: 2014-08-05 | C32: 57.07 | D32: 4.35
A33: 14192 | B33: 2014-08-05 | C33: 4.87 | D33: 0.37 | E33: Visa
A34: 14193 | B34: 2014-08-05 | C34: 160 | D34: 12.19
A35: 14194 | B35: 2014-08-05 | C35: 184.03 | D35: 14.03 | E35: MC
A36: 14195 | B36: 2014-08-05 | C36: 238.15 | D36: 18.15 | E36: MC
A37: 14196 | B37: 2014-08-05 | C37: 8.5 | E37: The Car Store - resale
A38: 14197 | B38: 2014-08-05 | E38: Revolution - reversed
A39: 14198 | B39: 2014-08-05 | C39: 6.44 | D39: 0.49
A40: 14199 | B40: 2014-08-05 | C40: 23.55 | D40: 6.6 | E40: Visa
A41: 14200 | B41: 2014-08-05 | C41: 86.6 | D41: 6.6 | E41: Due
A42: 14201 | B42: 2014-08-05 | C42: 12.99 | D42: 0.99
A43: 14202 | B43: 2014-08-05 | C43: 42.11 | D43: 3.21 | E43: Visa
A44: 14203 | B44: 2014-08-05 | C44: 93.1 | D44: 7.1 | F44: =+C33+C35+C36+C40+C43 -> 492.71 | G44: 487.56
A45: 14204 | B45: 2014-08-06 | C45: 26.00165 | D45: 1.98165
A46: 14205 | B46: 2014-08-06 | C46: 588.88 | D46: 44.88
A47: 14206 | B47: 2014-08-06 | C47: 154.8 | D47: 11.8 | E47: Visa
A48: 14207 | B48: 2014-08-06 | C48: 5 | D48: 0.38
A49: 14208 | B49: 2014-08-06 | C49: 125.57 | D49: 9.57 | E49: MC
A50: 14209 | B50: 2014-08-06 | C50: 21.65 | D50: 1.65 | E50: Due, Goldwing Addl to 14158
A51: 14210 | B51: 2014-08-06 | C51: 69 | D51: 5.26 | E51: Visa
A52: 14211 | B52: 2014-08-06 | C52: 14.07 | D52: 1.07 | E52: Visa
A53: 14212 | B53: 2014-08-06 | C53: 15.05 | D53: 1.15 | E53: Visa | F53: =+C47+C51+C52+C53+C49 -> 378.49 | G53: 562.68 | H53: ??
A54: 14213 | B54: 2014-08-07 | C54: 247.89 | D54: 18.89 | E54: Due, RR tire
A55: 14214 | B55: 2014-08-07 | C55: 29.23 | D55: 2.23 | E55: Due, Walters wheel
A56: 14215 | B56: 2014-08-07 | D56: 2.89 | E56: Take out sale
A57: 14216 | B57: 2014-08-07 | C57: 37.83 | D57: 2.88 | E57: Visa
A58: 14217 | B58: 2014-08-07 | C58: 170.1 | E58: N/A
A59: 14218 | B59: 2014-08-07 | C59: 174
A60: 14219 | B60: 2014-08-07 | C60: 138.56 | D60: 10.56 | E60: Visa
A61: 14220 | B61: 2014-08-07 | C61: 148.25 | D61: 11.3
A62: 14221 | B62: 2014-08-07 | C62: 45.47 | D62: 3.47 | E62: MC
A63: 14222 | B63: 2014-08-07 | C63: 493.62 | D63: 37.62 | E63: $193.62 due
A64: 14223 | B64: 2014-08-07 | C64: 19.43 | D64: 1.48 | E64: Visa | F64: =300+C57+C60+C62+C64 -> 541.29 | G64: 533.13
A65: 14224 | B65: 2014-08-08 | C65: 190.9963 | D65: 14.5563
A66: 14225 | B66: 2014-08-08 | C66: 84.87 | D66: 6.47
A67: 14226 | B67: 2014-08-08 | C67: 124.49 | D67: 9.49
A68: 14227 | B68: 2014-08-08 | C68: 26.85 | D68: 2.05 | E68: Visa
A69: 14228 | B69: 2014-08-08 | C69: 291.19 | D69: 22.19
A70: 14229 | B70: 2014-08-08 | C70: 127.74 | D70: 9.74 | E70: Visa
A71: 14230 | B71: 2014-08-08 | C71: 64.95 | D71: 4.95
A72: 14231 | B72: 2014-08-08 | C72: 192.14 | D72: 14.64
A73: 14232 | B73: 2014-08-08 | C73: 108.79 | D73: 8.29 | E73: MC
A74: 14233 | B74: 2014-08-08 | C74: 192.14 | D74: 14.64 | E74: Visa
A75: 14234 | B75: 2014-08-08 | C75: 8.66 | D75: 0.66
A76: 14235 | B76: 2014-08-08 | C76: 367.94 | D76: 28.04
A77: 14236 | B77: 2014-08-08 | C77: 0.01 | D77: 0 | E77: Due Battery (Monday)
A78: 14237 | B78: 2014-08-08 | C78: 54.07 | D78: 4.12 | E78: Visa
A79: 14238 | B79: 2014-08-08 | C79: 47.63 | D79: 3.63 | E79: Visa
A80: 14239 | B80: 2014-08-08 | C80: 297.69 | D80: 22.69 | E80: Visa
A81: 14240 | B81: 2014-08-08 | C81: 16.08 | D81: 1.23
A82: 14241 | B82: 2014-08-08 | C82: 11 | E82: MC | F82: =+C68+C70+C73+C74+C78+C79+C80+C82 -> 865.91 | G82: 856.17
A83: 14242 | B83: 2014-08-09 | C83: 179.15 | D83: 13.65 | E83: Visa
A84: 14243 | B84: 2014-08-09 | C84: 79 | E84: Due, Carlos G - MX
A85: 14244 | B85: 2014-08-09 | C85: 316.09 | D85: 24.09 | E85: Visa
A86: 14245 | B86: 2014-08-09 | C86: 26.99 | E86: Joe Rangel - resale
A87: 14246 | B87: 2014-08-09 | C87: 186.73 | D87: 14.23
A88: 14247 | B88: 2014-08-09 | C88: 23.82 | D88: 1.82 | E88: Visa
A89: 14248 | B89: 2014-08-09 | C89: 442.74 | D89: 33.74 | E89: Visa
A90: 14249 | B90: 2014-08-09 | C90: 96.34 | D90: 7.34
A91: 14250 | B91: 2014-08-09 | C91: 42.16 | D91: 3.21 | E91: MC
A92: 14251 | B92: 2014-08-09 | C92: 7.52 | D92: 0.57 | E92: MC
A93: 14252 | B93: 2014-08-09 | C93: 98.51 | D93: 7.51 | E93: Visa
A94: 14253 | B94: 2014-08-09 | C94: 279.29 | D94: 21.29 | E94: Visa
A95: 14254 | B95: 2014-08-09 | C95: 155.34 | D95: 11.84
A96: 14255 | B96: 2014-08-09 | C96: 21.6 | D96: 1.65
A97: 14256 | B97: 2014-08-09 | C97: 22.84 | D97: 1.74
A98: 14257 | B98: 2014-08-09 | C98: 12.99 | D98: 0.99 | E98: Visa
A99: 14258 | B99: 2014-08-09 | C99: 51.42 | D99: 3.92
A100: 14259 | B100: 2014-08-09 | C100: 4.33 | D100: 0.33 | E100: Trade | F100: =+C83+86.19+C85+C88+C89+172+C91+C92+C93+C94+C98 -> 1660.46 | G100: 1639.51
A101: 14260 | B101: 2014-08-11 | C101: 65.76 | D101: 5.01 | E101: Visa
A102: 14261 | B102: 2014-08-11 | C102: 151.55 | D102: 11.55 | E102: Visa
A103: 14262 | B103: 2014-08-11 | C103: 29.17 | D103: 2.22
A104: 14263 | B104: 2014-08-11 | C104: 274.96 | D104: 20.96
A105: 14264 | B105: 2014-08-11 | C105: =930.52-184.76 -> 745.76 | D105: =70.92-15.24 -> 55.68 | E105: Visa | F105: =+C101+C102 -> 217.31 | G105: 215.93
A106: 14265 | B106: 2014-08-12 | C106: 337.74 | D106: 25.74 | E106: Discover
A107: 14266 | B107: 2014-08-12 | C107: 19.34 | D107: 1.47
A108: 14267 | B108: 2014-08-12 | C108: 12.99 | D108: 0.99
A109: 14268 | B109: 2014-08-12 | C109: 84 | E109: Due, Border Patrol
A110: 14269 | B110: 2014-08-12 | C110: 14.02 | D110: 1.07 | E110: MC
A111: 14270 | B111: 2014-08-12 | C111: 57.37 | D111: 4.37 | E111: MC
A112: 14271 | B112: 2014-08-12 | C112: 208.38 | D112: 15.88 | E112: Visa, $108.38 due
A113: 14272 | B113: 2014-08-12 | C113: 11.91 | D113: 0.91 | E113: Check
A114: 14273 | B114: 2014-08-12 | C114: 3.25 | D114: 0.25 | E114: Visa | F114: =+C106+330.52+C110+C111+100+C114 -> 842.9 | G114: 826.71
A115: 14274 | B115: 2014-08-13 | C115: 0 | D115: 0
A116: 14275 | B116: 2014-08-13 | C116: 123.405 | D116: 9.405
A117: 14276 | B117: 2014-08-13 | C117: 31.34 | D117: 2.39 | E117: Visa
A118: 14277 | B118: 2014-08-13 | C118: 200 | D118: 15.24
A119: 14278 | B119: 2014-08-13 | C119: 440.58 | D119: 33.58 | E119: Visa
A120: 14279 | B120: 2014-08-13 | C120: 300 | D120: 22.86 | E120: MC, Deposit only
A121: 14280 | B121: 2014-08-13 | C121: -45 | E121: Joe Rangel - resale, inc return
A122: 14281 | B122: 2014-08-13 | C122: 50.88 | D122: 3.88 | E122: Due, Randy | F122: =+C117+C119+C120+73.7 -> 845.62 | G122: 828.22
A123: 14282 | B123: 2014-08-14 | C123: 55.59 | D123: 4.24 | E123: M/C
A124: 14283 | B124: 2014-08-14 | C124: 136.4 | D124: 10.4 | E124: $96.40 due
A125: 14284 | B125: 2014-08-14 | C125: 213.79 | D125: 16.29 | E125: $153.79 due
A126: 14285 | B126: 2014-08-14 | C126: 129.9 | D126: 9.9 | E126: Due, Ninja 250
A127: 14286 | B127: 2014-08-14 | C127: 247.73 | D127: 18.88 | E127: Due
A128: 14287 | B128: 2014-08-14 | C128: 67.12 | D128: 5.12 | F128: =+C123+108.38 -> 163.97 | G128: 160.67
A129: 14288 | B129: 2014-08-15 | C129: 12.45 | D129: 0.95
A130: 14289 | B130: 2014-08-15 | C130: 27.13 | D130: 2.07 | E130: Visa
A131: 14290 | B131: 2014-08-15 | C131: 12.99 | D131: 0.99 | E131: Due
A132: 14291 | B132: 2014-08-15 | C132: 94.99 | E132: Due, J.Rangel - resale
A133: 14292 | B133: 2014-08-15 | C133: 28.09 | D133: 2.14 | E133: Visa | F133: =+C130+247.89+C133 -> 303.11 | G133: 298.37
A134: 14293 | B134: 2014-08-16 | C134: 89.25 | D134: 6.8 | E134: Visa
A135: 14294 | B135: 2014-08-16 | C135: 80 | E135: Chris F. - Resale, $36 due
A136: 14295 | B136: 2014-08-16 | C136: 161.83 | D136: 12.33
A137: 14296 | B137: 2014-08-16 | C137: 77.4 | D137: 5.9 | E137: MC
A138: 14297 | B138: 2014-08-16 | C138: 394 | E138: Carlos G - resale MX
A139: 14298 | B139: 2014-08-16 | C139: 38.97 | D139: 2.97
A140: 14299 | B140: 2014-08-16 | C140: 5.39 | D140: 0.41 | E140: MC
A141: 14300 | B141: 2014-08-16 | C141: 22.73 | D141: 1.73
A142: 14301 | B142: 2014-08-16 | C142: 54.07 | D142: 4.12 | E142: M/C
A143: 14302 | B143: 2014-08-16 | C143: 80.11 | D143: 6.11 | E143: Visa
A144: 14303 | B144: 2014-08-16 | C144: 100 | D144: 7.62
A145: 14304 | B145: 2014-08-16 | C145: 112.57 | D145: 8.58 | E145: Labor | F145: =+C134+C137+61.83+C140+C142+C143 -> 368.05 | G145: 364.36
A146: 14305 | B146: 2014-08-18 | C146: 10.83 | D146: 0.83 | E146: Due
A147: 14306 | B147: 2014-08-18 | C147: 19.43 | D147: 1.48 | E147: Due
A148: 14307 | B148: 2014-08-18 | C148: 102.84 | D148: 7.84 | E148: MC
A149: 14308 | B149: 2014-08-18 | C149: 48.71 | D149: 3.71 | E149: Discover
A150: 14309 | B150: 2014-08-18 | C150: 63.87 | D150: 4.87 | E150: Visa
A151: 14310 | B151: 2014-08-18 | C151: 45.36 | D151: 3.46
A152: 14311 | B152: 2014-08-18 | C152: 27.06 | D152: 2.06 | E152: MC
A153: 14312 | B153: 2014-08-18 | C153: 263.05 | D153: 20.05 | E153: Visa, $153.05 due
A154: 14313 | B154: 2014-08-18 | C154: 258.89 | D154: 19.73 | E154: Discover
A155: 14314 | B155: 2014-08-18 | C155: 134.77 | D155: 10.27 | E155: Due
A156: 14315 | B156: 2014-08-18 | C156: 281.45 | D156: 21.45 | E156: MC
A157: 14316 | B157: 2014-08-18 | C157: 16.18 | D157: 1.23 | E157: Discover
A158: 14317 | B158: 2014-08-18 | C158: 32.48 | D158: 2.48 | E158: Visa | F158: =+C149+C150+C148+C152+110+C154+C157+C158+291.47 -> 951.5 | G158: 936.63
A159: 14318 | B159: 2014-08-19 | C159: 173.2 | D159: 13.2 | E159: MC
A160: 14319 | B160: 2014-08-19 | C160: 118.53 | D160: 9.03
A161: 14320 | B161: 2014-08-19 | C161: 26.2 | D161: 2 | E161: Discover
A162: 14321 | B162: 2014-08-19 | C162: 27.06 | D162: 2.06 | E162: MC
A163: 14322 | B163: 2014-08-19 | C163: 287.95 | D163: 21.95
A164: 14323 | B164: 2014-08-19 | C164: 53.04 | D164: 4.04
A165: 14324 | B165: 2014-08-19 | C165: 5.36 | D165: 0.41 | F165: =+C161+C155+C162 -> 188.03 | G165: 185.76
A166: 14325 | B166: 2014-08-20 | C166: 11.62
A167: 14326 | B167: 2014-08-20 | C167: 34.64 | D167: 2.64
A168: 14327 | B168: 2014-08-20 | C168: 10.77 | D168: 0.82
A169: 14328 | B169: 2014-08-20 | C169: 145 | E169: Used Parts - Cash, no RO
A170: 14329 | B170: 2014-08-20 | C170: 108.25 | D170: 8.25 | E170: Due, Tiny (Chris F)
A171: 14330 | B171: 2014-08-20 | C171: 46.79 | D171: 3.57 | E171: Due, Randy
A172: 14331 | B172: 2014-08-20 | C172: 108.24 | D172: 8.25 | E172: Due , Mike
A173: 14332 | B173: 2014-08-20 | C173: 25.98 | D173: 1.98 | E173: MC
A174: 14333 | B174: 2014-08-20 | C174: 151.55 | D174: 11.55 | E174: MC | F174: =+C173+C174 -> 177.53 | G174: 174.65
A175: 14334 | B175: 2014-08-21 | C175: 134.23 | D175: 10.23 | E175: Due
A176: 14335 | B176: 2014-08-21 | C176: 230.57 | D176: 17.57
A177: 14336 | B177: 2014-08-21 | C177: 12 | E177: Visa
A178: 14337 | B178: 2014-08-21 | C178: 64.95 | D178: 4.95 | E178: Visa, $29.95 due
A179: 14338 | B179: 2014-08-21 | C179: 38.97 | D179: 2.97 | E179: Visa
A180: 14339 | B180: 2014-08-21 | C180: 29.23 | D180: 2.23 | E180: Visa
A181: 14340 | B181: 2014-08-21 | C181: 3 | D181: 0.23
A182: 14341 | B182: 2014-08-21 | C182: 128.82 | D182: 9.82 | E182: Due
A183: 14342 | B183: 2014-08-21 | C183: 337 | E183: Carlos G - MX | F183: =+C159+136.96+C177+192.02+35+C180 -> 578.41 | G183: 566.32
A184: 14343 | B184: 2014-08-22 | C184: 162 | E184: Due
A185: 14344 | B185: 2014-08-22 | C185: 74.69 | D185: 5.69 | E185: Visa
A186: 14345 | B186: 2014-08-22 | C186: 11.91 | D186: 0.91 | E186: Visa
A187: 14346 | B187: 2014-08-22 | C187: 162.38 | D187: 12.38 | E187: Visa, Done Rite - overcharged
A188: 14347 | B188: 2014-08-22 | C188: 81.19 | D188: 6.19 | E188: Due
A189: 14348 | B189: 2014-08-22 | C189: 87.68 | D189: 6.68
A190: 14349 | B190: 2014-08-22 | C190: 47.41 | D190: 3.61 | E190: Visa
A191: 14350 | B191: 2014-08-22 | C191: 73.61 | D191: 5.61
A192: 14351 | B192: 2014-08-22 | C192: 47.63 | D192: 3.63 | F192: =+C185+C186+C187+C190+81.19 -> 377.58 | G192: 373.57
A193: 14352 | B193: 2014-08-23 | C193: 238 | E193: Carlos G - MX
A194: 14353 | B194: 2014-08-23 | C194: 410.84 | D194: 32.84 | E194: Due
A195: 14354 | B195: 2014-08-23 | C195: 8.66 | D195: 0.66
A196: 14355 | B196: 2014-08-23 | C196: 100.13 | D196: 7.63 | E196: Visa
A197: 14356 | B197: 2014-08-23 | C197: 21.6 | D197: 1.65
A198: 14357 | B198: 2014-08-23 | C198: 469 | E198: Due Katanna
A199: 14358 | B199: 2014-08-23 | C199: 732.58 | D199: 91.58 | E199: Due, Katanna, Add $469.
A200: 14359 | B200: 2014-08-23 | C200: 109.33 | D200: 8.33 | F200: =+C196 -> 100.13 | G200: 99.47
... 54 more rows

Sheet Jul-14
A1: Invoice | C1: =SUM(C233:C430) -> 0 | D1: =SUM(D233:D430) -> 0 | H1: =TODAY() -> 2015-01-03
A2: Number | B2: Date | C2: Amount | D2: Tax | E2: Terms
A3: 13932 | B3: 2014-07-01 | C3: 10.83 | D3: 0.83
A4: 13933 | B4: 2014-07-01 | C4: 20.57 | D4: 1.57
A5: 13934 | B5: 2014-07-01 | C5: 172.18 | D5: 13.12 | E5: $122.18 due
A6: 13935 | B6: 2014-07-01 | C6: 97.43 | D6: 7.43 | E6: $52.43 Visa
A7: 13936 | B7: 2014-07-01 | C7: 16 | D7: 1.22 | E7: MC
A8: 13937 | B8: 2014-07-01 | C8: 40.05 | D8: 3.05
A9: 13938 | B9: 2014-07-01 | C9: 25.66 | D9: 1.96
A10: 13939 | B10: 2014-07-01 | C10: 121.24 | D10: 9.24
A11: 13940 | B11: 2014-07-01 | C11: 16.18 | D11: 1.23 | F11: =+C7+74.96+29.56 -> 120.52 | G11: 118.59
A12: 13941 | B12: 2014-07-02 | C12: 162.92 | D12: 12.42 | E12: Visa
A13: 13942 | B13: 2014-07-02 | C13: 220 | E13: Check, Stg only
A14: 13943 | B14: 2014-07-02 | C14: 31.34 | D14: 2.39 | E14: Visa
A15: 13944 | B15: 2014-07-02 | C15: 187.27 | D15: 14.27 | E15: Visa
A16: 13945 | B16: 2014-07-02 | C16: 119.08 | D16: 9.08 | E16: Due
A17: 13946 | B17: 2014-07-02 | C17: 48.71 | D17: 3.71
A18: 13947 | B18: 2014-07-02 | C18: 133.69 | D18: 10.19
A19: 13948 | B19: 2014-07-02 | C19: 403.39 | D19: 30.74 | E19: Visa
A20: 13949 | B20: 2014-07-02 | C20: -320 | D20: -24.39 | E20: Exhaust return - Inv 13907
A21: 13950 | B21: 2014-07-02 | C21: 60 | D21: 4.57 | F21: =+C12+C14+C15+C19 -> 784.92 | G21: 771.34
A22: 13951 | B22: 2014-07-03 | C22: 125.97 | D22: 9.6 | E22: Visa
A23: 13952 | B23: 2014-07-03 | C23: 180.24 | D23: 13.74 | E23: Visa
A24: 13953 | B24: 2014-07-03 | C24: 92.01 | D24: 7.01
A25: 13954 | B25: 2014-07-03 | C25: 31.61 | D25: 2.41 | E25: Visa (addl to Inv 13935)
A26: 13955 | B26: 2014-07-03 | C26: 41.35 | D26: 3.15 | E26: $1.98 due
A27: 13956 | B27: 2014-07-03 | C27: 102.84 | D27: 7.84 | E27: Visa
A28: 13957 | B28: 2014-07-03 | C28: 233.28 | D28: 17.78 | E28: MC, $100. due
A29: 13958 | B29: 2014-07-03 | C29: 25.87 | D29: 1.97 | E29: Visa
A30: 13959 | B30: 2014-07-03 | C30: 10 | D30: 0.76
A31: 13960 | B31: 2014-07-03 | C31: 62.57 | D31: 4.77 | E31: Due (addl to Inv 13905)
A32: 13961 | B32: 2014-07-03 | C32: 5.4 | D32: 0.4
A33: 13962 | B33: 2014-07-03 | C33: 122.32 | D33: 9.32 | E33: Visa
A34: 13963 | B34: 2014-07-03 | C34: 195.19 | D34: 14.19 | E34: Visa, $95.19 due
A35: 13964 | B35: 2014-07-03 | C35: 15.97 | D35: 1.22 | E35: Visa
A36: 13965 | B36: 2014-07-03 | C36: 186 | E36: Visa, J.Rangel - resale | F36: =52.43+C22+C23+C25+C27+C28+C29+C33+C34+C35+C36-195.19-0.02 -> 1076.51 | G36: 1067.31
A37: 13966 | B37: 2014-07-05 | C37: 160.21 | D37: 12.21 | E37: Visa
A38: 13967 | B38: 2014-07-05 | C38: 11.91 | D38: 0.91 | E38: Visa
A39: 13968 | B39: 2014-07-05 | C39: 53.58 | D39: 4.08
A40: 13969 | B40: 2014-07-05 | C40: 140.73 | D40: 10.73 | E40: Visa
A41: 13970 | B41: 2014-07-05 | C41: -140.73 | D41: -10.73 | E41: Visa
A42: 13971 | B42: 2014-07-05 | C42: 112.04 | D42: 8.54 | E42: Visa
A43: 13972 | B43: 2014-07-05 | C43: 129.9 | D43: 9.9 | E43: Visa
A44: 13973 | B44: 2014-07-05 | C44: 109.33 | D44: 8.33 | E44: Visa
A45: 13974 | B45: 2014-07-05 | C45: 20.57 | D45: 1.57
A46: 13975 | B46: 2014-07-05 | C46: 115.83 | D46: 8.83
A47: 13976 | B47: 2014-07-05 | C47: 179.7 | D47: 13.7
A48: 13977 | B48: 2014-07-05 | C48: 17.27 | D48: 1.32 | E48: Visa | F48: =+C37+129.13+C38+C40+C41+C43+C44+C42+C48 -> 669.79 | G48: 716.58 | H48: ??
A49: 13978 | B49: 2014-07-07 | C49: 49.8 | D49: 3.8
A50: 13979 | B50: 2014-07-07 | C50: 18.29 | D50: 1.39
A51: 13980 | B51: 2014-07-07 | C51: 250.6 | D51: 19.1 | E51: Check, $190.65 due
A52: 13981 | B52: 2014-07-07 | C52: 200.26 | D52: 15.26
A53: 13982 | B53: 2014-07-07 | C53: 45 | D53: 3.43
A54: 13983 | B54: 2014-07-07 | C54: 43.25 | D54: 3.3 | E54: MC
A55: 13984 | B55: 2014-07-07 | C55: 234.9 | D55: 17.9 | E55: Visa
A56: 13985 | B56: 2014-07-07 | C56: 105 | E56: Due, J.Rangel - resale
A57: 13986 | B57: 2014-07-07 | C57: 582.39 | D57: 44.39 | E57: Visa, $362.39 due | F57: =+C54+200+C55+220 -> 698.15 | G57: 690.12
A58: 13987 | B58: 2014-07-08 | C58: 684 | E58: Due, Border Patrol
A59: 13988 | B59: 2014-07-08 | C59: 125.3 | D59: 9.55 | E59: Due
A60: 13989 | B60: 2014-07-08 | C60: 97.43 | D60: 7.43 | E60: $47.43 due
A61: 13990 | B61: 2014-07-08 | C61: 123.41 | D61: 9.41 | E61: V-Rod
A62: 13991 | B62: 2014-07-08 | C62: 113.66 | D62: 8.66 | E62: Visa | F62: =+C61 -> 123.41 | G62: 122.67
A63: 13992 | B63: 2014-07-09 | C63: 81.19 | D63: 6.19 | E63: MC
A64: 13993 | B64: 2014-07-09 | C64: 0 | D64: 0
A65: 13994 | B65: 2014-07-09 | C65: 22.08 | E65: ESG - Resale
A66: 13995 | B66: 2014-07-09 | C66: 178 | D66: 13.57 | E66: Visa
A67: 13996 | B67: 2014-07-09 | C67: 16.18 | D67: 1.23 | E67: MC
A68: 13997 | B68: 2014-07-09 | C68: 187.27 | D68: 14.27 | E68: MC, $157.27 due
A69: 13998 | B69: 2014-07-09 | C69: 153.72 | D69: 11.72
A70: 13999 | B70: 2014-07-09 | C70: 23.87 | E70: ESG - Resale
A71: 14000 | B71: 2014-07-09 | C71: 216.45 | D71: 16.5 | F71: =+C66+119.08+C63+C67+30+C62-1.23 -> 536.88 | G71: 527.41
A72: 14001 | B72: 2014-07-10 | C72: 242.48 | D72: 18.48 | E72: Due
A73: 14002 | B73: 2014-07-10 | C73: 490.37 | D73: 37.37 | E73: Visa
A74: 14003 | B74: 2014-07-10 | C74: 119.08 | D74: 9.08 | E74: MC
A75: 14004 | B75: 2014-07-10 | C75: 44.07 | D75: 3.36 | E75: Visa
A76: 14005 | B76: 2014-07-10 | C76: 10 | E76: Done Rite - Resale
A77: 14006 | B77: 2014-07-10 | C77: 40 | D77: 3.05
A78: 14007 | B78: 2014-07-10 | C78: 35.67 | D78: 2.72 | E78: Visa
A79: 14008 | B79: 2014-07-10 | C79: 368.05 | D79: 28.05 | E79: Due, Shadow 1100
A80: 14009 | B80: 2014-07-10 | C80: 226.78 | D80: 17.28 | E80: Due, Avon FR
A81: 14010 | B81: 2014-07-10 | C81: 30.31 | D81: 2.31 | E81: Due, Richard
A82: 14011 | B82: 2014-07-10 | C82: 89.11 | D82: 6.79
A83: 14012 | B83: 2014-07-10 | C83: 376.71 | D83: 28.71 | E83: Due, Mich. Off bike
A84: 14013 | B84: 2014-07-10 | C84: 17.32 | D84: 1.32 | F84: =+C73+C74+C75+C78+25.3 -> 714.49 | G84: 709.27
A85: 14014 | B85: 2014-07-11 | C85: 9.74 | D85: 0.74
A86: 14015 | B86: 2014-07-11 | C86: 46.22 | D86: 3.52
A87: 14016 | B87: 2014-07-11 | C87: 148.84 | D87: 11.34 | E87: MC
A88: 14017 | B88: 2014-07-11 | C88: 219.21 | D88: 16.71 | E88: $119.21 due
A89: 14018 | B89: 2014-07-11 | C89: 645.17 | D89: 49.17 | E89: Due
A90: 14019 | B90: 2014-07-11 | C90: -22.03 | D90: -1.68 | E90: Due
A91: 14020 | B91: 2014-07-11 | C91: 12.99 | D91: 0.99
A92: 14021 | B92: 2014-07-11 | C92: 41 | D92: 3.12 | E92: Visa
A93: 14022 | B93: 2014-07-11 | C93: 21.33 | E93: ESG - Resale
A94: 14023 | B94: 2014-07-11 | C94: 60.62 | D94: 4.62 | E94: Visa
A95: 14024 | B95: 2014-07-11 | C95: 5.39 | D95: 0.41
A96: 14025 | B96: 2014-07-11 | C96: 40.11 | D96: 3.06
A97: 14026 | B97: 2014-07-11 | C97: 35.61 | D97: 2.71 | E97: Visa
A98: 14027 | B98: 2014-07-11 | C98: 69.23 | D98: 5.28
A99: 14028 | B99: 2014-07-11 | C99: 9.65 | D99: 0.74 | E99: Visa | F99: =+C87+C92+C94+C97+C99 -> 295.72 | G99: 290.7
A100: 14029 | B100: 2014-07-12 | C100: 12.99 | D100: 0.99
A101: 14030 | B101: 2014-07-12 | C101: 42.22 | D101: 3.22 | E101: Visa
A102: 14031 | B102: 2014-07-12 | C102: 206.76 | D102: 15.76 | E102: Visa
A103: 14032 | B103: 2014-07-12 | C103: 10.83 | D103: 0.83
A104: 14033 | B104: 2014-07-12 | C104: 476.3 | D104: 36.3
A105: 14034 | B105: 2014-07-12 | C105: 70.35 | D105: 5.36 | E105: Due
A106: 14035 | B106: 2014-07-12 | C106: -3.99 | D106: -0.3
A107: 14036 | B107: 2014-07-12 | C107: 30 | D107: 2.28
A108: 14037 | B108: 2014-07-12 | C108: 47.63 | D108: 3.63
A109: 14038 | B109: 2014-07-12 | C109: 23.82 | D109: 1.82 | F109: =114.17+C101+C102 -> 363.15 | G109: 358.75
A110: 14039 | B110: 2014-07-14 | C110: 75.78 | D110: 5.78 | E110: Due
A111: 14040 | B111: 2014-07-14 | C111: 28.15 | D111: 2.15
A112: 14041 | B112: 2014-07-14 | C112: 10.83 | D112: 0.83
A113: 14042 | B113: 2014-07-14 | C113: 227.5 | E113: Due
A114: 14043 | B114: 2014-07-14 | C114: 184 | D114: 14.02 | E114: Check
A115: 14044 | B115: 2014-07-14 | C115: 52.99 | D115: 4.04 | E115: Visa
A116: 14045 | B116: 2014-07-14 | C116: 25.87 | D116: 1.97 | E116: Visa
A117: 14046 | B117: 2014-07-14 | C117: 129.25 | D117: 9.85 | E117: Visa
A118: 14047 | B118: 2014-07-14 | C118: 104 | D118: 7.93 | E118: Visa
A119: 14048 | B119: 2014-07-14 | C119: 31.39 | D119: 2.39 | E119: Visa | F119: =+C115+C116+C117+C118+C119 -> 343.5 | G119: 337.23
A120: 14049 | B120: 2014-07-15 | C120: 25 | D120: 1.91
A121: 14050 | B121: 2014-07-15 | C121: 56.29 | D121: 4.29
A122: 14051 | B122: 2014-07-15 | C122: 43.3 | D122: 3.3
A123: 14052 | B123: 2014-07-15 | C123: 40.05 | D123: 3.05 | E123: MC
A124: 14053 | B124: 2014-07-15 | C124: 22.08 | E124: Joe Rangel - resale | F124: =+C123+75.78+119.21+362.39+5.36 -> 602.79 | G124: 596.36
A125: 14054 | B125: 2014-07-16 | C125: 120.1 | D125: 9.15
A126: 14055 | B126: 2014-07-16 | C126: 12 | D126: 0.91
A127: 14056 | B127: 2014-07-16 | C127: 233.82 | D127: 12.82 | E127: MC
A128: 14057 | B128: 2014-07-16 | C128: 145 | E128: MC, Done Rite - resale
A129: 14058 | B129: 2014-07-16 | C129: 10.83 | D129: 0.83
A130: 14059 | B130: 2014-07-16 | C130: 14.29 | D130: 1.09 | E130: Visa
A131: 14060 | B131: 2014-07-16 | C131: 29.77 | D131: 2.27 | E131: Visa
A132: 14061 | B132: 2014-07-16 | C132: 17.27 | D132: 1.32 | E132: MC
A133: 14062 | B133: 2014-07-16 | C133: 240.32 | D133: 18.32 | E133: Visa
A134: 14063 | B134: 2014-07-16 | C134: 68.85 | D134: 5.25 | E134: Visa
A135: 14064 | B135: 2014-07-16 | C135: 50 | E135: Revolution - resale | F135: =+C127+C128+C130+C131+C132+C133+445.56+30.31 -> 1156.34 | G135: 1145.6
A136: 14065 | B136: 2014-07-17 | C136: 42.22 | D136: 3.22
A137: 14066 | B137: 2014-07-17 | C137: 66.84 | D137: 5.09
A138: 14067 | B138: 2014-07-17 | C138: 15.1 | D138: 1.15
A139: 14068 | B139: 2014-07-17 | C139: 46.55 | D139: 3.55 | F139: 0 | G139: =+F139*0.97831 -> 0
A140: 14069 | B140: 2014-07-18 | C140: 197.02 | D140: 15.02 | E140: Visa
A141: 14070 | B141: 2014-07-18 | C141: 54.13 | D141: 4.13
A142: 14071 | B142: 2014-07-18 | C142: 35.07 | D142: 2.67
A143: 14072 | B143: 2014-07-18 | C143: 14.02 | D143: 1.07 | E143: MC
A144: 14073 | B144: 2014-07-18 | C144: 28.15 | D144: 2.15
A145: 14074 | B145: 2014-07-18 | C145: 26.42 | E145: ESG - Resale
A146: 14075 | B146: 2014-07-18 | C146: 10 | E146: Revolution - resale
A147: 14076 | B147: 2014-07-18 | C147: 16.18 | D147: 1.23
A148: 14077 | B148: 2014-07-18 | C148: 38.97 | D148: 2.97 | E148: Visa
A149: 14078 | B149: 2014-07-18 | C149: 123.41 | D149: 9.41 | E149: Visa
A150: 14079 | B150: 2014-07-18 | C150: 23.24 | E150: ESG - Resale | F150: =+C140+C143+C148+C149 -> 373.42 | G150: 368.39
A151: 14080 | B151: 2014-07-19 | C151: 278.2 | D151: 21.2 | E151: Visa
A152: 14081 | B152: 2014-07-19 | C152: 17.32 | D152: 1.32 | E152: Visa
A153: 14082 | B153: 2014-07-19 | C153: 46.01 | D153: 3.51
A154: 14083 | B154: 2014-07-19 | C154: 73.61 | D154: 5.61
A155: 14084 | B155: 2014-07-19 | C155: 185.11 | D155: 14.11
A156: 14085 | B156: 2014-07-19 | C156: 9.2 | D156: 0.7 | E156: Visa
A157: 14086 | B157: 2014-07-19 | C157: 24.84 | D157: 1.89
A158: 14087 | B158: 2014-07-19 | C158: -24.84 | D158: -1.89 | F158: =+C151+C152+C156 -> 304.72 | G158: 302.43
A159: 14088 | B159: 2014-07-21 | C159: 17.27 | D159: 1.32
A160: 14089 | B160: 2014-07-21 | C160: 26.3 | D160: 2 | E160: Visa
A161: 14090 | B161: 2014-07-21 | C161: 24.3 | D161: 1.85
A162: 14091 | B162: 2014-07-21 | C162: 28 | E162: Visa, Border Patrol
A163: 14092 | B163: 2014-07-21 | C163: 17.27 | D163: 1.32
A164: 14093 | B164: 2014-07-21 | C164: 23.76 | D164: 1.81
A165: 14094 | B165: 2014-07-21 | C165: 56 | E165: Due, Border Patrol, mirrors | F165: =+C160+C162+684 -> 738.3 | G165: 718.34
A166: 14095 | B166: 2014-07-22 | C166: 192.69 | D166: 14.69 | E166: Visa
A167: 14096 | B167: 2014-07-22 | C167: 3 | D167: 0.23
A168: 14097 | B168: 2014-07-22 | C168: 178.61 | D168: 13.61 | E168: Due, Honda fork seal | F168: =+C166 -> 192.69 | G168: =+F168*0.97831 -> 188.5105539
A169: 14098 | B169: 2014-07-23 | C169: 58.46 | D169: 4.46 | E169: Visa
A170: 14099 | B170: 2014-07-23 | C170: 60.52 | D170: 4.61
A171: 14100 | B171: 2014-07-23 | C171: 42.99 | D171: 3.28
A172: 14101 | B172: 2014-07-23 | C172: 34.59 | D172: 2.64 | E172: Visa
A173: 14102 | B173: 2014-07-23 | C173: 172 | E173: Due, Chris F. - resale
A174: 14103 | B174: 2014-07-23 | C174: 165.08 | D174: 12.58 | E174: Visa
A175: 14104 | B175: 2014-07-23 | C175: 106.09 | D175: 8.09 | E175: Visa
A176: 14105 | B176: 2014-07-23 | C176: 119.08 | D176: 9.08 | E176: Visa
A177: 14106 | B177: 2014-07-23 | C177: 699.3 | D177: 53.3 | E177: Visa, $499.30 due
A178: 14107 | B178: 2014-07-23 | C178: 29.23 | D178: 2.23 | E178: Visa
A179: 14108 | B179: 2014-07-23 | C179: 6.44 | D179: 0.49 | E179: Visa | F179: =+C169+C172+C175+200+C178+C174+C179+C176 -> 718.97 | G179: =+F179*0.97831 -> 703.3755407
A180: 14109 | B180: 2014-07-24 | C180: 99.54 | D180: 7.59
A181: 14110 | B181: 2014-07-24 | C181: 25.6 | D181: 1.95 | E181: Check
A182: 14111 | B182: 2014-07-24 | C182: 24.84 | D182: 1.89 | E182: Visa
A183: 14112 | B183: 2014-07-24 | C183: 500 | D183: 38.11
A184: 14113 | B184: 2014-07-24 | C184: 97.43 | D184: 7.43 | E184: MC | F184: =+C182+C184 -> 122.27 | G184: =+F184*0.97831 -> 119.6179637
A185: 14114 | B185: 2014-07-25 | C185: 257
A186: 14115 | B186: 2014-07-25 | C186: 192.13 | D186: 14.64
A187: 14116 | B187: 2014-07-25 | C187: 34.64 | D187: 2.64 | E187: MC
A188: 14117 | B188: 2014-07-25 | C188: 161
A189: 14118 | B189: 2014-07-25 | C189: 5.95
A190: 14119 | B190: 2014-07-25 | C190: 168
A191: 14120 | B191: 2014-07-25 | C191: 28.09 | D191: 2.14
A192: 14121 | B192: 2014-07-25 | C192: 14.02 | D192: 1.07
A193: 14122 | B193: 2014-07-25 | C193: 23
A194: 14123 | B194: 2014-07-25 | C194: 191.55 | D194: 14.6 | E194: MC | F194: =+C187+C194 -> 226.19 | G194: =+F194*0.97831 -> 221.2839389
A195: 14124 | B195: 2014-07-26 | C195: 10.83 | D195: 0.83
A196: 14125 | B196: 2014-07-26 | C196: 56.29 | D196: 4.29 | E196: Visa
A197: 14126 | B197: 2014-07-26 | C197: 473.04 | D197: 36.05 | E197: Due
A198: 14127 | B198: 2014-07-26 | C198: 164
A199: 14128 | B199: 2014-07-26 | C199: 23.82 | D199: 1.82 | E199: MC
A200: 14129 | B200: 2014-07-26 | C200: 13.9 | F200: =+C196+C199 -> 80.11 | G200: =+F200*0.97831 -> 78.3724141
... 32 more rows

Sheet Jun-14
A1: Invoice | C1: =SUM(C233:C430) -> 0 | D1: =SUM(D233:D430) -> 0 | H1: =TODAY() -> 2015-01-03
A2: Number | B2: Date | C2: Amount | D2: Tax | E2: Terms
A3: 13703 | B3: 2014-06-02 | C3: 17.32 | D3: 1.32 | E3: Due
A4: 13704 | B4: 2014-06-02 | C4: 27.06 | D4: 2.06 | E4: Due
A5: 13705 | B5: 2014-06-02 | C5: 125.57 | D5: 9.57
A6: 13706 | B6: 2014-06-02 | C6: 253.11 | D6: 19.29 | E6: Visa, $53.11 due
A7: 13707 | B7: 2014-06-02 | C7: 30 | D7: 2.29
A8: 13708 | B8: 2014-06-02 | C8: 36.81 | D8: 2.81 | E8: Visa
A9: 13709 | B9: 2014-06-02 | C9: 42.22 | D9: 3.22 | E9: MC
A10: 13710 | B10: 2014-06-02 | C10: 75.78 | D10: 5.78
A11: 13711 | B11: 2014-06-02 | C11: 7.52 | D11: 0.57 | E11: Visa
A12: 13712 | B12: 2014-06-02 | C12: 11.91 | D12: 0.91
A13: 13713 | B13: 2014-06-02 | C13: 117.94 | D13: 8.99 | E13: Visa
A14: 13714 | B14: 2014-06-02 | C14: 102.3 | D14: 7.8
A15: 13715 | B15: 2014-06-02 | C15: 305 | E15: Carls G - resale MX
A16: 13716 | B16: 2014-06-02 | C16: 81 | E16: Due, Joe Rangel - resale
A17: 13717 | B17: 2014-06-02 | C17: 262.51 | D17: 20.01 | E17: Visa
A18: 13718 | B18: 2014-06-02 | C18: 67.12 | D18: 5.12 | E18: Visa | F18: =200+C8+C9+C11+C13+C17+C18 -> 734.12 | G18: =+F18*0.97831 -> 718.1969372
A19: 13719 | B19: 2014-06-03 | C19: 200
A20: 13720 | B20: 2014-06-03 | C20: 36.81 | D20: 2.81
A21: 13721 | B21: 2014-06-03 | C21: 15.99935 | D21: 1.21935
A22: 13722 | B22: 2014-06-03 | C22: 243 | E22: Due, Carlos G - Resale MX
A23: 13723 | B23: 2014-06-03 | C23: 114.96 | D23: 8.76 | E23: Shanon
A24: 13724 | B24: 2014-06-03 | C24: 143 | E24: J.Rangel - resale
A25: 13725 | B25: 2014-06-03 | C25: 180.78 | D25: 13.78 | E25: Visa
A26: 13726 | B26: 2014-06-03 | C26: 129.56 | D26: 9.87 | E26: Visa
A27: 13727 | B27: 2014-06-03 | C27: 399 | E27: Due, J. Rangel - resale
A28: 13728 | B28: 2014-06-03 | C28: 164 | E28: Done Rite - resale
A29: 13729 | B29: 2014-06-03 | C29: 240.32 | D29: 18.32 | E29: Visa | F29: =80+C25+C26 -> 390.34 | G29: 385.42
A30: 13730 | B30: 2014-06-04 | C30: 37.79 | D30: 2.88
A31: 13731 | B31: 2014-06-04 | C31: 18 | E31: Due
A32: 13732 | B32: 2014-06-04 | C32: 38.97 | D32: 2.97
A33: 13733 | B33: 2014-06-04 | C33: 84.44 | D33: 6.44
A34: 13734 | B34: 2014-06-04 | C34: 673.69 | D34: 51.34 | E34: Due
A35: 13735 | B35: 2014-06-04 | C35: 16.24 | D35: 1.24 | E35: MC
A36: 13736 | B36: 2014-06-04 | C36: 12.99 | D36: 0.99 | E36: Visa
A37: 13737 | B37: 2014-06-04 | C37: 193.98 | D37: 14.78 | E37: Check
A38: 13738 | B38: 2014-06-04 | C38: 35.18 | D38: 2.68
A39: 13739 | B39: 2014-06-04 | C39: 218.67 | D39: 16.67 | E39: Visa | F39: =C29+C35+C36+53.11+C39+27.06 -> 568.39 | G39: 562.67
A40: 13740 | B40: 2014-06-05 | C40: 32.42 | D40: 2.47 | E40: MC
A41: 13741 | B41: 2014-06-05 | C41: 75.78 | D41: 5.78
A42: 13742 | B42: 2014-06-05 | C42: 22.08
A43: 13743 | B43: 2014-06-05 | C43: 32.48 | D43: 2.48 | E43: Visa
A44: 13744 | B44: 2014-06-05 | C44: 3.19 | D44: 0.24
A45: 13745 | B45: 2014-06-05 | C45: 164.54 | D45: 12.54 | E45: MC
A46: 13746 | B46: 2014-06-05 | C46: 44 | D46: 3.35
A47: 13747 | B47: 2014-06-05 | C47: -5 | D47: -0.38
A48: 13748 | B48: 2014-06-05 | C48: 167.25 | D48: 12.75 | E48: Visa
A49: 13749 | B49: 2014-06-05 | C49: 10.83 | D49: 0.83 | F49: =+C40+C43+C45+C48 -> 396.69 | G49: =+F49*0.97831 -> 388.0857939
A50: 13750 | B50: 2014-06-06 | C50: 92.01 | D50: 7.01 | E50: Due
A51: 13751 | B51: 2014-06-06 | C51: 34.48 | D51: 2.63 | E51: Visa
A52: 13752 | B52: 2014-06-06 | C52: 274.96 | D52: 20.96 | E52: $74.96 Visa, Bal Cash
A53: 13753 | B53: 2014-06-06 | C53: 10.83 | D53: 0.83
A54: 13754 | B54: 2014-06-06 | C54: 46.22 | D54: 3.52
A55: 13755 | B55: 2014-06-06 | C55: 24.3 | D55: 1.85
A56: 13756 | B56: 2014-06-06 | C56: 10.83 | D56: 0.83 | E56: Visa
A57: 13757 | B57: 2014-06-06 | C57: 138
A58: 13758 | B58: 2014-06-06 | C58: 32.48 | D58: 2.48 | E58: Visa
A59: 13759 | B59: 2014-06-06 | C59: 19.49 | D59: 1.49
A60: 13760 | B60: 2014-06-06 | C60: 63.87 | D60: 4.87 | E60: Visa
A61: 13761 | B61: 2014-06-06 | C61: 12.45 | D61: 0.95 | E61: Visa
A62: 13762 | B62: 2014-06-06 | C62: 25.98 | D62: 1.98 | E62: Discover | F62: =+C51+74.96+C56+C58+C60+C61+C62 -> 255.05 | G62: 249.78
A63: 13763 | B63: 2014-06-07 | C63: 151.17 | D63: 11.52
A64: 13764 | B64: 2014-06-07 | C64: 10.83 | D64: 0.83
A65: 13765 | B65: 2014-06-07 | C65: 20 | D65: 1.52
A66: 13766 | B66: 2014-06-07 | C66: 6.44 | D66: 0.49 | E66: Visa
A67: 13767 | B67: 2014-06-07 | C67: 56.13 | D67: 4.28
A68: 13768 | B68: 2014-06-07 | C68: 17.32 | D68: 1.32
A69: 13769 | B69: 2014-06-07 | C69: 19.38 | D69: 1.48 | E69: MC
A70: 13770 | B70: 2014-06-07 | C70: 57.37 | D70: 4.37 | F70: =+C66+C69 -> 25.82 | G70: 24.97
A71: 13771 | B71: 2014-06-09 | C71: 194.85 | D71: 14.85 | E71: Visa
A72: 13772 | B72: 2014-06-09 | C72: 23.65 | D72: 1.8
A73: 13773 | B73: 2014-06-09 | C73: 92.01 | D73: 7.01
A74: 13774 | B74: 2014-06-09 | C74: 43.01 | D74: 3.28
A75: 13775 | B75: 2014-06-09 | C75: 28.15 | D75: 2.15
A76: 13776 | B76: 2014-06-09 | C76: 16.24 | D76: 1.24
A77: 13777 | B77: 2014-06-09 | C77: 342.02 | D77: 26.07 | E77: Visa
A78: 13778 | B78: 2014-06-09 | C78: 173.2 | D78: 13.2 | E78: Visa
A79: 13779 | B79: 2014-06-09 | C79: 50.88 | D79: 3.88
A80: 13780 | B80: 2014-06-09 | C80: 19.95
A81: 13781 | B81: 2014-06-09 | C81: 365.34 | D81: 27.84
A82: 13782 | B82: 2014-06-09 | C82: 217.04 | D82: 16.54
A83: 13783 | B83: 2014-06-09 | C83: 74.69 | D83: 5.69 | E83: MC
A84: 13784 | B84: 2014-06-09 | C84: 32.48 | D84: 2.48 | E84: Visa
A85: 13785 | B85: 2014-06-09 | C85: 39.51 | D85: 3.01 | F85: =+C71+C83+C78+C84 -> 475.22 | G85: =+F85*0.97831 -> 464.9124782
A86: 13786 | B86: 2014-06-10 | C86: 170.49 | D86: 12.99 | E86: Visa
A87: 13787 | B87: 2014-06-10 | C87: 133.83 | D87: 10.2
A88: 13788 | B88: 2014-06-10 | C88: 15 | E88: James Ind
A89: 13789 | B89: 2014-06-10 | C89: 63.87 | D89: 4.87 | E89: Visa
A90: 13790 | B90: 2014-06-10 | C90: 140.73 | D90: 10.73 | E90: Visa
A91: 13791 | B91: 2014-06-10 | C91: 5.36 | D91: 0.41
A92: 13792 | B92: 2014-06-10 | C92: 84.44 | D92: 6.44 | E92: MC
A93: 13793 | B93: 2014-06-10 | C93: 113.66 | D93: 8.66
A94: 13794 | B94: 2014-06-10 | C94: 24.84 | D94: 1.89 | E94: Visa
A95: 13795 | B95: 2014-06-10 | C95: 160 | E95: Border Patrol, Visa
A96: 13796 | B96: 2014-06-10 | C96: 160 | E96: Border Patrol, Visa
A97: 13797 | B97: 2014-06-10 | C97: 160 | E97: Border Patrol, Visa | F97: =+C86+C89+C90+C92+C94+73.83 -> 558.2 | G97: 552.94
A98: 13798 | B98: 2014-06-11 | C98: 23.71 | D98: 1.81 | E98: Due
A99: 13799 | B99: 2014-06-11 | C99: 394.03 | D99: 30.03 | E99: Visa
A100: 13800 | B100: 2014-06-11 | C100: 381.91 | D100: 29.11 | E100: Visa
A101: 13801 | B101: 2014-06-11 | C101: 217.04 | D101: 16.54 | E101: Visa
A102: 13802 | B102: 2014-06-11 | C102: 243.02 | D102: 18.52 | E102: Visa
A103: 13803 | B103: 2014-06-11 | C103: 301.5 | E103: Due, Carlos G - Resale MX
A104: 13804 | B104: 2014-06-11 | C104: 96.34 | D104: 7.34 | F104: =+C99+C100+C95+C96+C97+C101+C77+C102 -> 2058.02 | G104: 2024.72
A105: 13805 | B105: 2014-06-12 | C105: 64.95 | D105: 4.95 | E105: Due
A106: 13806 | B106: 2014-06-12 | C106: 10.83 | D106: 0.83
A107: 13807 | B107: 2014-06-12 | C107: 61.44 | D107: 4.68
A108: 13808 | B108: 2014-06-12 | C108: 2 | D108: 0.15
A109: 13809 | B109: 2014-06-12 | C109: 27 | E109: J.Rangel - resale
A110: 13810 | B110: 2014-06-12 | C110: 118.36 | E110: Due, J.Rangel - resale
A111: 13811 | B111: 2014-06-12 | C111: 64.95 | D111: 4.95 | E111: Visa
A112: 13812 | B112: 2014-06-12 | C112: 129.36 | D112: 9.86
A113: 13813 | B113: 2014-06-12 | C113: 521.22 | D113: 39.72 | E113: Due
A114: 13814 | B114: 2014-06-12 | C114: 39.91 | D114: 25.91 | E114: Due
A115: 13815 | B115: 2014-06-12 | C115: 98.56 | D115: 7.51 | F115: =+C111 -> 64.95 | G115: 64.41
A116: 13816 | B116: 2014-06-13 | C116: 40 | E116: Due, J.Rangel - resale
A117: 13817 | B117: 2014-06-13 | C117: 137.48 | D117: 10.48 | E117: MC
A118: 13818 | B118: 2014-06-13 | C118: 81.19 | D118: 6.19 | E118: MC
A119: 13819 | B119: 2014-06-13 | C119: 39.95 | E119: Visa, J.Rangel - resale
A120: 13820 | B120: 2014-06-13 | C120: 56.18 | D120: 4.28 | E120: Visa
A121: 13821 | B121: 2014-06-13 | C121: 19.43 | D121: 1.48
A122: 13822 | B122: 2014-06-13 | C122: 100 | E122: Due, Chris F, resale
A123: 13823 | B123: 2014-06-13 | C123: 58.85 | E123: Due, ESG Customs
A124: 13824 | B124: 2014-06-13 | C124: 15 | E124: Visa, Chris F, resale
A125: 13825 | B125: 2014-06-13 | C125: 12.61 | D125: 0.96
A126: 13826 | B126: 2014-06-13 | C126: 201.89 | D126: 15.39 | E126: Visa | F126: =+C119+138.56+C118+C120+C124+C126+85 -> 617.77 | G126: 610.03
A127: 13827 | B127: 2014-06-14 | C127: 362.64 | D127: 27.64 | E127: Due
A128: 13828 | B128: 2014-06-14 | C128: 54.07 | D128: 4.12 | E128: Visa
A129: 13829 | B129: 2014-06-14 | C129: 56 | D129: 4.27
A130: 13830 | B130: 2014-06-14 | C130: 10.83 | D130: 0.83 | E130: Discover
A131: 13831 | B131: 2014-06-14 | C131: 98.51 | D131: 7.51 | E131: MC
A132: 13832 | B132: 2014-06-14 | C132: 456.71 | D132: 34.81
A133: 13833 | B133: 2014-06-14 | C133: 120 | D133: 9.15
A134: 13834 | B134: 2014-06-14 | C134: 43.3 | D134: 3.3 | E134: Due
A135: 13835 | B135: 2014-06-14 | C135: 54 | D135: 4.12
A136: 13836 | B136: 2014-06-14 | C136: 88.77 | D136: 6.77 | F136: =+C128+C130+25 -> 89.9 | G136: 88.26
A137: 13837 | B137: 2014-06-16 | C137: 64.41 | D137: 4.91
A138: 13838 | B138: 2014-06-16 | C138: 144 | D138: 10.97
A139: 13839 | B139: 2014-06-16 | C139: 9.53 | D139: 0.73 | E139: Visa | F139: =521.22+C139 -> 530.75 | G139: 528.31
A140: 13840 | B140: 2014-06-17 | C140: 159.13 | D140: 12.13
A141: 13841 | B141: 2014-06-17 | C141: 202.43 | D141: 15.43 | E141: Visa
A142: 13842 | B142: 2014-06-17 | C142: 19.38 | D142: 1.48 | E142: Visa
A143: 13843 | B143: 2014-06-17 | C143: 21.6 | D143: 1.65 | E143: Visa
A144: 13844 | B144: 2014-06-17 | C144: 266 | D144: 20.27 | E144: $146 bal due
A145: 13845 | B145: 2014-06-17 | C145: 64.95 | D145: 4.95 | E145: Visa | F145: =+C141+C142+C143+C145 -> 308.36 | G145: 304.37
A146: 13846 | B146: 2014-06-18 | C146: 206.22 | D146: 15.72 | E146: Visa | F146: =+C146 -> 206.22 | G146: 203.74
A147: 13847 | B147: 2014-06-19 | C147: 15.1 | D147: 1.15
A148: 13848 | B148: 2014-06-19 | C148: 222 | D148: 16.92 | E148: $62. Visa, Bal cash
A149: 13849 | B149: 2014-06-19 | C149: 133.15 | D149: 10.15
A150: 13850 | B150: 2014-06-19 | C150: 63.99 | D150: 4.88 | E150: MC
A151: 13851 | B151: 2014-06-19 | C151: 30.31 | D151: 2.31 | E151: Visa | F151: =+C150+C151+62 -> 156.3 | G151: 153.45
A152: 13852 | B152: 2014-06-20 | C152: 110.04 | D152: 8.39 | E152: Due, Ninja tire
A153: 13853 | B153: 2014-06-20 | C153: 155.8 | E153: Carls G - resale MX
A154: 13854 | B154: 2014-06-20 | C154: 15.45 | E154: ESG Customs - resale
A155: 13855 | B155: 2014-06-20 | C155: 16.18 | D155: 1.23
A156: 13856 | B156: 2014-06-20 | C156: 20 | E156: Visa, Done Rite
A157: 13857 | B157: 2014-06-20 | C157: 68.2 | D157: 5.2 | E157: Due
A158: 13858 | B158: 2014-06-20 | C158: 75.78 | D158: 5.78
A159: 13859 | B159: 2014-06-20 | C159: 64.52 | D159: 4.92 | E159: Visa
A160: 13860 | B160: 2014-06-20 | C160: 172.12 | D160: 13.12
A161: 13861 | B161: 2014-06-20 | C161: 117 | E161: Due, Bike Rodz - resale
A162: 13862 | B162: 2014-06-20 | C162: 24.3 | D162: 1.85 | E162: Visa
A163: 13863 | B163: 2014-06-20 | C163: 10.77 | D163: 0.82
A164: 13864 | B164: 2014-06-20 | C164: 54.34 | D164: 4.14 | E164: Visa
A165: 13865 | B165: 2014-06-20 | C165: 1264.36 | D165: 96.36 | E165: Due | F165: =+C156+C159+C162 -> 108.82 | G165: 107.49
A166: 13866 | B166: 2014-06-21 | C166: 21.65 | D166: 1.65
A167: 13867 | B167: 2014-06-21 | C167: 185.76 | D167: 14.16 | E167: Visa
A168: 13868 | B168: 2014-06-21 | C168: 60.62 | D168: 4.62
A169: 13869 | B169: 2014-06-21 | C169: 36.7 | D169: 2.8 | F169: =+C167+C164 -> 240.1 | G169: 235.79
A170: 13870 | B170: 2014-06-23 | C170: 59.54 | D170: 4.54 | E170: Due
A171: 13871 | B171: 2014-06-23 | C171: 46.01 | D171: 3.51 | E171: Visa
A172: 13872 | B172: 2014-06-23 | C172: 70.36 | D172: 5.36
A173: 13873 | B173: 2014-06-23 | C173: 228.3 | D173: 17.4
A174: 13874 | B174: 2014-06-23 | C174: 20.51 | D174: 1.56
A175: 13875 | B175: 2014-06-23 | C175: 161.83 | D175: 12.33 | E175: Due, Chevo | F175: =+C169+C166-12.34 -> 46.01 | G175: 44.57
A176: 13876 | B176: 2014-06-24 | C176: 7
A177: 13877 | B177: 2014-06-24 | C177: 10
A178: 13878 | B178: 2014-06-24 | C178: 274.96 | D178: 20.96 | E178: MC, $74.96 due
A179: 13879 | B179: 2014-06-24 | C179: 24.46 | D179: 1.86 | E179: Visa
A180: 13880 | B180: 2014-06-24 | C180: 175.37 | D180: 13.37 | E180: Visa
A181: 13881 | B181: 2014-06-24 | C181: 55.21 | D181: 4.21 | E181: Visa
A182: 13882 | B182: 2014-06-24 | C182: 11.31 | D182: 0.86 | F182: =200+C179+52.48+C181+C180 -> 507.52 | G182: 498.81
A183: 13883 | B183: 2014-06-25 | C183: 20.57 | D183: 1.57
A184: 13884 | B184: 2014-06-25 | C184: 54.13 | D184: 4.13 | E184: Due, Battery
A185: 13885 | B185: 2014-06-25 | C185: 43.84 | D185: 3.34 | E185: $3.84 due
A186: 13886 | B186: 2014-06-25 | C186: 24.9 | D186: 1.9
A187: 13887 | B187: 2014-06-25 | C187: 37.89 | D187: 2.89
A188: 13888 | B188: 2014-06-25 | C188: 128.82 | D188: 9.82 | E188: Visa
A189: 13889 | B189: 2014-06-25 | C189: 341.53 | D189: 26.03
A190: 13890 | B190: 2014-06-25 | C190: 153 | E190: J.Rangel - resale
A191: 13891 | B191: 2014-06-25 | C191: 136 | E191: ESG Customs - resale
A192: 13892 | B192: 2014-06-25 | C192: 29.17 | D192: 2.22 | E192: Visa
A193: 13893 | B193: 2014-06-25 | C193: 81.19 | D193: 6.19 | E193: Visa
A194: 13894 | B194: 2014-06-25 | C194: 30 | D194: 2.29
A195: 13895 | B195: 2014-06-25 | C195: 245 | E195: Due, Carlos G - Resale MX | F195: =73.51+65+C192+C193 -> 248.87 | G195: 244.48
A196: 13896 | B196: 2014-06-26 | C196: 21.6 | D196: 1.65
A197: 13897 | B197: 2014-06-26 | C197: 113.66 | D197: 8.66
A198: 13898 | B198: 2014-06-26 | C198: 81 | E198: Done Rite - resale
A199: 13899 | B199: 2014-06-26 | C199: 40.05 | D199: 3.05 | E199: Visa
A200: 13900 | B200: 2014-06-26 | C200: 8.61 | D200: 0.66
... 31 more rows

Sheet May-14
A1: Invoice | C1: =SUM(C50:C484) -> 26190.98 | D1: =SUM(D50:D484) -> 1823.98 | H1: =TODAY() -> 2015-01-03
A2: Number | B2: Date | C2: Amount | D2: Tax | E2: Terms
A3: 13418 | B3: 2014-05-01 | C3: 21.65 | D3: 1.65
A4: 13419 | B4: 2014-05-01 | C4: 56.29 | D4: 4.29 | E4: MC
A5: 13420 | B5: 2014-05-01 | C5: 158.59 | D5: 12.09
A6: 13421 | B6: 2014-05-01 | C6: 8 | D6: 0.61 | E6: MC
A7: 13422 | B7: 2014-05-01 | C7: 18.76
A8: 13423 | B8: 2014-05-01 | C8: 5
A9: 13424 | B9: 2014-05-01 | C9: 9.69 | D9: 0.74
A10: 13425 | B10: 2014-05-01 | C10: 47.31 | D10: 3.61
A11: 13426 | B11: 2014-05-01 | C11: 21.64 | D11: 1.65
A12: 13427 | B12: 2014-05-01 | C12: 10.83 | D12: 0.83 | E12: MC
A13: 13428 | B13: 2014-05-01 | C13: 70.25 | D13: 5.35 | E13: MC
A14: 13429 | B14: 2014-05-01 | C14: 100 | D14: 7.62
A15: 13430 | B15: 2014-05-01 | C15: 63.87 | D15: 4.87 | E15: Visa | F15: =+C4+C6+C12+C13 -> 145.37 | G15: =+F15*0.97831 -> 142.2169247
A16: 13431 | B16: 2014-05-02 | C16: 64.95 | D16: 4.95
A17: 13432 | B17: 2014-05-02 | C17: 20.57 | D17: 1.57 | E17: Due
A18: 13433 | B18: 2014-05-02 | C18: 12.61 | D18: 0.96
A19: 13434 | B19: 2014-05-02 | C19: 128.82 | D19: 9.82 | E19: Visa, $68.82 due
A20: 13435 | B20: 2014-05-02 | C20: 266.84 | D20: 20.34 | E20: Discover
A21: 13436 | B21: 2014-05-02 | C21: 188.9 | D21: 14.4 | E21: MC
A22: 13437 | B22: 2014-05-02 | C22: 10.83 | D22: 0.83 | E22: Visa
A23: 13438 | B23: 2014-05-02 | C23: 169.03 | D23: 12.88 | E23: $69.03 due, Chevo
A24: 13439 | B24: 2014-05-02 | C24: 12.22 | D24: 0.93 | E24: Due, Bob - RG
A25: 13440 | B25: 2014-05-02 | C25: 146.14 | D25: 11.14 | E25: MC
A26: 13441 | B26: 2014-05-02 | C26: 24 | D26: 1.86
A27: 13442 | B27: 2014-05-02 | C27: 279.29 | D27: 21.29 | E27: MC
A28: 13443 | B28: 2014-05-02 | C28: 74.69 | D28: 5.69 | E28: MC
A29: 13444 | B29: 2014-05-02 | C29: 100 | E29: J.Rangel - resale
A30: 13445 | B30: 2014-05-02 | C30: 11 | E30: Visa, J.Rangel - resale
A31: 13446 | B31: 2014-05-02 | C31: 22 | E31: Visa, J.Rangel - resale
A32: 13447 | B32: 2014-05-02 | C32: 284.38 | D32: 21.67
A33: 13448 | B33: 2014-05-02 | C33: 13.64 | D33: 0.66 | E33: Visa
A34: 13449 | B34: 2014-05-02 | C34: 11.91 | D34: 0.91 | E34: Due, Chevo | F34: =60+C21+C20+C22+183+C25+63.87+C27+C30+C28+C31+63.64 -> 1370.2 | G34: =+F34*0.97831 -> 1340.480362
A35: 13450 | B35: 2014-05-03 | C35: 82.91 | D35: 6.32
A36: 13451 | B36: 2014-05-03 | C36: 114.75 | D36: 8.75
A37: 13452 | B37: 2014-05-03 | C37: 25.98 | D37: 1.98
A38: 13453 | B38: 2014-05-03 | C38: 29.5
A39: 13454 | B39: 2014-05-03 | C39: 135 | D39: 10.29
A40: 13455 | B40: 2014-05-03 | C40: 160.75 | D40: 12.25 | E40: Visa
A41: 13456 | B41: 2014-05-03 | C41: 23.76 | D41: 1.81
A42: 13457 | B42: 2014-05-03 | C42: 83.24 | D42: 6.34 | E42: Visa
A43: 13458 | B43: 2014-05-03 | C43: 109.87 | D43: 8.37
A44: 13459 | B44: 2014-05-03 | C44: -15
A45: 13460 | B45: 2014-05-03 | C45: 81.13 | D45: 6.18 | E45: Visa
A46: 13461 | B46: 2014-05-03 | C46: 284.7 | D46: 21.7 | E46: Visa
A47: 13462 | B47: 2014-05-03 | C47: 15.16 | D47: 1.16
A48: 13463 | B48: 2014-05-03 | C48: 0.92 | D48: 0.07 | E48: Due | F48: =+C40+C42+C45+C46+100 -> 709.82 | G48: =+F48*0.97831 -> 694.4240042
A49: 13464 | B49: 2014-05-05 | C49: 47.79 | D49: 3.64
A50: 13465 | B50: 2014-05-05 | C50: 26.2 | D50: 2 | E50: Visa
A51: 13466 | B51: 2014-05-05 | C51: 131 | D51: 9.98 | E51: $100 due
A52: 13467 | B52: 2014-05-05 | C52: 202.97 | D52: 15.47 | E52: Due
A53: 13468 | B53: 2014-05-05 | C53: 49.8 | D53: 3.8
A54: 13469 | B54: 2014-05-05 | C54: 20.57 | D54: 1.57
A55: 13470 | B55: 2014-05-05 | C55: 248.43 | D55: 18.93 | E55: $48.43 Visa
A56: 13471 | B56: 2014-05-05 | C56: 108.25 | D56: 8.25
A57: 13472 | B57: 2014-05-05 | C57: 399.44 | D57: 30.44 | E57: MC
A58: 13473 | B58: 2014-05-05 | C58: 211.09 | D58: 16.09 | E58: Visa
A59: 13474 | B59: 2014-05-05 | C59: 25 | E59: Visa, Revolution - resale | F59: =+C50+48.43+C57+C58+40 -> 725.16 | G59: =+F59*0.97831 -> 709.4312796
A60: 13475 | B60: 2014-05-06 | C60: 114.75 | D60: 8.75 | E60: Check
A61: 13476 | B61: 2014-05-06 | C61: 54.13 | D61: 4.13
A62: 13477 | B62: 2014-05-06 | C62: 80.11 | D62: 6.11
A63: 13478 | B63: 2014-05-06 | C63: 117.88 | D63: 8.98 | E63: Visa
A64: 13479 | B64: 2014-05-06 | C64: 178 | E64: Visa, Dirty Daves - resale
A65: 13480 | B65: 2014-05-06 | C65: 33.56 | D65: 2.56 | E65: Due
A66: 13481 | B66: 2014-05-06 | C66: 14
A67: 13482 | B67: 2014-05-06 | C67: 113.66 | D67: 8.66 | E67: Visa
A68: 13483 | B68: 2014-05-06 | C68: 4.28 | D68: 0.33
A69: 13484 | B69: 2014-05-06 | C69: 16.24 | D69: 1.24
A70: 13485 | B70: 2014-05-06 | C70: 116.91 | D70: 8.91 | E70: Visa | F70: =+C63+C64+C67+C70+68.82+C71 -> 697.03 | G70: =+F70*0.97831 -> 681.9114193
A71: 13486 | B71: 2014-05-07 | C71: 101.76 | D71: 7.76 | E71: Visa
A72: 13487 | B72: 2014-05-07 | C72: 244.75 | D72: 18.65 | E72: Discover
A73: 13488 | B73: 2014-05-07 | C73: 120.16 | D73: 9.16 | E73: $100 due
A74: 13489 | B74: 2014-05-07 | C74: 162 | E74: Due, Carlos - Monterey MX
A75: 13490 | B75: 2014-05-07 | C75: 68 | E75: Due, Derick - resale
A76: 13491 | B76: 2014-05-07 | C76: 163.46 | D76: 12.46
A77: 13492 | B77: 2014-05-07 | C77: 113.66 | D77: 8.66
A78: 13493 | B78: 2014-05-07 | C78: 164.54 | D78: 12.54 | E78: Due
A79: 13494 | B79: 2014-05-07 | C79: 218.1 | D79: 16.62 | E79: Visa
A80: 13495 | B80: 2014-05-07 | C80: 3 | E80: Used Parts
A81: 13496 | B81: 2014-05-07 | C81: 16.18 | D81: 1.23 | E81: Visa
A82: 13497 | B82: 2014-05-07 | C82: 70.31 | D82: 5.36 | E82: $50.31 due | F82: =100+C79+C81 -> 334.28 | G82: =+F82*0.97831 -> 327.0294668
A83: 13498 | B83: 2014-05-08 | C83: 164.43 | E83: ESG Customs - resale
A84: 13499 | B84: 2014-05-08 | C84: 95.64 | D84: 7.29
A85: 13500 | B85: 2014-05-08 | C85: 70
A86: 13501 | B86: 2014-05-08 | C86: 7.5 | D86: 0.57
A87: 13502 | B87: 2014-05-08 | C87: 259.75 | D87: 19.8 | E87: Visa
A88: 13503 | B88: 2014-05-08 | C88: 1.62 | D88: 0.12
A89: 13504 | B89: 2014-05-08 | C89: 277.01 | D89: 21.11 | E89: Trade
A90: 13505 | B90: 2014-05-08 | C90: 237 | D90: 18.06
A91: 13506 | B91: 2014-05-08 | C91: 48.71 | D91: 3.71
A92: 13507 | B92: 2014-05-08 | C92: 3 | D92: 0.23
A93: 13508 | B93: 2014-05-08 | C93: 54 | D93: 4.12 | F93: =+C87 -> 259.75 | G93: 255.85
A94: 13509 | B94: 2014-05-09 | C94: 14.07 | D94: 1.07
A95: 13510 | B95: 2014-05-09 | C95: 8.66 | D95: 0.66
A96: 13511 | B96: 2014-05-09 | C96: 197.56 | D96: 15.06
A97: 13512 | B97: 2014-05-09 | C97: 414.6 | D97: 31.6 | E97: $314.60 due
A98: 13513 | B98: 2014-05-09 | C98: 126.65 | D98: 9.65
A99: 13514 | B99: 2014-05-09 | C99: 20.57 | D99: 1.57 | E99: Visa | F99: =+C99 -> 20.57 | G99: 20.26
A100: 13515 | B100: 2014-05-10 | C100: 41.14 | D100: 3.14 | E100: MC
A101: 13516 | B101: 2014-05-10 | C101: 310 | E101: Due, Carlos G.
A102: 13517 | B102: 2014-05-10 | C102: 11.91 | D102: 0.91 | E102: MC
A103: 13518 | B103: 2014-05-10 | C103: 110.96 | D103: 8.46 | E103: Visa, $60.96 due
A104: 13519 | B104: 2014-05-10 | C104: 8.99 | E104: ESG Customs - resale
A105: 13520 | B105: 2014-05-10 | C105: 24.84 | D105: 1.89 | F105: =+C100+C102+50+102.02 -> 205.07 | G105: 202.57
A106: 13521 | B106: 2014-05-12 | C106: 199.72 | D106: 15.22 | E106: Visa
A107: 13522 | B107: 2014-05-12 | C107: 102.84 | D107: 7.84 | E107: $42.84 Visa
A108: 13523 | B108: 2014-05-12 | C108: 280.75 | D108: 21.4 | E108: Discover
A109: 13524 | B109: 2014-05-12 | C109: 69.23 | D109: 5.28 | E109: Visa
A110: 13525 | B110: 2014-05-12 | C110: 116.91 | D110: 8.91 | E110: Visa, $56.91 due
A111: 13526 | B111: 2014-05-12 | C111: 545.58 | D111: 41.58
A112: 13527 | B112: 2014-05-12 | C112: 404.75 | D112: 30.85 | E112: MC
A113: 13528 | B113: 2014-05-12 | C113: 13.31 | D113: 1.01
A114: 13529 | B114: 2014-05-12 | C114: 47.63 | D114: 3.63 | E114: MC | F114: =+C106+314.6+C108+C109+144.75+60+C112+C114+42.84 -> 1564.27 | G114: 1548.59
A115: 13530 | B115: 2014-05-13 | C115: 138.56 | D115: 10.56 | E115: Due
A116: 13531 | B116: 2014-05-13 | C116: 116.91 | D116: 8.91 | E116: Due
A117: 13532 | B117: 2014-05-13 | C117: 88 | E117: Due, J.Rangel - resale
A118: 13533 | B118: 2014-05-13 | C118: 146.14 | D118: 11.14
A119: 13534 | B119: 2014-05-13 | C119: 240.86 | D119: 18.36 | F119: 0 | G119: =+F119*0.97831 -> 0
A120: 13535 | B120: 2014-05-14 | C120: 397.49 | D120: 30.29 | E120: Due
A121: 13536 | B121: 2014-05-14 | C121: 106.03 | D121: 8.08 | E121: Visa
A122: 13537 | B122: 2014-05-14 | C122: 30.31 | D122: 2.31 | E122: Visa
A123: 13538 | B123: 2014-05-14 | C123: 181.86 | D123: 13.86
A124: 13539 | B124: 2014-05-14 | C124: 81.19 | D124: 6.19 | E124: Check | F124: =+C121+C122 -> 136.34 | G124: 133.81
A125: 13540 | B125: 2014-05-15 | C125: 160.7 | D125: 12.25 | E125: Visa
A126: 13541 | B126: 2014-05-15 | C126: 154.8 | D126: 11.8 | E126: Due
A127: 13542 | B127: 2014-05-15 | C127: 45 | E127: Revolution - resale
A128: 13543 | B128: 2014-05-15 | C128: 64.95 | D128: 4.95 | E128: Discover
A129: 13544 | B129: 2014-05-15 | C129: 115.77 | D129: 8.82 | E129: MC
A130: 13545 | B130: 2014-05-15 | C130: 15.1 | D130: 1.15 | E130: Visa
A131: 13546 | B131: 2014-05-15 | C131: 20.57 | D131: 1.57
A132: 13547 | B132: 2014-05-15 | C132: 88.77 | D132: 6.77
A133: 13548 | B133: 2014-05-15 | C133: 18.35 | D133: 1.4
A134: 13549 | B134: 2014-05-15 | C134: 121.24 | D134: 9.24
A135: 13550 | B135: 2014-05-15 | C135: 304 | E135: Due, Carlos G - resale (MX)
A136: 13551 | B136: 2014-05-15 | C136: 76.15 | D136: 5.8 | E136: Due | F136: =+C125+65.96+C128+C129+C130+30.11 -> 452.59 | G136: 443.72
A137: 13552 | B137: 2014-05-16 | C137: 151.55 | D137: 11.55
A138: 13553 | B138: 2014-05-16 | C138: 47.63 | D138: 3.63 | E138: Visa
A139: 13554 | B139: 2014-05-16 | C139: 375.63 | D139: 28.63 | E139: $175.63 Visa
A140: 13555 | B140: 2014-05-16 | C140: 10.77 | D140: 0.82 | E140: Visa
A141: 13556 | B141: 2014-05-16 | C141: 9.55 | E141: Due
A142: 13557 | B142: 2014-05-16 | C142: 74.69 | D142: 5.69
A143: 13558 | B143: 2014-05-16 | C143: 17.27 | D143: 1.32
A144: 13559 | B144: 2014-05-16 | C144: 17.27 | D144: 1.32
A145: 13560 | B145: 2014-05-16 | C145: 8.55 | D145: 0.65
A146: 13561 | B146: 2014-05-16 | C146: 18.24 | D146: 1.39
A147: 13562 | B147: 2014-05-16 | C147: 464.39 | D147: 35.39 | E147: $200 due
A148: 13563 | B148: 2014-05-16 | C148: 725 | D148: 55.25 | E148: $325 due
A149: 13564 | B149: 2014-05-16 | C149: 29.17 | D149: 2.22 | E149: Visa
A150: 13565 | B150: 2014-05-16 | C150: 20 | E150: MC
A151: 13566 | B151: 2014-05-16 | C151: 38.97 | D151: 2.97 | E151: Visa
A152: 13567 | B152: 2014-05-16 | C152: 85.52 | D152: 6.52 | F152: =+C138+175.63+C140+C149+C150+C151+330.55 -> 652.72 | G152: 644.61
A153: 13568 | B153: 2014-05-17 | C153: 270.63 | D153: 20.63 | E153: Visa
A154: 13569 | B154: 2014-05-17 | C154: 67.76 | D154: 5.16 | E154: Visa
A155: 13570 | B155: 2014-05-17 | C155: 94.18 | D155: 7.18 | E155: Visa
A156: 13571 | B156: 2014-05-17 | C156: 17.27 | D156: 1.32 | E156: Visa
A157: 13572 | B157: 2014-05-17 | C157: 51.96 | D157: 3.96 | E157: MC
A158: 13573 | B158: 2014-05-17 | C158: 300.94 | D158: 22.94 | E158: Visa, $200.94 due
A159: 13574 | B159: 2014-05-17 | C159: 164.22 | D159: 12.52 | E159: Visa
A160: 13575 | B160: 2014-05-17 | C160: 81.19 | D160: 6.19 | E160: Check
A161: 13576 | B161: 2014-05-17 | C161: 218.09 | D161: 16.62 | E161: Visa ($218.63)
A162: 13577 | B162: 2014-05-17 | C162: 33.99 | D162: 2.59 | E162: Visa
A163: 13578 | B163: 2014-05-17 | C163: 16.24 | D163: 1.24 | E163: Visa
A164: 13579 | B164: 2014-05-17 | C164: 8.66 | D164: 0.66 | E164: Visa | F164: =+C153+C154+C155+C156+C157+100+C159+218.63+C162+73.15+C164 -> 1100.45 | G164: 1086.06
A165: 13580 | B165: 2014-05-19 | C165: 59.48 | D165: 4.53 | E165: MC
A166: 13581 | B166: 2014-05-19 | C166: 16.97 | D166: 1.29 | E166: MC
A167: 13582 | B167: 2014-05-19 | C167: 146.62 | D167: 11.17
A168: 13583 | B168: 2014-05-19 | C168: 103.92 | D168: 7.92 | E168: Visa
A169: 13584 | B169: 2014-05-19 | C169: 47.41 | D169: 3.61 | E169: Due | F169: =+C165+C166+200.94+C168 -> 381.31 | G169: 378.73
A170: 13585 | B170: 2014-05-20 | C170: 377.79 | D170: 28.79 | E170: MC, $157.79 due
A171: 13586 | B171: 2014-05-20 | C171: 191.6 | D171: 14.6
A172: 13587 | B172: 2014-05-20 | C172: 145.04 | D172: 11.05 | E172: $105.04 Visa, $40 trade
A173: 13588 | B173: 2014-05-20 | C173: 217 | D173: 16.54
A174: 13589 | B174: 2014-05-20 | C174: 292.28 | D174: 22.28
A175: 13590 | B175: 2014-05-20 | C175: 30.31 | D175: 2.31
A176: 13591 | B176: 2014-05-20 | C176: 158.21 | D176: 12.06
A177: 13592 | B177: 2014-05-20 | C177: 25.98 | D177: 1.98
A178: 13593 | B178: 2014-05-20 | C178: 206 | D178: 15.7
A179: 13594 | B179: 2014-05-20 | C179: 11.26 | D179: 0.86
A180: 13595 | B180: 2014-05-20 | C180: 269.54 | D180: 20.54 | E180: Visa
A181: 13596 | B181: 2014-05-20 | C181: 21.65 | D181: 1.65 | E181: Due
A182: 13597 | B182: 2014-05-20 | C182: 20.57 | D182: 1.57 | F182: =220+40+176.23+C180+154.78+0.02 -> 860.57 | G182: 850.52
A183: 13598 | B183: 2014-05-21 | C183: 388.62 | D183: 29.62 | E183: $188.66 due
A184: 13599 | B184: 2014-05-21 | C184: 75.78 | D184: 5.78 | E184: Due
A185: 13600 | B185: 2014-05-21 | C185: 84.38 | D185: 6.43
A186: 13601 | B186: 2014-05-21 | C186: 223 | D186: 17 | E186: Due
A187: 13602 | B187: 2014-05-21 | C187: 99.59 | D187: 7.59
A188: 13603 | B188: 2014-05-21 | C188: 29.23 | D188: 2.23
A189: 13604 | B189: 2014-05-21 | C189: 34.64 | D189: 2.64
A190: 13605 | B190: 2014-05-21 | C190: 74.69 | D190: 5.69 | E190: Visa
A191: 13606 | B191: 2014-05-21 | C191: 12.99 | D191: 0.99 | E191: $6.99 due
A192: 13607 | B192: 2014-05-21 | C192: 29.23 | D192: 2.23 | E192: Visa
A193: 13608 | B193: 2014-05-21 | C193: 49.2 | D193: 3.75 | F193: =105.04+C192+C190 -> 208.96 | G193: =+F193*0.97831 -> 204.4276576 | H193: 458.79 ??
A194: 13609 | B194: 2014-05-22 | C194: 151.17 | D194: 11.52
A195: 13610 | B195: 2014-05-22 | C195: 30.8 | D195: 2.35 | E195: Visa
A196: 13611 | B196: 2014-05-22 | C196: 16.18 | D196: 1.23
A197: 13612 | B197: 2014-05-22 | C197: 10.83 | D197: 0.83
A198: 13613 | B198: 2014-05-22 | C198: 50.07 | D198: 3.82 | E198: MC $35.77, Bal Cash
A199: 13614 | B199: 2014-05-22 | C199: 15.1 | D199: 1.15
A200: 13615 | B200: 2014-05-22 | C200: 17.27 | D200: 1.32
... 87 more rows

Sheet Apr-14
A1: Invoice | C1: =SUM(C342:C539) -> 0 | D1: =SUM(D342:D539) -> 0 | H1: =TODAY() -> 2015-01-03
A2: Number | B2: Date | C2: Amount | D2: Tax | E2: Terms
A3: 13081 | B3: 2014-04-01 | C3: 5.36 | D3: 0.41
A4: 13082 | B4: 2014-04-01 | C4: 361.56 | D4: 27.56 | E4: Visa
A5: 13083 | B5: 2014-04-01 | C5: 31.8 | E5: Visa, Pueblo Tires - resale
A6: 13084 | B6: 2014-04-01 | C6: 149 | E6: Pueblo Tires - resale
A7: 13085 | B7: 2014-04-01 | C7: 138 | E7: Due, Palacios - resale
A8: 13086 | B8: 2014-04-01 | C8: 17.32 | D8: 1.32 | E8: Due
A9: 13087 | B9: 2014-04-01 | C9: 5.6 | E9: J.Rangle, TWK - resale
A10: 13088 | B10: 2014-04-01 | C10: 596.35 | D10: 45.45 | E10: Visa
A11: 13089 | B11: 2014-04-01 | C11: 67.06 | D11: 5.11 | E11: Visa
A12: 13090 | B12: 2014-04-01 | C12: 484.9 | D12: 52.2
A13: 13091 | B13: 2014-04-01 | C13: 232.2 | D13: 17.7
A14: 13092 | B14: 2014-04-01 | C14: 8.47 | E14: ESG Customs - resale
A15: 13093 | B15: 2014-04-01 | C15: 144.77 | D15: 11.03
A16: 13094 | B16: 2014-04-01 | C16: 10.83 | D16: 0.83
A17: 13095 | B17: 2014-04-01 | C17: 113.66 | D17: 8.66 | E17: MC
A18: 13096 | B18: 2014-04-01 | C18: 20 | D18: 1.52 | F18: =+C4+C5+C10+C11+238.69+484.9+C17 -> 1894.02 | G18: 1864.1
A19: 13097 | B19: 2014-04-02 | C19: 17.32 | D19: 1.32
A20: 13098 | B20: 2014-04-02 | C20: 4.28 | D20: 0.33
A21: 13099 | B21: 2014-04-02 | C21: 421.09 | D21: 32.09
A22: 13100 | B22: 2014-04-02 | C22: 22.62 | D22: 1.72 | E22: Visa
A23: 13101 | B23: 2014-04-02 | C23: 40 | D23: 3.05 | E23: MC
A24: 13102 | B24: 2014-04-02 | C24: 583 | E24: MX Manifesto
A25: 13103 | B25: 2014-04-02 | C25: 71 | E25: Due, J.Rangel - resale
A26: 13104 | B26: 2014-04-02 | C26: 18.4 | D26: 1.4
A27: 13105 | B27: 2014-04-02 | C27: 8.61 | D27: 0.66 | F27: =+C22+C23 -> 62.62 | G27: 61.2
A28: 13106 | B28: 2014-04-03 | C28: 20.51 | D28: 1.56
A29: 13107 | B29: 2014-04-03 | C29: 83.24 | D29: 6.34 | E29: Visa
A30: 13108 | B30: 2014-04-03 | C30: 5.41 | D30: 0.41
A31: 13109 | B31: 2014-04-03 | C31: 80 | E31: J.Rangel - resale
A32: 13110 | B32: 2014-04-03 | C32: 34.95 | E32: J.Rangel - resale
A33: 13111 | B33: 2014-04-03 | C33: 5.41 | D33: 0.41 | E33: Visa
A34: 13112 | B34: 2014-04-03 | C34: 48.71 | D34: 3.71 | E34: MC
A35: 13113 | B35: 2014-04-03 | C35: 19
A36: 13114 | B36: 2014-04-03 | C36: 365.07 | D36: 27.82 | E36: Check
A37: 13115 | B37: 2014-04-03 | C37: 193.77 | D37: 14.77 | E37: Visa, $113.77 due
A38: 13116 | B38: 2014-04-03 | C38: 184.03 | D38: 14.03 | E38: Visa
A39: 13117 | B39: 2014-04-03 | C39: 133.69 | D39: 10.19
A40: 13118 | B40: 2014-04-03 | C40: 9.8 | E40: Adrenaline - resale
A41: 13119 | B41: 2014-04-03 | C41: 1.3 | E41: Adrenaline - resale
A42: 13120 | B42: 2014-04-03 | C42: 27 | E42: Due, J.Rangel - resale
A43: 13121 | B43: 2014-04-03 | C43: 59.54 | D43: 4.54
A44: 13122 | B44: 2014-04-03 | C44: 113.6625 | D44: 8.6625 | E44: MC | F44: =+C29+C33+C34+80+C38+C44+47.41 -> 562.4625 | G44: 552.79
A45: 13123 | B45: 2014-04-04 | C45: 125 | E45: MC, Dons Falfurious - resale
A46: 13124 | B46: 2014-04-04 | C46: 129.9 | D46: 9.9 | E46: MC
A47: 13125 | B47: 2014-04-04 | C47: 169.95 | D47: 12.95 | E47: $94.95 due
A48: 13126 | B48: 2014-04-04 | C48: 105 | D48: 8 | E48: Visa
A49: 13127 | B49: 2014-04-04 | C49: 696.05 | D49: 53.05 | E49: $496.05 due
A50: 13128 | B50: 2014-04-04 | C50: 9.69 | D50: 0.74 | E50: MC
A51: 13129 | B51: 2014-04-04 | C51: 145 | E51: Due, Chris F - resale
A52: 13130 | B52: 2014-04-04 | C52: 75 | E52: Due, J.Rangel - resale
A53: 13131 | B53: 2014-04-04 | C53: 18.4 | D53: 1.4 | E53: Visa
A54: 13132 | B54: 2014-04-04 | C54: 50 | E54: Due, J.Rangel - resale
A55: 13133 | B55: 2014-04-04 | C55: 32.48 | D55: 2.48 | E55: Due, Jorge (Randy's friend)
A56: 13134 | B56: 2014-04-04 | C56: 162.38 | D56: 12.38 | E56: Visa | F56: =168.05+C46+C45+C48+C50+C53+C56 -> 718.42 | G56: 710.38
A57: 13135 | B57: 2014-04-05 | C57: 8.52
A58: 13136 | B58: 2014-04-05 | C58: 52.99 | D58: 4.04 | E58: Visa
A59: 13137 | B59: 2014-04-05 | C59: 8.51 | D59: 0.65
A60: 13138 | B60: 2014-04-05 | C60: 169.41 | D60: 12.91 | E60: Visa
A61: 13139 | B61: 2014-04-05 | C61: 202.37 | D61: 15.42 | E61: Visa
A62: 13140 | B62: 2014-04-05 | C62: 325.83 | D62: 24.83 | E62: Due
A63: 13141 | B63: 2014-04-05 | C63: 165.62 | D63: 12.62 | E63: MC
A64: 13142 | B64: 2014-04-05 | C64: 32.48 | D64: 2.48
A65: 13143 | B65: 2014-04-05 | C65: 45.36 | D65: 3.46
A66: 13144 | B66: 2014-04-05 | C66: 37.89 | D66: 2.89
A67: 13145 | B67: 2014-04-05 | C67: 5.36 | D67: 0.41
A68: 13146 | B68: 2014-04-05 | C68: 594.29 | D68: 45.29 | E68: Visa | F68: =+C58+C60+C61+100+C68 -> 1119.06 | G68: 1100.34
A69: 13147 | B69: 2014-04-07 | C69: 357.17 | D69: 27.22 | E69: Due
A70: 13148 | B70: 2014-04-07 | C70: 138.56 | D70: 10.56 | E70: Visa
A71: 13149 | B71: 2014-04-07 | C71: 250.6 | D71: 19.1 | E71: Visa
A72: 13150 | B72: 2014-04-07 | C72: 43.19 | D72: 3.29
A73: 13151 | B73: 2014-04-07 | C73: 368.05 | D73: 28.05
A74: 13152 | B74: 2014-04-07 | C74: 18.35 | D74: 1.4 | E74: Visa
A75: 13153 | B75: 2014-04-07 | C75: 162.38 | D75: 12.38 | E75: Due
A76: 13154 | B76: 2014-04-07 | C76: 54.13 | D76: 4.13 | E76: Visa
A77: 13155 | B77: 2014-04-07 | C77: 130.98 | D77: 9.98 | E77: Visa
A78: 13156 | B78: 2014-04-07 | C78: 1.99 | D78: 0.15
A79: 13157 | B79: 2014-04-07 | C79: 21.65 | D79: 1.65 | E79: Check
A80: 13158 | B80: 2014-04-07 | C80: 181 | D80: 13.79
A81: 13159 | B81: 2014-04-07 | C81: 18.94 | D81: 1.44
A82: 13160 | B82: 2014-04-07 | C82: 102.78 | D82: 7.83 | E82: Visa
A83: 13161 | B83: 2014-04-07 | C83: 10.66 | D83: 0.81
A84: 13162 | B84: 2014-04-07 | C84: 105 | D84: 8.01
A85: 13163 | B85: 2014-04-07 | C85: 15.95 | E85: J.Rangle - resale | F85: =+C70+C71+C74+C76+C77+C82+162.38 -> 857.78 | G85: 844.65
A86: 13164 | B86: 2014-04-08 | C86: 51.96 | D86: 3.96 | E86: Visa
A87: 13165 | B87: 2014-04-08 | C87: 239.23 | D87: 18.23
A88: 13166 | B88: 2014-04-08 | C88: 164.8 | E88: Due, Chris F. - resale
A89: 13167 | B89: 2014-04-08 | C89: 48.71 | D89: 3.71 | E89: Due
A90: 13168 | B90: 2014-04-08 | C90: 8.55 | D90: 0.65
A91: 13169 | B91: 2014-04-08 | C91: 46.55 | D91: 3.55 | E91: Visa
A92: 13170 | B92: 2014-04-08 | C92: 433 | D92: 33 | E92: Due
A93: 13171 | B93: 2014-04-08 | C93: 247.46 | D93: 18.86 | E93: Due
A94: 13172 | B94: 2014-04-08 | C94: 8.66 | D94: 0.66 | E94: Due
A95: 13173 | B95: 2014-04-08 | C95: 256.34 | D95: 19.54 | E95: Due
A96: 13174 | B96: 2014-04-08 | C96: 9
A97: 13175 | B97: 2014-04-08 | C97: 43.14 | D97: 3.29
A98: 13176 | B98: 2014-04-08 | C98: 57.5 | E98: Due, J.Rangle - resale
A99: 13177 | B99: 2014-04-08 | C99: 10.72 | D99: 0.82
A100: 13178 | B100: 2014-04-08 | C100: 56.29 | D100: 4.29 | E100: Due | F100: =+C86+C91 -> 98.51 | G100: =+F100*0.97831 -> 96.3733181
A101: 13179 | B101: 2014-04-09 | C101: 33.99 | D101: 2.59
A102: 13180 | B102: 2014-04-09 | C102: 12.99 | D102: 0.99 | E102: Due
A103: 13181 | B103: 2014-04-09 | C103: 102 | E103: Visa, Dons, Falfurious - resale
A104: 13182 | B104: 2014-04-09 | C104: 18 | E104: Dons, Falfurious - resale
A105: 13183 | B105: 2014-04-09 | C105: 7.9 | D105: 0.6
A106: 13184 | B106: 2014-04-09 | C106: 283.62 | D106: 21.62 | E106: Due
A107: 13185 | B107: 2014-04-09 | C107: 99.99 | E107: ESG Customs - resale
A108: 13186 | B108: 2014-04-09 | C108: 6.44 | D108: 0.49
A109: 13187 | B109: 2014-04-09 | C109: 59.54 | D109: 4.54 | E109: Due
A110: 13188 | B110: 2014-04-09 | C110: 217.04 | D110: 16.54 | E110: $117.04 due
A111: 13189 | B111: 2014-04-09 | C111: 98.67 | D111: 7.52 | E111: Visa
A112: 13190 | B112: 2014-04-09 | C112: 54.99 | D112: 4.19 | E112: Visa
A113: 13191 | B113: 2014-04-09 | C113: 128 | E113: J.Rangle - resale
A114: 13192 | B114: 2014-04-09 | C114: 17.27 | D114: 1.32
A115: 13193 | B115: 2014-04-09 | C115: 219.21 | D115: 16.71
A116: 13194 | B116: 2014-04-09 | C116: 125.8 | E116: Due, Chris F - resale
A117: 13195 | B117: 2014-04-09 | C117: 432.19 | D117: 32.94 | E117: Visa
A118: 13196 | B118: 2014-04-09 | C118: 62 | E118: Due, Chris F - resale | F118: =48.71+C103+C112+C111+C117 -> 736.56 | G118: =+F118*0.97831 -> 720.5840136
A119: 13216 | B119: 2014-04-10 | C119: 40 | D119: 3.04
A120: 13230 | B120: 2014-04-10 | C120: 143.5 | D120: 10.94
A121: 13231 | B121: 2014-04-10 | C121: 37.9 | E121: James Ind - resale
A122: 13232 | B122: 2014-04-10 | C122: 191.89 | D122: 14.62
A123: 13233 | B123: 2014-04-10 | C123: 1028 | E123: Due, Border Patrol
A124: 13234 | B124: 2014-04-10 | C124: 96
A125: 13235 | B125: 2014-04-10 | C125: 12.95 | D125: 0.99 | E125: Visa
A126: 13278 | B126: 2014-04-10 | C126: 113.04 | E126: ESG Customs - resale | F126: =+C125-11 -> 1.95 | G126: =+F126*0.97831 -> 1.9077045
A127: 13217 | B127: 2014-04-11 | C127: 210 | D127: 16
A128: 13218 | B128: 2014-04-11 | C128: 40 | D128: 3.05 | E128: Visa
A129: 13219 | B129: 2014-04-11 | C129: 7 | D129: 0.53
A130: 13220 | B130: 2014-04-11 | C130: 44 | D130: 3.35
A131: 13221 | B131: 2014-04-11 | C131: 70 | D131: 5.34 | E131: Visa
A132: 13236 | B132: 2014-04-11 | C132: 20 | D132: 1.52 | E132: Visa
A133: 13237 | B133: 2014-04-11 | C133: 17.2 | D133: 1.31
A134: 13238 | B134: 2014-04-11 | C134: 147 | D134: 11.2 | E134: MC
A135: 13239 | B135: 2014-04-11 | C135: 8.43 | D135: 0.64
A136: 13240 | B136: 2014-04-11 | C136: 68.09 | D136: 5.19
A137: 13241 | B137: 2014-04-11 | C137: 13.55 | D137: 1.03
A138: 13242 | B138: 2014-04-11 | C138: 75 | D138: 5.72 | E138: Visa
A139: 13243 | B139: 2014-04-11 | C139: 87.29 | D139: 6.65 | E139: Visa | F139: =+C128+C131+C132+C134+C138+C139 -> 439.29 | G139: =+F139*0.97831 -> 429.7617999 | H139: $110. Show
A140: 13222 | B140: 2014-04-12 | C140: 400 | D140: 30.48
A141: 13223 | B141: 2014-04-12 | C141: 250 | D141: 19.05
A142: 13224 | B142: 2014-04-12 | C142: 250 | D142: 19.05
A143: 13225 | B143: 2014-04-12 | C143: 375 | D143: 28.58
A144: 13226 | B144: 2014-04-12 | C144: 100 | D144: 7.62
A145: 13227 | B145: 2014-04-12 | C145: 350 | D145: 26.67 | E145: Visa
A146: 13228 | B146: 2014-04-12 | C146: 200 | D146: 15.24 | E146: MC
A147: 13229 | B147: 2014-04-12 | C147: 200 | D147: 15.24
A148: 13197 | B148: 2014-04-12 | C148: 54.07 | D148: 4.12 | E148: CC
A149: 13244 | B149: 2014-04-12 | C149: 10 | D149: 0.76
A150: 13245 | B150: 2014-04-12 | C150: 15.95 | D150: 1.22 | E150: CC
A151: 13246 | B151: 2014-04-12 | C151: 51.85 | D151: 3.95
A152: 13247 | B152: 2014-04-12 | C152: -37.89 | D152: -2.89
A153: 13248 | B153: 2014-04-12 | C153: 12.5 | E153: Due, Chris F - resale
A154: 13249 | B154: 2014-04-12 | C154: 55 | E154: Due, J.Rangel - resale
A155: 13250 | B155: 2014-04-12 | C155: 5 | D155: 0.38
A156: 13251 | B156: 2014-04-12 | C156: 119.08 | D156: 9.08
A157: 13252 | B157: 2014-04-12 | C157: 128.76 | D157: 9.81 | E157: CC
A158: 13253 | B158: 2014-04-12 | C158: 81.19 | D158: 6.19
A159: 13256 | B159: 2014-04-12 | C159: 35.61 | D159: 2.71 | F159: =+C148+C145+C146+C150+C157 -> 748.78 | G159: =+F159*0.97831 -> 732.5389618 | H159: $550 Show
A160: 13198 | B160: 2014-04-14 | C160: 474.14 | D160: 36.14 | E160: Due
A161: 13199 | B161: 2014-04-14 | C161: 33.56 | D161: 2.56
A162: 13200 | B162: 2014-04-14 | C162: 105
A163: 13201 | B163: 2014-04-14 | C163: 98.51 | D163: 7.51 | E163: Due
A164: 13202 | B164: 2014-04-14 | C164: 900.64 | D164: 68.64 | E164: Check $300, $600.64 visa
A165: 13203 | B165: 2014-04-14 | C165: 32.91 | D165: 2.51 | E165: Visa
A166: 13204 | B166: 2014-04-14 | C166: 5.36 | D166: 0.41
A167: 13205 | B167: 2014-04-14 | C167: 7
A168: 13206 | B168: 2014-04-14 | C168: 48.66 | D168: 3.71
A169: 13207 | B169: 2014-04-14 | C169: 167.79 | D169: 12.79
A170: 13208 | B170: 2014-04-14 | C170: 291.19 | D170: 22.19 | E170: Visa
A171: 13209 | B171: 2014-04-14 | C171: 54.13 | D171: 4.13
A172: 13210 | B172: 2014-04-14 | C172: 5.95 | E172: Visa
A173: 13211 | B173: 2014-04-14 | C173: 205.57 | D173: 15.67
A174: 13212 | B174: 2014-04-14 | C174: 29.23 | D174: 2.23
A175: 13213 | B175: 2014-04-14 | C175: 37.89 | D175: 2.89
A176: 13214 | B176: 2014-04-14 | C176: 35.07 | D176: 2.67
A177: 13215 | B177: 2014-04-14 | C177: 96 | E177: Due, Chris F - resale | F177: =600.64+C165+C170+C172+454.04 -> 1384.73 | G177: =+F177*0.97831 -> 1354.695206
A178: 13254 | B178: 2014-04-15 | C178: 20.51 | D178: 1.56 | E178: MC
A179: 13255 | B179: 2014-04-15 | C179: 130.98 | D179: 9.98 | E179: MC
A180: 13257 | B180: 2014-04-15 | C180: 11.64 | D180: 0.89 | E180: Visa
A181: 13258 | B181: 2014-04-15 | C181: 96.34 | D181: 7.34 | E181: Check
A182: 13259 | B182: 2014-04-15 | C182: 43.25 | D182: 3.3 | E182: Visa
A183: 13260 | B183: 2014-04-15 | C183: 25.94 | D183: 1.98
A184: 13261 | B184: 2014-04-15 | C184: 54 | E184: J.Rangle - resale | F184: =+C178+C179+C180+C182 -> 206.38 | G184: =+F184*0.97831 -> 201.9036178
A185: 13262 | B185: 2014-04-16 | C185: 74.52 | D185: 5.68 | E185: Due, Randy
A186: 13263 | B186: 2014-04-16 | C186: 13.92 | D186: 1.06
A187: 13264 | B187: 2014-04-16 | C187: 192.96 | D187: 14.71 | E187: Visa
A188: 13265 | B188: 2014-04-16 | C188: 5.36 | D188: 0.41 | E188: Visa
A189: 13266 | B189: 2014-04-16 | C189: 108.25 | D189: 8.25 | E189: Due
A190: 13267 | B190: 2014-04-16 | C190: 232.2 | D190: 17.7 | E190: Visa
A191: 13268 | B191: 2014-04-16 | C191: 27 | E191: Visa, Done Rite
A192: 13269 | B192: 2014-04-16 | C192: 131.52 | D192: 10.02 | E192: Due
A193: 13270 | B193: 2014-04-16 | C193: 530.43 | D193: 40.43 | E193: Visa, $2780.43 due
A194: 13271 | B194: 2014-04-16 | C194: 76.97 | D194: 5.87 | E194: Due
A195: 13272 | B195: 2014-04-16 | C195: 14 | E195: Due, J.Rangle - resale
A196: 13273 | B196: 2014-04-16 | C196: 17.52 | E196: J.Rangle - resale
A197: 13274 | B197: 2014-04-16 | C197: 15 | E197: Visa, Used
A198: 13275 | B198: 2014-04-16 | C198: 114.75 | D198: 8.75 | E198: Visa
A199: 13276 | B199: 2014-04-16 | C199: 264.56 | D199: 20.16
A200: 13277 | B200: 2014-04-16 | C200: 299.69 | D200: 22.84 | E200: Due | F200: =+C187+C188+C191+250+C190+C197+C198 -> 837.27 | G200: =+F200*0.97831 -> 819.1096137
... 140 more rows

Sheet Mar-14
A1: Invoice | C1: =SUM(C283:C480) -> 0 | D1: =SUM(D283:D480) -> 0 | H1: =TODAY() -> 2015-01-03
A2: Number | B2: Date | C2: Amount | D2: Tax | E2: Terms
A3: 12802 | B3: 2014-03-01 | C3: 261.42 | D3: 19.92 | E3: Visa
A4: 12803 | B4: 2014-03-01 | C4: 401.61 | D4: 30.61 | E4: Due
A5: 12804 | B5: 2014-03-01 | C5: 286.86 | D5: 21.86 | E5: Visa
A6: 12805 | B6: 2014-03-01 | C6: 3.19 | D6: 0.24 | E6: Visa
A7: 12806 | B7: 2014-03-01 | C7: 285.73 | D7: 21.78 | E7: Due
A8: 12807 | B8: 2014-03-01 | C8: 40.93 | D8: 3.12 | E8: Visa
A9: 12808 | B9: 2014-03-01 | C9: 64.95 | D9: 4.95 | E9: Visa
A10: 12809 | B10: 2014-03-01 | C10: 186.14 | D10: 14.19 | E10: Visa
A11: 12810 | B11: 2014-03-01 | C11: 19.95 | D11: 1.52
A12: 12811 | B12: 2014-03-01 | C12: 40 | D12: 3.05
A13: 12812 | B13: 2014-03-01 | C13: 21.6 | D13: 1.65 | E13: Visa | F13: =+C3+C5+C6+C8+C9+C10+C13+201.61 -> 1066.7 | G13: 1055.97
A14: 12813 | B14: 2014-03-03 | C14: 113.66 | D14: 8.66 | E14: Visa
A15: 12814 | B15: 2014-03-03 | C15: 54.07 | D15: 4.12
A16: 12815 | B16: 2014-03-03 | C16: 296.06 | D16: 22.56
A17: 12816 | B17: 2014-03-03 | C17: 162.38 | D17: 12.38
A18: 12817 | B18: 2014-03-03 | C18: 372 | D18: 0 | E18: Derick TWT - Resale
A19: 12818 | B19: 2014-03-03 | C19: 96 | E19: J.Rangel TWK - Resale | F19: =+C14 -> 113.66 | G19: 112.95
A20: 12819 | B20: 2014-03-04 | C20: 18.35 | D20: 1.4
A21: 12820 | B21: 2014-03-04 | C21: 10.83 | D21: 0.83
A22: 12821 | B22: 2014-03-04 | C22: 38 | E22: Due, Derick TWT - Resale
A23: 12822 | B23: 2014-03-04 | C23: 58.46 | D23: 4.46 | E23: Visa
A24: 12823 | B24: 2014-03-04 | C24: 21.54 | D24: 1.64
A25: 12824 | B25: 2014-03-04 | C25: 14.61 | D25: 1.11
A26: 12825 | B26: 2014-03-04 | C26: 449.78 | D26: 34.28 | E26: Visa
A27: 12826 | B27: 2014-03-04 | C27: 173.2 | D27: 13.2 | E27: $73.20 due
A28: 12827 | B28: 2014-03-04 | C28: 33.17 | D28: 2.53 | E28: Due, Randy (Red Baja)
A29: 12828 | B29: 2014-03-04 | C29: 59.32 | D29: 4.52 | E29: Due, Victor | F29: =+C23+C26 -> 508.24 | G29: 505.3
A30: 12829 | B30: 2014-03-05 | C30: 264.13 | D30: 20.13
A31: 12830 | B31: 2014-03-05 | C31: 12.99 | D31: 0.99
A32: 12831 | B32: 2014-03-05 | C32: 128.38 | D32: 9.78 | E32: Visa
A33: 12832 | B33: 2014-03-05 | C33: 26 | D33: 1.98
A34: 12833 | B34: 2014-03-05 | C34: 4.28 | D34: 0.33
A35: 12834 | B35: 2014-03-05 | C35: 123.16 | D35: 9.39
A36: 12835 | B36: 2014-03-05 | C36: 165.03 | D36: 12.58 | E36: Visa
A37: 12836 | B37: 2014-03-05 | C37: 30.8 | D37: 2.35 | E37: Visa
A38: 12837 | B38: 2014-03-05 | C38: 179.6517 | D38: 13.6917 | E38: Randy, $99.65 due
A39: 12838 | B39: 2014-03-05 | C39: 350.68 | D39: 26.73 | F39: =+C32+C36+C37 -> 324.21 | G39: 319.38
A40: 12839 | B40: 2014-03-06 | C40: 570.48 | D40: 43.48 | E40: Visa
A41: 12840 | B41: 2014-03-06 | C41: 20.46 | D41: 1.56 | E41: Visa
A42: 12841 | B42: 2014-03-06 | C42: 70.31 | D42: 5.36
A43: 12842 | B43: 2014-03-06 | C43: 248.92 | D43: 18.97 | E43: Visa, $148.92 due
A44: 12843 | B44: 2014-03-06 | C44: 22.73 | D44: 1.73
A45: 12844 | B45: 2014-03-06 | C45: 32.1 | D45: 2.45 | E45: Visa
A46: 12845 | B46: 2014-03-06 | C46: 226 | E46: Bike Rodz - Reslae
A47: 12846 | B47: 2014-03-06 | C47: 55.2 | D47: 4.21 | E47: Visa
A48: 12847 | B48: 2014-03-06 | C48: 20.51 | D48: 1.56 | E48: Visa
A49: 12848 | B49: 2014-03-06 | C49: 8.66 | D49: 0.66 | E49: Visa | F49: =250+C41+100+C45+C47+C48+C49 -> 486.93 | G49: 477.55
A50: 12849 | B50: 2014-03-07 | C50: 37.83 | D50: 2.88
A51: 12850 | B51: 2014-03-07 | C51: 17.27 | D51: 1.32
A52: 12851 | B52: 2014-03-07 | C52: 298.77 | D52: 22.77
A53: 12852 | B53: 2014-03-07 | C53: 34.5
A54: 12853 | B54: 2014-03-07 | C54: 180 | D54: 13.72 | E54: Visa
A55: 12854 | B55: 2014-03-07 | C55: 6.44 | D55: 0.49
A56: 12855 | B56: 2014-03-07 | C56: 295.52 | D56: 22.52 | E56: Visa
A57: 12856 | B57: 2014-03-07 | C57: 44.33 | D57: 3.38 | E57: Visa
A58: 12857 | B58: 2014-03-07 | C58: 147.22 | D58: 11.22
A59: 12858 | B59: 2014-03-07 | C59: 24 | E59: Due, Bike Rodz - Resale
A60: 12859 | B60: 2014-03-07 | C60: 43.3 | D60: 3.3 | E60: Visa
A61: 12860 | B61: 2014-03-07 | C61: 35.72 | D61: 2.72
A62: 12861 | B62: 2014-03-07 | C62: 225.16 | D62: 17.16 | E62: Discover
A63: 12862 | B63: 2014-03-07 | C63: 197.94 | D63: 15.09 | E63: $177.94 Visa
A64: 12863 | B64: 2014-03-07 | C64: 12.99 | D64: 0.99 | E64: Visa
A65: 12864 | B65: 2014-03-07 | C65: 10.83 | D65: 0.83
A66: 12865 | B66: 2014-03-07 | C66: 95.26 | D66: 7.26 | E66: Visa | F66: =+C54+C56+C57+C60+C62+177.94+C64+C66 -> 1074.5 | G66: 1059.03
A67: 12866 | B67: 2014-03-08 | C67: 10.72 | D67: 0.82 | E67: Visa
A68: 12867 | B68: 2014-03-08 | C68: 20.92 | D68: 1.59 | E68: Visa
A69: 12868 | B69: 2014-03-08 | C69: 334.99 | D69: 25.53 | E69: MC
A70: 12869 | B70: 2014-03-08 | C70: 268.46 | D70: 20.46 | E70: Visa
A71: 12870 | B71: 2014-03-08 | C71: 141.27 | D71: 10.77
A72: 12871 | B72: 2014-03-08 | C72: 194.58 | D72: 14.83 | E72: Due
A73: 12872 | B73: 2014-03-08 | C73: 137.48 | D73: 10.48 | E73: Visa
A74: 12873 | B74: 2014-03-08 | C74: 47.63 | D74: 3.63 | E74: Visa
A75: 12874 | B75: 2014-03-08 | C75: 43.95 | D75: 3.35
A76: 12875 | B76: 2014-03-08 | C76: 39.51 | D76: 3.01 | E76: Visa
A77: 12876 | B77: 2014-03-08 | C77: 15 | E77: Visa
A78: 12877 | B78: 2014-03-08 | C78: 19 | E78: Visa
A79: 12878 | B79: 2014-03-08 | C79: 153.72 | D79: 11.72 | E79: Visa
A80: 12879 | B80: 2014-03-08 | C80: 132.07 | D80: 10.07 | E80: Visa
A81: 12880 | B81: 2014-03-08 | C81: 162.38 | D81: 12.38 | E81: Visa | F81: 1399.11 | G81: =+F81*0.97831 -> 1368.763304
A82: 12887 | B82: 2014-03-08 | C82: 20 | D82: 1.52
A83: 12881 | B83: 2014-03-10 | C83: 29.77 | D83: 2.27 | E83: Visa
A84: 12882 | B84: 2014-03-10 | C84: 119.08 | D84: 9.08 | E84: MC
A85: 12883 | B85: 2014-03-10 | C85: 142
A86: 12884 | B86: 2014-03-10 | C86: 15 | E86: Visa
A87: 12885 | B87: 2014-03-10 | C87: 47.63 | D87: 3.63 | E87: Visa
A88: 12886 | B88: 2014-03-10 | C88: 180.72 | D88: 13.77 | E88: Visa | F88: =+C83+80+C86+C87+C88 -> 353.12 | G88: 349.01
A89: 12888 | B89: 2014-03-11 | C89: 102.84 | D89: 7.84 | E89: Visa
A90: 12889 | B90: 2014-03-11 | C90: 26.2 | D90: 2 | E90: Visa
A91: 12890 | B91: 2014-03-11 | C91: 202.97 | D91: 15.47 | E91: Due
A92: 12891 | B92: 2014-03-11 | C92: 14.5 | E92: Done Rite - Resale
A93: 12892 | B93: 2014-03-11 | C93: 18.35 | D93: 1.4 | E93: Visa
A94: 12893 | B94: 2014-03-11 | C94: 40.59 | D94: 3.09 | E94: MC
A95: 12894 | B95: 2014-03-11 | C95: 229.98 | D95: 17.53 | E95: Visa
A96: 12895 | B96: 2014-03-11 | C96: 27.06 | D96: 2.06
A97: 12896 | B97: 2014-03-11 | C97: 64.9 | D97: 4.95 | E97: Discover
A98: 12897 | B98: 2014-03-11 | C98: 118.2 | E98: Due, Chris F - resale
A99: 12898 | B99: 2014-03-11 | C99: 182.4 | D99: 13.9 | E99: Visa | F99: =+C89+C90+C93+C94+C95+C97+C99+111.34 -> 776.6 | G99: 769.17
A100: 12899 | B100: 2014-03-12 | C100: 293.9 | D100: 22.4 | E100: Due
A101: 12900 | B101: 2014-03-12 | C101: 12.99 | D101: 0.99 | E101: Visa
A102: 12901 | B102: 2014-03-12 | C102: 117.99 | D102: 8.99
A103: 12902 | B103: 2014-03-12 | C103: 17.27 | D103: 1.32
A104: 12903 | B104: 2014-03-12 | C104: 53.04 | D104: 4.04 | E104: Visa
A105: 12904 | B105: 2014-03-12 | C105: 212.71 | D105: 16.21 | E105: Trade
A106: 12905 | B106: 2014-03-12 | C106: 16.72 | D106: 1.27 | E106: Visa
A107: 12906 | B107: 2014-03-12 | C107: 52.83 | D107: 4.03
A108: 12907 | B108: 2014-03-12 | C108: 26.3 | D108: 2
A109: 12908 | B109: 2014-03-12 | C109: 22.62 | D109: 1.72
A110: 12909 | B110: 2014-03-12 | C110: 20 | D110: 1.52 | F110: =+C101+C104+C106+320.48+194.58 -> 597.81 | G110: 585.17
A111: 12910 | B111: 2014-03-13 | C111: 259.8 | D111: 19.8 | E111: Visa
A112: 12911 | B112: 2014-03-13 | C112: 48.71 | D112: 3.71 | E112: Due
A113: 12912 | B113: 2014-03-13 | C113: 100 | D113: 7.62
A114: 12913 | B114: 2014-03-13 | C114: 64.95 | D114: 4.95 | E114: Check
A115: 12914 | B115: 2014-03-13 | C115: 89.74 | D115: 6.84
A116: 12915 | B116: 2014-03-13 | C116: 162.38 | D116: 12.38 | E116: Visa, $122.18 due
A117: 12916 | B117: 2014-03-13 | C117: 12.94 | D117: 0.99
A118: 12917 | B118: 2014-03-13 | C118: 38.32 | D118: 2.92 | E118: Visa
A119: 12918 | B119: 2014-03-13 | C119: 35.67 | D119: 2.72 | E119: MC
A120: 12919 | B120: 2014-03-13 | C120: 44 | D120: 3.35
A121: 12920 | B121: 2014-03-13 | C121: 285.78 | D121: 21.78 | E121: Visa
A122: 12921 | B122: 2014-03-13 | C122: 194.85 | D122: 14.85 | E122: Due
A123: 12922 | B123: 2014-03-13 | C123: 6.44 | D123: 0.49 | E123: Visa | F123: =+C111+40.2+C118+C119+C121+118.2+C123 -> 784.41 | G123: 774.5
A124: 12923 | B124: 2014-03-14 | C124: 130 | E124: J.Rangel TWK - Resale
A125: 12924 | B125: 2014-03-14 | C125: 192.69 | D125: 14.69
A126: 12925 | B126: 2014-03-14 | C126: 250 | E126: Dons - Falfurious, resale
A127: 12926 | B127: 2014-03-14 | C127: 326.92 | D127: 24.92 | E127: $206.92 due
A128: 12927 | B128: 2014-03-14 | C128: 162.38 | D128: 12.38 | E128: $62.38 due
A129: 12928 | B129: 2014-03-14 | C129: 59.54 | D129: 4.54 | E129: Due
A130: 12929 | B130: 2014-03-14 | C130: 256.01125 | D130: 19.51125
A131: 12930 | B131: 2014-03-14 | C131: 4.28 | D131: 0.33
A132: 12931 | B132: 2014-03-14 | C132: 344.24 | D132: 26.24 | E132: Due
A133: 12932 | B133: 2014-03-14 | C133: 20 | D133: 1.52
A134: 12933 | B134: 2014-03-14 | C134: 16.24 | D134: 1.24 | E134: Due, Randy (Red Baja) | F134: 194.85 | G134: 190.87
A135: 12934 | B135: 2014-03-15 | C135: 21.6 | D135: 1.65
A136: 12935 | B136: 2014-03-15 | C136: 40 | D136: 3.05 | E136: Visa
A137: 12936 | B137: 2014-03-15 | C137: 171.58 | D137: 13.08 | E137: Visa
A138: 12937 | B138: 2014-03-15 | C138: 81.19 | D138: 6.19
A139: 12938 | B139: 2014-03-15 | C139: 52.51 | D139: 4 | E139: MC
A140: 12939 | B140: 2014-03-15 | C140: 18.02 | D140: 1.37 | E140: Visa
A141: 12940 | B141: 2014-03-15 | C141: 36.75 | D141: 2.8 | E141: Visa
A142: 12941 | B142: 2014-03-15 | C142: 303.1 | D142: 23.1 | E142: Visa
A143: 12942 | B143: 2014-03-15 | C143: 166.6 | E143: ESG - resale
A144: 12943 | B144: 2014-03-15 | C144: 100 | D144: 7.62 | E144: Due, Trade for exhaust
A145: 12944 | B145: 2014-03-15 | C145: 40 | D145: 3.05
A146: 12945 | B146: 2014-03-15 | C146: 90.93 | D146: 6.93 | E146: Due | F146: 0 | G146: =+F146*0.97831 -> 0 | H146: Forgot to settle
A147: 12946 | B147: 2014-03-17 | C147: 74.69 | D147: 5.69
A148: 12947 | B148: 2014-03-17 | C148: 17.27 | D148: 1.32
A149: 12948 | B149: 2014-03-17 | C149: 17.27 | D149: 1.32 | E149: Check
A150: 12949 | B150: 2014-03-17 | C150: 200 | D150: 15.24 | E150: Visa
A151: 12950 | B151: 2014-03-17 | C151: 45.25 | D151: 3.45
A152: 12951 | B152: 2014-03-17 | C152: 69 | E152: Due, Border Patrol
A153: 12952 | B153: 2014-03-17 | C153: 249 | E153: Due, Chris F - resale
A154: 12953 | B154: 2014-03-17 | C154: 12 | E154: J.Rangel TWK - Resale
A155: 12954 | B155: 2014-03-17 | C155: 508.78 | D155: 38.78 | E155: Visa
A156: 12955 | B156: 2014-03-17 | C156: 11.85 | D156: 0.9
A157: 12956 | B157: 2014-03-17 | C157: 18 | E157: J.Rangel TWK - Resale
A158: 12957 | B158: 2014-03-17 | C158: 49.63 | D158: 3.78 | E158: MC
A159: 12958 | B159: 2014-03-17 | C159: 101.88 | E159: MX Manifesto
A160: 12959 | B160: 2014-03-17 | C160: 19.43 | D160: 1.48 | E160: Due
A161: 12960 | B161: 2014-03-17 | C161: 152 | E161: MX Manifesto | F161: =+C150+C155+621.96+160.63 -> 1491.37 | G161: 1459.15
A162: 12961 | B162: 2014-03-18 | C162: 74.69 | D162: 5.69
A163: 12962 | B163: 2014-03-18 | C163: 23.8 | E163: MC
A164: 12963 | B164: 2014-03-18 | C164: 23.8 | E164: MC
A165: 12964 | B165: 2014-03-18 | C165: 134.23 | D165: 10.23 | E165: Visa
A166: 12965 | B166: 2014-03-18 | C166: 14.34 | D166: 1.09 | E166: Visa
A167: 12966 | B167: 2014-03-18 | C167: 29.23 | D167: 2.23
A168: 12967 | B168: 2014-03-18 | C168: 392.95 | D168: 29.95 | E168: Due
A169: 12968 | B169: 2014-03-18 | C169: 16.24 | D169: 1.24 | F169: 0 | G169: =+F169*0.97831 -> 0 | H169: Forgot to settle
A170: 12969 | B170: 2014-03-19 | C170: 130.87 | D170: 9.97
A171: 12970 | B171: 2014-03-19 | C171: 133.15 | D171: 10.15
A172: 12971 | B172: 2014-03-19 | C172: 138 | E172: Due, Border Patrol
A173: 12972 | B173: 2014-03-19 | C173: 156 | E173: Visa, Done Rite - resale
A174: 12973 | B174: 2014-03-19 | C174: 10.83 | D174: 0.83 | E174: Visa
A175: 12974 | B175: 2014-03-19 | C175: 82.81 | D175: 6.31 | E175: Visa
A176: 12975 | B176: 2014-03-19 | C176: 82.81 | D176: 6.31 | E176: Due
A177: 12976 | B177: 2014-03-19 | C177: -36 | E177: MX Manifesto
A178: 12977 | B178: 2014-03-19 | C178: 219.75 | D178: 16.75 | E178: Due, scooter
A179: 12978 | B179: 2014-03-19 | C179: 20.57 | D179: 1.57
A180: 12979 | B180: 2014-03-19 | C180: 257.64 | D180: 19.64 | E180: Visa | F180: =+C173+C174+C175+257.64+444.06 -> 951.34 | G180: 939.56
A181: 12980 | B181: 2014-03-20 | C181: 11.5
A182: 12981 | B182: 2014-03-20 | C182: 17.48 | D182: 1.33
A183: 12982 | B183: 2014-03-20 | C183: 161.29 | D183: 12.29 | E183: Visa
A184: 12983 | B184: 2014-03-20 | C184: 5
A185: 12984 | B185: 2014-03-20 | C185: 14.02 | D185: 1.07 | E185: MC
A186: 12985 | B186: 2014-03-20 | C186: 256 | E186: J.Rangel TWK - Resale
A187: 12986 | B187: 2014-03-20 | C187: 328.56 | D187: 25.04
A188: 12987 | B188: 2014-03-20 | C188: 71.99 | D188: 5.49 | E188: MC
A189: 12988 | B189: 2014-03-20 | C189: 24
A190: 12989 | B190: 2014-03-20 | C190: 168.05 | D190: 28.05 | E190: Due | F190: =+C183+C185+69+43+C188 -> 359.3 | G190: 353.97
A191: 12990 | B191: 2014-03-21 | C191: 94.18 | D191: 7.18 | E191: $64.18 Visa, Bal cash
A192: 12991 | B192: 2014-03-21 | C192: 97.43 | D192: 7.43 | E192: Visa
A193: 12992 | B193: 2014-03-21 | C193: 58.4 | D193: 4.45
A194: 12993 | B194: 2014-03-21 | C194: 86.6 | D194: 6.6 | E194: Visa
A195: 12994 | B195: 2014-03-21 | C195: 21.65 | D195: 1.65 | E195: Visa
A196: 12995 | B196: 2014-03-21 | C196: 12.45 | D196: 0.95
A197: 12996 | B197: 2014-03-21 | C197: 25.76 | D197: 1.96
A198: 12997 | B198: 2014-03-21 | C198: 143 | E198: Visa, J.Rangel TWK - Resale
A199: 12998 | B199: 2014-03-21 | C199: 34.64 | D199: 2.64 | F199: =64.18+C192+C194+C195+C198 -> 412.86 | G199: =+F199*0.97831 -> 403.9050666
A200: 12999 | B200: 2014-03-22 | C200: 20 | D200: 1.52
... 81 more rows

Sheet Feb-14
A1: Invoice | C1: =SUM(C260:C457) -> 0 | D1: =SUM(D260:D457) -> 0 | H1: =TODAY() -> 2015-01-03
A2: Number | B2: Date | C2: Amount | D2: Tax | E2: Terms
A3: 12545 | B3: 2014-02-01 | C3: 120 | E3: Visa, Fred, The Car Store - resale
A4: 12546 | B4: 2014-02-01 | C4: 51.42 | D4: 3.92
A5: 12547 | B5: 2014-02-01 | C5: 221.91 | D5: 16.91
A6: 12548 | B6: 2014-02-01 | C6: 197.45 | D6: 15.05 | E6: Visa, $122.45 due
A7: 12549 | B7: 2014-02-01 | C7: 18.35 | D7: 1.4 | E7: Visa
A8: 12550 | B8: 2014-02-01 | C8: 32.9 | D8: 2.51 | E8: Visa
A9: 12551 | B9: 2014-02-01 | C9: 40.86 | D9: 3.11
A10: 12552 | B10: 2014-02-01 | C10: 11.91 | D10: 0.91 | E10: Visa
A11: 12553 | B11: 2014-02-01 | C11: 20.51 | D11: 1.56
A12: 12554 | B12: 2014-02-01 | C12: 108 | D12: 8.23
A13: 12555 | B13: 2014-02-01 | C13: 10 | E13: Fred, The Car Store - resale
A14: 12556 | B14: 2014-02-01 | C14: 17.27 | D14: 1.32 | E14: Visa, Addl to Inv 12497 | F14: =+C3+75+C7+C8+C10+125.81+20.86+30 -> 434.83 | G14: 430.57
A15: 12557 | B15: 2014-02-03 | C15: 137.96 | D15: 10.51
A16: 12558 | B16: 2014-02-03 | C16: 17.27 | D16: 1.32 | E16: Visa
A17: 12559 | B17: 2014-02-03 | C17: 220.83 | D17: 16.83 | E17: Visa
A18: 12560 | B18: 2014-02-03 | C18: 5 | D18: 0.38
A19: 12561 | B19: 2014-02-03 | C19: 47.09 | D19: 3.59 | E19: Due, OT
A20: 12562 | B20: 2014-02-03 | C20: 351.27 | D20: 26.77 | E20: Visa, (Randys)
A21: 12563 | B21: 2014-02-03 | C21: 47.63 | D21: 3.63 | E21: MC
A22: 12564 | B22: 2014-02-03 | C22: 641.92 | D22: 48.92 | E22: $351.92 due
A23: 12565 | B23: 2014-02-03 | C23: 12.88 | D23: 0.98 | F23: =+C16+C17+C21 -> 285.73 | G23: 283.16
A24: 12566 | B24: 2014-02-04 | C24: 140.83 | D24: 10.73
A25: 12567 | B25: 2014-02-04 | C25: 10.75 | E25: MC, Border Patrol | F25: =+C25 -> 10.75 | G25: 10.26
A26: 12568 | B26: 2014-02-05 | C26: 8.43 | D26: 0.64 | E26: Due, Randy
A27: 12569 | B27: 2014-02-05 | C27: 12.99 | D27: 0.99
A28: 12570 | B28: 2014-02-05 | C28: 10 | E28: Visa, Border Patrol
A29: 12571 | B29: 2014-02-05 | C29: 90.93 | D29: 6.93 | E29: $45.93 Visa, Bal Cash
A30: 12572 | B30: 2014-02-05 | C30: 30 | D30: 2.29
A31: 12573 | B31: 2014-02-05 | C31: 274.85 | D31: 20.95
A32: 12574 | B32: 2014-02-05 | C32: 24.84 | D32: 1.89 | F32: =+C28+500+45.93+122.45+7.99 -> 686.37 | G32: 674.43
A33: 12575 | B33: 2014-02-06 | C33: 61.54 | D33: 4.69 | E33: Visa
A34: 12576 | B34: 2014-02-06 | C34: 130 | E34: ESG, resale - $82.10 due
A35: 12577 | B35: 2014-02-06 | C35: 15.7 | D35: 1.2 | E35: MC
A36: 12578 | B36: 2014-02-06 | C36: 89.9 | E36: ESG Customs - resale
A37: 12579 | B37: 2014-02-06 | C37: 196.04 | D37: 14.94 | E37: MC
A38: 12580 | B38: 2014-02-06 | C38: 108 | E38: Due, Border Patrol | F38: =+C33+C35 -> 77.24 | G38: 76.27
A39: 12581 | B39: 2014-02-07 | C39: 99.59 | D39: 7.59 | E39: Visa
A40: 12582 | B40: 2014-02-07 | C40: 46.54 | D40: 3.55 | E40: Visa, (Randys)
A41: 12583 | B41: 2014-02-07 | C41: 31.28 | D41: 2.38 | E41: Visa
A42: 12584 | B42: 2014-02-07 | C42: 225.05 | D42: 17.15 | E42: Visa
A43: 12585 | B43: 2014-02-07 | C43: 21.54 | D43: 1.64
A44: 12586 | B44: 2014-02-07 | C44: 189.22 | D44: 14.42
A45: 12587 | B45: 2014-02-07 | C45: 23.82 | D45: 1.82 | H45: Rcvd $1,000. 10-Feb
A46: 12588 | B46: 2014-02-07 | C46: 86.6 | D46: 6.6 | E46: Visa | F46: =+C39+351.92+C20+288.81+C40-1038.54+C41+C42+C46 -> 442.52 | G46: 435.62 | H46: + $1,038.54 Randys CC
A47: 12589 | B47: 2014-02-08 | C47: 13 | E47: Visa
A48: 12590 | B48: 2014-02-08 | C48: 23.76 | D48: 1.81 | E48: Visa
A49: 12591 | B49: 2014-02-08 | C49: 18.35 | D49: 1.4 | E49: Visa
A50: 12592 | B50: 2014-02-08 | C50: 365.89 | D50: 27.89 | E50: $65.89 due
A51: 12593 | B51: 2014-02-08 | C51: 147.96 | D51: 11.26
A52: 12594 | B52: 2014-02-08 | C52: 11.91 | D52: 0.91 | E52: Visa
A53: 12595 | B53: 2014-02-08 | C53: 212.17 | D53: 16.17 | E53: Visa
A54: 12596 | B54: 2014-02-08 | C54: 32.48 | D54: 2.48
A55: 12597 | B55: 2014-02-08 | C55: 135.31 | D55: 10.31 | E55: Visa
A56: 12598 | B56: 2014-02-08 | C56: 149.93 | D56: 11.43 | F56: =+C47+C48+C49+C52+C53+C55 -> 414.5 | G56: 407.7
A57: 12599 | B57: 2014-02-10 | C57: 46.49 | D57: 3.54
A58: 12600 | B58: 2014-02-10 | C58: 35.9 | D58: 2.74
A59: 12601 | B59: 2014-02-10 | C59: 277.66 | D59: 21.16
A60: 12602 | B60: 2014-02-10 | C60: 19.49 | D60: 1.49 | E60: Visa
A61: 12603 | B61: 2014-02-10 | C61: 283.62 | D61: 21.62
A62: 12604 | B62: 2014-02-10 | C62: 81.19 | D62: 6.19
A63: 12605 | B63: 2014-02-10 | C63: 27.06 | D63: 2.06
A64: 12606 | B64: 2014-02-10 | C64: 10.39 | D64: 0.79
A65: 12607 | B65: 2014-02-10 | C65: 14 | E65: J.Rangle - resale
A66: 12608 | B66: 2014-02-10 | C66: 100.56 | D66: 7.66 | E66: Due | F66: =+C60+51.19 -> 70.68 | G66: 69.36
A67: 12609 | B67: 2014-02-11 | C67: 136.4 | D67: 10.4
A68: 12610 | B68: 2014-02-11 | C68: 32.48 | D68: 2.48 | F68: 0 | G68: =+F68*0.97831 -> 0
A69: 12611 | B69: 2014-02-12 | C69: 130 | D69: 9.91
A70: 12612 | B70: 2014-02-12 | C70: 83.09 | D70: 6.33 | E70: MC
A71: 12613 | B71: 2014-02-12 | C71: 103.92 | D71: 7.92 | E71: Visa
A72: 12614 | B72: 2014-02-12 | C72: 11 | D72: 0.84
A73: 12615 | B73: 2014-02-12 | C73: 97.43 | D73: 7.43
A74: 12616 | B74: 2014-02-12 | C74: 30.7 | D74: 2.34
A75: 12617 | B75: 2014-02-12 | C75: 23.65 | D75: 1.8 | E75: MC
A76: 12618 | B76: 2014-02-12 | C76: 17.27 | D76: 1.32 | E76: MC
A77: 12619 | B77: 2014-02-12 | C77: 9.69 | D77: 0.74
A78: 12620 | B78: 2014-02-12 | C78: 82 | D78: 6.25
A79: 12621 | B79: 2014-02-12 | C79: 108.25 | D79: 8.25
A80: 12622 | B80: 2014-02-12 | C80: 221.91 | D80: 16.91
A81: 12623 | B81: 2014-02-12 | C81: 37 | D81: 2.82
A82: 12624 | B82: 2014-02-12 | C82: 114.58 | D82: 8.73 | E82: Visa
A83: 12625 | B83: 2014-02-12 | C83: 32.42 | D83: 2.47 | E83: Visa | F83: =30+C70+C71+108+C75+C37+C76+C82+C83 -> 708.97 | G83: 697.03
A84: 12626 | B84: 2014-02-13 | C84: 1223 | E84: Visa
A85: 12627 | B85: 2014-02-13 | C85: 478.47 | D85: 36.47 | E85: $158.47 due
A86: 12628 | B86: 2014-02-13 | C86: 99 | E86: James Ind - Resale
A87: 12629 | B87: 2014-02-13 | C87: 21.6 | D87: 1.65
A88: 12630 | B88: 2014-02-13 | C88: 337.74 | D88: 25.74 | E88: Visa
A89: 12631 | B89: 2014-02-13 | C89: 11.91 | D89: 0.91
A90: 12632 | B90: 2014-02-13 | C90: 57 | E90: Visa
A91: 12633 | B91: 2014-02-13 | C91: 11
A92: 12634 | B92: 2014-02-13 | C92: 5 | E92: Johnny's Customs - resale
A93: 12635 | B93: 2014-02-13 | C93: 9.5 | D93: 0.72
A94: 12636 | B94: 2014-02-13 | C94: 111.5 | D94: 8.5 | E94: Visa
A95: 12637 | B95: 2014-02-13 | C95: -28 | D95: -2.13 | E95: Return | F95: =+C88+C90+C94+26.86 -> 533.1 | G95: 523.69
A96: 12638 | B96: 2014-02-14 | C96: 112 | D96: 8.53 | E96: MC
A97: 12639 | B97: 2014-02-14 | C97: 249.84 | D97: 19.04 | E97: Visa
A98: 12640 | B98: 2014-02-14 | C98: 651.67 | D98: 49.67 | E98: Visa, $451.67 due
A99: 12641 | B99: 2014-02-14 | C99: 222.45 | D99: 16.95 | E99: Visa
A100: 12642 | B100: 2014-02-14 | C100: 449.24 | D100: 34.24
A101: 12643 | B101: 2014-02-14 | C101: 164 | E101: Palacios - resale
A102: 12644 | B102: 2014-02-14 | C102: 21.65 | D102: 1.65 | E102: Visa
A103: 12645 | B103: 2014-02-14 | C103: 5.41 | D103: 0.41
A104: 12646 | B104: 2014-02-14 | C104: 219.69 | D104: 16.74 | E104: Visa | F104: =+C97+200+C99+C102+C104+138.14 -> 1051.77 | G104: 1043.39
A105: 12647 | B105: 2014-02-15 | C105: 221.91 | D105: 16.91 | E105: $81.91 due
A106: 12648 | B106: 2014-02-15 | C106: 43.3 | D106: 3.3 | E106: MC
A107: 12649 | B107: 2014-02-15 | C107: 41.14 | D107: 3.14 | E107: Visa, $16.14 due
A108: 12650 | B108: 2014-02-15 | C108: 85.52 | D108: 6.52 | E108: MC
A109: 12651 | B109: 2014-02-15 | C109: 16.18 | D109: 1.23 | E109: Visa
A110: 12652 | B110: 2014-02-15 | C110: 19.49 | D110: 1.49 | E110: Visa
A111: 12653 | B111: 2014-02-15 | C111: 70 | E111: Adrenaline - resale
A112: 12654 | B112: 2014-02-15 | C112: 33.56 | D112: 2.56
A113: 12655 | B113: 2014-02-15 | C113: 16.18 | D113: 1.23
A114: 12656 | B114: 2014-02-15 | C114: 208.92 | D114: 15.92
A115: 12657 | B115: 2014-02-15 | C115: 392.95 | D115: 29.95 | E115: Due
A116: 12658 | B116: 2014-02-15 | C116: 53.04 | D116: 4.04
A117: 12659 | B117: 2014-02-15 | C117: 201.35 | D117: 15.35 | F117: =+C106+25+C108+C109+C110 -> 189.49 | G117: 185.53
A118: 12660 | B118: 2014-02-17 | C118: 4.28 | D118: 0.33
A119: 12661 | B119: 2014-02-17 | C119: 160 | E119: J. Rangle - resale
A120: 12662 | B120: 2014-02-17 | C120: 43.19 | D120: 3.29 | E120: Visa
A121: 12663 | B121: 2014-02-17 | C121: 167 | E121: Diligance - resale
A122: 12664 | B122: 2014-02-17 | C122: 283.07 | D122: 21.57 | E122: Visa
A123: 12665 | B123: 2014-02-17 | C123: 568.2 | D123: 43.3 | E123: Visa
A124: 12666 | B124: 2014-02-17 | C124: 67.12 | D124: 5.12
A125: 12667 | B125: 2014-02-17 | C125: 12.99 | D125: 0.99
A126: 12668 | B126: 2014-02-17 | C126: 189.44 | D126: 14.44
A127: 12669 | B127: 2014-02-17 | C127: 105
A128: 12670 | B128: 2014-02-17 | C128: 19 | E128: Visa
A129: 12671 | B129: 2014-02-17 | C129: 16 | F129: =+C120+C122+C123+C128 -> 913.46 | G129: 897.09
A130: 12672 | B130: 2014-02-18 | C130: 20
A131: 12673 | B131: 2014-02-18 | C131: 17.43 | D131: 1.33 | E131: MC
A132: 12674 | B132: 2014-02-18 | C132: 180.72 | D132: 13.77 | E132: Visa
A133: 12675 | B133: 2014-02-18 | C133: 6.44 | D133: 0.49
A134: 12676 | B134: 2014-02-18 | C134: 113.66 | D134: 8.66 | E134: MC
A135: 12677 | B135: 2014-02-18 | C135: 70 | E135: Adrenaline - resale
A136: 12678 | B136: 2014-02-18 | C136: 43.25 | D136: 3.3
A137: 12679 | B137: 2014-02-18 | C137: 108.14 | D137: 8.24
A138: 12680 | B138: 2014-02-18 | C138: 121.19 | D138: 9.24 | E138: MC
A139: 12681 | B139: 2014-02-18 | C139: 12.39 | D139: 0.94
A140: 12682 | B140: 2014-02-18 | C140: 44.38 | D140: 3.38 | E140: Visa
A141: 12683 | B141: 2014-02-18 | C141: 172.39 | D141: 13.14 | E141: Due | F141: =+C131+C132+C138+C134+C84+C140 -> 1700.38 | G141: 1662.09
A142: 12684 | B142: 2014-02-19 | C142: 17.27 | D142: 1.32
A143: 12685 | B143: 2014-02-19 | C143: 99.59 | D143: 7.59 | E143: Visa
A144: 12686 | B144: 2014-02-19 | C144: 552.08 | D144: 42.08 | E144: Visa
A145: 12687 | B145: 2014-02-19 | C145: 318.8 | D145: 24.3 | E145: Visa
A146: 12688 | B146: 2014-02-19 | C146: 6.44 | D146: 0.49 | E146: Visa
A147: 12689 | B147: 2014-02-19 | C147: 115.73 | E147: Due, ESG - reslae
A148: 12690 | B148: 2014-02-19 | C148: 616.65 | D148: 47 | E148: $416.65 due
A149: 12691 | B149: 2014-02-19 | C149: 5.36 | D149: 0.41
A150: 12692 | B150: 2014-02-19 | C150: 11.91 | D150: 0.91
A151: 12693 | B151: 2014-02-19 | C151: 9 | F151: =+C143+C144+C145+C146 -> 976.91 | G151: 965.51
A152: 12694 | B152: 2014-02-20 | C152: 9 | D152: 0.69
A153: 12695 | B153: 2014-02-20 | C153: 8 | D153: 0.6
A154: 12696 | B154: 2014-02-20 | C154: 236.01 | D154: 17.99 | E154: MC
A155: 12697 | B155: 2014-02-20 | C155: 81.19 | D155: 6.19 | E155: MC
A156: 12698 | B156: 2014-02-20 | C156: 15.1 | D156: 1.15
A157: 12699 | B157: 2014-02-20 | C157: 14.07 | D157: 1.07 | E157: Due
A158: 12700 | B158: 2014-02-20 | C158: 190 | E158: Due, Derick - resale
A159: 12701 | B159: 2014-02-20 | C159: 5 | D159: 0.38 | E159: MC
A160: 12702 | B160: 2014-02-20 | C160: 472.94 | D160: 36.04
A161: 12703 | B161: 2014-02-20 | C161: 32.42 | D161: 2.47
A162: 12704 | B162: 2014-02-20 | C162: 175
A163: 12705 | B163: 2014-02-20 | C163: 200 | D163: 15.24
A164: 12706 | B164: 2014-02-20 | C164: 107.17 | D164: 8.17 | E164: Due | F164: =+C154+C155+C159+166 -> 488.2 | G164: 481.87
A165: 12707 | B165: 2014-02-21 | C165: 62 | E165: Due, Border Patrol
A166: 12708 | B166: 2014-02-21 | C166: -90.93 | D166: -6.93 | E166: Hold open for cust.
A167: 12709 | B167: 2014-02-21 | C167: 9.74 | D167: 0.74
A168: 12710 | B168: 2014-02-21 | C168: 140.73 | D168: 10.73
A169: 12711 | B169: 2014-02-21 | C169: 263.26 | D169: 20.06
A170: 12712 | B170: 2014-02-21 | C170: 24 | D170: 1.83
A171: 12713 | B171: 2014-02-21 | C171: 264.13 | D171: 20.13
A172: 12714 | B172: 2014-02-21 | C172: 48
A173: 12715 | B173: 2014-02-21 | C173: 1895
A174: 12716 | B174: 2014-02-21 | C174: 42.16 | D174: 3.21
A175: 12717 | B175: 2014-02-21 | C175: 247.84 | D175: 18.89
A176: 12718 | B176: 2014-02-21 | C176: 215 | D176: 16.39
A177: 12719 | B177: 2014-02-21 | C177: 106.09 | D177: 8.09 | E177: Due
A178: 12720 | B178: 2014-02-21 | C178: 81.19 | D178: 6.19 | E178: Visa
A179: 12721 | B179: 2014-02-21 | C179: 227.33 | D179: 17.33 | E179: $127.33 AmExp
A180: 12722 | B180: 2014-02-21 | C180: 31.61 | D180: 2.41 | E180: MC
A181: 12723 | B181: 2014-02-21 | C181: 23.82 | D181: 1.82
A182: 12724 | B182: 2014-02-21 | C182: 266.3 | D182: 20.3 | F182: =+C180+451.62+62+C178 -> 626.42 | G182: 621.48
A183: 12725 | B183: 2014-02-22 | C183: 74.69 | D183: 5.69 | E183: Visa
A184: 12726 | B184: 2014-02-22 | C184: 54.13 | D184: 4.13
A185: 12727 | B185: 2014-02-22 | C185: 141.27 | D185: 10.77 | E185: Visa
A186: 12728 | B186: 2014-02-22 | C186: 127.74 | D186: 9.74
A187: 12729 | B187: 2014-02-22 | C187: 17.32 | D187: 1.32
A188: 12730 | B188: 2014-02-22 | C188: 414.6 | D188: 31.6 | E188: Visa
A189: 12731 | B189: 2014-02-22 | C189: 14.07 | D189: 1.07 | E189: Visa
A190: 12732 | B190: 2014-02-22 | C190: 167.79 | D190: 12.79 | E190: $99.08 due
A191: 12733 | B191: 2014-02-22 | C191: 10 | D191: 0.76
A192: 12734 | B192: 2014-02-22 | C192: 158.21 | D192: 12.06 | E192: Visa
A193: 12735 | B193: 2014-02-22 | C193: 11.5 | E193: Visa
A194: 12736 | B194: 2014-02-22 | C194: 75 | D194: 5.72 | E194: Visa
A195: 12737 | B195: 2014-02-22 | C195: 180.24 | D195: 13.74
A196: 12738 | B196: 2014-02-22 | C196: 1.49 | D196: 0.11
A197: 12739 | B197: 2014-02-22 | C197: 69.28 | D197: 5.28
A198: 12740 | B198: 2014-02-22 | C198: 18 | D198: 1.37 | F198: =+C183+C185+C188+C189+C192+C193+C194 -> 889.34 | G198: 880.72
A199: 12741 | B199: 2014-02-24 | C199: 85.52 | D199: 6.52 | E199: MC
A200: 12742 | B200: 2014-02-24 | C200: 11.85 | D200: 0.9 | E200: MC
... 59 more rows

Sheet Jan-14
A1: Invoice | C1: =SUM(C235:C432) -> 0 | D1: =SUM(D235:D432) -> 0 | H1: =TODAY() -> 2015-01-03
A2: Number | B2: Date | C2: Amount | D2: Tax | E2: Terms
A3: 12314 | B3: 2014-01-02 | C3: 135.85 | D3: 10.35 | E3: Visa, $65.49 due
A4: 12315 | B4: 2014-01-02 | C4: 27.06 | D4: 2.06
A5: 12316 | B5: 2014-01-02 | C5: 8.61 | D5: 0.66
A6: 12317 | B6: 2014-01-02 | C6: 234.9 | D6: 17.9 | E6: $174.90 (Randys)
A7: 12318 | B7: 2014-01-02 | C7: 152.63 | D7: 11.63 | E7: $52.63 due
A8: 12319 | B8: 2014-01-02 | C8: 57.32 | D8: 4.37 | E8: Visa, (Randys)
A9: 12320 | B9: 2014-01-02 | C9: 168.33 | D9: 12.83 | E9: Visa, (Randys) | F9: =70.36+C8+C9+174.09+112.22 -> 582.32 | G9: =+F9*0.97831 -> 569.6894792 | H9: $580 from Randy
A10: 12321 | B10: 2014-01-03 | C10: 70 | D10: 5.33
A11: 12322 | B11: 2014-01-03 | C11: 188.36 | D11: 14.36 | E11: MC, (Randys)
A12: 12323 | B12: 2014-01-03 | C12: 28.09 | D12: 2.14 | E12: Visa, (Randys)
A13: 12324 | B13: 2014-01-03 | C13: 148.84 | D13: 11.34
A14: 12325 | B14: 2014-01-03 | C14: 32.48 | D14: 2.48
A15: 12326 | B15: 2014-01-03 | C15: 123.41 | D15: 9.41
A16: 12327 | B16: 2014-01-03 | C16: 124.48 | D16: 9.48 | E16: Check
A17: 12328 | B17: 2014-01-03 | C17: 48.71 | D17: 3.71 | E17: Check
A18: 12329 | B18: 2014-01-03 | C18: 21.65 | D18: 1.65 | E18: Visa, (Randys) | F18: =40+C12+C18 -> 89.74 | G18: =+F18*0.97831 -> 87.7935394
A19: 12330 | B19: 2014-01-04 | C19: 44.33 | D19: 3.38
A20: 12331 | B20: 2014-01-04 | C20: 29.23 | D20: 2.23 | E20: MC, (Randys)
A21: 12332 | B21: 2014-01-04 | C21: 58.4 | D21: 4.45
A22: 12333 | B22: 2014-01-04 | C22: 29.23 | D22: 2.23
A23: 12334 | B23: 2014-01-04 | C23: 11.85 | D23: 0.9
A24: 12335 | B24: 2014-01-04 | C24: 139.64 | D24: 10.64
A25: 12336 | B25: 2014-01-04 | C25: 17.27 | D25: 1.32 | E25: Visa, (Randys)
A26: 12337 | B26: 2014-01-04 | C26: 149.93 | D26: 11.43 | E26: Visa, (Randys)
A27: 12338 | B27: 2014-01-04 | C27: 30.32 | D27: 2.31 | F27: =+C20+C25+C26 -> 196.43 | G27: =+F27*0.97831 -> 192.1694333 | H27: $320 from Randy
A28: 12339 | B28: 2014-01-06 | C28: 33.88 | D28: 2.58
A29: 12340 | B29: 2014-01-06 | C29: 438.41 | D29: 33.41 | E29: Visa, (Randys)
A30: 12341 | B30: 2014-01-06 | C30: 224.08 | D30: 17.08
A31: 12342 | B31: 2014-01-06 | C31: 16.18 | D31: 1.23
A32: 12343 | B32: 2014-01-06 | C32: 195.9 | D32: 14.93
A33: 12344 | B33: 2014-01-06 | C33: 35.88 | D33: 2.73 | E33: Due, Sjon
A34: 12345 | B34: 2014-01-06 | C34: 113.66 | D34: 8.66
A35: 12346 | B35: 2014-01-06 | C35: 32 | E35: J.Rangel - resale
A36: 12347 | B36: 2014-01-06 | C36: 110 | D36: 8.38 | F36: 200 | G36: =+F36*0.97831 -> 195.662 | H36: $104 HD order
A37: 12348 | B37: 2014-01-07 | C37: 130.98 | D37: 9.98 | E37: Visa, (Randys)
A38: 12349 | B38: 2014-01-07 | C38: 20.57 | D38: 1.57 | E38: Visa, (Randys)
A39: 12350 | B39: 2014-01-07 | C39: 1266 | E39: J.Rangel - resale
A40: 12351 | B40: 2014-01-07 | C40: 176.45 | D40: 13.45
A41: 12352 | B41: 2014-01-07 | C41: 64.95 | D41: 4.95 | E41: Visa, (Randys) | F41: =+C37+C38+C41 -> 216.5 | G41: =+F41*0.97831 -> 211.804115 | H41: $200 from Randy
A42: 12353 | B42: 2014-01-08 | C42: 293
A43: 12354 | B43: 2014-01-08 | C43: 224.08 | D43: 17.08 | E43: Due
A44: 12355 | B44: 2014-01-08 | C44: 5.36 | D44: 0.41
A45: 12356 | B45: 2014-01-08 | C45: 194.85 | D45: 14.85 | E45: Visa, (Randys)
A46: 12357 | B46: 2014-01-08 | C46: 22 | E46: Bike Rodz - resale
A47: 12358 | B47: 2014-01-08 | C47: 40 | E47: Due, J.Rangel - resale
A48: 12359 | B48: 2014-01-08 | C48: 34.59 | D48: 2.64
A49: 12360 | B49: 2014-01-08 | C49: 33 | E49: Visa
A50: 12361 | B50: 2014-01-08 | C50: 152.58 | D50: 11.63
A51: 12362 | B51: 2014-01-08 | C51: 33.56 | D51: 2.56
A52: 12363 | B52: 2014-01-08 | C52: 10.83 | D52: 0.83 | F52: =+C49+71.58+C45 -> 299.43 | G52: =+F52*0.97831 -> 292.9353633 | H52: $280 from Randy
A53: 12364 | B53: 2014-01-09 | C53: 79.02 | D53: 6.02 | E53: Due
A54: 12365 | B54: 2014-01-09 | C54: 85.52 | D54: 6.52 | E54: Due
A55: 12366 | B55: 2014-01-09 | C55: 25.98 | E55: ESG Customs - resale
A56: 12367 | B56: 2014-01-09 | C56: 7.52 | D56: 0.57 | E56: Due
A57: 12368 | B57: 2014-01-09 | C57: 20 | D57: 1.52
A58: 12369 | B58: 2014-01-09 | C58: 23.71 | D58: 1.81 | E58: Visa, (Randys)
A59: 12370 | B59: 2014-01-09 | C59: 305 | D59: 23.24
A60: 12371 | B60: 2014-01-09 | C60: 10 | D60: 0.76
A61: 12372 | B61: 2014-01-09 | C61: 11.85 | D61: 0.9
A62: 12373 | B62: 2014-01-09 | C62: 110 | E62: J.Rangel - resale
A63: 12374 | B63: 2014-01-09 | C63: 136.4 | D63: 10.4 | F63: =+C58 -> 23.71 | G63: =+F63*0.97831 -> 23.1957301
A64: 12375 | B64: 2014-01-10 | C64: 90.93 | D64: 6.93
A65: 12376 | B65: 2014-01-10 | C65: 408.1 | D65: 31.1 | E65: Visa, (Randys)
A66: 12377 | B66: 2014-01-10 | C66: 152.63 | D66: 11.63 | E66: Visa, (Randys)
A67: 12378 | B67: 2014-01-10 | C67: 28.15 | D67: 2.15
A68: 12379 | B68: 2014-01-10 | C68: 7 | D68: 0.53
A69: 12380 | B69: 2014-01-10 | C69: 43.3 | D69: 3.3
A70: 12381 | B70: 2014-01-10 | C70: 15 | D70: 1.14
A71: 12382 | B71: 2014-01-10 | C71: 209.27 | D71: 15.95 | E71: Due
A72: 12383 | B72: 2014-01-10 | C72: 25.87 | D72: 1.97
A73: 12384 | B73: 2014-01-10 | C73: 4.28 | D73: 0.33 | F73: =208.1+238.41+C66 -> 599.14 | G73: =+F73*0.97831 -> 586.1446534 | H73: $600 from Randy
A74: 12385 | B74: 2014-01-11 | C74: 14.07 | D74: 1.07
A75: 12386 | B75: 2014-01-11 | C75: 20.57 | D75: 1.57
A76: 12387 | B76: 2014-01-11 | C76: 68 | E76: Chris - resale, Visa, (Randys)
A77: 12388 | B77: 2014-01-11 | C77: 153.58 | D77: 2.18 | E77: Visa, (Randys)
A78: 12389 | B78: 2014-01-11 | C78: 49.86 | D78: 3.8
A79: 12390 | B79: 2014-01-11 | C79: 275.5 | D79: 21 | E79: Visa, (Randys)
A80: 12391 | B80: 2014-01-11 | C80: 59.87 | D80: 4.56 | E80: Visa, (Randys)
A81: 12392 | B81: 2014-01-11 | C81: 54.13 | D81: 4.13 | E81: Visa, (Randys)
A82: 12393 | B82: 2014-01-11 | C82: 228.95 | D82: 17.45 | E82: Visa, (Randys)
A83: 12394 | B83: 2014-01-11 | C83: 58.46 | D83: 4.46 | E83: Visa, (Randys)
A84: 12395 | B84: 2014-01-11 | C84: 29.23 | D84: 2.23 | E84: Visa, (Randys)
A85: 12396 | B85: 2014-01-11 | C85: 46.02 | D85: 3.51 | E85: Visa, (Randys)
A86: 12397 | B86: 2014-01-11 | C86: 60 | D86: 4.57
A87: 12398 | B87: 2014-01-11 | C87: 347.48 | D87: 26.48 | E87: Visa, (Randys)
A88: 12399 | B88: 2014-01-11 | C88: 194.85 | D88: 14.85 | E88: $144.85 due
A89: 12400 | B89: 2014-01-11 | C89: 135.31 | D89: 10.31 | E89: Due
A90: 12401 | B90: 2014-01-11 | C90: 5.36 | D90: 0.41 | E90: Visa, (Randys)
A91: 12402 | B91: 2014-01-11 | C91: -126 | E91: J.Rangel - resale | F91: =+C76+C77+C79+C80+C81+C82+C83+C84+C85+C90+C87 -> 1326.58 | G91: =+F91*0.97831 -> 1297.80648 | H91: $1,300 from Randy
A92: 12403 | B92: 2014-01-13 | C92: 10.83 | D92: 0.83 | E92: Visa, (Randys)
A93: 12404 | B93: 2014-01-13 | C93: 21.6 | D93: 1.65 | E93: Visa, (Randys)
A94: 12405 | B94: 2014-01-13 | C94: 67.12 | D94: 5.12 | E94: Visa, (Randys)
A95: 12406 | B95: 2014-01-13 | C95: 44.11 | D95: 3.36 | E95: Amer, (Randys)
A96: 12407 | B96: 2014-01-13 | C96: 346.4 | D96: 26.4
A97: 12408 | B97: 2014-01-13 | C97: 6.39 | D97: 0.49 | E97: Visa, (Randys)
A98: 12409 | B98: 2014-01-13 | C98: 7.58 | D98: 0.58 | E98: Visa, (Randys)
A99: 12410 | B99: 2014-01-13 | C99: 9.69 | D99: 0.74 | E99: Visa, (Randys)
A100: 12411 | B100: 2014-01-13 | C100: 509.86 | D100: 38.86 | F100: =+C92+C95+C97+C98+C99 -> 78.6 | G100: =+F100*0.97831 -> 76.895166 | H100: $200 from Randy
A101: 12412 | B101: 2014-01-14 | C101: 2.5 | D101: 0.19
A102: 12413 | B102: 2014-01-14 | C102: 42.22 | D102: 3.22
A103: 12414 | B103: 2014-01-14 | C103: 80.11 | D103: 6.11 | E103: $58.11 Visa, (Randys)
A104: 12415 | B104: 2014-01-14 | C104: 527.18 | D104: 40.18 | E104: Visa, (Randys)
A105: 12416 | B105: 2014-01-14 | C105: 11.91 | D105: 0.91
A106: 12417 | B106: 2014-01-14 | C106: -27.94 | D106: -2.13
A107: 12418 | B107: 2014-01-14 | C107: 148.3 | D107: 11.3
A108: 12419 | B108: 2014-01-14 | C108: 263.05 | D108: 20.05 | E108: Visa, (Randys)
A109: 12420 | B109: 2014-01-14 | C109: 283.07 | D109: 21.57 | E109: $183.07 due | F109: =58.11+151.55+C104+C108 -> 999.89 | G109: =+F109*0.97831 -> 978.2023859 | H109: $600 from Randy
A110: 12421 | B110: 2014-01-15 | C110: 56.69 | D110: 4.32 | E110: Visa, (Randys)
A111: 12422 | B111: 2014-01-15 | C111: 320.42 | D111: 24.42
A112: 12423 | B112: 2014-01-15 | C112: 27.06 | D112: 2.06 | E112: Due
A113: 12424 | B113: 2014-01-15 | C113: 10.98
A114: 12425 | B114: 2014-01-15 | C114: 89 | E114: Due, Border Patrol
A115: 12426 | B115: 2014-01-15 | C115: 316.82 | D115: 24.15 | E115: Visa, (Randys)
A116: 12427 | B116: 2014-01-15 | C116: 48.71 | D116: 3.71 | E116: Visa, (Randys)
A117: 12428 | B117: 2014-01-15 | C117: 21.6 | D117: 1.65
A118: 12429 | B118: 2014-01-15 | C118: 65.92 | D118: 5.02 | E118: Visa, (Randys)
A119: 12430 | B119: 2014-01-15 | C119: 41.08 | D119: 3.13 | E119: Visa, (Randys) | F119: =+C110+C115 -> 373.51 | G119: =+F119*0.97831 -> 365.4085681 | H119: $700 from Randy
A120: 12431 | B120: 2014-01-16 | C120: 11.26 | D120: 0.86
A121: 12432 | B121: 2014-01-16 | C121: 21.6 | D121: 1.65 | E121: Visa, (Randys)
A122: 12433 | B122: 2014-01-16 | C122: 9.69 | D122: 0.74
A123: 12434 | B123: 2014-01-16 | C123: 24.03 | D123: 1.83 | E123: Visa, (Randys)
A124: 12435 | B124: 2014-01-16 | C124: -21.6 | D124: -1.65 | E124: Return
A125: 12436 | B125: 2014-01-16 | C125: 133.09 | D125: 10.14
A126: 12437 | B126: 2014-01-16 | C126: 565.07 | D126: 43.07 | E126: Visa, (Randys)
A127: 12438 | B127: 2014-01-16 | C127: 33.56 | D127: 2.56
A128: 12439 | B128: 2014-01-16 | C128: 171.04 | D128: 13.04 | E128: Due | F128: =+C121+200+C123+C126 -> 810.7 | G128: =+F128*0.97831 -> 793.115917 | H128: $700 from Randy
A129: 12440 | B129: 2014-01-17 | C129: 21.65 | D129: 1.65 | E129: Visa, (Randys)
A130: 12441 | B130: 2014-01-17 | C130: 160.21 | D130: 12.21
A131: 12442 | B131: 2014-01-17 | C131: 10.83 | D131: 0.83
A132: 12443 | B132: 2014-01-17 | C132: 155.88 | D132: 11.88 | E132: Due
A133: 12444 | B133: 2014-01-17 | C133: 227.33 | D133: 17.33 | E133: $27.33 due
A134: 12445 | B134: 2014-01-17 | C134: 24.46 | D134: 1.86
A135: 12446 | B135: 2014-01-17 | C135: 10.77 | D135: 0.82 | F135: =+C129 -> 21.65 | G135: =+F135*0.97831 -> 21.1804115
A136: 12447 | B136: 2014-01-18 | C136: 158.05 | D136: 12.05
A137: 12448 | B137: 2014-01-18 | C137: 14 | D137: 1.07
A138: 12449 | B138: 2014-01-18 | C138: 9.2 | D138: 0.7
A139: 12450 | B139: 2014-01-18 | C139: 43.3 | D139: 3.3
A140: 12451 | B140: 2014-01-18 | C140: 130 | D140: 9.91
A141: 12452 | B141: 2014-01-18 | C141: 54.13 | D141: 4.13 | E141: $24.13+ due
A142: 12453 | B142: 2014-01-18 | C142: 34.64 | D142: 2.64 | E142: Visa, (Randys)
A143: 12454 | B143: 2014-01-18 | C143: 99.59 | D143: 7.59 | E143: Visa, (Randys)
A144: 12455 | B144: 2014-01-18 | C144: 160 | D144: 12.19 | E144: Visa, (Randys) | F144: =+C142+C143+C144 -> 294.23 | G144: =+F144*0.97831 -> 287.8481513
A145: 12456 | B145: 2014-01-20 | C145: 246.81 | D145: 18.81 | E145: Visa, (Randys)
A146: 12457 | B146: 2014-01-20 | C146: 58.46 | D146: 4.46 | E146: Visa, (Randys)
A147: 12458 | B147: 2014-01-20 | C147: 523.93 | D147: 39.93 | E147: Visa, (Randys) $323.93 due
A148: 12459 | B148: 2014-01-20 | C148: 14.02 | D148: 1.07 | E148: Visa, (Randys)
A149: 12460 | B149: 2014-01-20 | C149: 16.24 | D149: 1.24 | E149: $11.24 Visa, (Randys)
A150: 12461 | B150: 2014-01-20 | C150: 62.73 | D150: 4.78 | E150: $22.73 due
A151: 12462 | B151: 2014-01-20 | C151: 233.28 | D151: 17.78 | E151: $130. Visa, (Randys)
A152: 12463 | B152: 2014-01-20 | C152: 57.03 | D152: 4.35
A153: 12464 | B153: 2014-01-20 | C153: 229 | E153: J.Rangel - resale
A154: 12465 | B154: 2014-01-20 | C154: 177.42 | D154: 13.52 | E154: Due | F154: =+C145+C146+200+C148+11.24+130 -> 660.53 | G154: =+F154*0.97831 -> 646.2031043
A155: 12466 | B155: 2014-01-21 | C155: 32.42 | D155: 2.47
A156: 12467 | B156: 2014-01-21 | C156: 31.28 | D156: 2.38
A157: 12468 | B157: 2014-01-21 | C157: 7.52 | D157: 0.57
A158: 12469 | B158: 2014-01-21 | C158: 291.19 | D158: 22.19 | E158: Visa, (Randys)
A159: 12470 | B159: 2014-01-21 | C159: 85.52 | D159: 6.52
A160: 12471 | B160: 2014-01-21 | C160: 149.87 | D160: 11.42 | E160: Due | F160: =+C158 -> 291.19 | G160: =+F160*0.97831 -> 284.8740889 | H160: $975 from Randy
A161: 12472 | B161: 2014-01-22 | C161: 3.19 | D161: 0.24
A162: 12473 | B162: 2014-01-22 | C162: 180.99 | D162: 13.79 | E162: Cash, $120.99 due
A163: 12474 | B163: 2014-01-22 | C163: 232.74 | D163: 17.74 | E163: Visa, (Randys)
A164: 12475 | B164: 2014-01-22 | C164: 202.43 | D164: 15.43 | E164: Visa, (Randys)
A165: 12476 | B165: 2014-01-22 | C165: 322.59 | D165: 24.59 | E165: $122.59 due
A166: 12477 | B166: 2014-01-22 | C166: 12.25 | E166: ESG Customs - resale
A167: 12478 | B167: 2014-01-22 | C167: 155 | D167: 11.81 | E167: Visa, (Randys)
A168: 12479 | B168: 2014-01-22 | C168: 64.95 | D168: 4.95 | E168: MC
A169: 12480 | B169: 2014-01-22 | C169: 66 | E169: Due
A170: 12481 | B170: 2014-01-22 | C170: 119.08 | D170: 9.08
A171: 12482 | B171: 2014-01-22 | C171: 244.16 | D171: 18.61 | E171: Visa, (Randys)
A172: 12483 | B172: 2014-01-22 | C172: 131 | E172: Due, James Ind - resale
A173: 12484 | B173: 2014-01-22 | C173: 28.15 | D173: 2.15 | E173: Due | F173: =+C163+C167+323.93+C164+C171 -> 1158.26 | G173: =+F173*0.97831 -> 1133.137341 | H173: $240 from Randy
A174: 12485 | B174: 2014-01-23 | C174: 59 | E174: Visa, Border Patrol
A175: 12486 | B175: 2014-01-23 | C175: 9.2 | D175: 0.7 | E175: Visa, (Randys)
A176: 12487 | B176: 2014-01-23 | C176: 40.05 | D176: 3.05 | E176: Visa, (Randys)
A177: 12488 | B177: 2014-01-23 | C177: 12
A178: 12489 | B178: 2014-01-23 | C178: 307.43 | D178: 23.43 | E178: Check
A179: 12490 | B179: 2014-01-23 | C179: 159.13 | D179: 12.13 | E179: Due | H179: $295 still due from Randy
A180: 12491 | B180: 2014-01-23 | C180: 32.48 | D180: 2.48 | E180: Visa, (Randys) | F180: =+C175+161.04+56.6 -> 226.84 | G180: =+F180*0.97831 -> 221.9198404 | H180: $880 from Randy + $195 Tank & Lunch
A181: 12492 | B181: 2014-01-24 | C181: 1079.2 | E181: Visa, Border Patrol
A182: 12493 | B182: 2014-01-24 | C182: 19.43 | D182: 1.48
A183: 12494 | B183: 2014-01-24 | C183: 41.14 | D183: 3.14 | E183: Visa, (Randys)
A184: 12495 | B184: 2014-01-24 | C184: 194.85 | D184: 14.85 | E184: Due | H184: $335 still due from Randy
A185: 12496 | B185: 2014-01-24 | C185: 64.95 | D185: 4.95 | F185: =+C183 -> 41.14 | G185: =+F185*0.97831 -> 40.2476734
A186: 12497 | B186: 2014-01-25 | C186: 178.56 | D186: 13.61 | E186: Visa, (Randys) $108.56 due
A187: 12498 | B187: 2014-01-25 | C187: 14.02 | D187: 1.07
A188: 12499 | B188: 2014-01-25 | C188: 115 | E188: J.Rangel - resale
A189: 12500 | B189: 2014-01-25 | C189: 48.66 | D189: 3.71 | E189: Visa, (Randys)
A190: 12501 | B190: 2014-01-25 | C190: 10 | E190: Visa, (Randys) J.Rangel - resale
A191: 12502 | B191: 2014-01-25 | C191: 18 | E191: Visa, (Randys)
A192: 12503 | B192: 2014-01-25 | C192: 4.33 | D192: 0.33 | E192: Visa, (Randys) | H192: $610 still due from Randy
A193: 12504 | B193: 2014-01-25 | C193: 48.71 | D193: 3.71 | F193: =70+C189+C190+163.46 -> 292.12 | G193: =+F193*0.97831 -> 285.7839172
A194: 12505 | B194: 2014-01-27 | C194: 97.43 | D194: 7.43 | E194: Visa, (Randys)
A195: 12506 | B195: 2014-01-27 | C195: 209.46 | D195: 15.96 | E195: Visa, (Randys)
A196: 12507 | B196: 2014-01-27 | C196: 98.6 | D196: 7.51
A197: 12508 | B197: 2014-01-27 | C197: 21.6 | D197: 1.65 | E197: Visa, (Randys)
A198: 12509 | B198: 2014-01-27 | C198: 137.48 | D198: 10.48
A199: 12510 | B199: 2014-01-27 | C199: 178.1 | D199: 23.1 | E199: Visa, (Randys) $78.10 due
A200: 12511 | B200: 2014-01-27 | C200: 389.7 | D200: 29.7 | E200: Visa, (Randys)
... 33 more rows

Sheet Dec-13
A1: Invoice | C1: =SUM(C217:C414) -> 0 | D1: =SUM(D217:D414) -> 0 | H1: =TODAY() -> 2015-01-03
A2: Number | B2: Date | C2: Amount | D2: Tax | E2: Terms
A3: 12101 | B3: 2013-12-02 | C3: 93.1 | D3: 7.1
A4: 12102 | B4: 2013-12-02 | C4: 92.01 | D4: 7.01 | E4: Due
A5: 12103 | B5: 2013-12-02 | C5: 180.24 | D5: 13.74
A6: 12104 | B6: 2013-12-02 | C6: 16.18 | D6: 1.23 | E6: Debit
A7: 12105 | B7: 2013-12-02 | C7: 67.12 | D7: 5.12
A8: 12106 | B8: 2013-12-02 | C8: 121.78 | D8: 9.28 | E8: MC
A9: 12107 | B9: 2013-12-02 | C9: 44.95 | D9: 3.71 | E9: MC
A10: 12108 | B10: 2013-12-02 | C10: 9.69 | D10: 0.74
A11: 12109 | B11: 2013-12-02 | C11: 30.31 | D11: 2.31 | E11: Visa
A12: 12110 | B12: 2013-12-02 | C12: 129.9 | D12: 9.9 | E12: $9.90 due, Addl to Inv 12011
A13: 12111 | B13: 2013-12-02 | C13: 100.46 | D13: 7.66 | E13: Due, Addl to Inv 11860
A14: 12112 | B14: 2013-12-02 | C14: 142.89 | D14: 10.89 | E14: Debit | F14: =+C6+7.12+C9+C11+C8+C14 -> 363.23 | G14: =+F14*0.97831 -> 355.3515413
A15: 12113 | B15: 2013-12-03 | C15: 0 | D15: 0 | E15: Test only
A16: 12114 | B16: 2013-12-03 | C16: 345.8 | D16: 26.35 | E16: Visa
A17: 12115 | B17: 2013-12-03 | C17: 31.39 | D17: 2.39
A18: 12116 | B18: 2013-12-03 | C18: 98 | E18: Cash
A19: 12117 | B19: 2013-12-03 | C19: 12.88 | D19: 0.98
A20: 12118 | B20: 2013-12-03 | C20: 28.04 | D20: 2.14
A21: 12119 | B21: 2013-12-03 | C21: 200.8 | D21: 15.3 | E21: Visa
A22: 12120 | B22: 2013-12-03 | C22: 95.26 | D22: 7.26 | E22: MC
A23: 12121 | B23: 2013-12-03 | C23: 28.15 | D23: 2.15
A24: 12122 | B24: 2013-12-03 | C24: 194.68 | D24: 14.84
A25: 12123 | B25: 2013-12-03 | C25: 85.52 | D25: 6.52
A26: 12124 | B26: 2013-12-03 | C26: 256 | D26: 19.51
A27: 12125 | B27: 2013-12-03 | C27: 89.85 | D27: 6.85 | E27: Due
A28: 12126 | B28: 2013-12-03 | C28: 15.1 | D28: 1.15
A29: 12127 | B29: 2013-12-03 | C29: 174 | D29: 11.96
A30: 12128 | B30: 2013-12-03 | C30: 10 | D30: 0.76
A31: 12129 | B31: 2013-12-03 | C31: 48.66 | D31: 3.71 | E31: Due | F31: =150+C21+C22+21.13 -> 467.19 | G31: 462.79
A32: 12130 | B32: 2013-12-04 | C32: 23.8 | E32: MC, Border Patrol
A33: 12131 | B33: 2013-12-04 | C33: 107.17 | D33: 8.17 | E33: Visa
A34: 12132 | B34: 2013-12-04 | C34: 24.26 | D34: 1.85 | E34: Visa
A35: 12133 | B35: 2013-12-04 | C35: 5.36 | D35: 0.41 | E35: Debit
A36: 12134 | B36: 2013-12-04 | C36: 296.82 | D36: 22.62 | E36: Due
A37: 12135 | B37: 2013-12-04 | C37: 232.74 | D37: 17.74 | E37: Discover
A38: 12136 | B38: 2013-12-04 | C38: 76.5
A39: 12137 | B39: 2013-12-04 | C39: 81.19 | D39: 6.19 | E39: Debit
A40: 12138 | B40: 2013-12-04 | C40: 11.26 | D40: 0.86
A41: 12139 | B41: 2013-12-04 | C41: 80 | E41: Due, Border Patrol
A42: 12140 | B42: 2013-12-04 | C42: 73.99 | D42: 5.64 | E42: $44.74 due
A43: 12141 | B43: 2013-12-04 | C43: 129.9 | D43: 9.9
A44: 12142 | B44: 2013-12-04 | C44: 162.32 | D44: 12.37 | F44: =+C32+C33+C34+C35+C37+C39 -> 474.52 | G44: 467.85
A45: 12143 | B45: 2013-12-05 | C45: 197.02 | D45: 15.02
A46: 12144 | B46: 2013-12-05 | C46: 107.17 | D46: 8.17 | E46: Debit
A47: 12145 | B47: 2013-12-05 | C47: 15.45 | E47: ESG Customs - resale
A48: 12146 | B48: 2013-12-05 | C48: 105
A49: 12147 | B49: 2013-12-05 | C49: 16 | D49: 1.22
A50: 12148 | B50: 2013-12-05 | C50: 20 | D50: 1.52
A51: 12149 | B51: 2013-12-05 | C51: 10.83 | D51: 0.83 | E51: Visa
A52: 12150 | B52: 2013-12-05 | C52: 53.04 | D52: 4.04 | E52: Visa | F52: =+C46+C51+3.25+C52+102.85 -> 277.14 | G52: 276.95
A53: 12151 | B53: 2013-12-06 | C53: 180.24 | D53: 13.74 | E53: Visa
A54: 12152 | B54: 2013-12-06 | C54: 126.39 | D54: 9.64 | E54: Visa
A55: 12153 | B55: 2013-12-06 | C55: 29.23 | D55: 2.23
A56: 12154 | B56: 2013-12-06 | C56: 8.61 | D56: 0.66
A57: 12155 | B57: 2013-12-06 | C57: 281.45 | D57: 21.45 | E57: Due
A58: 12156 | B58: 2013-12-06 | C58: 7.14 | D58: 0.54
A59: 12157 | B59: 2013-12-06 | C59: 58.47 | D59: 4.46 | F59: =+C53+C54+31.19+296.82 -> 634.64 | G59: 629.37
A60: 12158 | B60: 2013-12-07 | C60: 11.26 | D60: 0.86
A61: 12159 | B61: 2013-12-07 | C61: 44.76 | D61: 3.41
A62: 12160 | B62: 2013-12-07 | C62: 14.02 | D62: 1.07 | E62: MC | F62: =+C62+60 -> 74.02 | G62: 73.78
A63: 12161 | B63: 2013-12-09 | C63: 147.22 | D63: 11.22 | E63: Debit
A64: 12162 | B64: 2013-12-09 | C64: 415.68 | D64: 31.68 | E64: Debit
A65: 12163 | B65: 2013-12-09 | C65: 40.31 | D65: 3.07
A66: 12164 | B66: 2013-12-09 | C66: 135.31 | D66: 10.31 | E66: Debit | F66: =+C63+200 -> 347.22 | G66: 347.22
A67: 12165 | B67: 2013-12-10 | C67: 52 | D67: 3.96 | E67: Due, Randy
A68: 12166 | B68: 2013-12-10 | C68: 76 | E68: Due, James Ind - resale
A69: 12167 | B69: 2013-12-10 | C69: 187.22 | D69: 14.27 | E69: MC
A70: 12168 | B70: 2013-12-10 | C70: 134.23 | D70: 10.23 | E70: Debit
A71: 12169 | B71: 2013-12-10 | C71: 207 | D71: 15.78 | E71: $107. due
A72: 12170 | B72: 2013-12-10 | C72: 80 | E72: Due, Border Patrol
A73: 12171 | B73: 2013-12-10 | C73: 17.32 | D73: 1.32 | E73: Debit | F73: =80+C73 -> 97.32 | G73: 95.94
A74: 12172 | B74: 2013-12-11 | C74: 312.84 | D74: 23.84 | E74: $212.84 due
A75: 12173 | B75: 2013-12-11 | C75: 12.88 | D75: 0.98
A76: 12174 | B76: 2013-12-11 | C76: 8.93 | D76: 0.68
A77: 12175 | B77: 2013-12-11 | C77: 7.8
A78: 12176 | B78: 2013-12-11 | C78: 220.72 | D78: 16.82 | E78: Debit
A79: 12177 | B79: 2013-12-11 | C79: 400.53 | D79: 30.53 | E79: MC | F79: =+C78+C66+215.68+C79 -> 972.24 | G79: 965.35
A80: 12178 | B80: 2013-12-12 | C80: 361.56 | D80: 27.56 | E80: Check 16675, $300.
A81: 12179 | B81: 2013-12-12 | C81: 38.86 | D81: 2.96
A82: 12180 | B82: 2013-12-12 | C82: 5.36 | D82: 0.41
A83: 12181 | B83: 2013-12-12 | C83: 37.89 | D83: 2.89 | E83: Debit
A84: 12182 | B84: 2013-12-12 | C84: 295 | E84: Dons Falfurious - resale
A85: 12183 | B85: 2013-12-12 | C85: 13 | D85: 0.99
A86: 12184 | B86: 2013-12-12 | C86: 25 | E86: MC
A87: 12185 | B87: 2013-12-12 | C87: 140.67 | D87: 10.72 | E87: Due | F87: =+C83+C69+C86 -> 250.11 | G87: 246.46
A88: 12186 | B88: 2013-12-13 | C88: 84.97 | D88: 6.48
A89: 12187 | B89: 2013-12-13 | C89: 82.27 | D89: 6.27 | E89: Debit
A90: 12188 | B90: 2013-12-13 | C90: 75.78 | D90: 5.78 | E90: Visa
A91: 12189 | B91: 2013-12-13 | C91: 165.62 | D91: 12.62
A92: 12190 | B92: 2013-12-13 | C92: 176.45 | D92: 13.45
A93: 12191 | B93: 2013-12-13 | C93: 10.83 | D93: 0.83 | E93: Visa
A94: 12192 | B94: 2013-12-13 | C94: 44 | E94: Joe Rangle - resale
A95: 12193 | B95: 2013-12-13 | C95: 350 | D95: 26.67 | E95: $150. due | F95: =+C89+C90+C93+134.23+194.85+140.67 -> 638.63 | G95: 637.14
A96: 12194 | B96: 2013-12-14 | C96: 21.6 | D96: 1.65 | E96: Debit
A97: 12195 | B97: 2013-12-14 | C97: 54.13 | D97: 4.13 | E97: Visa
A98: 12196 | B98: 2013-12-14 | C98: 261.97 | D98: 19.97 | E98: Visa, $111.97 due
A99: 12197 | B99: 2013-12-14 | C99: 46.49 | D99: 3.54
A100: 12198 | B100: 2013-12-14 | C100: 145 | D100: 11.05
A101: 12199 | B101: 2013-12-14 | C101: 37.83 | D101: 2.88
A102: 12200 | B102: 2013-12-14 | C102: 6.44 | D102: 0.49 | F102: =1+C96+C97+C98-111.97 -> 226.73 | G102: 225.8
A103: 12201 | B103: 2013-12-16 | C103: 23.82 | D103: 1.82 | E103: Visa
A104: 12202 | B104: 2013-12-16 | C104: 43.3 | D104: 3.3 | E104: Debit
A105: 12203 | B105: 2013-12-16 | C105: 34.59 | D105: 2.64 | E105: Visa
A106: 12204 | B106: 2013-12-16 | C106: 35.61 | D106: 2.71 | E106: Debit
A107: 12205 | B107: 2013-12-16 | C107: 188.3 | D107: 14.35 | E107: Due
A108: 12206 | B108: 2013-12-16 | C108: 102.84 | D108: 7.84 | E108: Visa
A109: 12207 | B109: 2013-12-16 | C109: 19 | E109: James Ind - resale
A110: 12208 | B110: 2013-12-16 | C110: 48.55 | D110: 3.7
A111: 12209 | B111: 2013-12-16 | C111: 44.38 | D111: 3.38
A112: 12210 | B112: 2013-12-16 | C112: 19.49 | D112: 1.49 | E112: Visa
A113: 12211 | B113: 2013-12-16 | C113: 277.07 | D113: 21.12 | E113: Due, Randys friend
A114: 12212 | B114: 2013-12-16 | C114: 42.5 | E114: Palacios - resale | F114: =+C103+C104+140.73+C105+C106+C108+C112 -> 400.38 | G114: =+F114*0.97831 -> 391.6957578
A115: 12213 | B115: 2013-12-17 | C115: 294.39 | D115: 22.44 | E115: Debit
A116: 12214 | B116: 2013-12-17 | C116: 146.14 | D116: 11.14
A117: 12215 | B117: 2013-12-17 | C117: 92.01 | D117: 7.01
A118: 12216 | B118: 2013-12-17 | C118: 28.54 | E118: ESG Customs
A119: 12217 | B119: 2013-12-17 | C119: -48.71 | D119: -3.71 | E119: Owed - Daniel G (now $2.22) | F119: =+C115 -> 294.39 | G119: 294.39
A120: 12218 | B120: 2013-12-18 | C120: 17.43 | D120: 1.33
A121: 12219 | B121: 2013-12-18 | C121: 32.48 | D121: 2.48 | E121: Debit
A122: 12220 | B122: 2013-12-18 | C122: 209.03 | D122: 15.93 | E122: MC
A123: 12221 | B123: 2013-12-18 | C123: 294.44 | D123: 22.44 | E123: $194.44 due
A124: 12222 | B124: 2013-12-18 | C124: 20.57 | D124: 1.57 | E124: Debit
A125: 12223 | B125: 2013-12-18 | C125: 98.51 | D125: 7.51 | E125: Debit
A126: 12224 | B126: 2013-12-18 | C126: 63.81 | D126: 4.86
A127: 12225 | B127: 2013-12-18 | C127: 413.52 | D127: 31.52 | E127: MC, $113.52 due | F127: =+C121+C122+C124+C125+300+80 -> 740.59 | G127: 741.28
A128: 12226 | B128: 2013-12-19 | C128: 270.63 | D128: 20.63 | E128: MC
A129: 12227 | B129: 2013-12-19 | C129: 29.17 | D129: 2.22 | E129: Debit
A130: 12228 | B130: 2013-12-19 | C130: 49.8 | D130: 3.8
A131: 12229 | B131: 2013-12-19 | C131: 72 | E131: Dons Falfurious - resale
A132: 12230 | B132: 2013-12-19 | C132: 178.61 | D132: 13.61 | E132: Due
A133: 12231 | B133: 2013-12-19 | C133: 30.31 | D133: 2.31 | E133: Visa
A134: 12232 | B134: 2013-12-19 | C134: 80 | F134: =250+C129+C133 -> 309.48 | G134: 304.66
A135: 12233 | B135: 2013-12-20 | C135: 9.69 | D135: 0.74 | E135: Debit
A136: 12234 | B136: 2013-12-20 | C136: 64.95 | D136: 4.95
A137: 12235 | B137: 2013-12-20 | C137: 7.52 | D137: 0.57
A138: 12236 | B138: 2013-12-20 | C138: 19.43 | D138: 1.48 | E138: Debit
A139: 12237 | B139: 2013-12-20 | C139: 74.69 | D139: 5.69 | E139: MC
A140: 12238 | B140: 2013-12-20 | C140: 22 | E140: Chris - resale
A141: 12239 | B141: 2013-12-20 | C141: 9.15 | D141: 0.7
A142: 12240 | B142: 2013-12-20 | C142: 24.9 | D142: 1.9
A143: 12241 | B143: 2013-12-20 | C143: 833.74 | D143: 63.54 | E143: $663.74 due
A144: 12242 | B144: 2013-12-20 | C144: 527.18 | D144: 40.18 | E144: $327.18 + due
A145: 12243 | B145: 2013-12-20 | C145: 145 | D145: 11.05 | E145: Debit
A146: 12244 | B146: 2013-12-20 | C146: 208.38 | D146: 15.88 | E146: MC | F146: =+C135+C138+C139+C145 -> 248.81 | G146: 247.53
A147: 12245 | B147: 2013-12-21 | C147: 51.91 | D147: 3.96
A148: 12246 | B148: 2013-12-21 | C148: 90 | E148: Joe Rangle - resale
A149: 12247 | B149: 2013-12-21 | C149: 126.65 | D149: 9.65 | E149: Due, Rock-n-Roll James
A150: 12248 | B150: 2013-12-21 | C150: 31.61 | D150: 2.41 | E150: Debit
A151: 12249 | B151: 2013-12-21 | C151: 40.77 | D151: 3.11 | E151: Debit
A152: 12250 | B152: 2013-12-21 | C152: 20.51 | D152: 1.56 | F152: =+C146+C150+C151+195.8 -> 476.56 | G152: 472.98
A153: 12251 | B153: 2013-12-23 | C153: 270.63 | D153: 20.63 | E153: MC
A154: 12252 | B154: 2013-12-23 | C154: 167.79 | D154: 12.79 | E154: Debit
A155: 12253 | B155: 2013-12-23 | C155: 35.72 | D155: 2.72
A156: 12254 | B156: 2013-12-23 | C156: 17.27 | D156: 1.32
A157: 12255 | B157: 2013-12-23 | C157: 11.85 | D157: 0.9 | E157: MC
A158: 12256 | B158: 2013-12-23 | C158: 96.34 | D158: 7.34 | E158: Debit
A159: 12257 | B159: 2013-12-23 | C159: 19.43 | D159: 1.48
A160: 12258 | B160: 2013-12-23 | C160: 206.76 | D160: 15.76
A161: 12259 | B161: 2013-12-23 | C161: 38.97 | D161: 2.97 | E161: Due | F161: =+C153+C157+C154+C158 -> 546.61 | G161: 541.76
A162: 12260 | B162: 2013-12-24 | C162: 10.83 | D162: 0.83 | E162: Visa
A163: 12261 | B163: 2013-12-24 | C163: 19.43 | D163: 1.48 | F163: =+C162 -> 10.83 | G163: 10.64
A164: 12262 | B164: 2013-12-26 | C164: 135.31 | D164: 10.31 | E164: MC
A165: 12263 | B165: 2013-12-26 | C165: 389.7 | D165: 29.7 | E165: Visa
A166: 12264 | B166: 2013-12-26 | C166: 11.91 | D166: 0.91 | E166: Debit
A167: 12265 | B167: 2013-12-26 | C167: 8.61 | D167: 0.66
A168: 12266 | B168: 2013-12-26 | C168: 237.07 | D168: 18.07 | E168: Due
A169: 12267 | B169: 2013-12-26 | C169: 305.81 | D169: 23.31 | E169: $117.04 due
A170: 12268 | B170: 2013-12-26 | C170: 10.83 | D170: 0.83
A171: 12269 | B171: 2013-12-26 | C171: 113.66 | D171: 8.66 | F171: =+C164+C165+C166 -> 536.92 | G171: =+F171*0.97831 -> 525.2742052
A172: 12270 | B172: 2013-12-27 | C172: 110.42 | D172: 8.42
A173: 12271 | B173: 2013-12-27 | C173: 275.44 | D173: 20.99 | E173: Due
A174: 12272 | B174: 2013-12-27 | C174: 36.7 | D174: 2.8
A175: 12273 | B175: 2013-12-27 | C175: 195 | E175: Mx - Manifesto
A176: 12274 | B176: 2013-12-27 | C176: 43.3 | D176: 3.3 | E176: Debit | F176: 43.4 | G176: =+F176*0.97831 -> 42.458654
A177: 12275 | B177: 2013-12-28 | C177: 206.22 | D177: 15.72 | E177: $100. due
A178: 12276 | B178: 2013-12-28 | C178: 8 | D178: 0.6
A179: 12277 | B179: 2013-12-28 | C179: 64.56 | D179: 4.92 | E179: Due, Randy
A180: 12278 | B180: 2013-12-28 | C180: 173.2 | D180: 13.2 | E180: Due, Armondo | F180: 0 | G180: =+F180*0.97831 -> 0
A181: 12279 | B181: 2013-03-08 | C181: 20 | D181: 1.52
A182: 12280 | B182: 2013-03-08 | C182: 12 | D182: 0.91
A183: 12281 | B183: 2013-03-08 | C183: 10 | D183: 0.76
A184: 12282 | B184: 2013-03-08 | C184: 10 | D184: 0.76
A185: 12283 | B185: 2013-03-08 | C185: 12 | D185: 0.91
A186: 12284 | B186: 2013-03-08 | C186: 12 | D186: 0.91
A187: 12285 | B187: 2013-03-09 | C187: 10 | D187: 0.76
A188: 12286 | B188: 2013-03-09 | C188: 11 | D188: 0.84
A189: 12287 | B189: 2013-03-09 | C189: 11 | D189: 0.84
A190: 12288 | B190: 2013-03-09 | C190: 15 | D190: 1.14
A191: 12289 | B191: 2013-03-09 | C191: 11 | D191: 0.84
A192: 12290 | B192: 2013-03-09 | C192: 13 | D192: 0.99
A193: 12291 | B193: 2013-03-09 | C193: 11 | D193: 0.84
A194: 12292 | B194: 2013-03-09 | C194: 13 | D194: 0.99
A195: 12293 | B195: 2013-03-09 | C195: 58 | D195: 4.41
A196: 12294 | B196: 2013-03-10 | C196: 35 | D196: 2.67
A197: 12295 | B197: 2013-12-30 | C197: 336.66 | D197: 25.66
A198: 12296 | B198: 2013-03-11 | C198: 62.99 | D198: 4.8
A199: 12297 | B199: 2013-03-12 | C199: 68 | D199: 5.18
A200: 12298 | B200: 2013-03-13 | C200: 45 | D200: 3.42 | E200: CC
... 15 more rows

Sheet Nov-13
A1: Invoice | C1: =SUM(C214:C411) -> 0 | D1: =SUM(D214:D411) -> 0 | H1: =TODAY() -> 2015-01-03
A2: Number | B2: Date | C2: Amount | D2: Tax | E2: Terms
A3: 11890 | B3: 2013-11-01 | C3: 126.65 | D3: 9.65
A4: 11891 | B4: 2013-11-01 | C4: 32.9 | D4: 2.51 | E4: Debit
A5: 11892 | B5: 2013-11-01 | C5: 86.6 | D5: 6.6 | E5: MC
A6: 11893 | B6: 2013-11-01 | C6: 86.6 | D6: 6.6
A7: 11894 | B7: 2013-11-01 | C7: 277.12 | D7: 21.12 | E7: Due
A8: 11895 | B8: 2013-11-01 | C8: 10 | E8: Due, James Ind.
A9: 11896 | B9: 2013-11-01 | C9: 27.06 | D9: 2.06 | E9: Debit
A10: 11897 | B10: 2013-11-01 | C10: 29.23 | D10: 2.23
A11: 11898 | B11: 2013-11-01 | C11: 79.02 | D11: 6.02 | E11: Trade | F11: =+C4+C5+C9 -> 146.56 | G11: 145.07
A12: 11899 | B12: 2013-11-02 | C12: 116.45 | E12: MX - Manifesto
A13: 11900 | B13: 2013-11-02 | C13: 83.35 | D13: 6.35 | E13: Debit
A14: 11901 | B14: 2013-11-02 | C14: 83.95 | D14: 6.4 | E14: Debit
A15: 11902 | B15: 2013-11-02 | C15: 220.83 | D15: 16.83
A16: 11903 | B16: 2013-11-02 | C16: 186.95 | D16: 14.25
A17: 11904 | B17: 2013-11-02 | C17: 7.58 | D17: 0.58
A18: 11905 | B18: 2013-11-02 | C18: 37.89 | D18: 2.89
A19: 11906 | B19: 2013-11-02 | C19: 15 | E19: Chris - Resale | F19: =+C13+C14 -> 167.3 | G19: 167.3
A20: 11907 | B20: 2013-11-04 | C20: 11.91 | D20: 0.91
A21: 11908 | B21: 2013-11-04 | C21: 27.06 | D21: 2.06
A22: 11909 | B22: 2013-11-04 | C22: 16 | E22: Due, Border Patrol
A23: 11910 | B23: 2013-11-04 | C23: 10.66 | D23: 0.81
A24: 11911 | B24: 2013-11-04 | C24: 162.75 | D24: 12.4
A25: 11912 | B25: 2013-11-04 | C25: 10.91 | D25: 0.83 | E25: MC | F25: =+C25 -> 10.91 | G25: 10.72
A26: 11913 | B26: 2013-11-05 | C26: 194.85 | D26: 14.85
A27: 11914 | B27: 2013-11-05 | C27: 22 | E27: Due
A28: 11915 | B28: 2013-11-05 | C28: 38 | E28: Due
A29: 11916 | B29: 2013-11-05 | C29: 219.75 | D29: 16.75 | E29: Debit
A30: 11917 | B30: 2013-11-05 | C30: 130.98 | D30: 9.98
A31: 11918 | B31: 2013-11-05 | C31: 221.91 | D31: 16.91 | E31: Visa
A32: 11919 | B32: 2013-11-05 | C32: 21.6 | D32: 1.65 | E32: Debit
A33: 11920 | B33: 2013-11-05 | C33: 74.92 | D33: 5.71 | E33: Debit
A34: 11921 | B34: 2013-11-05 | C34: 31.72 | D34: 2.42 | E34: Visa
A35: 11922 | B35: 2013-11-05 | C35: 15.1 | D35: 1.15 | E35: MC
A36: 11923 | B36: 2013-11-05 | C36: 79 | E36: Due, Chris - Resale
A37: 11924 | B37: 2013-11-05 | C37: 106.45 | D37: 8.11 | E37: MC
A38: 11925 | B38: 2013-11-05 | C38: 40 | D38: 3.05 | E38: Due, Roller
A39: 11926 | B39: 2013-11-05 | C39: 159.13 | D39: 12.13
A40: 11927 | B40: 2013-11-05 | C40: 8.66 | D40: 0.66
A41: 11928 | B41: 2013-11-05 | C41: 17.27 | D41: 1.32 | E41: Debit | F41: =+C29+C32+C33+C34+C35+C41+C37 -> 486.81 | G41: 484.17
A42: 11929 | B42: 2013-11-06 | C42: 111.71 | D42: 8.51 | E42: Due, Chevo
A43: 11930 | B43: 2013-11-06 | C43: 33.56 | D43: 2.56 | E43: Debit
A44: 11931 | B44: 2013-11-06 | C44: 76.0325 | D44: 0.0825 | E44: Visa
A45: 11932 | B45: 2013-11-06 | C45: 58.46 | D45: 4.46 | E45: Debit
A46: 11933 | B46: 2013-11-06 | C46: 27.06 | D46: 2.06 | E46: Visa
A47: 11934 | B47: 2013-11-06 | C47: 22
A48: 11935 | B48: 2013-11-06 | C48: 4.5 | F48: =+C43+C44+C45+C46 -> 195.1125 | G48: 194.64
A49: 11936 | B49: 2013-11-07 | C49: 25.94 | D49: 1.98 | E49: Discover
A50: 11937 | B50: 2013-11-07 | C50: 10 | E50: MC, Border Pater
A51: 11938 | B51: 2013-11-07 | C51: 10 | E51: MC, Border Pater
A52: 11939 | B52: 2013-11-07 | C52: 155.5 | D52: 11.85
A53: 11940 | B53: 2013-11-07 | C53: 10 | E53: Due, Roller
A54: 11941 | B54: 2013-11-07 | C54: 34.64 | D54: 2.64
A55: 11942 | B55: 2013-11-07 | C55: 448.16 | D55: 34.16 | E55: Due, Tank HD
A56: 11943 | B56: 2013-11-07 | C56: 189.38 | D56: 14.43
A57: 11944 | B57: 2013-11-07 | C57: 29.2 | E57: Due, Chris - Resale | F57: =+C49+43+C50+C51 -> 88.94 | G57: 87.41
A58: 11945 | B58: 2013-11-08 | C58: 25.66 | D58: 1.96 | E58: Debit
A59: 11946 | B59: 2013-11-08 | C59: 34.59 | D59: 2.64 | E59: Debit
A60: 11947 | B60: 2013-11-08 | C60: 12.99 | D60: 0.99
A61: 11948 | B61: 2013-11-08 | C61: 17.32 | D61: 1.32 | F61: =+C58+C59 -> 60.25 | G61: 60.25
A62: 11949 | B62: 2013-11-09 | C62: 159.13 | D62: 12.13
A63: 11950 | B63: 2013-11-09 | C63: 223 | D63: 17 | E63: MC
A64: 11951 | B64: 2013-11-09 | C64: 35.67 | D64: 2.72 | E64: Visa
A65: 11952 | B65: 2013-11-09 | C65: 44.92 | D65: 3.42 | E65: MC
A66: 11953 | B66: 2013-11-09 | C66: 149.39 | D66: 11.39
A67: 11954 | B67: 2013-11-09 | C67: 142.35 | D67: 10.85
A68: 11955 | B68: 2013-11-09 | C68: 48.71 | D68: 3.71 | E68: Debit
A69: 11956 | B69: 2013-11-09 | C69: 165.62 | D69: 12.62 | E69: Visa
A70: 11957 | B70: 2013-11-09 | C70: 36.81 | D70: 2.81
A71: 11958 | B71: 2013-11-09 | C71: 77.94 | D71: 5.94 | F71: =+C63+C64+C65+C68+C69 -> 517.92 | G71: 509.85
A72: 11959 | B72: 2013-11-11 | C72: 4.87 | D72: 0.37
A73: 11960 | B73: 2013-11-11 | C73: 43.14 | D73: 3.29
A74: 11961 | B74: 2013-11-11 | C74: 12.94 | D74: 0.99
A75: 11962 | B75: 2013-11-11 | C75: 12.97 | D75: 0.99 | E75: Discover
A76: 11963 | B76: 2013-11-11 | C76: 135 | E76: Due
A77: 11964 | B77: 2013-11-11 | C77: 210 | D77: 16 | E77: $110.00 due
A78: 11965 | B78: 2013-11-11 | C78: 16.24 | D78: 1.24
A79: 11966 | B79: 2013-11-11 | C79: 59.54 | D79: 4.54 | E79: $19.54 Due | F79: =40+C75 -> 52.97 | G79: 52.06
A80: 11967 | B80: 2013-11-12 | C80: 146.14 | D80: 11.14 | E80: Debit
A81: 11968 | B81: 2013-11-12 | C81: 59.54 | D81: 4.54 | E81: Due, Roller
A82: 11969 | B82: 2013-11-12 | C82: 17 | E82: Due, Bike Rodz
A83: 11970 | B83: 2013-11-12 | C83: 92 | E83: Due, Bike Rodz
A84: 11971 | B84: 2013-11-12 | C84: 150.03 | D84: 11.43 | E84: Due, Isaac R6
A85: 11972 | B85: 2013-11-12 | C85: 8.66 | D85: 0.66 | E85: MC
A86: 11973 | B86: 2013-11-12 | C86: 41.08 | D86: 3.13
A87: 11974 | B87: 2013-11-12 | C87: 44.27 | D87: 3.37
A88: 11975 | B88: 2013-11-12 | C88: 30.31 | D88: 2.31 | E88: Debit
A89: 11976 | B89: 2013-11-12 | C89: 130 | E89: ESG Customs - Trade, Resale | F89: =+C80+C85+C88 -> 185.11 | G89: 184.96
A90: 11977 | B90: 2013-11-13 | C90: 12.97 | D90: 0.99
A91: 11978 | B91: 2013-11-13 | C91: 5.41 | D91: 0.41
A92: 11979 | B92: 2013-11-13 | C92: 110.96 | D92: 8.46 | E92: Discover
A93: 11980 | B93: 2013-11-13 | C93: 32.99 | D93: 2.51 | F93: 110.96 | G93: 109.05
A94: 11981 | B94: 2013-11-14 | C94: 32.42 | D94: 2.47 | E94: MC
A95: 11982 | B95: 2013-11-14 | C95: 95.21 | D95: 7.26 | E95: Due
A96: 11983 | B96: 2013-11-14 | C96: 64 | E96: Johnny's Cuistoms - resale
A97: 11984 | B97: 2013-11-14 | C97: 203.78 | D97: 15.53 | E97: Debit
A98: 11985 | B98: 2013-11-14 | C98: 280.31 | D98: 21.36
A99: 11986 | B99: 2013-11-14 | C99: 18.46 | D99: 1.41 | F99: =+C94 -> 32.42 | G99: 31.86
A100: 11987 | B100: 2013-11-15 | C100: 12.97 | D100: 0.99 | E100: Discover
A101: 11988 | B101: 2013-11-15 | C101: 43.84 | D101: 3.34
A102: 11989 | B102: 2013-11-15 | C102: 67.12 | D102: 5.12 | E102: Debit
A103: 11990 | B103: 2013-11-15 | C103: 92.01 | D103: 7.01 | E103: $72.01 Due
A104: 11991 | B104: 2013-11-15 | C104: 32.99 | D104: 2.51 | E104: MC
A105: 11992 | B105: 2013-11-15 | C105: 161.21 | D105: 12.29
A106: 11993 | B106: 2013-11-15 | C106: 92.01 | D106: 7.01 | E106: $52.01 due
A107: 11994 | B107: 2013-11-15 | C107: 37.89 | D107: 2.89 | F107: =+C100+C102+C104 -> 113.08 | G107: 112.29
A108: 11995 | B108: 2013-11-16 | C108: 207.84 | D108: 15.84 | E108: Debit
A109: 11996 | B109: 2013-11-16 | C109: 22.73 | D109: 1.73
A110: 11997 | B110: 2013-11-16 | C110: 16.18 | D110: 1.23
A111: 11998 | B111: 2013-11-16 | C111: 146.68 | D111: 11.18
A112: 11999 | B112: 2013-11-16 | C112: 252.22 | D112: 19.22 | E112: Visa
A113: 12000 | B113: 2013-11-16 | C113: 43.19 | D113: 3.29 | E113: Debit
A114: 12001 | B114: 2013-11-16 | C114: 5.36 | D114: 0.41 | E114: Visa | F114: =+C108+C97+C112+C113+10.36 -> 717.39 | G114: 712.87
A115: 12002 | B115: 2013-11-18 | C115: 283.62 | D115: 21.62 | E115: Debit
A116: 12003 | B116: 2013-11-18 | C116: 16.24 | D116: 1.24 | E116: Debit
A117: 12004 | B117: 2013-11-18 | C117: 9 | E117: James Ind - resale
A118: 12005 | B118: 2013-11-18 | C118: 175 | E118: Debit, TWK - Resale
A119: 12006 | B119: 2013-11-18 | C119: 67 | E119: Debit, TWK - Resale
A120: 12007 | B120: 2013-11-18 | C120: 10.66 | D120: 0.81
A121: 12008 | B121: 2013-11-18 | C121: 22
A122: 12009 | B122: 2013-11-18 | C122: 113.66 | D122: 8.66 | E122: Debit
A123: 12010 | B123: 2013-11-18 | C123: 141.81 | D123: 10.81 | E123: Debit
A124: 12011 | B124: 2013-11-18 | C124: 335.58 | D124: 25.58 | E124: $135.58 due
A125: 12012 | B125: 2013-11-18 | C125: 16.18 | D125: 1.23 | F125: =+C118+C119+C122+C123+C116 -> 513.71 | G125: 513.71
A126: 12013 | B126: 2013-11-19 | C126: 18.46 | D126: 1.41 | E126: Debit
A127: 12014 | B127: 2013-11-19 | C127: 0 | D127: 0
A128: 12015 | B128: 2013-11-19 | C128: 14.07 | D128: 1.07 | E128: Debit
A129: 12016 | B129: 2013-11-19 | C129: 112.4 | E129: Due, Chris - Resale
A130: 12017 | B130: 2013-11-19 | C130: 130 | E130: Due, ESG - resale
A131: 12018 | B131: 2013-11-19 | C131: 4.33 | D131: 0.33
A132: 12019 | B132: 2013-11-19 | C132: 16 | E132: MC, Border Patrol
A133: 12020 | B133: 2013-11-19 | C133: 152.85 | D133: 11.65 | E133: MC
A134: 12021 | B134: 2013-11-19 | C134: 34.53 | D134: 2.63 | E134: MC
A135: 12022 | B135: 2013-11-19 | C135: 110 | E135: Due, Derick - resale
A136: 12023 | B136: 2013-11-19 | C136: 119.2 | E136: Debit, Chris - Resale
A137: 12024 | B137: 2013-11-19 | C137: 479.55 | D137: 36.55 | E137: Due, $927.71 Jean
A138: 12025 | B138: 2013-11-19 | C138: 18.35 | D138: 1.4 | E138: $8.35 due | F138: =+C126+C128+C132+C133+C134+16 -> 251.91 | G138: 248.14
A139: 12026 | B139: 2013-11-20 | C139: 154.8 | D139: 11.8
A140: 12027 | B140: 2013-11-20 | C140: 56.24 | D140: 4.29 | E140: Debit
A141: 12028 | B141: 2013-11-20 | C141: 5 | D141: 0.38
A142: 12029 | B142: 2013-11-20 | C142: 232.74 | D142: 17.74 | E142: $100. bal due
A143: 12030 | B143: 2013-11-20 | C143: 38.97 | D143: 2.97 | E143: Visa, Addl to Inv 11999
A144: 12031 | B144: 2013-11-20 | C144: 227.87 | D144: 17.37
A145: 12032 | B145: 2013-11-20 | C145: 8.01 | D145: 0.61 | F145: =22+C140+C143 -> 117.21 | G145: 116.16
A146: 12033 | B146: 2013-11-21 | C146: 44.86 | D146: 3.42 | E146: Debit
A147: 12034 | B147: 2013-11-21 | C147: 47.47 | D147: 3.62 | E147: Debit
A148: 12035 | B148: 2013-11-21 | C148: 22 | E148: Due, BikeRods - resale
A149: 12036 | B149: 2013-11-21 | C149: 8.66 | D149: 0.66 | E149: Debit
A150: 12037 | B150: 2013-11-21 | C150: -86.6 | D150: -6.6 | E150: MC - return
A151: 12038 | B151: 2013-11-21 | C151: 340 | D151: 25.91
A152: 12039 | B152: 2013-11-21 | C152: 150.47 | D152: 11.47 | E152: MC
A153: 12040 | B153: 2013-11-21 | C153: 133.69 | D153: 10.19 | E153: Visa
A154: 12041 | B154: 2013-11-21 | C154: 26.35 | D154: 2.01 | F154: =+C115+C146+C147+C149+C150+110+C153+C152 -> 692.17 | G154: 687.28
A155: 12042 | B155: 2013-11-22 | C155: 43.3 | D155: 3.3 | E155: MC
A156: 12043 | B156: 2013-11-22 | C156: 16.18 | D156: 1.23
A157: 12044 | B157: 2013-11-22 | C157: 4.28 | D157: 0.33
A158: 12045 | B158: 2013-11-22 | C158: 262.04 | D158: 19.97 | E158: $162.04 due
A159: 12046 | B159: 2013-11-22 | C159: 6.19 | E159: ESG Customs - Resale
A160: 12047 | B160: 2013-11-22 | C160: 399.88 | D160: 30.48
A161: 12048 | B161: 2013-11-22 | C161: 30.2 | D161: 2.3
A162: 12049 | B162: 2013-11-22 | C162: 21.65 | D162: 1.65
A163: 12050 | B163: 2013-11-22 | C163: 16.24 | D163: 1.24 | E163: Debit | F163: =+C155+C163 -> 59.54 | G163: 58.8
A164: 12051 | B164: 2013-11-23 | C164: 43.3 | D164: 3.3 | E164: Debit
A165: 12052 | B165: 2013-11-23 | C165: 105.54 | D165: 8.04 | E165: Due, scooter
A166: 12053 | B166: 2013-11-23 | C166: 57.33 | D166: 4.37
A167: 12054 | B167: 2013-11-23 | C167: 303.1 | D167: 23.1 | E167: Visa
A168: 12055 | B168: 2013-11-23 | C168: 26.95 | D168: 2.05
A169: 12056 | B169: 2013-11-23 | C169: 0 | D169: 0 | E169: Exchange
A170: 12057 | B170: 2013-11-23 | C170: 100 | E170: Check
A171: 12058 | B171: 2013-11-23 | C171: 49.95 | D171: 3.81
A172: 12059 | B172: 2013-11-23 | C172: 23.96 | D172: 1.83 | F172: =+C164+C167+47.89 -> 394.29 | G172: 388.26
A173: 12060 | B173: 2013-11-25 | C173: 1.62 | D173: 0.12
A174: 12061 | B174: 2013-11-25 | C174: 54.07 | D174: 4.12
A175: 12062 | B175: 2013-11-25 | C175: 32.42 | D175: 2.47 | E175: Visa
A176: 12063 | B176: 2013-11-25 | C176: 194.85 | D176: 14.85 | E176: Due
A177: 12064 | B177: 2013-11-25 | C177: 8.12 | D177: 0.62 | E177: Due, OT | F177: =+C175 -> 32.42 | G177: 31.86
A178: 12065 | B178: 2013-11-26 | C178: 16.18 | D178: 1.23 | E178: Visa
A179: 12066 | B179: 2013-11-26 | C179: 32.42 | D179: 2.47 | E179: MC
A180: 12067 | B180: 2013-11-26 | C180: 365.83 | D180: 27.88 | F180: =+C178+C179+C31+105.55 -> 376.06 | G180: 373.68
A181: 12068 | B181: 2013-11-27 | C181: 23.24
A182: 12069 | B182: 2013-11-27 | C182: 197 | E182: Debit, Chris - Resale
A183: 12070 | B183: 2013-11-27 | C183: 503.25 | D183: 38.35 | E183: $203.25 due
A184: 12071 | B184: 2013-11-27 | C184: 22.25 | E184: Debit, Chris - Resale
A185: 12072 | B185: 2013-11-27 | C185: 345.86 | D185: 26.36 | E185: Due
A186: 12073 | B186: 2013-11-27 | C186: 54.13 | D186: 4.13 | E186: Due, Ducati
A187: 12074 | B187: 2013-11-27 | C187: 74 | E187: ESG Customs - resale | F187: =+C182+C184+C136 -> 338.45 | G187: 338.45
A188: 12075 | B188: 2013-11-29 | C188: 17.27 | D188: 1.32
A189: 12076 | B189: 2013-11-29 | C189: 17.27 | D189: 1.32
A190: 12077 | B190: 2013-11-29 | C190: 68.79 | D190: 5.24 | E190: Debit
A191: 12078 | B191: 2013-11-29 | C191: 34.53 | D191: 2.63
A192: 12079 | B192: 2013-11-29 | C192: 160.21 | D192: 12.21 | E192: $125. Discover, Bal Cash
A193: 12080 | B193: 2013-11-29 | C193: 81.19 | D193: 6.19 | E193: Debit
A194: 12081 | B194: 2013-11-29 | C194: 21.6 | D194: 1.65
A195: 12082 | B195: 2013-11-29 | C195: 47.41 | D195: 3.61
A196: 12083 | B196: 2013-11-29 | C196: 8.06 | D196: 0.61
A197: 12084 | B197: 2013-11-29 | C197: 11 | D197: 0.84 | E197: Due, Randy | F197: =+C190+125+50 -> 243.79 | G197: 241.64
A198: 12085 | B198: 2013-11-30 | C198: 29.23 | D198: 2.23
A199: 12086 | B199: 2013-11-30 | C199: 238.2 | D199: 18.15
A200: 12087 | B200: 2013-11-30 | C200: 16.4 | D200: 1.25
... 13 more rows

Sheet Oct-13
A1: Invoice | C1: =SUM(C266:C444) -> 0 | D1: =SUM(D266:D444) -> 0 | H1: =TODAY() -> 2015-01-03
A2: Number | B2: Date | C2: Amount | D2: Tax | E2: Terms
A3: 11628 | B3: 2013-10-01 | C3: 64.95 | D3: 4.95 | E3: Debit
A4: 11629 | B4: 2013-10-01 | C4: 64.95 | D4: 4.95 | E4: Debit
A5: 11630 | B5: 2013-10-01 | C5: 188.3 | D5: 14.35 | E5: Visa, Big Dog
A6: 11631 | B6: 2013-10-01 | C6: 21.65 | D6: 1.65
A7: 11632 | B7: 2013-10-01 | C7: 528.26 | D7: 40.26 | F7: =+C3+C4 -> 129.9 | G7: 129.9
A8: 11633 | B8: 2013-10-02 | C8: 22.73 | D8: 1.73 | E8: MC
A9: 11634 | B9: 2013-10-02 | C9: 98 | E9: Debit
A10: 11635 | B10: 2013-10-02 | C10: 25.98 | D10: 1.98 | E10: Debit
A11: 11636 | B11: 2013-10-02 | C11: 416.49 | D11: 31.74 | E11: Check, Blue Busa | F11: =+C5+C8+C9+C10 -> 335.01 | G11: 331.38
A12: 11637 | B12: 2013-10-03 | C12: 17.98 | D12: 0
A13: 11638 | B13: 2013-10-03 | C13: 291.14 | D13: 22.19
A14: 11639 | B14: 2013-10-03 | C14: 204.59 | D14: 15.59 | E14: Check, Dyna
A15: 11640 | B15: 2013-10-03 | C15: 102.84 | D15: 7.84 | E15: Visa
A16: 11641 | B16: 2013-10-03 | C16: 108.25 | D16: 8.25 | E16: Debit
A17: 11642 | B17: 2013-10-03 | C17: 99.48 | D17: 7.58 | E17: $75. credit Inv 7841
A18: 11643 | B18: 2013-10-03 | C18: 241.4 | D18: 18.4 | E18: Debit, Royal Star, pu Mon. | F18: =+C15+C16+87.68 -> 298.77 | G18: 295.49
A19: 11644 | B19: 2013-10-04 | C19: 221.91 | D19: 16.91
A20: 11645 | B20: 2013-10-04 | C20: 43 | D20: 3.28
A21: 11646 | B21: 2013-10-04 | C21: 5.9 | D21: 0.45
A22: 11647 | B22: 2013-10-04 | C22: 85.63 | D22: 6.53 | E22: Debit
A23: 11648 | B23: 2013-10-04 | C23: 41.03 | D23: 3.13 | E23: Addl to Inv 11616
A24: 11649 | B24: 2013-10-04 | C24: 23.76 | D24: 1.81 | E24: Debit
A25: 11650 | B25: 2013-10-04 | C25: 6.44 | D25: 0.49
A26: 11651 | B26: 2013-10-04 | C26: 15.16 | D26: 1.16 | E26: Visa
A27: 11652 | B27: 2013-10-04 | C27: 154.2 | D27: 11.75 | E27: Visa
A28: 11653 | B28: 2013-10-04 | C28: 14.34 | D28: 1.09 | E28: Debit
A29: 11654 | B29: 2013-10-04 | C29: 27.06 | D29: 2.06
A30: 11655 | B30: 2013-10-04 | C30: 51.96 | D30: 3.96 | E30: MC
A31: 11656 | B31: 2013-10-04 | C31: 27.06 | D31: 2.06 | E31: Debit
A32: 11657 | B32: 2013-10-04 | C32: 12.61 | D32: 0.96 | E32: Debit
A33: 11658 | B33: 2013-10-04 | C33: 81.19 | D33: 6.19 | F33: =+C22+C24+C27+C28+C30+C31+8.25+C32+100 -> 477.81 | G33: 472.55
A34: 11659 | B34: 2013-10-05 | C34: 17.27 | D34: 1.32
A35: 11660 | B35: 2013-10-05 | C35: 385.37 | D35: 29.37 | E35: Debit
A36: 11661 | B36: 2013-10-05 | C36: 29.23 | D36: 2.23
A37: 11662 | B37: 2013-10-05 | C37: 284.16 | D37: 21.66 | E37: Visa
A38: 11663 | B38: 2013-10-05 | C38: 134.23 | D38: 10.23
A39: 11664 | B39: 2013-10-05 | C39: 19.49 | D39: 1.49
A40: 11665 | B40: 2013-10-05 | C40: 32.48 | D40: 2.48 | E40: Debit
A41: 11666 | B41: 2013-10-05 | C41: 159.56 | D41: 12.16
A42: 11667 | B42: 2013-10-05 | C42: 43.25 | D42: 3.3
A43: 11668 | B43: 2013-10-05 | C43: 99.59 | D43: 7.59 | E43: Debit
A44: 11669 | B44: 2013-10-05 | C44: 64.41 | D44: 4.91 | E44: Debit
A45: 11670 | B45: 2013-10-05 | C45: 110.2 | D45: 8.4 | E45: MC | F45: =250+C37+C40+C43+C44+C45+430.84 -> 1271.68 | G45: 1264.89
A46: 11671 | B46: 2013-10-07 | C46: 198.64 | D46: 15.14 | E46: MC
A47: 11672 | B47: 2013-10-07 | C47: 77.94 | D47: 5.94
A48: 11673 | B48: 2013-10-07 | C48: 5.41 | D48: 0.41
A49: 11674 | B49: 2013-10-07 | C49: 521.77 | D49: 39.77 | E49: Visa, (+ $200. Frt, $118. act.)
A50: 11675 | B50: 2013-10-07 | C50: 48.71 | D50: 3.71 | E50: Debit
A51: 11676 | B51: 2013-10-07 | C51: 305.27 | D51: 23.27
A52: 11677 | B52: 2013-10-07 | C52: 226.24 | D52: 17.24 | E52: Debit
A53: 11678 | B53: 2013-10-07 | C53: 649.5 | D53: 49.5 | E53: Check | F53: =+C46+C50 -> 247.35 | G53: 243.93
A54: 11679 | B54: 2013-10-08 | C54: 21.6 | D54: 1.65
A55: 11680 | B55: 2013-10-08 | C55: 8.12 | D55: 0.62 | E55: Due, OT
A56: 11681 | B56: 2013-10-08 | C56: 20 | E56: MC
A57: 11682 | B57: 2013-10-08 | C57: 13.31 | D57: 1.01
A58: 11683 | B58: 2013-10-08 | C58: 185.11 | D58: 14.11 | E58: Debit, VLX 600
A59: 11684 | B59: 2013-10-08 | C59: 44.33 | D59: 3.38
A60: 11685 | B60: 2013-10-08 | C60: 296.68 | D60: 22.61 | E60: Visa
A61: 11686 | B61: 2013-10-08 | C61: 172.66 | D61: 13.16
A62: 11687 | B62: 2013-10-08 | C62: 151.55 | D62: 11.55 | E62: Visa
A63: 11688 | B63: 2013-10-08 | C63: 227.33 | D63: 17.33 | E63: Visa
A64: 11689 | B64: 2013-10-08 | C64: 236.53 | D64: 18.03 | E64: Visa
A65: 11690 | B65: 2013-10-08 | C65: 13.96 | D65: 1.06 | E65: Debit | F65: =+C58+C60+C62+24.48+C64+C65+C18 -> 1149.71 | G65: 1137.93
A66: 11691 | B66: 2013-10-09 | C66: 17.27 | D66: 1.32 | E66: Visa
A67: 11692 | B67: 2013-10-09 | C67: 110.42 | D67: 8.42 | E67: $40. cash, $70.42 Debit
A68: 11693 | B68: 2013-10-09 | C68: 21.64 | D68: 1.65 | E68: Debit
A69: 11694 | B69: 2013-10-09 | C69: 14.02 | D69: 1.07 | E69: MC
A70: 11695 | B70: 2013-10-09 | C70: 11.85 | D70: 0.9
A71: 11696 | B71: 2013-10-09 | C71: 101.65 | D71: 7.75
A72: 11697 | B72: 2013-10-09 | C72: 135.31 | D72: 10.31 | E72: Visa, '94 Kaw Vulcan
A73: 11698 | B73: 2013-10-09 | C73: 0 | E73: Daniel G. Bag
A74: 11699 | B74: 2013-10-09 | C74: 116.37 | D74: 8.87
A75: 11700 | B75: 2013-10-09 | C75: 188.36 | D75: 14.36
A76: 11701 | B76: 2013-10-09 | C76: 54.13 | D76: 4.13 | E76: Debit, 2010 ZX10
A77: 11702 | B77: 2013-10-09 | C77: 6.12 | D77: 0.47 | E77: Visa
A78: 11703 | B78: 2013-10-09 | C78: 490 | D78: 37.34 | E78: Roadking WWW
A79: 11704 | B79: 2013-10-09 | C79: 414.06 | D79: 31.56 | E79: Visa $214.06, Bal Cash | F79: =244.59+70.42+C68+15.16+C69+C72+C76+112.02+C77 -> 673.41 | G79: 664.34
A80: 11705 | B80: 2013-10-10 | C80: 215.42 | D80: 16.42 | E80: Visa
A81: 11706 | B81: 2013-10-10 | C81: 38.97 | D81: 2.97
A82: 11707 | B82: 2013-10-10 | C82: -19.49 | D82: -1.49
A83: 11708 | B83: 2013-10-10 | C83: 32.48 | D83: 2.48
A84: 11709 | B84: 2013-10-10 | C84: 137 | E84: Palacios - resale
A85: 11710 | B85: 2013-10-10 | C85: 22.68 | D85: 1.73 | E85: Debit
A86: 11711 | B86: 2013-10-10 | C86: 263.86 | D86: 20.11 | E86: Visa
A87: 11712 | B87: 2013-10-10 | C87: 28.99 | D87: 2.21
A88: 11713 | B88: 2013-10-10 | C88: 174.28 | D88: 13.28
A89: 11714 | B89: 2013-10-10 | C89: 20 | E89: MC, Border Patrol
A90: 11715 | B90: 2013-10-10 | C90: 20 | E90: MC, Border Patrol
A91: 11716 | B91: 2013-10-10 | C91: 8.39 | D91: 0.64
A92: 11717 | B92: 2013-10-10 | C92: 77
A93: 11718 | B93: 2013-10-10 | C93: 20 | E93: Due, Border Patrol
A94: 11719 | B94: 2013-10-10 | C94: 17.43 | D94: 1.33
A95: 11720 | B95: 2013-10-10 | C95: 497.95 | D95: 37.95 | E95: Debit
A96: 11721 | B96: 2013-10-10 | C96: 40.05 | D96: 3.05 | E96: Adl to Inv 11632
A97: 11722 | B97: 2013-10-10 | C97: 172.66 | D97: 13.16
A98: 11723 | B98: 2013-10-10 | C98: 161.24 | D98: 12.29 | E98: MC
A99: 11724 | B99: 2013-10-10 | C99: 107.98 | D99: 8.23 | E99: Debit
A100: 11725 | B100: 2013-10-10 | C100: 36 | D100: 2.74
A101: 11726 | B101: 2013-10-10 | C101: 114.53 | D101: 8.73 | F101: =215.42+C85+C89+C90+20+721.77+C95+C98 -> 1679.06 | G101: 1659.14
A102: 11727 | B102: 2013-10-11 | C102: 115.83 | D102: 8.83 | E102: MC
A103: 11728 | B103: 2013-10-11 | C103: 10.83 | D103: 0.83 | E103: Due, OT DeLeon
A104: 11729 | B104: 2013-10-11 | C104: 31.72 | D104: 2.42 | E104: MC
A105: 11730 | B105: 2013-10-11 | C105: 97.43 | D105: 7.43
A106: 11731 | B106: 2013-10-11 | C106: 73.07 | D106: 5.57
A107: 11732 | B107: 2013-10-11 | C107: 54.13 | D107: 4.13 | E107: Debit
A108: 11733 | B108: 2013-10-11 | C108: 134.72 | D108: 10.27
A109: 11734 | B109: 2013-10-11 | C109: 20 | E109: J.Rangel, TWK resale
A110: 11735 | B110: 2013-10-11 | C110: 208.92 | D110: 15.92 | E110: Visa
A111: 11736 | B111: 2013-10-11 | C111: 169.41 | D111: 12.91 | F111: =+C102+C104+C86+C107+C99+135.37+C110 -> 917.81 | G111: 907.14
A112: 11737 | B112: 2013-10-12 | C112: 15.1 | D112: 1.15 | E112: Debit
A113: 11738 | B113: 2013-10-12 | C113: 157.45 | D113: 12 | E113: Visa
A114: 11739 | B114: 2013-10-12 | C114: 250.6 | D114: 19.1 | E114: $25. Debit, $60. cash
A115: 11740 | B115: 2013-10-12 | C115: 75.02 | D115: 5.72 | E115: Visa
A116: 11741 | B116: 2013-10-12 | C116: 6.44 | D116: 0.49
A117: 11742 | B117: 2013-10-12 | C117: 121.24 | D117: 9.24 | E117: Debit
A118: 11743 | B118: 2013-10-12 | C118: 34.64 | D118: 2.64 | E118: Visa
A119: 11744 | B119: 2013-10-12 | C119: 242.48 | D119: 18.48 | E119: Debit
A120: 11745 | B120: 2013-10-12 | C120: 54.5 | D120: 4.15 | E120: Debit
A121: 11746 | B121: 2013-10-12 | C121: 29.82 | D121: 2.27 | F121: =+C52+40.1+C113+C115+C117+C118+C119+C120 -> 951.67 | G121: 947.08
A122: 11747 | B122: 2013-10-14 | C122: 42.22 | D122: 3.22 | E122: Visa
A123: 11748 | B123: 2013-10-14 | C123: 54.02 | D123: 4.12
A124: 11749 | B124: 2013-10-14 | C124: 113.66 | D124: 8.66
A125: 11750 | B125: 2013-10-14 | C125: 6 | E125: J.Rangel, TWK resale
A126: 11751 | B126: 2013-10-14 | C126: 14.02 | D126: 1.07
A127: 11752 | B127: 2013-10-14 | C127: 6 | D127: 0.46 | E127: Debit | F127: =+C122 -> 42.22 | G127: 101.51
A128: 11753 | B128: 2013-10-15 | C128: 179.05 | D128: 13.65 | E128: Debit
A129: 11754 | B129: 2013-10-15 | C129: 234.9 | D129: 17.9
A130: 11755 | B130: 2013-10-15 | C130: 123.41 | D130: 9.41
A131: 11756 | B131: 2013-10-15 | C131: 74 | E131: Adrenaline - resale
A132: 11757 | B132: 2013-10-15 | C132: 199.72 | D132: 15.22 | E132: Debit
A133: 11758 | B133: 2013-10-15 | C133: 37.94 | D133: 2.89 | F133: =60+C132 -> 259.72 | G133: 258.69
A134: 11759 | B134: 2013-10-16 | C134: 74.69 | D134: 5.69
A135: 11760 | B135: 2013-10-16 | C135: 20 | D135: 1.52
A136: 11761 | B136: 2013-10-16 | C136: 146.14 | D136: 11.14 | E136: Debit
A137: 11762 | B137: 2013-10-16 | C137: 177.65 | D137: 13.54
A138: 11763 | B138: 2013-10-16 | C138: 42.16 | D138: 3.21
A139: 11764 | B139: 2013-10-16 | C139: 54 | D139: 4.12
A140: 11765 | B140: 2013-10-16 | C140: 10.83 | D140: 0.83
A141: 11766 | B141: 2013-10-16 | C141: 10.72 | D141: 0.82 | F141: =+C136 -> 146.14 | G141: 146.14
A142: 11767 | B142: 2013-10-17 | C142: 54.13 | D142: 4.13 | E142: Visa
A143: 11768 | B143: 2013-10-17 | C143: 129.9 | D143: 9.9 | E143: Debit
A144: 11769 | B144: 2013-10-17 | C144: 10.83 | D144: 0.83
A145: 11770 | B145: 2013-10-17 | C145: 25.94 | D145: 1.98 | E145: Debit
A146: 11771 | B146: 2013-10-17 | C146: 178.61 | D146: 13.61
A147: 11772 | B147: 2013-10-17 | C147: 63.76 | D147: 4.86 | E147: Debit
A148: 11773 | B148: 2013-10-17 | C148: 21.65 | D148: 1.65
A149: 11774 | B149: 2013-10-17 | C149: 357.23 | D149: 27.23 | F149: =+C142+C143+12.97+C147 -> 260.76 | G149: 259.83
A150: 11775 | B150: 2013-10-18 | C150: 129.36 | D150: 9.86
A151: 11776 | B151: 2013-10-18 | C151: 0 | D151: 0
A152: 11777 | B152: 2013-10-18 | C152: 418.82 | D152: 31.92
A153: 11778 | B153: 2013-10-18 | C153: 9.96 | D153: 0.76
A154: 11779 | B154: 2013-10-18 | C154: 12.99 | D154: 0.99
A155: 11780 | B155: 2013-10-18 | C155: 184.57 | D155: 14.07 | E155: Debit
A156: 11781 | B156: 2013-10-18 | C156: 28.15 | D156: 2.15 | E156: Debit
A157: 11782 | B157: 2013-10-18 | C157: 535.73 | D157: 40.83 | F157: =119.05+C155+C156+214.06 -> 545.83 | G157: 542.15
A158: 11783 | B158: 2013-10-19 | C158: 50.82 | D158: 3.87 | E158: $20.82 due
A159: 11784 | B159: 2013-10-19 | C159: 133.15 | D159: 10.15
A160: 11785 | B160: 2013-10-19 | C160: 30 | D160: 2.29
A161: 11786 | B161: 2013-10-19 | C161: 4.98 | D161: 0.38
A162: 11787 | B162: 2013-10-19 | C162: 27.06 | D162: 2.06 | E162: Debit
A163: 11788 | B163: 2013-10-19 | C163: 181.32 | D163: 13.82 | E163: Visa, $56.32 due
A164: 11789 | B164: 2013-10-19 | C164: 158.05 | D164: 12.05 | E164: Due
A165: 11790 | B165: 2013-10-19 | C165: 175.37 | D165: 13.37 | E165: Debit
A166: 11791 | B166: 2013-10-19 | C166: 16.24 | D166: 1.24 | F166: =+C162+125+C165 -> 327.43 | G166: 325.28
A167: 11792 | B167: 2013-10-21 | C167: 49.32
A168: 11793 | B168: 2013-10-21 | C168: 138.56 | D168: 10.56 | E168: Due
A169: 11794 | B169: 2013-10-21 | C169: 10.83 | D169: 0.83
A170: 11795 | B170: 2013-10-21 | C170: 19.43 | D170: 1.48 | E170: Due
A171: 11796 | B171: 2013-10-21 | C171: 139.64 | D171: 10.64 | F171: 0 | G171: =+F171*0.97831 -> 0
A172: 11797 | B172: 2013-10-22 | C172: 12.97 | D172: 0.99 | E172: Discover
A173: 11798 | B173: 2013-10-22 | C173: 264.67 | D173: 20.17 | E173: Visa
A174: 11799 | B174: 2013-10-22 | C174: 25.98 | D174: 1.98 | E174: Debit
A175: 11800 | B175: 2013-10-22 | C175: 86 | E175: Visa, Johnny's Custom - resale
A176: 11801 | B176: 2013-10-22 | C176: 26.63 | D176: 2.03
A177: 11802 | B177: 2013-10-22 | C177: 11 | E177: Revolution Cycles - resale
A178: 11803 | B178: 2013-10-22 | C178: 45.14 | D178: 3.44 | F178: =+C172+C173+C174+C175 -> 389.62 | G178: 383.37
A179: 11804 | B179: 2013-10-23 | C179: 21.6 | D179: 1.65
A180: 11805 | B180: 2013-10-23 | C180: 272.68 | D180: 20.78 | E180: $52.68 Due
A181: 11806 | B181: 2013-10-23 | C181: 204.92 | D181: 15.62 | E181: Due, Chevo
A182: 11807 | B182: 2013-10-23 | C182: 21.6 | D182: 1.65 | E182: Visa
A183: 11808 | B183: 2013-10-23 | C183: -25.98 | D183: -1.98 | E183: Return
A184: 11809 | B184: 2013-10-23 | C184: 5.36 | D184: 0.41
A185: 11810 | B185: 2013-10-23 | C185: 20.51 | D185: 1.56
A186: 11811 | B186: 2013-10-23 | C186: 0 | D186: 0 | E186: Chevo, even trade
A187: 11812 | B187: 2013-10-23 | C187: 37.94 | D187: 2.89 | F187: =+C182 -> 21.6 | G187: 21.23
A188: 11813 | B188: 2013-10-24 | C188: 305.7 | D188: 23.3 | E188: Discover
A189: 11814 | B189: 2013-10-24 | C189: 159.13 | D189: 12.13 | E189: Due
A190: 11815 | B190: 2013-10-24 | C190: 27.06 | D190: 2.06
A191: 11816 | B191: 2013-10-24 | C191: 9.74 | D191: 0.74 | E191: Debit
A192: 11817 | B192: 2013-10-24 | C192: 30.2 | D192: 2.3 | E192: Debit
A193: 11818 | B193: 2013-10-24 | C193: 74.64 | D193: 5.69 | E193: Debit
A194: 11819 | B194: 2013-10-24 | C194: 80 | D194: 6.1
A195: 11820 | B195: 2013-10-24 | C195: 122 | D195: 9.3
A196: 11821 | B196: 2013-10-24 | C196: 991.79 | D196: 75.59 | F196: =+C191+C192+305.7+C193 -> 420.28 | G196: 415.02
A197: 11822 | B197: 2013-10-25 | C197: 28 | D197: 2.15
A198: 11823 | B198: 2013-10-25 | C198: 241.94 | D198: 18.44
A199: 11824 | B199: 2013-10-25 | C199: 93.53 | D199: 7.13
A200: 11825 | B200: 2013-10-25 | C200: 91.96 | D200: 7.01
... 64 more rows

Sheet Sep-13
A1: Invoice | C1: =SUM(C178:C375) -> 0 | D1: =SUM(D178:D375) -> 0 | H1: =TODAY() -> 2015-01-03
A2: Number | B2: Date | C2: Amount | D2: Tax | E2: Terms
A3: 11454 | B3: 2013-09-02 | C3: 209.36 | D3: 15.96 | E3: Due
A4: 11455 | B4: 2013-09-02 | C4: 5.41 | D4: 0.41
A5: 11456 | B5: 2013-09-02 | C5: 64.95 | D5: 4.95 | E5: Debit
A6: 11457 | B6: 2013-09-02 | C6: 16.24 | D6: 1.24 | E6: Debit
A7: 11458 | B7: 2013-09-02 | C7: 657.08 | D7: 50.08 | E7: Due, Lunatic
A8: 11459 | B8: 2013-09-02 | C8: 5 | D8: 0.38 | F8: =+C5+C6 -> 81.19 | G8: 81.19
A9: 11460 | B9: 2013-09-03 | C9: 81.19 | D9: 6.19 | E9: Visa
A10: 11461 | B10: 2013-09-03 | C10: 129.9 | D10: 9.9 | E10: Visa
A11: 11462 | B11: 2013-09-03 | C11: 122.32 | D11: 9.32 | E11: Visa
A12: 11463 | B12: 2013-09-03 | C12: 14.62 | D12: 1.11 | E12: Trade, Bob (old RG)
A13: 11464 | B13: 2013-09-03 | C13: 215.32 | D13: 16.41 | E13: Discover
A14: 11465 | B14: 2013-09-03 | C14: 5 | D14: 0.38 | F14: =+C9+C11+129.9+C13 -> 548.73 | G14: 539.3
A15: 11466 | B15: 2013-09-04 | C15: 21.6 | D15: 1.65 | E15: Debit
A16: 11467 | B16: 2013-09-04 | C16: 174.28 | D16: 13.28 | E16: Debit
A17: 11468 | B17: 2013-09-04 | C17: 6.44 | D17: 0.49
A18: 11469 | B18: 2013-09-04 | C18: 14 | E18: Bike Ridz - resale
A19: 11470 | B19: 2013-09-04 | C19: 19 | E19: Due, James - resale
A20: 11471 | B20: 2013-09-04 | C20: 241.34 | D20: 18.39
A21: 11472 | B21: 2013-09-04 | C21: 280.85 | D21: 21.4 | E21: Visa
A22: 11473 | B22: 2013-09-04 | C22: 203.51 | D22: 15.51 | E22: Debit
A23: 11474 | B23: 2013-09-04 | C23: 45.47 | D23: 3.47 | E23: Debit
A24: 11475 | B24: 2013-09-04 | C24: 72.06 | D24: 5.49 | E24: Due, Pedro (Here) | F24: =+C15+C16+C21+C22+C23+8.66 -> 734.37 | G24: 729.54
A25: 11476 | B25: 2013-09-05 | C25: 36.81 | D25: 2.81
A26: 11477 | B26: 2013-09-05 | C26: 164.54 | D26: 12.54
A27: 11478 | B27: 2013-09-05 | C27: 86.55 | D27: 6.6 | E27: Visa, Addl to Inv 11424
A28: 11479 | B28: 2013-09-05 | C28: =+C31 -> 40 | D28: 5.78 | E28: Debit
A29: 11480 | B29: 2013-09-05 | C29: 27 | E29: Due, Border Patrol
A30: 11481 | B30: 2013-09-05 | C30: 141.92 | D30: 10.82
A31: 11482 | B31: 2013-09-05 | C31: 40 | D31: 3.05 | E31: Debit | F31: =209.36+C28+C31+35.78 -> 325.14 | G31: 321.54
A32: 11483 | B32: 2013-09-06 | C32: 172.12 | D32: 13.12 | E32: Visa
A33: 11484 | B33: 2013-09-06 | C33: 184.03 | D33: 14.03 | E33: Debit
A34: 11485 | B34: 2013-09-06 | C34: 358.47 | D34: 27.32
A35: 11486 | B35: 2013-09-06 | C35: 6.44 | D35: 0.49
A36: 11487 | B36: 2013-09-06 | C36: 165.57 | D36: 12.62
A37: 11488 | B37: 2013-09-06 | C37: 242.48 | D37: 18.48 | E37: Debit
A38: 11489 | B38: 2013-09-06 | C38: 136.67 | D38: 10.42
A39: 11490 | B39: 2013-09-06 | C39: -15.16 | D39: -1.16
A40: 11491 | B40: 2013-09-06 | C40: 128 | E40: Debit, Joe Rangle - resale
A41: 11492 | B41: 2013-09-06 | C41: 198.42 | D41: 15.12 | E41: Debit | F41: =+C32+C33+C37+150+C40 -> 876.63 | G41: 871.09
A42: 11493 | B42: 2013-09-07 | C42: 37.89 | D42: 2.89
A43: 11494 | B43: 2013-09-07 | C43: 27.71 | D43: 2.11
A44: 11495 | B44: 2013-09-07 | C44: 310.14 | D44: 23.64 | E44: MC
A45: 11496 | B45: 2013-09-07 | C45: 4.28 | D45: 0.33 | E45: MC
A46: 11497 | B46: 2013-09-07 | C46: 32.48 | D46: 2.48 | F46: =198.42+C44+C45 -> 512.84 | G46: 507.44
A47: 11498 | B47: 2013-09-09 | C47: 15.37 | D47: 1.17 | E47: Debit
A48: 11499 | B48: 2013-09-09 | C48: 90.93 | D48: 6.93 | E48: Debit
A49: 11500 | B49: 2013-09-09 | C49: 8.66 | D49: 0.66 | E49: Debit
A50: 11501 | B50: 2013-09-09 | C50: 5.41 | D50: 0.41 | E50: Debit
A51: 11502 | B51: 2013-09-09 | C51: 21.6 | D51: 1.65
A52: 11503 | B52: 2013-09-09 | C52: 45.3 | D52: 3.45 | E52: Debit
A53: 11504 | B53: 2013-09-09 | C53: 41 | E53: Due, James - resale | F53: =+C47+C48+C49+C50+C52 -> 165.67 | G53: 165.67
A54: 11505 | B54: 2013-09-10 | C54: 125.57 | D54: 9.57 | E54: Debit
A55: 11506 | B55: 2013-09-10 | C55: 277.12 | D55: 21.12 | E55: Discover
A56: 11507 | B56: 2013-09-10 | C56: 48.66 | D56: 3.71 | E56: Visa
A57: 11508 | B57: 2013-09-10 | C57: 160.21 | D57: 12.21
A58: 11509 | B58: 2013-09-10 | C58: 75.95 | D58: 5.79 | E58: Debit
A59: 11510 | B59: 2013-09-10 | C59: 81.19 | D59: 6.19 | E59: Check$29.19 due
A60: 11511 | B60: 2013-09-10 | C60: 20 | E60: J.Rangel - resale
A61: 11512 | B61: 2013-09-10 | C61: 270.63 | D61: 20.63 | E61: Due, Homero | F61: =+C55+C56+C58+657.08+C54 -> 1184.38 | G61: 1102.98
A62: 11513 | B62: 2013-09-11 | C62: 40 | D62: 3.05 | E62: Debit
A63: 11514 | B63: 2013-09-11 | C63: 32.48 | D63: 2.48
A64: 11515 | B64: 2013-09-11 | C64: 192.69 | D64: 14.69 | E64: Debit
A65: 11516 | B65: 2013-09-11 | C65: 18.94 | D65: 1.44
A66: 11517 | B66: 2013-09-11 | C66: 81.19 | D66: 6.19 | F66: =+C64+C62+149.39 -> 382.08 | G66: 382.08
A67: 11518 | B67: 2013-09-12 | C67: 25.98 | E67: Due, ESG Customs
A68: 11519 | B68: 2013-09-12 | C68: 51.96 | D68: 3.96 | E68: Debit
A69: 11520 | B69: 2013-09-12 | C69: 20.52 | D69: 1.56
A70: 11521 | B70: 2013-09-12 | C70: 48.66 | D70: 3.71
A71: 11522 | B71: 2013-09-12 | C71: 4.22 | D71: 0.32
A72: 11523 | B72: 2013-09-12 | C72: 126.2 | E72: Check, Chris F. - resale
A73: 11524 | B73: 2013-09-12 | C73: 52.95 | E73: Due, J.Rangle - resale | F73: =+C68 -> 51.96 | G73: 51.96
A74: 11525 | B74: 2013-09-13 | C74: 52.99 | D74: 4.04
A75: 11526 | B75: 2013-09-13 | C75: 5.41 | D75: 0.41 | E75: Due
A76: 11527 | B76: 2013-09-13 | E76: Due - Rene, see Inv below
A77: 11528 | B77: 2013-09-13 | C77: 1258.3 | D77: 95.9 | E77: Trade, $858.30 due - Rene
A78: 11529 | B78: 2013-09-13 | C78: 25.93 | D78: 1.98
A79: 11530 | B79: 2013-09-13 | C79: 174.82 | D79: 13.32
A80: 11531 | B80: 2013-09-13 | C80: 18.35 | D80: 1.4 | E80: MC
A81: 11532 | B81: 2013-09-13 | C81: 82.22 | D81: 6.27 | E81: Debit
A82: 11533 | B82: 2013-09-13 | C82: 40.05 | D82: 3.05 | E82: Debit | F82: =270.63+C80+C81+C82+64.95 -> 476.2 | G82: 471.23
A83: 11534 | B83: 2013-09-14 | C83: 28.15 | D83: 2.15 | E83: Due
A84: 11535 | B84: 2013-09-14 | C84: 87.68 | D84: 6.68
A85: 11536 | B85: 2013-09-14 | C85: 12.99 | D85: 0.99 | E85: Debit
A86: 11537 | B86: 2013-09-14 | C86: 31.18 | D86: 2.38 | E86: Debit
A87: 11538 | B87: 2013-09-14 | C87: 657.08 | D87: 50.08 | E87: Due, addle to Inv 11303
A88: 11539 | B88: 2013-09-14 | C88: 108.25 | D88: 8.25 | E88: Due, Bendex Carb
A89: 11540 | B89: 2013-09-14 | C89: 103.92 | D89: 7.92 | E89: Debit | F89: =+C85+C86+C89 -> 148.09 | G89: 148.09
A90: 11541 | B90: 2013-09-16 | C90: 48.28 | D90: 3.68
A91: 11542 | B91: 2013-09-16 | C91: 7.52 | D91: 0.57 | E91: Debit
A92: 11543 | B92: 2013-09-16 | C92: 6.5 | E92: Due, J.Rangle - resale
A93: 11544 | B93: 2013-09-16 | C93: 43 | E93: Due, Border Patrol
A94: 11545 | B94: 2013-09-16 | C94: 109.17 | D94: 8.32 | E94: Debit
A95: 11546 | B95: 2013-09-16 | C95: 64.9 | D95: 4.95 | E95: Debit
A96: 11547 | B96: 2013-09-16 | C96: 97.43 | D96: 7.43 | E96: Debit | F96: =+C91+C94+C95 -> 181.59 | G96: =+F96*0.97831 -> 177.6513129
A97: 11548 | B97: 2013-09-17 | C97: 32.42 | D97: 2.47 | E97: Debit
A98: 11549 | B98: 2013-09-17 | C98: 104.3 | D98: 7.95 | E98: Due
A99: 11550 | B99: 2013-09-17 | C99: 32.42 | D99: 2.47 | E99: Debit
A100: 11551 | B100: 2013-09-17 | C100: 50.88 | D100: 3.88
A101: 11552 | B101: 2013-09-17 | C101: 151.55 | D101: 11.55 | E101: Debit
A102: 11553 | B102: 2013-09-17 | C102: 281.45 | D102: 21.45 | E102: Debit
A103: 11554 | B103: 2013-09-17 | C103: 162.81 | D103: 12.41 | E103: Debit, Big Dog
A104: 11555 | B104: 2013-09-17 | C104: 86.55 | D104: 6.6 | E104: Debit, Sue
A105: 11556 | B105: 2013-09-17 | C105: 42.22 | D105: 3.22
A106: 11557 | B106: 2013-09-17 | C106: 8 | D106: 0.61 | F106: =+C96+C97+C99+C101+C102+C104 -> 681.82 | G106: 681.82
A107: 11558 | B107: 2013-09-18 | C107: 197.02 | D107: 15.02 | E107: Visa | F107: 0 | G107: =+F107*0.97831 -> 0
A108: 11559 | B108: 2013-09-19 | C108: 29.23 | D108: 2.23
A109: 11560 | B109: 2013-09-19 | C109: 114.64 | D109: 8.74 | E109: Visa, $49.64 balance
A110: 11561 | B110: 2013-09-19 | C110: 5.25 | D110: 0.4 | F110: =+C103+65+197.02 -> 424.83 | G110: 420.32
A111: 11562 | B111: 2013-09-20 | C111: 104 | E111: Visa
A112: 11563 | B112: 2013-09-20 | C112: 54.02 | D112: 4.12
A113: 11564 | B113: 2013-09-20 | C113: 2 | D113: 0.15
A114: 11565 | B114: 2013-09-20 | C114: 6 | D114: 0.46 | E114: Debit
A115: 11566 | B115: 2013-09-20 | C115: 32.48 | D115: 2.48 | E115: Debit | F115: =+C111+C114+C115+26 -> 168.48 | G115: 166.24
A116: 11567 | B116: 2013-09-21 | C116: 612.7 | D116: 46.7 | E116: $506.5. due
A117: 11568 | B117: 2013-09-21 | C117: 159.13 | D117: 12.13 | E117: Visa
A118: 11569 | B118: 2013-09-21 | C118: 0 | D118: 0
A119: 11570 | B119: 2013-09-21 | C119: 45.47 | D119: 3.47 | E119: Debit
A120: 11571 | B120: 2013-09-21 | C120: 130.98 | D120: 9.98
A121: 11572 | B121: 2013-09-21 | C121: 41.08 | D121: 3.13
A122: 11573 | B122: 2013-09-21 | C122: 974.25 | D122: 74.25 | E122: MC
A123: 11574 | B123: 2013-09-21 | C123: 29.68 | D123: 2.26 | E123: MC | F123: =+C117+910.18+C119+C122+C123 -> 2118.71 | G123: 2098.7
A124: 11575 | B124: 2013-09-23 | C124: 166.6 | D124: 12.7 | E124: Debit, $106.60 due
A125: 11576 | B125: 2013-09-23 | C125: 25.93 | D125: 1.98
A126: 11577 | B126: 2013-09-23 | C126: 110.42 | D126: 8.42 | E126: Debit
A127: 11578 | B127: 2013-09-23 | C127: 60.57 | D127: 4.62 | F127: =65+C126 -> 175.42 | G127: 175.42
A128: 11579 | B128: 2013-09-24 | C128: 73.93 | D128: 5.63 | E128: Debit
A129: 11580 | B129: 2013-09-24 | C129: 5.36 | D129: 0.41 | E129: Debit
A130: 11581 | B130: 2013-09-24 | C130: 89.31 | D130: 6.81 | E130: MC
A131: 11582 | B131: 2013-09-24 | C131: 138 | E131: J.Rangel - resale | F131: =+C128+C129+C130 -> 168.6 | G131: 167.06
A132: 11583 | B132: 2013-09-25 | C132: 25.98 | D132: 1.98
A133: 11584 | B133: 2013-09-25 | C133: 13.59 | D133: 1.04 | E133: Debit
A134: 11585 | B134: 2013-09-25 | C134: 10.77 | D134: 0.82
A135: 11586 | B135: 2013-09-25 | C135: 116.91 | D135: 8.91 | E135: Debit
A136: 11587 | B136: 2013-09-25 | C136: 108.25 | D136: 8.25 | E136: $100. Cash, $8.25 Due | F136: =+C133+C135+101.6 -> 232.1 | G136: 232.1
A137: 11588 | B137: 2013-09-26 | C137: 8.52 | E137: Due
A138: 11589 | B138: 2013-09-26 | C138: 10 | E138: MC
A139: 11590 | B139: 2013-09-26 | C139: 248.43 | D139: 18.93 | E139: MC
A140: 11591 | B140: 2013-09-26 | C140: 21.65 | D140: 1.65
A141: 11592 | B141: 2013-09-26 | C141: 100.13 | D141: 7.63
A142: 11593 | B142: 2013-09-26 | C142: 231.66 | D142: 17.66 | E142: Debit
A143: 11594 | B143: 2013-09-26 | C143: 512.02 | D143: 39.02 | E143: Visa, $212.02 due
A144: 11595 | B144: 2013-09-26 | C144: 43.25 | D144: 3.3 | E144: Discover | F144: =+C138+C139+C142+300+C144 -> 833.34 | G144: 823
A145: 11596 | B145: 2013-09-27 | C145: 19.49 | D145: 1.49
A146: 11597 | B146: 2013-09-27 | C146: 3.25 | D146: 0.25
A147: 11598 | B147: 2013-09-27 | C147: 203.4 | D147: 15.5 | E147: Due
A148: 11599 | B148: 2013-09-27 | C148: 309.54 | D148: 23.59 | E148: Debit
A149: 11600 | B149: 2013-09-27 | C149: 399.44 | D149: 30.44 | E149: Due, '82 FXR
A150: 11601 | B150: 2013-09-27 | C150: 87.68 | D150: 6.68 | E150: Due, ETA Wed
A151: 11602 | B151: 2013-09-27 | C151: 75 | D151: 5.72 | E151: Debit | F151: =+C148+C151 -> 384.54 | G151: 384.54
A152: 11603 | B152: 2013-09-28 | C152: 726 | E152: MC
A153: 11604 | B153: 2013-09-28 | C153: 37.83 | D153: 2.88 | E153: Debit
A154: 11605 | B154: 2013-09-28 | C154: 80.21 | D154: 6.11 | E154: MC
A155: 11606 | B155: 2013-09-28 | C155: 24.68 | D155: 1.88 | E155: Debit
A156: 11607 | B156: 2013-09-28 | C156: 186.84 | D156: 14.24 | E156: $100. Debit, $86.84 cash
A157: 11608 | B157: 2013-09-28 | C157: 195.93 | D157: 14.93 | E157: $135.93 due
A158: 11609 | B158: 2013-09-28 | C158: 143 | D158: 10.9
A159: 11610 | B159: 2013-09-28 | C159: 344.24 | D159: 26.24
A160: 11611 | B160: 2013-09-28 | C160: 34.53 | D160: 2.63 | E160: MC
A161: 11612 | B161: 2013-09-28 | C161: 29.77 | D161: 2.27 | E161: Visa
A162: 11613 | B162: 2013-09-28 | C162: 77.89 | D162: 5.94 | E162: Visa, $47.89 due
A163: 11614 | B163: 2013-09-28 | C163: 276.04 | D163: 21.04 | E163: CC
A164: 11615 | B164: 2013-09-28 | C164: 143.97 | D164: 10.97 | E164: Visa
A165: 11616 | B165: 2013-09-28 | C165: 293.9 | D165: 22.4 | E165: Visa, $153.90 due
A166: 11617 | B166: 2013-09-28 | C166: 402.69 | D166: 30.69 | E166: Debit | F166: =+C152+C153+C154+C155+100+C160+C161+C163+30+C164+140+C166 -> 2025.72 | G166: 2002.5
A167: 11618 | B167: 2013-09-30 | C167: 32.48 | D167: 2.48 | E167: Debit
A168: 11619 | B168: 2013-09-30 | C168: 54.13 | D168: 4.13
A169: 11620 | B169: 2013-09-30 | C169: 30 | E169: Due, Bike Rods - resale
A170: 11621 | B170: 2013-09-30 | C170: 202.91 | D170: 15.46 | E170: Visa
A171: 11622 | B171: 2013-09-30 | C171: 16.18 | D171: 1.23 | E171: Debit
A172: 11623 | B172: 2013-09-30 | C172: 573.73 | D172: 43.73
A173: 11624 | B173: 2013-09-30 | C173: 182.94 | D173: 13.94
A174: 11625 | B174: 2013-09-30 | C174: 20.51 | D174: 1.56
A175: 11626 | B175: 2013-09-30 | C175: 49.74 | D175: 3.79 | E175: Visa
A176: 11627 | B176: 2013-09-30 | C176: 21.65 | D176: 1.65 | E176: Debit | F176: =+C167+C171+C170+C175+C176 -> 322.96 | G176: =+F176*0.97831 -> 315.9549976

Sheet Aug-13
A1: Invoice | C1: =SUM(C253:C450) -> 0 | D1: =SUM(D253:D450) -> 0 | H1: =TODAY() -> 2015-01-03
A2: Number | B2: Date | C2: Amount | D2: Tax | E2: Terms
A3: 11205 | B3: 2013-08-01 | C3: 85.52 | D3: 6.52 | E3: MC
A4: 11206 | B4: 2013-08-01 | C4: 287.89 | D4: 21.94 | E4: Debit
A5: 11207 | B5: 2013-08-01 | C5: 132 | E5: Joe Rangel - resale
A6: 11208 | B6: 2013-08-01 | C6: 10.83 | D6: 0.83
A7: 11209 | B7: 2013-08-01 | C7: 64.95 | D7: 4.95
A8: 11210 | B8: 2013-08-01 | C8: 38 | E8: Revolution Cycles - resale
A9: 11211 | B9: 2013-08-01 | C9: 46 | E9: MC, Border Patrol
A10: 11212 | B10: 2013-08-01 | C10: 127 | D10: 9.68
A11: 11213 | B11: 2013-08-01 | C11: 186.71 | D11: 14.23 | E11: Debit
A12: 11214 | B12: 2013-08-01 | C12: 51 | E12: MC, Border Patrol
A13: 11215 | B13: 2013-08-01 | C13: 145 | D13: 11.05 | E13: Debit | F13: =+C3+C11+79+C4+C13+95.26+176.45+180.67 -> 1236.5 | G13: 1229.07
A14: 11216 | B14: 2013-08-02 | C14: 10.83 | D14: 0.83
A15: 11217 | B15: 2013-08-02 | C15: 43.3 | D15: 3.3 | E15: Debit
A16: 11218 | B16: 2013-08-02 | C16: 24.07 | D16: 1.07 | E16: Debit
A17: 11219 | B17: 2013-08-02 | C17: 2.71 | D17: 0.21
A18: 11220 | B18: 2013-08-02 | C18: 48.71 | D18: 3.71 | E18: Visa, Mingo
A19: 11221 | B19: 2013-08-02 | C19: 21.65 | D19: 1.65
A20: 11222 | B20: 2013-08-02 | C20: 18.35 | D20: 1.4
A21: 11223 | B21: 2013-08-02 | C21: 10.83 | D21: 0.83
A22: 11224 | B22: 2013-08-02 | C22: 13.59 | D22: 1.04 | F22: =+C15+C16+89.7 -> 157.07 | G22: 156.23
A23: 11225 | B23: 2013-08-03 | C23: 45.25 | D23: 3.45
A24: 11226 | B24: 2013-08-03 | C24: 101 | E24: Visa, Johnnys Custom
A25: 11227 | B25: 2013-08-03 | C25: 27 | E25: Visa, Johnnys Custom
A26: 11228 | B26: 2013-08-03 | C26: 72.47 | D26: 5.52 | E26: Debit
A27: 11229 | B27: 2013-08-03 | C27: 40.05 | D27: 3.05 | E27: Debit
A28: 11230 | B28: 2013-08-03 | C28: 618.81 | D28: 47.16
A29: 11231 | B29: 2013-08-03 | C29: 25.98 | D29: 1.98
A30: 11232 | B30: 2013-08-03 | C30: 200.25 | D30: 15.26
A31: 11233 | B31: 2013-08-03 | C31: 75.78 | D31: 5.78 | E31: Debit, $40.78 due
A32: 11234 | B32: 2013-08-03 | C32: 358.31 | D32: 27.31 | E32: Visa | F32: =+C24+C25+C26+C27+35+150 -> 425.52 | G32: 420.74
A33: 11235 | B33: 2013-08-05 | C33: 168.71 | D33: 12.86 | E33: Debit
A34: 11236 | B34: 2013-08-05 | C34: 152.63 | D34: 11.63 | E34: Debit
A35: 11237 | B35: 2013-08-05 | C35: 16.24 | D35: 1.24
A36: 11238 | B36: 2013-08-05 | C36: 161.83 | D36: 12.33 | E36: Visa
A37: 11239 | B37: 2013-08-05 | C37: 213.25 | D37: 16.25 | E37: Visa
A38: 11240 | B38: 2013-08-05 | C38: 283.99 | D38: 21.64
A39: 11241 | B39: 2013-08-05 | C39: 10.83 | D39: 0.83 | E39: Debit | F39: =+C33+C34+C36+51+46+25+479+C39 -> 1095 | G39: 1081.88
A40: 11242 | B40: 2013-08-06 | C40: 30.31 | D40: 2.31 | E40: Debit
A41: 11243 | B41: 2013-08-06 | C41: 151.01 | D41: 11.51
A42: 11244 | B42: 2013-08-06 | C42: 224.02 | D42: 17.07
A43: 11245 | B43: 2013-08-06 | C43: 51.96 | D43: 3.96 | E43: Debit
A44: 11246 | B44: 2013-08-06 | C44: 248.98 | D44: 18.98 | E44: MC
A45: 11247 | B45: 2013-08-06 | C45: 103.92 | D45: 7.92
A46: 11248 | B46: 2013-08-06 | C46: 18.35 | D46: 1.4
A47: 11249 | B47: 2013-08-06 | C47: 205.13 | D47: 15.63 | E47: Debit
A48: 11250 | B48: 2013-08-06 | C48: 216.5 | D48: 16.5 | E48: Due, likely install 8/15
A49: 11251 | B49: 2013-08-06 | C49: 19.43 | D49: 1.48 | F49: =+C40+164.02+C43+C47+86.71+23.3 -> 561.43 | G49: 561.43
A50: 11252 | B50: 2013-08-07 | C50: 41.01 | D50: 3.13
A51: 11253 | B51: 2013-08-07 | C51: 49.74 | D51: 3.79 | E51: Debit
A52: 11254 | B52: 2013-08-07 | C52: 23.82 | D52: 1.82 | E52: MC
A53: 11255 | B53: 2013-08-07 | C53: 87.68 | D53: 6.68
A54: 11256 | B54: 2013-08-07 | C54: 227.33 | D54: 17.33 | E54: Check
A55: 11257 | B55: 2013-08-07 | C55: 11.85 | D55: 0.9
A56: 11258 | B56: 2013-08-07 | C56: 6.46
A57: 11259 | B57: 2013-08-07 | C57: 8.66 | D57: 0.66 | E57: MC
A58: 11260 | B58: 2013-08-07 | C58: 194.31 | D58: 14.81
A59: 11261 | B59: 2013-08-07 | C59: 64.95 | D59: 4.95 | E59: Debit | F59: =+C51+C52+144.31+C59 -> 282.82 | G59: 282.41
A60: 11262 | B60: 2013-08-08 | C60: 32.48 | D60: 2.48 | E60: MC
A61: 11263 | B61: 2013-08-08 | C61: 154.48 | E61: ESG Customs - resale
A62: 11264 | B62: 2013-08-08 | C62: 376 | E62: MC
A63: 11265 | B63: 2013-08-08 | C63: 12.94 | D63: 0.99
A64: 11266 | B64: 2013-08-08 | C64: 275.98 | D64: 21.03 | E64: Debit
A65: 11267 | B65: 2013-08-08 | C65: 6.95 | D65: 0.53 | E65: Visa
A66: 11268 | B66: 2013-08-08 | C66: 12.94 | D66: 0.99
A67: 11269 | B67: 2013-08-08 | C67: 160.75 | D67: 12.25 | E67: Debit
A68: 11270 | B68: 2013-08-08 | C68: 74.69 | D68: 5.69 | E68: Visa
A69: 11271 | B69: 2013-08-08 | C69: 150 | E69: Debit, Johnny's - resale
A70: 11272 | B70: 2013-08-08 | C70: 74.64 | D70: 5.69 | F70: =+C60+C62+C64+C65+C67+213.25+248.98+C69+C68+208.31+8.66 -> 1756.05 | G70: 1735.93
A71: 11273 | B71: 2013-08-09 | C71: 144.51 | D71: 11.01 | E71: MC
A72: 11274 | B72: 2013-08-09 | C72: 41 | E72: Revolution Cycles - resale
A73: 11275 | B73: 2013-08-09 | C73: 16 | E73: Due, Bike Rods - resale
A74: 11276 | B74: 2013-08-09 | C74: 7.52 | D74: 0.57
A75: 11277 | B75: 2013-08-09 | C75: 10.81 | D75: 0.82 | F75: =40.78+C71 -> 185.29 | G75: 182.8
A76: 11278 | B76: 2013-08-10 | C76: 40 | D76: 3.05
A77: 11279 | B77: 2013-08-10 | C77: 17.27 | D77: 1.32
A78: 11280 | B78: 2013-08-10 | C78: 8.99 | E78: ESG Customs - resale
A79: 11281 | B79: 2013-08-10 | C79: 28.74 | D79: 2.19
A80: 11282 | B80: 2013-08-10 | C80: 240.81 | D80: 18.35 | E80: Due
A81: 11283 | B81: 2013-08-10 | C81: 153.74 | D81: 11.72
A82: 11284 | B82: 2013-08-10 | C82: 87.52 | D82: 6.67 | E82: Visa
A83: 11285 | B83: 2013-08-10 | C83: 339.5 | E83: Visa, Chris Fantich | F83: =+C82+C83+30 -> 457.02 | G83: 449.68
A84: 11286 | B84: 2013-08-12 | C84: 164.54 | D84: 12.54 | E84: Visa
A85: 11287 | B85: 2013-08-12 | C85: 173.2 | D85: 13.2 | E85: $168.20 Due
A86: 11288 | B86: 2013-08-12 | C86: 20 | D86: 1.52
A87: 11289 | B87: 2013-08-12 | C87: 15.1 | D87: 1.15 | E87: Debit
A88: 11290 | B88: 2013-08-12 | C88: 250.06 | D88: 19.06 | E88: Debit, $120.06 bal
A89: 11291 | B89: 2013-08-12 | C89: 67.12 | D89: 5.12
A90: 11292 | B90: 2013-08-12 | C90: 82.27 | D90: 6.27
A91: 11293 | B91: 2013-08-12 | C91: 215.96 | D91: 16.46 | E91: Debit
A92: 11294 | B92: 2013-08-12 | C92: 214.82 | D92: 16.37 | E92: Discover | F92: =80+C87+C91+130+C92 -> 655.88 | G92: 650.81
A93: 11295 | B93: 2013-08-13 | C93: 54.13 | D93: 4.13
A94: 11296 | B94: 2013-08-13 | C94: 5.29 | E94: Due, ESG Customs
A95: 11297 | B95: 2013-08-13 | C95: 194.74 | D95: 14.84 | E95: MC
A96: 11298 | B96: 2013-08-13 | C96: 11.91 | D96: 0.91 | F96: =+C95+25.25 -> 219.99 | G96: 216.64
A97: 11299 | B97: 2013-08-14 | C97: 356.03 | D97: 27.13
A98: 11300 | B98: 2013-08-14 | C98: 36.48 | D98: 2.78
A99: 11301 | B99: 2013-08-14 | C99: 6.44 | D99: 0.49
A100: 11302 | B100: 2013-08-14 | C100: 384.23 | D100: 29.28
A101: 11303 | B101: 2013-08-14 | C101: 248.98 | D101: 18.98 | E101: $198.98 Due
A102: 11304 | B102: 2013-08-14 | C102: 127.74 | D102: 9.74 | E102: Debit
A103: 11305 | B103: 2013-08-14 | C103: 33.56 | D103: 2.56 | E103: Debit
A104: 11306 | B104: 2013-08-14 | C104: 62.09 | E104: Debit | F104: =+C102+84.5+C103+C104+69.04 -> 376.93 | G104: 375.48
A105: 11307 | B105: 2013-08-15 | C105: 62.79 | D105: 4.79
A106: 11308 | B106: 2013-08-15 | C106: 127.46 | D106: 9.71 | E106: Debit
A107: 11309 | B107: 2013-08-15 | C107: 427.48 | D107: 32.58
A108: 11310 | B108: 2013-08-15 | C108: 0 | D108: 0 | E108: Daniel Galena
A109: 11311 | B109: 2013-08-15 | C109: 170.49 | D109: 12.99 | E109: $120.49 due
A110: 11312 | B110: 2013-08-15 | C110: 66.03 | D110: 5.03 | E110: $46.03 due
A111: 11313 | B111: 2013-08-15 | C111: 29.23 | D111: 2.23
A112: 11314 | B112: 2013-08-15 | C112: 200.05 | D112: 15.25 | E112: MC, $286.24 due
A113: 11315 | B113: 2013-08-15 | C113: 86.6 | D113: 6.6
A114: 11316 | B114: 2013-08-15 | C114: 20
A115: 11317 | B115: 2013-08-15 | C115: 32.48 | D115: 2.48
A116: 11318 | B116: 2013-08-15 | C116: 7.5 | E116: Due
A117: 11319 | B117: 2013-08-15 | C117: 89.85 | D117: 6.85 | E117: Debit
A118: 11320 | B118: 2013-08-15 | C118: 107.17 | D118: 8.17 | E118: Debit
A119: 11321 | B119: 2013-08-15 | C119: 98.24 | E119: ESG Customs - resale | F119: =+C106+100+C117+C118 -> 424.48 | G119: 422.76
A120: 11322 | B120: 2013-08-16 | C120: 98.03 | D120: 7.47
A121: 11323 | B121: 2013-08-16 | C121: 6.44 | D121: 0.49
A122: 11324 | B122: 2013-08-16 | C122: 8 | E122: Bike Rodz - resale
A123: 11325 | B123: 2013-08-16 | C123: 69.28 | D123: 5.28
A124: 11326 | B124: 2013-08-16 | C124: 22.73 | D124: 1.73 | E124: Debit
A125: 11327 | B125: 2013-08-16 | C125: 282.53 | D125: 21.53 | E125: MC
A126: 11328 | B126: 2013-08-16 | C126: 29.01 | D126: 2.21 | E126: Debit
A127: 11329 | B127: 2013-08-16 | C127: 11.85 | D127: 0.9 | E127: Debit
A128: 11330 | B128: 2013-08-16 | C128: 33.56 | D128: 2.56
A129: 11331 | B129: 2013-08-16 | C129: 30 | E129: Joe Rangel - resale | F129: =+C124+C125+C126+C127+120.06 -> 466.18 | G129: 461.32
A130: 11332 | B130: 2013-08-17 | C130: -48.71 | D130: -3.71
A131: 11333 | B131: 2013-08-17 | C131: 253.85 | D131: 19.35
A132: 11334 | B132: 2013-08-17 | C132: 64.9 | D132: 4.95 | E132: Debit
A133: 11335 | B133: 2013-08-17 | C133: 29.99 | D133: 2.29
A134: 11336 | B134: 2013-08-17 | C134: 18.35 | D134: 1.4 | E134: Debit
A135: 11337 | B135: 2013-08-17 | C135: 23.82 | D135: 1.82
A136: 11338 | B136: 2013-08-17 | C136: 11.85 | D136: 0.9
A137: 11339 | B137: 2013-08-17 | C137: 35 | D137: 2.67
A138: 11340 | B138: 2013-08-17 | C138: 10 | D138: 0.76
A139: 11341 | B139: 2013-08-17 | C139: 238.95 | E139: Trade, Chris - resale
A140: 11342 | B140: 2013-08-17 | C140: 6 | D140: 0.46
A141: 11343 | B141: 2013-08-17 | C141: 8.62 | D141: 0.66 | F141: =153.85+C132+C134 -> 237.1 | G141: 237.1
A142: 11344 | B142: 2013-08-19 | C142: 3.25 | D142: 0.25
A143: 11345 | B143: 2013-08-19 | C143: 25.95 | D143: 1.98
A144: 11346 | B144: 2013-08-19 | C144: 10 | D144: 0.76
A145: 11347 | B145: 2013-08-19 | C145: 50 | E145: Due, Border Patrol
A146: 11348 | B146: 2013-08-19 | C146: 67.07 | D146: 5.11
A147: 11349 | B147: 2013-08-19 | C147: 8.5 | E147: James Ind - resale
A148: 11350 | B148: 2013-08-19 | C148: 382.12 | D148: 29.12 | E148: $332.12 Due
A149: 11351 | B149: 2013-08-19 | C149: 69.99 | D149: 5.33
A150: 11352 | B150: 2013-08-19 | C150: 48.66 | D150: 3.71 | E150: Debit
A151: 11353 | B151: 2013-08-19 | C151: 439.5 | D151: 33.5 | E151: Debit
A152: 11354 | B152: 2013-08-19 | C152: 9.69 | D152: 0.74
A153: 11355 | B153: 2013-08-19 | C153: 77 | E153: Due, Dons - rersale
A154: 11356 | B154: 2013-08-19 | C154: 31.8 | D154: 2.42
A155: 11357 | B155: 2013-08-19 | C155: 190.2 | E155: Check 2044
A156: 11358 | B156: 2013-08-19 | C156: 198 | E156: Johnny's Custom - resale | F156: =+C150+C151 -> 488.16 | G156: 488.16
A157: 11359 | B157: 2013-08-20 | C157: 201.89 | D157: 15.39 | E157: $101.89 due
A158: 11360 | B158: 2013-08-20 | C158: 9.74 | D158: 0.74 | E158: Debit
A159: 11361 | B159: 2013-08-20 | E159: Cash for Randy only
A160: 11362 | B160: 2013-08-20 | C160: 49.98985 | D160: 3.80985
A161: 11363 | B161: 2013-08-20 | C161: 213.79 | D161: 16.29 | E161: MC
A162: 11364 | B162: 2013-08-20 | C162: 151.55 | D162: 11.55 | E162: Debit
A163: 11365 | B163: 2013-08-20 | C163: 81.19 | D163: 6.19 | E163: $29.19 debit, bal cash
A164: 11366 | B164: 2013-08-20 | C164: 32 | D164: 2.44 | E164: Randy | F164: =+C158+C161+C162+29.19 -> 404.27 | G164: 400.59
A165: 11367 | B165: 2013-08-21 | C165: 11.85 | D165: 0.9 | E165: Visa
A166: 11368 | B166: 2013-08-21 | C166: 87.52 | D166: 6.67 | E166: MC
A167: 11369 | B167: 2013-08-21 | C167: 32.48 | D167: 2.48
A168: 11370 | B168: 2013-08-21 | C168: 24.9 | D168: 1.9
A169: 11371 | B169: 2013-08-21 | C169: 33.56 | D169: 2.56 | E169: Visa
A170: 11372 | B170: 2013-08-21 | C170: 114.75 | D170: 8.75 | E170: Visa
A171: 11373 | B171: 2013-08-21 | C171: 19 | E171: Due, James Ind - resale
A172: 11374 | B172: 2013-08-21 | C172: 18 | E172: Due, J. Rangel - resale | F172: =+C165+C166+C169+C170 -> 247.68 | G172: 243.42
A173: 11375 | B173: 2013-08-22 | C173: 424.77 | D173: 32.37 | E173: MC
A174: 11376 | B174: 2013-08-22 | C174: 346.4 | D174: 26.4
A175: 11377 | B175: 2013-08-22 | C175: 224.78 | D175: 17.13 | E175: Debit $19.48 due
A176: 11378 | B176: 2013-08-22 | C176: 96 | E176: Visa
A177: 11379 | B177: 2013-08-22 | C177: 11.91 | D177: 0.91 | E177: Debit
A178: 11380 | B178: 2013-08-22 | C178: 681.11 | D178: 51.91 | E178: Visa | F178: =+C173+C175+C176+C177 -> 757.46 | G178: 729.02 | H178: ?
A179: 11381 | B179: 2013-08-23 | C179: 13.66 | E179: Adrenaline - resale
A180: 11382 | B180: 2013-08-23 | C180: 54.13 | D180: 4.13 | E180: Debit
A181: 11383 | B181: 2013-08-23 | C181: 30.99 | D181: 2.36
A182: 11384 | B182: 2013-08-23 | C182: 633.26 | D182: 48.26
A183: 11385 | B183: 2013-08-23 | C183: 20.51 | D183: 1.56 | E183: Debit
A184: 11386 | B184: 2013-08-23 | C184: 63.87 | D184: 4.87 | F184: =+C180+19.48+C178+C183 -> 775.23 | G184: 763.51
A185: 11387 | B185: 2013-08-24 | C185: 534.54 | D185: 40.74 | E185: MC
A186: 11388 | B186: 2013-08-24 | C186: 20.78 | D186: 1.58 | E186: Debit
A187: 11389 | B187: 2013-08-24 | C187: 3 | D187: 0.23 | E187: Debit
A188: 11390 | B188: 2013-08-24 | C188: 23.82 | D188: 1.82
A189: 11391 | B189: 2013-08-24 | C189: 234.85 | D189: 17.9 | E189: Debit
A190: 11392 | B190: 2013-08-24 | C190: 6.44 | D190: 0.49
A191: 11393 | B191: 2013-08-24 | C191: 6.44 | D191: 0.49 | E191: Debit
A192: 11394 | B192: 2013-08-24 | C192: 165.62 | D192: 12.62 | E192: Debit
A193: 11395 | B193: 2013-08-24 | C193: 109.33 | D193: 8.33 | E193: Debit
A194: 11396 | B194: 2013-08-24 | C194: 12.94 | D194: 0.99
A195: 11397 | B195: 2013-08-24 | C195: 10.77 | D195: 0.82
A196: 11398 | B196: 2013-08-24 | C196: 175.8 | D196: 13.4 | E196: Debit
A197: 11399 | B197: 2013-08-24 | C197: 63.87 | D197: 4.87 | F197: =+C185+122.67+C187+C189+C191+C192+100+208.27+100 -> 1475.39 | G197: 1466.2
A198: 11400 | B198: 2013-08-26 | C198: 62.79 | D198: 4.79 | E198: Debit
A199: 11401 | B199: 2013-08-26 | C199: 96.34 | D199: 7.34
A200: 11402 | B200: 2013-08-26 | C200: 19.49 | D200: 1.49
... 51 more rows

Sheet Perpetual
B1: Vendor: | C1: WPS | D1: Date Parts Received: | E1: 2015-01-02
F2: (this date can be changed)
A5: Quantity | B5: Unit | E5: Updated | F5: Last | G5: Last
A6: Received | B6: Cost | C6: Part Number | D6: Part Description | E6: Inventory | F6: Received | G6: Cost
A7: 1 | B7: 80.63 | C7: 87-4572 | D7: SHINKO *160/80-15 777 RR | E7: 0 | F7: 2014-10-02 | G7: 80.63
A8: 1 | B8: 6.79 | C8: 70-1070 | D8: Crampbuster - CB1 | E8: 0 | F8: 2014-07-16 | G8: 6.79
A9: 1 | B9: 7.39 | C9: 78-9933 | D9: MAXIMA CHAIN GUARD 14oz | E9: -1 | F9: 2014-12-23 | G9: 7.39
A10: 1 | B10: 68.84 | C10: 69-6630 | D10: WPS 525 HSX - 130 LINK X-RING CHAIN | E10: 0 | F10: N/A | G10: N/A
A11: 1 | B11: 65.51 | C11: 87-4105 | D11: Shinko *MT90B16 RR | E11: -4 | F11: 2014-10-06 | G11: 65.51

Sheet Sheet1
D11: -1 | E11: 59 | F11: 2014-10-22 | G11: 83.84

Sheet Test Invoice (hidden)
A1: RGV Cycle Stuff
Z2: INVOICE
AC5: DATE: | AD5: =NOW() -> 2015-01-03T16:33:53.500
AC6: INVOICE: | AD6: 1610
B13: Bill To: | X13: Ship To:
E14: Cash Customer | AA14: =+E14 -> Cash Customer
E16: Texas | AA16: =+E16 -> Texas
E17: USA | AA17: =+E17 -> USA
A20: P.O. # | E20: Sales Rep. Name | M20: Ship Date | T20: Ship Via | Y20: Terms | AD20: Due Date
E21: Robert | Y21: Cash
A23: Product ID | E23: Description | T23: Quantity | Y23: Unit Price | AD23: Line Total
A24: 123 | E24: some product | T24: 1 | Y24: 25 | AD24: =+T24*Y24 -> 25
